Workbook

Sheet Entries
A1: Name | B1: College | C1: Gender | D1: Bow | E1: Level | F1: Face | G1: Points | H1: IV | K1: List of IVs
C2: F | D2: Barebow | E2: Intermediate | F2: 60cm
C3: M | D3: Compound | E3: Guest | F3: 40cm
D4: Recurve | E4: Advanced | F4: 3 spot
E5: Beginner
A6: Aaron Downes | B6: GMIT | C6: M | D6: Recurve | E6: Intermediate | G6: 392 | H6: DkIT | K6: UL IV
A7: Aaron Downes | B7: GMIT | C7: M | D7: Recurve | E7: Intermediate | G7: 391 | H7: GMIT | K7: DkIT IV
A8: Aaron Downes | B8: GMIT | C8: M | D8: Recurve | E8: Intermediate | G8: 388 | H8: DCU | K8: GMIT IV
A9: Aaron Downes | B9: GMIT | C9: M | D9: Recurve | E9: Intermediate | G9: 330 | H9: NUIG | K9: DCU IV
A10: Aaron Wong Siu Zhen | B10: DKIT | C10: M | D10: Recurve | E10: Beginner | G10: 393 | H10: UL | K10: NUIG IV
A11: Aaron Wong Siu Zhen | B11: DKIT | C11: M | D11: Recurve | E11: Beginner | G11: 423 | H11: DkIT
A12: Aaron Wong Siu Zhen | B12: DKIT | C12: M | D12: Recurve | E12: Beginner | G12: 279 | H12: GMIT
A13: Aaron Wong Siu Zhen | B13: DKIT | C13: M | D13: Recurve | E13: Beginner | G13: 294 | H13: NUIG | K13: Completed Ivs
A14: Ahmad Nasree M Khairuddin Lim | B14: RCSI | C14: M | D14: Recurve | E14: Beginner | G14: 372 | H14: UL | K14: UL
A15: Aidan Darcy | B15: IT Tallaght | C15: M | D15: Recurve | E15: Advanced | G15: 401 | H15: UL | K15: DkIT
A16: Aidan Darcy | B16: IT Tallaght | C16: M | D16: Recurve | E16: Advanced | G16: 488 | H16: DkIT | K16: GMIT
A17: Aidan Darcy | B17: IT Tallaght | C17: M | D17: Recurve | E17: Advanced | G17: 525 | H17: GMIT | K17: DCU
A18: Aidan Darcy | B18: IT Tallaght | C18: M | D18: Recurve | E18: Advanced | G18: 473 | H18: DCU | K18: NUIG
A19: Aidan Darcy | B19: IT Tallaght | C19: M | D19: Recurve | E19: Advanced | G19: 503 | H19: NUIG
A20: Aishling Dignam | B20: DCU | C20: F | D20: Recurve | E20: Intermediate | G20: 346 | H20: DkIT | K20: =COUNTA(K14:K19) -> 5
A21: Aishling Dignam | B21: DCU | C21: F | D21: Recurve | E21: Intermediate | G21: 314 | H21: GMIT
A22: Aishling Dignam | B22: DCU | C22: F | D22: Recurve | E22: Intermediate | G22: 359 | H22: DCU
A23: Aishling Dignam | B23: DCU | C23: F | D23: Recurve | E23: Intermediate | G23: 398 | H23: NUIG
A24: Alessandra Pennesi | B24: NUIG | C24: F | D24: Barebow | E24: Beginner | G24: 211 | H24: GMIT
A25: Amy Garde | B25: UCC | C25: F | D25: Barebow | E25: Beginner | G25: 289 | H25: NUIG
A26: Andrew Fahey | B26: GMIT | C26: M | D26: Barebow | E26: Beginner | G26: 391 | H26: DkIT
A27: Andrew Fahey | B27: GMIT | C27: M | D27: Barebow | E27: Beginner | G27: 439 | H27: GMIT
A28: Andrew Fahey | B28: GMIT | C28: M | D28: Barebow | E28: Beginner | G28: 307 | H28: DCU
A29: Andrew Fahey | B29: GMIT | C29: M | D29: Barebow | E29: Beginner | G29: 360 | H29: NUIG
A30: Andrew Fahey | B30: GMIT | C30: M | D30: Barebow | E30: Beginner | G30: 393 | H30: UL
A31: Andrew Fairbrother | B31: UCD | C31: M | D31: Barebow | E31: Beginner | G31: 121 | H31: UL
A32: Andrew Neville | B32: UU | C32: M | D32: Recurve | E32: Beginner | G32: 380 | H32: GMIT
A33: Andrew Neville | B33: UU | C33: M | D33: Recurve | E33: Beginner | G33: 365 | H33: DCU
A34: Andrew Warrington | B34: GMITC | C34: M | D34: Barebow | E34: Advanced | G34: 306 | H34: UL
A35: Andrew Warrington | B35: GMITC | C35: M | D35: Barebow | E35: Advanced | G35: 274 | H35: GMIT
A36: Andrew Warrington | B36: GMITC | C36: M | D36: Barebow | E36: Advanced | G36: 321 | H36: NUIG
A37: Andy Canavan | B37: DCU | C37: M | D37: Recurve | E37: Intermediate | G37: 429 | H37: UL
A38: Andy Canavan | B38: DCU | C38: M | D38: Recurve | E38: Intermediate | G38: 400 | H38: DkIT
A39: Anke Jaeger | B39: NUIG | C39: F | D39: Barebow | E39: Beginner | G39: 250 | H39: DkIT
A40: Anna Bergert | B40: DKIT | C40: F | D40: Recurve | E40: Beginner | G40: 383 | H40: DkIT
A41: Aoife Monaghan | B41: GMIT | C41: F | D41: Barebow | E41: Advanced | G41: 156 | H41: DCU
A42: Aoife Monaghan | B42: GMIT | C42: F | D42: Barebow | E42: Advanced | G42: 307 | H42: NUIG
A43: Aonghus Condren | B43: UCD | C43: M | D43: Recurve | E43: Beginner | G43: 387 | H43: DkIT
A44: Apoorva Kashyap | B44: UU | C44: F | D44: Recurve | E44: Beginner | G44: 200 | H44: DCU
A45: Artem Semenov | B45: UL | C45: M | D45: Recurve | E45: Beginner | G45: 405 | H45: NUIG
A46: Asia Tayyab | B46: GMIT | C46: F | D46: Recurve | E46: Beginner | G46: 330 | H46: UL
A47: Asia Tayyab | B47: GMIT | C47: F | D47: Recurve | E47: Beginner | G47: 283 | H47: DkIT
A48: Asia Tayyab | B48: GMIT | C48: F | D48: Recurve | E48: Beginner | G48: 376 | H48: GMIT
A49: Asia Tayyab | B49: GMIT | C49: F | D49: Recurve | E49: Beginner | G49: 407 | H49: DCU
A50: Asia Tayyab | B50: GMIT | C50: F | D50: Recurve | E50: Beginner | G50: 278 | H50: NUIG
A51: Azeem Mohd Elias | B51: UCD | C51: M | D51: Recurve | E51: Beginner | G51: 335 | H51: UL
A52: Bernard O'Connor | B52: DCU | C52: M | D52: Barebow | E52: Advanced | G52: 411 | H52: DkIT
A53: Bernard O'Connor | B53: DCU | C53: M | D53: Barebow | E53: Advanced | G53: 326 | H53: UL
A54: Bernard O'Connor | B54: DCU | C54: M | D54: Barebow | E54: Advanced | G54: 403 | H54: GMIT
A55: Bernard O'Connor | B55: DCU | C55: M | D55: Barebow | E55: Advanced | G55: 379 | H55: DCU
A56: Bernard O'Connor | B56: DCU | C56: M | D56: Barebow | E56: Advanced | G56: 404 | H56: NUIG
A57: Beth Freeman | B57: DCU | C57: F | D57: Compound | E57: Advanced | G57: 494 | H57: UL
A58: Beth Freeman | B58: DCU | C58: F | D58: Compound | E58: Advanced | G58: 517 | H58: DkIT
A59: Beth Freeman | B59: DCU | C59: F | D59: Compound | E59: Advanced | G59: 526 | H59: DCU
A60: Beth Freeman | B60: DCU | C60: F | D60: Compound | E60: Advanced | G60: 517 | H60: NUIG
A61: Blair Flinn | B61: UCD | C61: M | D61: Barebow | E61: Beginner | G61: 267 | H61: UL
A62: Brendan Browne | B62: GMIT | C62: M | D62: Compound | E62: Advanced | G62: 532 | H62: UL
A63: Brendan Browne | B63: GMIT | C63: M | D63: Compound | E63: Advanced | G63: 548 | H63: GMIT
A64: Brendan Browne | B64: GMIT | C64: M | D64: Compound | E64: Advanced | G64: 545 | H64: DCU
A65: Brendan Browne | B65: GMIT | C65: M | D65: Compound | E65: Advanced | G65: 547 | H65: NUIG
A66: Brendan Forde | B66: DIT | C66: M | D66: Recurve | E66: Advanced | G66: 509 | H66: UL
A67: Brendan Forde | B67: DIT | C67: M | D67: Recurve | E67: Advanced | G67: 506 | H67: DkIT
A68: Brendan Forde | B68: DIT | C68: M | D68: Recurve | E68: Advanced | G68: 515 | H68: GMIT
A69: Brendan Forde | B69: DIT | C69: M | D69: Recurve | E69: Advanced | G69: 513 | H69: DCU
A70: Brendan Forde | B70: DIT | C70: M | D70: Recurve | E70: Advanced | G70: 512 | H70: NUIG
A71: Brendan McManus | B71: DCU | C71: M | D71: Recurve | E71: Intermediate | G71: 471 | H71: UL
A72: Brendan McManus | B72: DCU | C72: M | D72: Recurve | E72: Intermediate | G72: 443 | H72: DkIT
A73: Brendan McManus | B73: DCU | C73: M | D73: Recurve | E73: Intermediate | G73: 402 | H73: DCU
A74: Brendan McManus | B74: DCU | C74: M | D74: Recurve | E74: Intermediate | G74: 496 | H74: NUIG
A75: Brendan O'Sullivan | B75: UCC | C75: M | D75: Recurve | E75: Beginner | G75: 483 | H75: UL
A76: Brendan O'Sullivan | B76: UCC | C76: M | D76: Recurve | E76: Beginner | G76: 447 | H76: DCU
A77: Brendan O'Sullivan | B77: UCC | C77: M | D77: Recurve | E77: Beginner | G77: 413 | H77: NUIG
A78: Brian Conroy | B78: UCC | C78: M | D78: Recurve | E78: Intermediate | G78: 293 | H78: GMIT
A79: Brian Conroy | B79: UCC | C79: M | D79: Recurve | E79: Intermediate | G79: 366 | H79: NUIG
A80: Brian McDonagh ITT | B80: IT Tallaght | C80: M | D80: Barebow | E80: Beginner | G80: 205 | H80: UL
A81: Brian McDonagh ITT | B81: IT Tallaght | C81: M | D81: Barebow | E81: Beginner | G81: 308 | H81: GMIT
A82: Brian McDonagh ITT | B82: IT Tallaght | C82: M | D82: Barebow | E82: Beginner | G82: 283 | H82: DCU
A83: Brian McDonagh ITT | B83: IT Tallaght | C83: M | D83: Barebow | E83: Beginner | G83: 313 | H83: NUIG
A84: Brian McDonagh MU | B84: MU | C84: M | D84: Barebow | E84: Beginner | G84: 430 | H84: DCU
A85: Brian Swayne | B85: UCC | C85: M | D85: Recurve | E85: Beginner | G85: 378 | H85: UL
A86: Brian Swayne | B86: UCC | C86: M | D86: Recurve | E86: Beginner | G86: 448 | H86: GMIT
A87: Brian Swayne | B87: UCC | C87: M | D87: Recurve | E87: Beginner | G87: 455 | H87: DCU
A88: Bronwyn Berkeley | B88: DUAC | C88: F | D88: Recurve | E88: Beginner | G88: 121 | H88: DkIT
A89: Bruna Duarte | B89: DIT | C89: F | D89: Recurve | E89: Beginner | G89: 303 | H89: DCU
A90: Bruna Duarte | B90: DIT | C90: F | D90: Recurve | E90: Beginner | G90: 421 | H90: NUIG
A91: Bruna Mota | B91: UCD | C91: F | D91: Recurve | E91: Beginner | G91: 424 | H91: GMIT
A92: Bruna Mota | B92: UCD | C92: F | D92: Recurve | E92: Beginner | G92: 327 | H92: DCU
A93: Bruna Mota | B93: UCD | C93: F | D93: Recurve | E93: Beginner | G93: 395 | H93: NUIG
A94: Caoimhe Lalor | B94: UCD | C94: M | D94: Recurve | E94: Beginner | G94: 168 | H94: DCU
A95: Carl Byrne | B95: NUIG | C95: M | D95: Compound | E95: Advanced | G95: 560 | H95: GMIT
A96: Carl McCaffery | B96: UCD | C96: M | D96: Recurve | E96: Advanced | G96: 522 | H96: UL
A97: Carl McCaffery | B97: UCD | C97: M | D97: Recurve | E97: Advanced | G97: 517 | H97: DkIT
A98: Carl McCaffery | B98: UCD | C98: M | D98: Recurve | E98: Advanced | G98: 529 | H98: GMIT
A99: Carl McCaffery | B99: UCD | C99: M | D99: Recurve | E99: Advanced | G99: 528 | H99: DCU
A100: Carl McCaffery | B100: UCD | C100: M | D100: Recurve | E100: Advanced | G100: 503 | H100: NUIG
A101: Carla Reinhardt | B101: UCC | C101: F | D101: Recurve | E101: Beginner | G101: 266 | H101: UL
A102: Carla Reinhardt | B102: UCC | C102: F | D102: Recurve | E102: Beginner | G102: 424 | H102: GMIT
A103: Carla Reinhardt | B103: UCC | C103: F | D103: Recurve | E103: Beginner | G103: 399 | H103: DCU
A104: Carla Reinhardt | B104: UCC | C104: F | D104: Recurve | E104: Beginner | G104: 392 | H104: NUIG
A105: Caroline Clarke | B105: GMITC | C105: F | D105: Barebow | E105: Beginner | G105: 283 | H105: UL
A106: Caroline Clarke | B106: GMITC | C106: F | D106: Barebow | E106: Beginner | G106: 167 | H106: GMIT
A107: Caroline Clarke | B107: GMITC | C107: F | D107: Barebow | E107: Beginner | G107: 181 | H107: DCU
A108: Caroline Clarke | B108: GMITC | C108: F | D108: Barebow | E108: Beginner | G108: 260 | H108: NUIG
A109: Casey Patmore | B109: UCD | C109: M | D109: Recurve | E109: Beginner | G109: 261 | H109: DkIT
A110: Charles O'Dowd | B110: UCD | C110: M | D110: Recurve | E110: Intermediate | G110: 423 | H110: UL
A111: Charles O'Dowd | B111: UCD | C111: M | D111: Recurve | E111: Intermediate | G111: 414 | H111: DkIT
A112: Charles O'Dowd | B112: UCD | C112: M | D112: Recurve | E112: Intermediate | G112: 482 | H112: GMIT
A113: Charles O'Dowd | B113: UCD | C113: M | D113: Recurve | E113: Intermediate | G113: 435 | H113: DCU
A114: Charles O'Dowd | B114: UCD | C114: M | D114: Recurve | E114: Intermediate | G114: 465 | H114: NUIG
A115: Charlotte Lokko | B115: MU | C115: F | D115: Barebow | E115: Beginner | G115: 206 | H115: UL
A116: Charlotte Lokko | B116: MU | C116: F | D116: Barebow | E116: Beginner | G116: 275 | H116: DkIT
A117: Charlotte Lokko | B117: MU | C117: F | D117: Barebow | E117: Beginner | G117: 306 | H117: GMIT
A118: Charlotte Lokko | B118: MU | C118: F | D118: Barebow | E118: Beginner | G118: 267 | H118: DCU
A119: Chris O'Leary | B119: UCC | C119: M | D119: Recurve | E119: Intermediate | G119: 390 | H119: DCU
A120: Chris O'Leary | B120: UCC | C120: M | D120: Recurve | E120: Intermediate | G120: 411 | H120: NUIG
A121: Chris Riddell | B121: NUIG | C121: M | D121: Recurve | E121: Beginner | G121: 386 | H121: DkIT
A122: Chris Riddell | B122: NUIG | C122: M | D122: Recurve | E122: Beginner | G122: 434 | H122: DCU
A123: Chris Riddell | B123: NUIG | C123: M | D123: Recurve | E123: Beginner | G123: 314 | H123: NUIG
A124: Christopher Ryan | B124: NUIG | C124: M | D124: Compound | E124: Advanced | G124: 549 | H124: DkIT
A125: Christopher Ryan | B125: NUIG | C125: M | D125: Compound | E125: Advanced | G125: 561 | H125: NUIG
A126: Christo Pretorious | B126: DUAC | C126: M | D126: Recurve | E126: Advanced | G126: 290 | H126: DkIT
A127: Christopher Balfe | B127: IT Tallaght | C127: M | D127: Barebow | E127: Beginner | G127: 439 | H127: GMIT
A128: Christopher Balfe | B128: IT Tallaght | C128: M | D128: Barebow | E128: Beginner | G128: 395 | H128: DCU
A129: Christopher Balfe | B129: IT Tallaght | C129: M | D129: Barebow | E129: Beginner | G129: 369 | H129: NUIG
A130: Chris Riddell | B130: NUIG | C130: M | D130: Recurve | E130: Beginner | G130: 342 | H130: UL
A131: Chris Riddell | B131: NUIG | C131: M | D131: Recurve | E131: Beginner | G131: 328 | H131: GMIT
A132: Christopher Ryan | B132: NUIG | C132: M | D132: Compound | E132: Advanced | G132: 565 | H132: UL
A133: Charlotte Lokko | B133: MU | C133: F | D133: Barebow | E133: Beginner | G133: 307 | H133: NUIG
A134: Chua Wei Kwan | B134: DKIT | C134: M | D134: Recurve | E134: Beginner | G134: 405 | H134: GMIT
A135: Chua Wei Kwan | B135: DKIT | C135: M | D135: Recurve | E135: Beginner | G135: 439 | H135: UL
A136: Cian Butler | B136: DCU | C136: M | D136: Recurve | E136: Intermediate | G136: 224 | H136: UL
A137: Ciara Fergus | B137: UL | C137: F | D137: Recurve | E137: Intermediate | G137: 335 | H137: UL
A138: Ciara Fergus | B138: UL | C138: F | D138: Recurve | E138: Intermediate | G138: 352 | H138: DkIT
A139: Ciara Fergus | B139: UL | C139: F | D139: Recurve | E139: Intermediate | G139: 277 | H139: GMIT
A140: Ciara Fergus | B140: UL | C140: F | D140: Recurve | E140: Intermediate | G140: 306 | H140: DCU
A141: Ciara O'Sullivan | B141: DCU | C141: F | D141: Recurve | E141: Intermediate | G141: 443 | H141: DkIT
A142: Ciara O'Sullivan | B142: DCU | C142: F | D142: Recurve | E142: Intermediate | G142: 472 | H142: GMIT
A143: Ciara O'Sullivan | B143: DCU | C143: F | D143: Recurve | E143: Intermediate | G143: 411 | H143: DCU
A144: Ciara O'Sullivan | B144: DCU | C144: F | D144: Recurve | E144: Intermediate | G144: 469 | H144: NUIG
A145: Ciarán Martin | B145: MU | C145: M | D145: Barebow | E145: Beginner | G145: 298 | H145: GMIT
A146: Ciarán Martin | B146: MU | C146: M | D146: Barebow | E146: Beginner | G146: 327 | H146: DCU
A147: Ciarán Martin | B147: MU | C147: M | D147: Barebow | E147: Beginner | G147: 296 | H147: NUIG
A148: Ciarán Martin | B148: MU | C148: M | D148: Barebow | E148: Beginner | G148: 380 | H148: UL
A149: Ciarán Martin | B149: MU | C149: M | D149: Barebow | E149: Beginner | G149: 413 | H149: DkIT
A150: Cillian Byrne | B150: DCU | C150: M | D150: Compound | E150: Advanced | G150: 539 | H150: GMIT
A151: Cillian Byrne | B151: DCU | C151: M | D151: Compound | E151: Advanced | G151: 544 | H151: UL
A152: Cillian Byrne | B152: DCU | C152: M | D152: Compound | E152: Advanced | G152: 547 | H152: DkIT
A153: Cillian Byrne | B153: DCU | C153: M | D153: Compound | E153: Advanced | G153: 540 | H153: DCU
A154: Cillian Byrne | B154: DCU | C154: M | D154: Compound | E154: Advanced | G154: 535 | H154: NUIG
A155: Clarke-Ng Choy-Ping | B155: DUAC | C155: F | D155: Recurve | E155: Intermediate | G155: 407 | H155: DCU
A156: Conn De Barra | B156: DUAC | C156: M | D156: Barebow | E156: Beginner | G156: 152 | H156: DCU
A157: Conn De Barra | B157: DUAC | C157: M | D157: Barebow | E157: Beginner | G157: 201 | H157: NUIG
A158: Connor Newman | B158: MU | C158: M | D158: Barebow | E158: Beginner | G158: 359 | H158: UL
A159: Connor Newman | B159: MU | C159: M | D159: Recurve | E159: Beginner | G159: 398 | H159: DkIT
A160: Connor Newman | B160: MU | C160: M | D160: Recurve | E160: Beginner | G160: 440 | H160: GMIT
A161: Connor Newman | B161: MU | C161: M | D161: Recurve | E161: Beginner | G161: 424 | H161: DCU
A162: Connor Newman | B162: MU | C162: M | D162: Recurve | E162: Beginner | G162: 451 | H162: NUIG
A163: Conor Winters | B163: DKIT | C163: M | D163: Recurve | E163: Beginner | G163: 455 | H163: UL
A164: Conor McCann | B164: GMIT | C164: M | D164: Recurve | E164: Intermediate | G164: 435 | H164: UL
A165: Conor McCann | B165: GMIT | C165: M | D165: Recurve | E165: Intermediate | G165: 256 | H165: DkIT
A166: Conor McCann | B166: GMIT | C166: M | D166: Recurve | E166: Intermediate | G166: 401 | H166: GMIT
A167: Conor McCann | B167: GMIT | C167: M | D167: Recurve | E167: Intermediate | G167: 398 | H167: DCU
A168: Conor McCann | B168: GMIT | C168: M | D168: Recurve | E168: Intermediate | G168: 324 | H168: NUIG
A169: Conor Moran | B169: UL | C169: M | D169: Recurve | E169: Intermediate | G169: 257 | H169: DkIT
A170: Conor Ó Beoláin | B170: NUIG | C170: M | D170: Barebow | E170: Advanced | G170: 471 | H170: UL
A171: Conor Ó Beoláin | B171: NUIG | C171: M | D171: Barebow | E171: Advanced | G171: 393 | H171: DkIT
A172: Conor Ó Beoláin | B172: NUIG | C172: M | D172: Barebow | E172: Advanced | G172: 340 | H172: DCU
A173: Conor O'Brien | B173: UL | C173: M | D173: Recurve | E173: Beginner | G173: 310 | H173: UL
A174: Conor O'Brien | B174: UL | C174: M | D174: Recurve | E174: Beginner | G174: 287 | H174: DkIT
A175: Conor O'Brien | B175: UL | C175: M | D175: Recurve | E175: Beginner | G175: 405 | H175: GMIT
A176: Conor O'Brien | B176: UL | C176: M | D176: Recurve | E176: Beginner | G176: 294 | H176: DCU
A177: Conor O'Brien | B177: UL | C177: M | D177: Recurve | E177: Beginner | G177: 300 | H177: NUIG
A178: Conor Sheridan | B178: UCD | C178: M | D178: Barebow | E178: Beginner | G178: 299 | H178: DCU
A179: Conor Winters | B179: DKIT | C179: M | D179: Recurve | E179: Beginner | G179: 488 | H179: GMIT
A180: Conor Winters | B180: DKIT | C180: M | D180: Recurve | E180: Beginner | G180: 486 | H180: DCU
A181: Conor Winters | B181: DKIT | C181: M | D181: Recurve | E181: Beginner | G181: 508 | H181: NUIG
A182: Cormac Begley | B182: DUAC | C182: M | D182: Barebow | E182: Beginner | G182: 282 | H182: DkIT
A183: Cormac Begley | B183: DUAC | C183: M | D183: Barebow | E183: Beginner | G183: 253 | H183: GMIT
A184: Cormac Begley | B184: DUAC | C184: M | D184: Barebow | E184: Beginner | G184: 267 | H184: NUIG
A185: Cormac O'Callaghan | B185: UCC | C185: M | D185: Recurve | E185: Beginner | G185: 397 | H185: UL
A186: Cormac O'Callaghan | B186: UCC | C186: M | D186: Recurve | E186: Beginner | G186: 453 | H186: GMIT
A187: Cormac O'Callaghan | B187: UCC | C187: M | D187: Recurve | E187: Beginner | G187: 452 | H187: DCU
A188: Cormac O'Callaghan | B188: UCC | C188: M | D188: Recurve | E188: Beginner | G188: 466 | H188: NUIG
A189: Dáire Healy | B189: DUAC | C189: M | D189: Recurve | E189: Advanced | G189: 379 | H189: DCU
A190: Dáire Healy | B190: DUAC | C190: M | D190: Recurve | E190: Advanced | G190: 410 | H190: NUIG
A191: Dáire Healy | B191: DUAC | C191: M | D191: Recurve | E191: Advanced | G191: 389 | H191: DkIT
A192: Dale Burke | B192: GMIT | C192: M | D192: Recurve | E192: Advanced | G192: 524 | H192: UL
A193: Dale Burke | B193: GMIT | C193: M | D193: Recurve | E193: Advanced | G193: 488 | H193: DkIT
A194: Dale Burke | B194: GMIT | C194: M | D194: Recurve | E194: Advanced | G194: 517 | H194: GMIT
A195: Dale Burke | B195: GMIT | C195: M | D195: Recurve | E195: Advanced | G195: 501 | H195: NUIG
A196: Daniel Kelly | B196: NUIG | C196: M | D196: Barebow | E196: Advanced | G196: 293 | H196: DkIT
A197: Daniel Kelly | B197: NUIG | C197: M | D197: Barebow | E197: Advanced | G197: 383 | H197: GMIT
A198: Darragh Kellegher | B198: UL | C198: M | D198: Recurve | E198: Beginner | G198: 331 | H198: DkIT
A199: Darragh Kellegher | B199: UL | C199: M | D199: Recurve | E199: Beginner | G199: 400 | H199: UL
A200: Darragh Kellegher | B200: UL | C200: M | D200: Recurve | E200: Beginner | G200: 308 | H200: DCU
... 457 more rows

Sheet Singles
B2: Gender | C2: M | E2: Male Beginner Recurve | O2: Gender | P2: F | R2: Female Beginner Recurve | AB2: Gender | AC2: M | AE2: Male Intermediate Recurve | AO2: Gender | AP2: F | AR2: Female Intermediate Recurve | BB2: Gender | BC2: M | BE2: Male Advanced Recurve | BO2: Gender | BP2: F | BR2: Female Advanced Recurve
B3: Bow | C3: Recurve | O3: Bow | P3: Recurve | AB3: Bow | AC3: Recurve | AO3: Bow | AP3: Recurve | BB3: Bow | BC3: Recurve | BO3: Bow | BP3: Recurve
B4: Level | C4: Beginner | O4: Level | P4: Beginner | AB4: Level | AC4: Intermediate | AO4: Level | AP4: Intermediate | BB4: Level | BC4: Advanced | BO4: Level | BP4: Advanced
B6: Sum of Points | D6: IV | I6: Grand Total | J6: Lowest | K6: League total | O6: Sum of Points | Q6: IV | V6: Grand Total | W6: Lowest | X6: League total | AB6: Sum of Points | AD6: IV | AI6: Grand Total | AJ6: Lowest | AK6: League total | AO6: Sum of Points | AQ6: IV | AV6: Grand Total | AW6: Lowest | AX6: League total | BB6: Sum of Points | BD6: IV | BI6: Grand Total | BJ6: Lowest | BK6: League total | BO6: Sum of Points | BQ6: IV | BV6: Grand Total | BW6: Lowest | BX6: League total
B7: Name | C7: College | D7: UL | E7: DkIT | F7: GMIT | G7: DCU | H7: NUIG | O7: Name | P7: College | Q7: UL | R7: DkIT | S7: GMIT | T7: DCU | U7: NUIG | AB7: Name | AC7: College | AD7: UL | AE7: DkIT | AF7: GMIT | AG7: DCU | AH7: NUIG | AO7: Name | AP7: College | AQ7: UL | AR7: DkIT | AS7: GMIT | AT7: DCU | AU7: NUIG | BB7: Name | BC7: College | BD7: UL | BE7: DkIT | BF7: GMIT | BG7: DCU | BH7: NUIG | BO7: Name | BP7: College | BQ7: UL | BR7: DkIT | BS7: GMIT | BT7: DCU | BU7: NUIG
A8: A8 | B8: Domhnall Ò Póil | C8: MU | D8: 489 | E8: 460 | F8: 511 | G8: 468 | H8: 486 | I8: =SUM(D8:H8) -> 2414 | J8: =MIN(D8:H8) -> 460 | K8: =IF(C8="TBC",0,(I8-J8)+(LARGE(D8:H8,1)/10000)+(LARGE(D8:H8,2)/10000000)) -> 1954.051149 | N8: N8 | O8: Mary Aherne | P8: NUIG | Q8: 413 | R8: 343 | S8: 464 | T8: 400 | U8: 420 | V8: =SUM(Q8:U8) -> 2040 | W8: =MIN(Q8:U8) -> 343 | X8: =IF(P8="TBC",0,(V8-W8)+(LARGE(Q8:U8,1)/10000)+(LARGE(Q8:U8,2)/10000000)) -> 1697.046442 | AA8: AA8 | AB8: See Qui Ren | AC8: DKIT | AD8: 427 | AE8: 470 | AF8: 448 | AG8: 433 | AH8: 453 | AI8: =SUM(AD8:AH8) -> 2231 | AJ8: =MIN(AD8:AH8) -> 427 | AK8: =IF(AC8="TBC",0,(AI8-AJ8)+(LARGE(AD8:AH8,1)/10000)+(LARGE(AD8:AH8,2)/10000000)) -> 1804.047045 | AN8: AN8 | AO8: Maria Jacob | AP8: UCD | AQ8: 439 | AR8: 438 | AS8: 425 | AT8: 427 | AU8: 404 | AV8: =SUM(AQ8:AU8) -> 2133 | AW8: =MIN(AQ8:AU8) -> 404 | AX8: =IF(AP8="TBC",0,(AV8-AW8)+(LARGE(AQ8:AU8,1)/10000)+(LARGE(AQ8:AU8,2)/10000000)) -> 1729.043944 | BA8: BA8 | BB8: Yeo Eng Jet | BC8: DKIT | BD8: 514 | BE8: 527 | BF8: 507 | BG8: 520 | BH8: 540 | BI8: =SUM(BD8:BH8) -> 2608 | BJ8: =MIN(BD8:BH8) -> 507 | BK8: =IF(BC8="TBC",0,(BI8-BJ8)+(LARGE(BD8:BH8,1)/10000)+(LARGE(BD8:BH8,2)/10000000)) -> 2101.054053 | BN8: BN8 | BO8: Ines Rauch | BP8: UCD | BQ8: 439 | BR8: 481 | BS8: 473 | BT8: 517 | BU8: 516 | BV8: =SUM(BQ8:BU8) -> 2426 | BW8: =MIN(BQ8:BU8) -> 439 | BX8: =IF(BP8="TBC",0,(BV8-BW8)+(LARGE(BQ8:BU8,1)/10000)+(LARGE(BQ8:BU8,2)/10000000)) -> 1987.051752
A9: A9 | B9: Conor Winters | C9: DKIT | D9: 455 | E9: 0 | F9: 488 | G9: 486 | H9: 508 | I9: =SUM(D9:H9) -> 1937 | J9: =MIN(D9:H9) -> 0 | K9: =IF(C9="TBC",0,(I9-J9)+(LARGE(D9:H9,1)/10000)+(LARGE(D9:H9,2)/10000000)) -> 1937.050849 | N9: N9 | O9: Eunice Kiew Ying Sing | P9: DKIT | Q9: 501 | R9: 0 | S9: 486 | T9: 509 | U9: 463 | V9: =SUM(Q9:U9) -> 1959 | W9: =MIN(Q9:U9) -> 0 | X9: 1959.05095 | AA9: AA9 | AB9: Charles O'Dowd | AC9: UCD | AD9: 423 | AE9: 414 | AF9: 482 | AG9: 435 | AH9: 465 | AI9: =SUM(AD9:AH9) -> 2219 | AJ9: =MIN(AD9:AH9) -> 414 | AK9: 1805.048247 | AN9: AN9 | AO9: Victoria Shen Fen Tan | AP9: DKIT | AQ9: 380 | AR9: 319 | AS9: 375 | AT9: 460 | AU9: 486 | AV9: =SUM(AQ9:AU9) -> 2020 | AW9: =MIN(AQ9:AU9) -> 319 | AX9: 1701.048646 | BA9: BA9 | BB9: Carl McCaffery | BC9: UCD | BD9: 522 | BE9: 517 | BF9: 529 | BG9: 528 | BH9: 503 | BI9: =SUM(BD9:BH9) -> 2599 | BJ9: =MIN(BD9:BH9) -> 503 | BK9: 2096.052953 | BN9: BN9 | BO9: Jen Daly | BP9: DIT | BQ9: 409 | BR9: 0 | BS9: 482 | BT9: 498 | BU9: 481 | BV9: =SUM(BQ9:BU9) -> 1870 | BW9: =MIN(BQ9:BU9) -> 0 | BX9: 1870.049848
A10: A10 | B10: Chris Riddell | C10: NUIG | D10: 342 | E10: 386 | F10: 328 | G10: 434 | H10: 314 | I10: 1804 | J10: 314 | K10: 1490.043439 | N10: N10 | O10: Helen Lacey | P10: NUIG | Q10: 325 | R10: 380 | S10: 424 | T10: 355 | U10: 404 | V10: 1888 | W10: 325 | X10: 1563.04244 | AA10: AA10 | AB10: Frank Stafford | AC10: UL | AD10: 440 | AE10: 432 | AF10: 448 | AG10: 432 | AH10: 433 | AI10: 2185 | AJ10: 432 | AK10: 1753.044844 | AN10: AN10 | AO10: Ciara O'Sullivan | AP10: DCU | AQ10: 0 | AR10: 443 | AS10: 472 | AT10: 411 | AU10: 469 | AV10: 1795 | AW10: 0 | AX10: 1795.047247 | BA10: BA10 | BB10: Diego Coyle Diez | BC10: MU | BD10: 523 | BE10: 486 | BF10: 530 | BG10: 512 | BH10: 524 | BI10: 2575 | BJ10: 486 | BK10: 2089.053052 | BN10: BN10 | BO10: Jocelyn Yee | BP10: DKIT | BQ10: 0 | BR10: 438 | BS10: 0 | BT10: 453 | BU10: 456 | BV10: 1347 | BW10: 0 | BX10: 1347.045645
A11: A11 | B11: Cormac O'Callaghan | C11: UCC | D11: 397 | E11: 0 | F11: 453 | G11: 452 | H11: 466 | I11: 1768 | J11: 0 | K11: 1768.046645 | N11: N11 | O11: Asia Tayyab | P11: GMIT | Q11: 330 | R11: 283 | S11: 376 | T11: 407 | U11: 278 | V11: 1674 | W11: 278 | X11: 1396.040738 | AA11: AA11 | AB11: Wai Hong Keet | AC11: DKIT | AD11: 416 | AE11: 460 | AF11: 455 | AG11: 423 | AH11: 410 | AI11: 2164 | AJ11: 410 | AK11: 1754.046045 | AN11: AN11 | AO11: Sinead Naughton | AP11: GMITC | AQ11: 387 | AR11: 0 | AS11: 397 | AT11: 372 | AU11: 436 | AV11: 1592 | AW11: 0 | AX11: 1592.04364 | BA11: BA11 | BB11: Brendan Forde | BC11: DIT | BD11: 509 | BE11: 506 | BF11: 515 | BG11: 513 | BH11: 512 | BI11: 2555 | BJ11: 506 | BK11: 2049.051551 | BN11: BN11 | BO11: Rachael Foley | BP11: NCAD | BQ11: 0 | BR11: 0 | BS11: 515 | BT11: 0 | BU11: 522 | BV11: 1037 | BW11: 0 | BX11: 1037.052252
A12: A12 | B12: Chua Wei Kwan | C12: DKIT | D12: 439 | E12: 0 | F12: 405 | G12: 464 | H12: 454 | I12: 1762 | J12: 0 | K12: 1762.046445 | N12: N12 | O12: Jane Meehan | P12: DKIT | Q12: 467 | R12: 0 | S12: 393 | T12: 424 | U12: 376 | V12: 1660 | W12: 0 | X12: 1660.046742 | AA12: AA12 | AB12: Kristian Bongo | AC12: DIT | AD12: 381 | AE12: 412 | AF12: 440 | AG12: 405 | AH12: 457 | AI12: 2095 | AJ12: 381 | AK12: 1714.045744 | AN12: AN12 | AO12: Aishling Dignam | AP12: DCU | AQ12: 0 | AR12: 346 | AS12: 314 | AT12: 359 | AU12: 398 | AV12: 1417 | AW12: 0 | AX12: 1417.039836 | BA12: BA12 | BB12: Hugh Farrell | BC12: MU | BD12: 495 | BE12: 495 | BF12: 509 | BG12: 482 | BH12: 502 | BI12: 2483 | BJ12: 482 | BK12: 2001.05095 | BN12: BN12 | BP12: TBC | BQ12: TBC | BR12: TBC | BS12: TBC | BT12: TBC | BU12: TBC | BV12: 0 | BW12: 0 | BX12: 0
A13: A13 | B13: Connor Newman | C13: MU | D13: 0 | E13: 398 | F13: 440 | G13: 424 | H13: 451 | I13: 1713 | J13: 0 | K13: 1713.045144 | N13: N13 | O13: Laury Despres | P13: MU | Q13: 0 | R13: 386 | S13: 355 | T13: 394 | U13: 452 | V13: 1587 | W13: 0 | X13: 1587.045239 | AA13: AA13 | AB13: Joshua Tracey | AC13: DIT | AD13: 409 | AE13: 378 | AF13: 427 | AG13: 411 | AH13: 385 | AI13: 2010 | AJ13: 378 | AK13: 1632.042741 | AN13: AN13 | AO13: Katie Doyle | AP13: UCD | AQ13: 435 | AR13: 0 | AS13: 0 | AT13: 436 | AU13: 464 | AV13: 1335 | AW13: 0 | AX13: 1335.046444 | BA13: BA13 | BB13: Kevin Kok Zhi Hao | BC13: DKIT | BD13: 499 | BE13: 510 | BF13: 458 | BG13: 495 | BH13: 496 | BI13: 2458 | BJ13: 458 | BK13: 2000.05105 | BN13: BN13 | BP13: TBC | BQ13: TBC | BR13: TBC | BS13: TBC | BT13: TBC | BU13: TBC | BV13: 0 | BW13: 0 | BX13: 0
A14: A14 | B14: Sim Jia Cheng | C14: DKIT | D14: 450 | E14: 0 | F14: 437 | G14: 427 | H14: 349 | I14: 1663 | J14: 0 | K14: 1663.045044 | N14: N14 | O14: Zoe Nicholson | P14: DKIT | Q14: 442 | R14: 0 | S14: 353 | T14: 341 | U14: 372 | V14: 1508 | W14: 0 | X14: 1508.044237 | AA14: AA14 | AB14: Paul Beirne | AC14: UCD | AD14: 454 | AE14: 426 | AF14: 440 | AG14: 0 | AH14: 500 | AI14: 1820 | AJ14: 0 | AK14: 1820.050045 | AN14: AN14 | AO14: Ciara Fergus | AP14: UL | AQ14: 335 | AR14: 352 | AS14: 277 | AT14: 306 | AU14: 0 | AV14: 1270 | AW14: 0 | AX14: 1270.035234 | BA14: BA14 | BB14: James Byrne | BC14: DIT | BD14: 477 | BE14: 497 | BF14: 479 | BG14: 481 | BH14: 510 | BI14: 2444 | BJ14: 477 | BK14: 1967.05105 | BN14: BN14 | BP14: TBC | BQ14: TBC | BR14: TBC | BS14: TBC | BT14: TBC | BU14: TBC | BV14: 0 | BW14: 0 | BX14: 0
A15: A15 | B15: Sam Gibson | C15: MU | D15: 0 | E15: 360 | F15: 466 | G15: 395 | H15: 430 | I15: 1651 | J15: 0 | K15: 1651.046643 | N15: N15 | O15: Siun Collins | P15: DIT | Q15: 423 | R15: 0 | S15: 341 | T15: 346 | U15: 374 | V15: 1484 | W15: 0 | X15: 1484.042337 | AA15: AA15 | AB15: Conor McCann | AC15: GMIT | AD15: 435 | AE15: 256 | AF15: 401 | AG15: 398 | AH15: 324 | AI15: 1814 | AJ15: 256 | AK15: 1558.04354 | AN15: AN15 | AO15: Emma Goodwin | AP15: DCU | AQ15: 0 | AR15: 375 | AS15: 290 | AT15: 311 | AU15: 0 | AV15: 976 | AW15: 0 | AX15: 976.0375311 | BA15: BA15 | BB15: Aidan Darcy | BC15: IT Tallaght | BD15: 401 | BE15: 488 | BF15: 525 | BG15: 473 | BH15: 503 | BI15: 2390 | BJ15: 401 | BK15: 1989.05255 | BN15: BN15 | BP15: TBC | BQ15: TBC | BR15: TBC | BS15: TBC | BT15: TBC | BU15: TBC | BV15: 0 | BW15: 0 | BX15: 0
A16: A16 | B16: Conor O'Brien | C16: UL | D16: 310 | E16: 287 | F16: 405 | G16: 294 | H16: 300 | I16: 1596 | J16: 287 | K16: 1309.040531 | N16: N16 | O16: Carla Reinhardt | P16: UCC | Q16: 266 | R16: 0 | S16: 424 | T16: 399 | U16: 392 | V16: 1481 | W16: 0 | X16: 1481.04244 | AA16: AA16 | AB16: Brendan McManus | AC16: DCU | AD16: 471 | AE16: 443 | AF16: 0 | AG16: 402 | AH16: 496 | AI16: 1812 | AJ16: 0 | AK16: 1812.049647 | AN16: AN16 | AO16: Julia Obara | AP16: NUIG | AQ16: 354 | AR16: 0 | AS16: 357 | AT16: 91 | AU16: 0 | AV16: 802 | AW16: 0 | AX16: 802.0357354 | BA16: BA16 | BB16: Patrick Molloy | BC16: NUIG | BD16: 410 | BE16: 430 | BF16: 507 | BG16: 483 | BH16: 516 | BI16: 2346 | BJ16: 410 | BK16: 1936.051651 | BN16: BN16 | BP16: TBC | BQ16: TBC | BR16: TBC | BS16: TBC | BT16: TBC | BU16: TBC | BV16: 0 | BW16: 0 | BX16: 0
A17: A17 | B17: Aaron Wong Siu Zhen | C17: DKIT | D17: 393 | E17: 423 | F17: 279 | G17: 0 | H17: 294 | I17: 1389 | J17: 0 | K17: 1389.042339 | N17: N17 | O17: Lynda Miller | P17: GMIT | Q17: 0 | R17: 114 | S17: 459 | T17: 253 | U17: 444 | V17: 1270 | W17: 0 | X17: 1270.045944 | AA17: AA17 | AB17: Mark Sherlock | AC17: GMIT | AD17: 393 | AE17: 371 | AF17: 311 | AG17: 358 | AH17: 338 | AI17: 1771 | AJ17: 311 | AK17: 1460.039337 | AN17: AN17 | AO17: Clarke-Ng Choy-Ping | AP17: DUAC | AQ17: 0 | AR17: 367 | AS17: 0 | AT17: 407 | AU17: 0 | AV17: 774 | AW17: 0 | AX17: 774.0407367 | BA17: BA17 | BB17: Dale Burke | BC17: GMIT | BD17: 524 | BE17: 488 | BF17: 517 | BG17: 0 | BH17: 501 | BI17: 2030 | BJ17: 0 | BK17: 2030.052452 | BN17: BN17 | BP17: TBC | BQ17: TBC | BR17: TBC | BS17: TBC | BT17: TBC | BU17: TBC | BV17: 0 | BW17: 0 | BX17: 0
A18: A18 | B18: Liam Higgins | C18: UL | D18: 0 | E18: 317 | F18: 340 | G18: 375 | H18: 353 | I18: 1385 | J18: 0 | K18: 1385.037535 | N18: N18 | O18: Bruna Mota | P18: UCD | Q18: 0 | R18: 0 | S18: 424 | T18: 327 | U18: 395 | V18: 1146 | W18: 0 | X18: 1146.04244 | AA18: AA18 | AB18: Aaron Downes | AC18: GMIT | AD18: 0 | AE18: 392 | AF18: 391 | AG18: 388 | AH18: 330 | AI18: 1501 | AJ18: 0 | AK18: 1501.039239 | AN18: AN18 | AO18: Eve Kearney | AP18: DUAC | AQ18: 0 | AR18: 273 | AS18: 0 | AT18: 0 | AU18: 380 | AV18: 653 | AW18: 0 | AX18: 653.0380273 | BA18: BA18 | BB18: Jordan McCord | BC18: UU | BD18: 0 | BE18: 418 | BF18: 505 | BG18: 478 | BH18: 496 | BI18: 1897 | BJ18: 0 | BK18: 1897.05055 | BN18: BN18 | BP18: TBC | BQ18: TBC | BR18: TBC | BS18: TBC | BT18: TBC | BU18: TBC | BV18: 0 | BW18: 0 | BX18: 0
A19: A19 | B19: Brendan O'Sullivan | C19: UCC | D19: 483 | E19: 0 | F19: 0 | G19: 447 | H19: 413 | I19: 1343 | J19: 0 | K19: 1343.048345 | N19: N19 | O19: Judith Bell | P19: UU | Q19: 0 | R19: 239 | S19: 378 | T19: 376 | U19: 134 | V19: 1127 | W19: 0 | X19: 1127.037838 | AA19: AA19 | AB19: Philip Early | AC19: DCU | AD19: 360 | AE19: 373 | AF19: 0 | AG19: 372 | AH19: 344 | AI19: 1449 | AJ19: 0 | AK19: 1449.037337 | AN19: AN19 | AP19: TBC | AQ19: TBC | AR19: TBC | AS19: TBC | AT19: TBC | AU19: TBC | AV19: 0 | AW19: 0 | AX19: 0 | BA19: BA19 | BB19: Eric Moore | BC19: NUIG | BD19: 399 | BE19: 380 | BF19: 0 | BG19: 322 | BH19: 384 | BI19: 1485 | BJ19: 0 | BK19: 1485.039938 | BN19: BN19 | BP19: TBC | BQ19: TBC | BR19: TBC | BS19: TBC | BT19: TBC | BU19: TBC | BV19: 0 | BW19: 0 | BX19: 0
A20: A20 | B20: Brian Swayne | C20: UCC | D20: 378 | E20: 0 | F20: 448 | G20: 455 | H20: 0 | I20: 1281 | J20: 0 | K20: 1281.045545 | N20: N20 | O20: Fiona Maguire | P20: UCD | Q20: 0 | R20: 0 | S20: 246 | T20: 281 | U20: 371 | V20: 898 | W20: 0 | X20: 898.0371281 | AA20: AA20 | AB20: Leo Byrne | AC20: ITC | AD20: 332 | AE20: 306 | AF20: 275 | AG20: 281 | AH20: 233 | AI20: 1427 | AJ20: 233 | AK20: 1194.033231 | AN20: AN20 | AP20: TBC | AQ20: TBC | AR20: TBC | AS20: TBC | AT20: TBC | AU20: TBC | AV20: 0 | AW20: 0 | AX20: 0 | BA20: BA20 | BB20: Dáire Healy | BC20: DUAC | BD20: 0 | BE20: 389 | BF20: 0 | BG20: 379 | BH20: 410 | BI20: 1178 | BJ20: 0 | BK20: 1178.041039 | BN20: BN20 | BP20: TBC | BQ20: TBC | BR20: TBC | BS20: TBC | BT20: TBC | BU20: TBC | BV20: 0 | BW20: 0 | BX20: 0
A21: A21 | B21: Lorenzo Diago | C21: DCU | D21: 0 | E21: 480 | F21: 371 | G21: 420 | H21: 0 | I21: 1271 | J21: 0 | K21: 1271.048042 | N21: N21 | O21: Minni Hiltunen | P21: DIT | Q21: 0 | R21: 0 | S21: 0 | T21: 432 | U21: 389 | V21: 821 | W21: 0 | X21: 821.0432389 | AA21: AA21 | AB21: James Burke | AC21: NUIG | AD21: 438 | AE21: 465 | AF21: 0 | AG21: 0 | AH21: 459 | AI21: 1362 | AJ21: 0 | AK21: 1362.046546 | AN21: AN21 | AP21: TBC | AQ21: TBC | AR21: TBC | AS21: TBC | AT21: TBC | AU21: TBC | AV21: 0 | AW21: 0 | AX21: 0 | BA21: BA21 | BB21: Gary Kelly | BC21: DCU | BD21: 484 | BE21: 480 | BF21: 0 | BG21: 0 | BH21: 0 | BI21: 964 | BJ21: 0 | BK21: 964.048448 | BN21: BN21 | BP21: TBC | BQ21: TBC | BR21: TBC | BS21: TBC | BT21: TBC | BU21: TBC | BV21: 0 | BW21: 0 | BX21: 0
A22: A22 | B22: Wai Jian Keet | C22: DKIT | D22: 0 | E22: 441 | F22: 0 | G22: 360 | H22: 464 | I22: 1265 | J22: 0 | K22: 1265.046444 | N22: N22 | O22: Bruna Duarte | P22: DIT | Q22: 0 | R22: 0 | S22: 0 | T22: 303 | U22: 421 | V22: 724 | W22: 0 | X22: 724.0421303 | AA22: AA22 | AB22: Luke Blake | AC22: UL | AD22: 282 | AE22: 324 | AF22: 332 | AG22: 331 | AH22: 0 | AI22: 1269 | AJ22: 0 | AK22: 1269.033233 | AN22: AN22 | AP22: TBC | AQ22: TBC | AR22: TBC | AS22: TBC | AT22: TBC | AU22: TBC | AV22: 0 | AW22: 0 | AX22: 0 | BA22: BA22 | BB22: Oskar Ronan | BC22: DUAC | BD22: 0 | BE22: 464 | BF22: 0 | BG22: 403 | BH22: 0 | BI22: 867 | BJ22: 0 | BK22: 867.0464403 | BN22: BN22 | BP22: TBC | BQ22: TBC | BR22: TBC | BS22: TBC | BT22: TBC | BU22: TBC | BV22: 0 | BW22: 0 | BX22: 0
A23: A23 | B23: Lim Cheng Bin | C23: DKIT | D23: 443 | E23: 0 | F23: 154 | G23: 249 | H23: 296 | I23: 1142 | J23: 0 | K23: 1142.04433 | N23: N23 | O23: Maria Borck | P23: UL | Q23: 239 | R23: 0 | S23: 231 | T23: 0 | U23: 232 | V23: 702 | W23: 0 | X23: 702.0239232 | AA23: AA23 | AB23: Yuji Okubo | AC23: DCU | AD23: 458 | AE23: 432 | AF23: 0 | AG23: 0 | AH23: 0 | AI23: 890 | AJ23: 0 | AK23: 890.0458432 | AN23: AN23 | AP23: TBC | AQ23: TBC | AR23: TBC | AS23: TBC | AT23: TBC | AU23: TBC | AV23: 0 | AW23: 0 | AX23: 0 | BA23: BA23 | BB23: John Hally | BC23: UL | BD23: 0 | BE23: 436 | BF23: 429 | BG23: 0 | BH23: 0 | BI23: 865 | BJ23: 0 | BK23: 865.0436429 | BN23: BN23 | BP23: TBC | BQ23: TBC | BR23: TBC | BS23: TBC | BT23: TBC | BU23: TBC | BV23: 0 | BW23: 0 | BX23: 0
A24: A24 | B24: Darragh Kellegher | C24: UL | D24: 400 | E24: 331 | F24: 0 | G24: 308 | H24: 0 | I24: 1039 | J24: 0 | K24: 1039.040033 | N24: N24 | O24: Laura Ciesa | P24: UL | Q24: 0 | R24: 0 | S24: 0 | T24: 0 | U24: 453 | V24: 453 | W24: 0 | X24: 453.0453 | AA24: AA24 | AB24: Kelvin Yee | AC24: DKIT | AD24: 0 | AE24: 412 | AF24: 0 | AG24: 428 | AH24: 0 | AI24: 840 | AJ24: 0 | AK24: 840.0428412 | AN24: AN24 | AP24: TBC | AQ24: TBC | AR24: TBC | AS24: TBC | AT24: TBC | AU24: TBC | AV24: 0 | AW24: 0 | AX24: 0 | BA24: BA24 | BB24: Darren Wallace | BC24: NUIG | BD24: 0 | BE24: 0 | BF24: 569 | BG24: 0 | BH24: 0 | BI24: 569 | BJ24: 0 | BK24: 569.0569 | BN24: BN24 | BP24: TBC | BQ24: TBC | BR24: TBC | BS24: TBC | BT24: TBC | BU24: TBC | BV24: 0 | BW24: 0 | BX24: 0
A25: A25 | B25: Nathan Tracey | C25: DIT | D25: 0 | E25: 0 | F25: 0 | G25: 515 | H25: 414 | I25: 929 | J25: 0 | K25: 929.0515414 | N25: N25 | O25: Vanessa Flood | P25: DIT | Q25: 0 | R25: 0 | S25: 0 | T25: 444 | U25: 0 | V25: 444 | W25: 0 | X25: 444.0444 | AA25: AA25 | AB25: Andy Canavan | AC25: DCU | AD25: 429 | AE25: 400 | AF25: 0 | AG25: 0 | AH25: 0 | AI25: 829 | AJ25: 0 | AK25: 829.04294 | AN25: AN25 | AP25: TBC | AQ25: TBC | AR25: TBC | AS25: TBC | AT25: TBC | AU25: TBC | AV25: 0 | AW25: 0 | AX25: 0 | BA25: BA25 | BB25: Simon Henleywillis | BC25: UCC | BD25: 471 | BE25: 0 | BF25: 0 | BG25: 0 | BH25: 0 | BI25: 471 | BJ25: 0 | BK25: 471.0471 | BN25: BN25 | BP25: TBC | BQ25: TBC | BR25: TBC | BS25: TBC | BT25: TBC | BU25: TBC | BV25: 0 | BW25: 0 | BX25: 0
A26: A26 | B26: Andrew Neville | C26: UU | D26: 0 | E26: 0 | F26: 380 | G26: 365 | H26: 0 | I26: 745 | J26: 0 | K26: 745.0380365 | N26: N26 | O26: Anna Bergert | P26: DKIT | Q26: 0 | R26: 383 | S26: 0 | T26: 0 | U26: 0 | V26: 383 | W26: 0 | X26: 383.0383 | AA26: AA26 | AB26: Chris O'Leary | AC26: UCC | AD26: 0 | AE26: 0 | AF26: 0 | AG26: 390 | AH26: 411 | AI26: 801 | AJ26: 0 | AK26: 801.041139 | AN26: AN26 | AP26: TBC | AQ26: TBC | AR26: TBC | AS26: TBC | AT26: TBC | AU26: TBC | AV26: 0 | AW26: 0 | AX26: 0 | BA26: BA26 | BB26: Mark Walsh | BC26: NUIG | BD26: 0 | BE26: 0 | BF26: 0 | BG26: 0 | BH26: 441 | BI26: 441 | BJ26: 0 | BK26: 441.0441 | BN26: BN26 | BP26: TBC | BQ26: TBC | BR26: TBC | BS26: TBC | BT26: TBC | BU26: TBC | BV26: 0 | BW26: 0 | BX26: 0
A27: A27 | B27: Shane Fitzgerald | C27: UCC | D27: 0 | E27: 0 | F27: 325 | G27: 0 | H27: 400 | I27: 725 | J27: 0 | K27: 725.0400325 | N27: N27 | O27: Zahratulfatin Mohd Mahfoz | P27: RCSI | Q27: 382 | R27: 0 | S27: 0 | T27: 0 | U27: 0 | V27: 382 | W27: 0 | X27: 382.0382 | AA27: AA27 | AB27: James Greer | AC27: UCD | AD27: 0 | AE27: 376 | AF27: 0 | AG27: 0 | AH27: 423 | AI27: 799 | AJ27: 0 | AK27: 799.0423376 | AN27: AN27 | AP27: TBC | AQ27: TBC | AR27: TBC | AS27: TBC | AT27: TBC | AU27: TBC | AV27: 0 | AW27: 0 | AX27: 0 | BA27: BA27 | BB27: Christo Pretorious | BC27: DUAC | BD27: 0 | BE27: 290 | BF27: 0 | BG27: 0 | BH27: 0 | BI27: 290 | BJ27: 0 | BK27: 290.029 | BN27: BN27 | BP27: TBC | BQ27: TBC | BR27: TBC | BS27: TBC | BT27: TBC | BU27: TBC | BV27: 0 | BW27: 0 | BX27: 0
A28: A28 | B28: Kyle Rosso | C28: UCD | D28: 0 | E28: 0 | F28: 374 | G28: 0 | H28: 349 | I28: 723 | J28: 0 | K28: 723.0374349 | N28: N28 | O28: Ozeane Zeis | P28: UL | Q28: 0 | R28: 0 | S28: 0 | T28: 0 | U28: 288 | V28: 288 | W28: 0 | X28: 288.0288 | AA28: AA28 | AB28: Issabele Mayumi | AC28: DCU | AD28: 343 | AE28: 0 | AF28: 0 | AG28: 338 | AH28: 0 | AI28: 681 | AJ28: 0 | AK28: 681.0343338 | AN28: AN28 | AP28: TBC | AQ28: TBC | AR28: TBC | AS28: TBC | AT28: TBC | AU28: TBC | AV28: 0 | AW28: 0 | AX28: 0 | BA28: BA28 | BC28: TBC | BD28: TBC | BE28: TBC | BF28: TBC | BG28: TBC | BH28: TBC | BI28: 0 | BJ28: 0 | BK28: 0 | BN28: BN28 | BP28: TBC | BQ28: TBC | BR28: TBC | BS28: TBC | BT28: TBC | BU28: TBC | BV28: 0 | BW28: 0 | BX28: 0
A29: A29 | B29: Jack Deane | C29: NUIG | D29: 379 | E29: 306 | F29: 0 | G29: 0 | H29: 0 | I29: 685 | J29: 0 | K29: 685.0379306 | N29: N29 | O29: Marta Jurczak | P29: DUAC | Q29: 0 | R29: 0 | S29: 0 | T29: 0 | U29: 284 | V29: 284 | W29: 0 | X29: 284.0284 | AA29: AA29 | AB29: Brian Conroy | AC29: UCC | AD29: 0 | AE29: 0 | AF29: 293 | AG29: 0 | AH29: 366 | AI29: 659 | AJ29: 0 | AK29: 659.0366293 | AN29: AN29 | AP29: TBC | AQ29: TBC | AR29: TBC | AS29: TBC | AT29: TBC | AU29: TBC | AV29: 0 | AW29: 0 | AX29: 0 | BA29: BA29 | BC29: TBC | BD29: TBC | BE29: TBC | BF29: TBC | BG29: TBC | BH29: TBC | BI29: 0 | BJ29: 0 | BK29: 0 | BN29: BN29 | BP29: TBC | BQ29: TBC | BR29: TBC | BS29: TBC | BT29: TBC | BU29: TBC | BV29: 0 | BW29: 0 | BX29: 0
A30: A30 | B30: Yusuf Fauzi | C30: UCC | D30: 0 | E30: 0 | F30: 194 | G30: 0 | H30: 339 | I30: 533 | J30: 0 | K30: 533.0339194 | N30: N30 | O30: Nor Fatin Farhani | P30: RCSI | Q30: 0 | R30: 0 | S30: 267 | T30: 0 | U30: 0 | V30: 267 | W30: 0 | X30: 267.0267 | AA30: AA30 | AB30: Kieran Cullinane | AC30: NUIG | AD30: 482 | AE30: 0 | AF30: 0 | AG30: 0 | AH30: 0 | AI30: 482 | AJ30: 0 | AK30: 482.0482 | AN30: AN30 | AP30: TBC | AQ30: TBC | AR30: TBC | AS30: TBC | AT30: TBC | AU30: TBC | AV30: 0 | AW30: 0 | AX30: 0 | BA30: BA30 | BC30: TBC | BD30: TBC | BE30: TBC | BF30: TBC | BG30: TBC | BH30: TBC | BI30: 0 | BJ30: 0 | BK30: 0 | BN30: BN30 | BP30: TBC | BQ30: TBC | BR30: TBC | BS30: TBC | BT30: TBC | BU30: TBC | BV30: 0 | BW30: 0 | BX30: 0
A31: A31 | B31: Sven Radatz | C31: DKIT | D31: 0 | E31: 479 | F31: 0 | G31: 0 | H31: 0 | I31: 479 | J31: 0 | K31: 479.0479 | N31: N31 | O31: Martha Chege | P31: UU | Q31: 0 | R31: 0 | S31: 0 | T31: 201 | U31: 0 | V31: 201 | W31: 0 | X31: 201.0201 | AA31: AA31 | AB31: Sean Sinnott | AC31: UL | AD31: 0 | AE31: 385 | AF31: 0 | AG31: 0 | AH31: 0 | AI31: 385 | AJ31: 0 | AK31: 385.0385 | AN31: AN31 | AP31: TBC | AQ31: TBC | AR31: TBC | AS31: TBC | AT31: TBC | AU31: TBC | AV31: 0 | AW31: 0 | AX31: 0 | BA31: BA31 | BC31: TBC | BD31: TBC | BE31: TBC | BF31: TBC | BG31: TBC | BH31: TBC | BI31: 0 | BJ31: 0 | BK31: 0 | BN31: BN31 | BP31: TBC | BQ31: TBC | BR31: TBC | BS31: TBC | BT31: TBC | BU31: TBC | BV31: 0 | BW31: 0 | BX31: 0
A32: A32 | B32: Devon Long | C32: UL | D32: 473 | E32: 0 | F32: 0 | G32: 0 | H32: 0 | I32: 473 | J32: 0 | K32: 473.0473 | N32: N32 | O32: Apoorva Kashyap | P32: UU | Q32: 0 | R32: 0 | S32: 0 | T32: 200 | U32: 0 | V32: 200 | W32: 0 | X32: 200.02 | AA32: AA32 | AB32: Muhammad Hakim Mohd Nasir | AC32: RCSI | AD32: 0 | AE32: 0 | AF32: 311 | AG32: 0 | AH32: 0 | AI32: 311 | AJ32: 0 | AK32: 311.0311 | AN32: AN32 | AP32: TBC | AQ32: TBC | AR32: TBC | AS32: TBC | AT32: TBC | AU32: TBC | AV32: 0 | AW32: 0 | AX32: 0 | BA32: BA32 | BC32: TBC | BD32: TBC | BE32: TBC | BF32: TBC | BG32: TBC | BH32: TBC | BI32: 0 | BJ32: 0 | BK32: 0 | BN32: BN32 | BP32: TBC | BQ32: TBC | BR32: TBC | BS32: TBC | BT32: TBC | BU32: TBC | BV32: 0 | BW32: 0 | BX32: 0
A33: A33 | B33: Jonas Seesing | C33: NUIG | D33: 470 | E33: 0 | F33: 0 | G33: 0 | H33: 0 | I33: 470 | J33: 0 | K33: 470.047 | N33: N33 | O33: Raja Nur Iyliani | P33: RCSI | Q33: 0 | R33: 0 | S33: 190 | T33: 0 | U33: 0 | V33: 190 | W33: 0 | X33: 190.019 | AA33: AA33 | AB33: DJ Roche | AC33: MU | AD33: 0 | AE33: 306 | AF33: 0 | AG33: 0 | AH33: 0 | AI33: 306 | AJ33: 0 | AK33: 306.0306 | AN33: AN33 | AP33: TBC | AQ33: TBC | AR33: TBC | AS33: TBC | AT33: TBC | AU33: TBC | AV33: 0 | AW33: 0 | AX33: 0 | BA33: BA33 | BC33: TBC | BD33: TBC | BE33: TBC | BF33: TBC | BG33: TBC | BH33: TBC | BI33: 0 | BJ33: 0 | BK33: 0 | BN33: BN33 | BP33: TBC | BQ33: TBC | BR33: TBC | BS33: TBC | BT33: TBC | BU33: TBC | BV33: 0 | BW33: 0 | BX33: 0
A34: A34 | B34: Artem Semenov | C34: UL | D34: 0 | E34: 0 | F34: 0 | G34: 0 | H34: 405 | I34: 405 | J34: 0 | K34: 405.0405 | N34: N34 | O34: Nadia Rodgers | P34: UU | Q34: 0 | R34: 0 | S34: 0 | T34: 187 | U34: 0 | V34: 187 | W34: 0 | X34: 187.0187 | AA34: AA34 | AB34: Shane O'Sulliven | AC34: UCC | AD34: 0 | AE34: 0 | AF34: 0 | AG34: 303 | AH34: 0 | AI34: 303 | AJ34: 0 | AK34: 303.0303 | AN34: AN34 | AP34: TBC | AQ34: TBC | AR34: TBC | AS34: TBC | AT34: TBC | AU34: TBC | AV34: 0 | AW34: 0 | AX34: 0 | BA34: BA34 | BC34: TBC | BD34: TBC | BE34: TBC | BF34: TBC | BG34: TBC | BH34: TBC | BI34: 0 | BJ34: 0 | BK34: 0 | BN34: BN34 | BP34: TBC | BQ34: TBC | BR34: TBC | BS34: TBC | BT34: TBC | BU34: TBC | BV34: 0 | BW34: 0 | BX34: 0
A35: A35 | B35: Gordon Cowpar | C35: UCD | D35: 0 | E35: 398 | F35: 0 | G35: 0 | H35: 0 | I35: 398 | J35: 0 | K35: 398.0398 | N35: N35 | O35: Bronwyn Berkeley | P35: DUAC | Q35: 0 | R35: 121 | S35: 0 | T35: 0 | U35: 0 | V35: 121 | W35: 0 | X35: 121.0121 | AA35: AA35 | AB35: Conor Moran | AC35: UL | AD35: 0 | AE35: 257 | AF35: 0 | AG35: 0 | AH35: 0 | AI35: 257 | AJ35: 0 | AK35: 257.0257 | AN35: AN35 | AP35: TBC | AQ35: TBC | AR35: TBC | AS35: TBC | AT35: TBC | AU35: TBC | AV35: 0 | AW35: 0 | AX35: 0 | BA35: BA35 | BC35: TBC | BD35: TBC | BE35: TBC | BF35: TBC | BG35: TBC | BH35: TBC | BI35: 0 | BJ35: 0 | BK35: 0 | BN35: BN35 | BP35: TBC | BQ35: TBC | BR35: TBC | BS35: TBC | BT35: TBC | BU35: TBC | BV35: 0 | BW35: 0 | BX35: 0
A36: A36 | B36: Aonghus Condren | C36: UCD | D36: 0 | E36: 387 | F36: 0 | G36: 0 | H36: 0 | I36: 387 | J36: 0 | K36: 387.0387 | N36: N36 | O36: Maeve Ruan | P36: UCD | Q36: 0 | R36: 0 | S36: 0 | T36: 70 | U36: 0 | V36: 70 | W36: 0 | X36: 70.007 | AA36: AA36 | AB36: Cian Butler | AC36: DCU | AD36: 224 | AE36: 0 | AF36: 0 | AG36: 0 | AH36: 0 | AI36: 224 | AJ36: 0 | AK36: 224.0224 | AN36: AN36 | AP36: TBC | AQ36: TBC | AR36: TBC | AS36: TBC | AT36: TBC | AU36: TBC | AV36: 0 | AW36: 0 | AX36: 0 | BA36: BA36 | BC36: TBC | BD36: TBC | BE36: TBC | BF36: TBC | BG36: TBC | BH36: TBC | BI36: 0 | BJ36: 0 | BK36: 0 | BN36: BN36 | BP36: TBC | BQ36: TBC | BR36: TBC | BS36: TBC | BT36: TBC | BU36: TBC | BV36: 0 | BW36: 0 | BX36: 0
A37: A37 | B37: Ahmad Nasree M Khairuddin Lim | C37: RCSI | D37: 372 | E37: 0 | F37: 0 | G37: 0 | H37: 0 | I37: 372 | J37: 0 | K37: 372.0372 | N37: N37 | P37: TBC | Q37: TBC | R37: TBC | S37: TBC | T37: TBC | U37: TBC | V37: 0 | W37: 0 | X37: 0 | AA37: AA37 | AB37: Eoin Hartigan | AC37: UL | AD37: 0 | AE37: 98 | AF37: 0 | AG37: 0 | AH37: 0 | AI37: 98 | AJ37: 0 | AK37: 98.0098 | AN37: AN37 | AP37: TBC | AQ37: TBC | AR37: TBC | AS37: TBC | AT37: TBC | AU37: TBC | AV37: 0 | AW37: 0 | AX37: 0 | BA37: BA37 | BC37: TBC | BD37: TBC | BE37: TBC | BF37: TBC | BG37: TBC | BH37: TBC | BI37: 0 | BJ37: 0 | BK37: 0 | BN37: BN37 | BP37: TBC | BQ37: TBC | BR37: TBC | BS37: TBC | BT37: TBC | BU37: TBC | BV37: 0 | BW37: 0 | BX37: 0
A38: A38 | B38: Thijs Siebt | C38: NUIG | D38: 0 | E38: 371 | F38: 0 | G38: 0 | H38: 0 | I38: 371 | J38: 0 | K38: 371.0371 | N38: N38 | P38: TBC | Q38: TBC | R38: TBC | S38: TBC | T38: TBC | U38: TBC | V38: 0 | W38: 0 | X38: 0 | AA38: AA38 | AC38: TBC | AD38: TBC | AE38: TBC | AF38: TBC | AG38: TBC | AH38: TBC | AI38: 0 | AJ38: 0 | AK38: 0 | AN38: AN38 | AP38: TBC | AQ38: TBC | AR38: TBC | AS38: TBC | AT38: TBC | AU38: TBC | AV38: 0 | AW38: 0 | AX38: 0 | BA38: BA38 | BC38: TBC | BD38: TBC | BE38: TBC | BF38: TBC | BG38: TBC | BH38: TBC | BI38: 0 | BJ38: 0 | BK38: 0 | BN38: BN38 | BP38: TBC | BQ38: TBC | BR38: TBC | BS38: TBC | BT38: TBC | BU38: TBC | BV38: 0 | BW38: 0 | BX38: 0
A39: A39 | B39: Liam Doyle | C39: UL | D39: 0 | E39: 358 | F39: 0 | G39: 0 | H39: 0 | I39: 358 | J39: 0 | K39: 358.0358 | N39: N39 | P39: TBC | Q39: TBC | R39: TBC | S39: TBC | T39: TBC | U39: TBC | V39: 0 | W39: 0 | X39: 0 | AA39: AA39 | AC39: TBC | AD39: TBC | AE39: TBC | AF39: TBC | AG39: TBC | AH39: TBC | AI39: 0 | AJ39: 0 | AK39: 0 | AN39: AN39 | AP39: TBC | AQ39: TBC | AR39: TBC | AS39: TBC | AT39: TBC | AU39: TBC | AV39: 0 | AW39: 0 | AX39: 0 | BA39: BA39 | BC39: TBC | BD39: TBC | BE39: TBC | BF39: TBC | BG39: TBC | BH39: TBC | BI39: 0 | BJ39: 0 | BK39: 0 | BN39: BN39 | BP39: TBC | BQ39: TBC | BR39: TBC | BS39: TBC | BT39: TBC | BU39: TBC | BV39: 0 | BW39: 0 | BX39: 0
A40: A40 | B40: Jordan McMullan | C40: UU | D40: 0 | E40: 0 | F40: 0 | G40: 349 | H40: 0 | I40: 349 | J40: 0 | K40: 349.0349 | N40: N40 | P40: TBC | Q40: TBC | R40: TBC | S40: TBC | T40: TBC | U40: TBC | V40: 0 | W40: 0 | X40: 0 | AA40: AA40 | AC40: TBC | AD40: TBC | AE40: TBC | AF40: TBC | AG40: TBC | AH40: TBC | AI40: 0 | AJ40: 0 | AK40: 0 | AN40: AN40 | AP40: TBC | AQ40: TBC | AR40: TBC | AS40: TBC | AT40: TBC | AU40: TBC | AV40: 0 | AW40: 0 | AX40: 0 | BA40: BA40 | BC40: TBC | BD40: TBC | BE40: TBC | BF40: TBC | BG40: TBC | BH40: TBC | BI40: 0 | BJ40: 0 | BK40: 0 | BN40: BN40 | BP40: TBC | BQ40: TBC | BR40: TBC | BS40: TBC | BT40: TBC | BU40: TBC | BV40: 0 | BW40: 0 | BX40: 0
A41: A41 | B41: Thomas Joyce | C41: UCD | D41: 0 | E41: 339 | F41: 0 | G41: 0 | H41: 0 | I41: 339 | J41: 0 | K41: 339.0339 | N41: N41 | P41: TBC | Q41: TBC | R41: TBC | S41: TBC | T41: TBC | U41: TBC | V41: 0 | W41: 0 | X41: 0 | AA41: AA41 | AC41: TBC | AD41: TBC | AE41: TBC | AF41: TBC | AG41: TBC | AH41: TBC | AI41: 0 | AJ41: 0 | AK41: 0 | AN41: AN41 | AP41: TBC | AQ41: TBC | AR41: TBC | AS41: TBC | AT41: TBC | AU41: TBC | AV41: 0 | AW41: 0 | AX41: 0 | BA41: BA41 | BC41: TBC | BD41: TBC | BE41: TBC | BF41: TBC | BG41: TBC | BH41: TBC | BI41: 0 | BJ41: 0 | BK41: 0 | BN41: BN41 | BP41: TBC | BQ41: TBC | BR41: TBC | BS41: TBC | BT41: TBC | BU41: TBC | BV41: 0 | BW41: 0 | BX41: 0
A42: A42 | B42: Azeem Mohd Elias | C42: UCD | D42: 335 | E42: 0 | F42: 0 | G42: 0 | H42: 0 | I42: 335 | J42: 0 | K42: 335.0335 | N42: N42 | P42: TBC | Q42: TBC | R42: TBC | S42: TBC | T42: TBC | U42: TBC | V42: 0 | W42: 0 | X42: 0 | AA42: AA42 | AC42: TBC | AD42: TBC | AE42: TBC | AF42: TBC | AG42: TBC | AH42: TBC | AI42: 0 | AJ42: 0 | AK42: 0 | AN42: AN42 | AP42: TBC | AQ42: TBC | AR42: TBC | AS42: TBC | AT42: TBC | AU42: TBC | AV42: 0 | AW42: 0 | AX42: 0 | BA42: BA42 | BC42: TBC | BD42: TBC | BE42: TBC | BF42: TBC | BG42: TBC | BH42: TBC | BI42: 0 | BJ42: 0 | BK42: 0 | BN42: BN42 | BP42: TBC | BQ42: TBC | BR42: TBC | BS42: TBC | BT42: TBC | BU42: TBC | BV42: 0 | BW42: 0 | BX42: 0
A43: A43 | B43: Hugh Carrol | C43: DIT | D43: 0 | E43: 0 | F43: 0 | G43: 0 | H43: 285 | I43: 285 | J43: 0 | K43: 285.0285 | N43: N43 | P43: TBC | Q43: TBC | R43: TBC | S43: TBC | T43: TBC | U43: TBC | V43: 0 | W43: 0 | X43: 0 | AA43: AA43 | AC43: TBC | AD43: TBC | AE43: TBC | AF43: TBC | AG43: TBC | AH43: TBC | AI43: 0 | AJ43: 0 | AK43: 0 | AN43: AN43 | AP43: TBC | AQ43: TBC | AR43: TBC | AS43: TBC | AT43: TBC | AU43: TBC | AV43: 0 | AW43: 0 | AX43: 0 | BA43: BA43 | BC43: TBC | BD43: TBC | BE43: TBC | BF43: TBC | BG43: TBC | BH43: TBC | BI43: 0 | BJ43: 0 | BK43: 0 | BN43: BN43 | BP43: TBC | BQ43: TBC | BR43: TBC | BS43: TBC | BT43: TBC | BU43: TBC | BV43: 0 | BW43: 0 | BX43: 0
A44: A44 | B44: Casey Patmore | C44: UCD | D44: 0 | E44: 261 | F44: 0 | G44: 0 | H44: 0 | I44: 261 | J44: 0 | K44: 261.0261 | N44: N44 | P44: TBC | Q44: TBC | R44: TBC | S44: TBC | T44: TBC | U44: TBC | V44: 0 | W44: 0 | X44: 0 | AA44: AA44 | AC44: TBC | AD44: TBC | AE44: TBC | AF44: TBC | AG44: TBC | AH44: TBC | AI44: 0 | AJ44: 0 | AK44: 0 | AN44: AN44 | AP44: TBC | AQ44: TBC | AR44: TBC | AS44: TBC | AT44: TBC | AU44: TBC | AV44: 0 | AW44: 0 | AX44: 0 | BA44: BA44 | BC44: TBC | BD44: TBC | BE44: TBC | BF44: TBC | BG44: TBC | BH44: TBC | BI44: 0 | BJ44: 0 | BK44: 0 | BN44: BN44 | BP44: TBC | BQ44: TBC | BR44: TBC | BS44: TBC | BT44: TBC | BU44: TBC | BV44: 0 | BW44: 0 | BX44: 0
A45: A45 | B45: Ian Nora | C45: UL | D45: 249 | E45: 0 | F45: 0 | G45: 0 | H45: 0 | I45: 249 | J45: 0 | K45: 249.0249 | N45: N45 | P45: TBC | Q45: TBC | R45: TBC | S45: TBC | T45: TBC | U45: TBC | V45: 0 | W45: 0 | X45: 0 | AA45: AA45 | AC45: TBC | AD45: TBC | AE45: TBC | AF45: TBC | AG45: TBC | AH45: TBC | AI45: 0 | AJ45: 0 | AK45: 0 | AN45: AN45 | AP45: TBC | AQ45: TBC | AR45: TBC | AS45: TBC | AT45: TBC | AU45: TBC | AV45: 0 | AW45: 0 | AX45: 0 | BA45: BA45 | BC45: TBC | BD45: TBC | BE45: TBC | BF45: TBC | BG45: TBC | BH45: TBC | BI45: 0 | BJ45: 0 | BK45: 0 | BN45: BN45 | BP45: TBC | BQ45: TBC | BR45: TBC | BS45: TBC | BT45: TBC | BU45: TBC | BV45: 0 | BW45: 0 | BX45: 0
A46: A46 | B46: Jacob Byrne | C46: DIT | D46: 0 | E46: 0 | F46: 0 | G46: 225 | H46: 0 | I46: 225 | J46: 0 | K46: 225.0225 | N46: N46 | P46: TBC | Q46: TBC | R46: TBC | S46: TBC | T46: TBC | U46: TBC | V46: 0 | W46: 0 | X46: 0 | AA46: AA46 | AC46: TBC | AD46: TBC | AE46: TBC | AF46: TBC | AG46: TBC | AH46: TBC | AI46: 0 | AJ46: 0 | AK46: 0 | AN46: AN46 | AP46: TBC | AQ46: TBC | AR46: TBC | AS46: TBC | AT46: TBC | AU46: TBC | AV46: 0 | AW46: 0 | AX46: 0 | BA46: BA46 | BC46: TBC | BD46: TBC | BE46: TBC | BF46: TBC | BG46: TBC | BH46: TBC | BI46: 0 | BJ46: 0 | BK46: 0 | BN46: BN46 | BP46: TBC | BQ46: TBC | BR46: TBC | BS46: TBC | BT46: TBC | BU46: TBC | BV46: 0 | BW46: 0 | BX46: 0
A47: A47 | B47: Caoimhe Lalor | C47: UCD | D47: 0 | E47: 0 | F47: 0 | G47: 168 | H47: 0 | I47: 168 | J47: 0 | K47: 168.0168 | N47: N47 | P47: TBC | Q47: TBC | R47: TBC | S47: TBC | T47: TBC | U47: TBC | V47: 0 | W47: 0 | X47: 0 | AA47: AA47 | AC47: TBC | AD47: TBC | AE47: TBC | AF47: TBC | AG47: TBC | AH47: TBC | AI47: 0 | AJ47: 0 | AK47: 0 | AN47: AN47 | AP47: TBC | AQ47: TBC | AR47: TBC | AS47: TBC | AT47: TBC | AU47: TBC | AV47: 0 | AW47: 0 | AX47: 0 | BA47: BA47 | BC47: TBC | BD47: TBC | BE47: TBC | BF47: TBC | BG47: TBC | BH47: TBC | BI47: 0 | BJ47: 0 | BK47: 0 | BN47: BN47 | BP47: TBC | BQ47: TBC | BR47: TBC | BS47: TBC | BT47: TBC | BU47: TBC | BV47: 0 | BW47: 0 | BX47: 0
A48: A48 | C48: TBC | D48: TBC | E48: TBC | F48: TBC | G48: TBC | H48: TBC | I48: 0 | J48: 0 | K48: 0 | N48: N48 | P48: TBC | Q48: TBC | R48: TBC | S48: TBC | T48: TBC | U48: TBC | V48: 0 | W48: 0 | X48: 0 | AA48: AA48 | AC48: TBC | AD48: TBC | AE48: TBC | AF48: TBC | AG48: TBC | AH48: TBC | AI48: 0 | AJ48: 0 | AK48: 0 | AN48: AN48 | AP48: TBC | AQ48: TBC | AR48: TBC | AS48: TBC | AT48: TBC | AU48: TBC | AV48: 0 | AW48: 0 | AX48: 0 | BA48: BA48 | BC48: TBC | BD48: TBC | BE48: TBC | BF48: TBC | BG48: TBC | BH48: TBC | BI48: 0 | BJ48: 0 | BK48: 0 | BN48: BN48 | BP48: TBC | BQ48: TBC | BR48: TBC | BS48: TBC | BT48: TBC | BU48: TBC | BV48: 0 | BW48: 0 | BX48: 0
A49: A49 | C49: TBC | D49: TBC | E49: TBC | F49: TBC | G49: TBC | H49: TBC | I49: 0 | J49: 0 | K49: 0 | N49: N49 | P49: TBC | Q49: TBC | R49: TBC | S49: TBC | T49: TBC | U49: TBC | V49: 0 | W49: 0 | X49: 0 | AA49: AA49 | AC49: TBC | AD49: TBC | AE49: TBC | AF49: TBC | AG49: TBC | AH49: TBC | AI49: 0 | AJ49: 0 | AK49: 0 | AN49: AN49 | AP49: TBC | AQ49: TBC | AR49: TBC | AS49: TBC | AT49: TBC | AU49: TBC | AV49: 0 | AW49: 0 | AX49: 0 | BA49: BA49 | BC49: TBC | BD49: TBC | BE49: TBC | BF49: TBC | BG49: TBC | BH49: TBC | BI49: 0 | BJ49: 0 | BK49: 0 | BN49: BN49 | BP49: TBC | BQ49: TBC | BR49: TBC | BS49: TBC | BT49: TBC | BU49: TBC | BV49: 0 | BW49: 0 | BX49: 0
A50: A50 | C50: TBC | D50: TBC | E50: TBC | F50: TBC | G50: TBC | H50: TBC | I50: 0 | J50: 0 | K50: 0 | N50: N50 | P50: TBC | Q50: TBC | R50: TBC | S50: TBC | T50: TBC | U50: TBC | V50: 0 | W50: 0 | X50: 0 | AA50: AA50 | AC50: TBC | AD50: TBC | AE50: TBC | AF50: TBC | AG50: TBC | AH50: TBC | AI50: 0 | AJ50: 0 | AK50: 0 | AN50: AN50 | AP50: TBC | AQ50: TBC | AR50: TBC | AS50: TBC | AT50: TBC | AU50: TBC | AV50: 0 | AW50: 0 | AX50: 0 | BA50: BA50 | BC50: TBC | BD50: TBC | BE50: TBC | BF50: TBC | BG50: TBC | BH50: TBC | BI50: 0 | BJ50: 0 | BK50: 0 | BN50: BN50 | BP50: TBC | BQ50: TBC | BR50: TBC | BS50: TBC | BT50: TBC | BU50: TBC | BV50: 0 | BW50: 0 | BX50: 0
A51: A51 | C51: TBC | D51: TBC | E51: TBC | F51: TBC | G51: TBC | H51: TBC | I51: 0 | J51: 0 | K51: 0 | N51: N51 | P51: TBC | Q51: TBC | R51: TBC | S51: TBC | T51: TBC | U51: TBC | V51: 0 | W51: 0 | X51: 0 | AA51: AA51 | AC51: TBC | AD51: TBC | AE51: TBC | AF51: TBC | AG51: TBC | AH51: TBC | AI51: 0 | AJ51: 0 | AK51: 0 | AN51: AN51 | AP51: TBC | AQ51: TBC | AR51: TBC | AS51: TBC | AT51: TBC | AU51: TBC | AV51: 0 | AW51: 0 | AX51: 0 | BA51: BA51 | BC51: TBC | BD51: TBC | BE51: TBC | BF51: TBC | BG51: TBC | BH51: TBC | BI51: 0 | BJ51: 0 | BK51: 0 | BN51: BN51 | BP51: TBC | BQ51: TBC | BR51: TBC | BS51: TBC | BT51: TBC | BU51: TBC | BV51: 0 | BW51: 0 | BX51: 0
A52: A52 | C52: TBC | D52: TBC | E52: TBC | F52: TBC | G52: TBC | H52: TBC | I52: 0 | J52: 0 | K52: 0 | N52: N52 | P52: TBC | Q52: TBC | R52: TBC | S52: TBC | T52: TBC | U52: TBC | V52: 0 | W52: 0 | X52: 0 | AA52: AA52 | AC52: TBC | AD52: TBC | AE52: TBC | AF52: TBC | AG52: TBC | AH52: TBC | AI52: 0 | AJ52: 0 | AK52: 0 | AN52: AN52 | AP52: TBC | AQ52: TBC | AR52: TBC | AS52: TBC | AT52: TBC | AU52: TBC | AV52: 0 | AW52: 0 | AX52: 0 | BA52: BA52 | BC52: TBC | BD52: TBC | BE52: TBC | BF52: TBC | BG52: TBC | BH52: TBC | BI52: 0 | BJ52: 0 | BK52: 0 | BN52: BN52 | BP52: TBC | BQ52: TBC | BR52: TBC | BS52: TBC | BT52: TBC | BU52: TBC | BV52: 0 | BW52: 0 | BX52: 0
A53: A53 | C53: TBC | D53: TBC | E53: TBC | F53: TBC | G53: TBC | H53: TBC | I53: 0 | J53: 0 | K53: 0 | N53: N53 | P53: TBC | Q53: TBC | R53: TBC | S53: TBC | T53: TBC | U53: TBC | V53: 0 | W53: 0 | X53: 0 | AA53: AA53 | AC53: TBC | AD53: TBC | AE53: TBC | AF53: TBC | AG53: TBC | AH53: TBC | AI53: 0 | AJ53: 0 | AK53: 0 | AN53: AN53 | AP53: TBC | AQ53: TBC | AR53: TBC | AS53: TBC | AT53: TBC | AU53: TBC | AV53: 0 | AW53: 0 | AX53: 0 | BA53: BA53 | BC53: TBC | BD53: TBC | BE53: TBC | BF53: TBC | BG53: TBC | BH53: TBC | BI53: 0 | BJ53: 0 | BK53: 0 | BN53: BN53 | BP53: TBC | BQ53: TBC | BR53: TBC | BS53: TBC | BT53: TBC | BU53: TBC | BV53: 0 | BW53: 0 | BX53: 0
A54: A54 | C54: TBC | D54: TBC | E54: TBC | F54: TBC | G54: TBC | H54: TBC | I54: 0 | J54: 0 | K54: 0 | N54: N54 | P54: TBC | Q54: TBC | R54: TBC | S54: TBC | T54: TBC | U54: TBC | V54: 0 | W54: 0 | X54: 0 | AA54: AA54 | AC54: TBC | AD54: TBC | AE54: TBC | AF54: TBC | AG54: TBC | AH54: TBC | AI54: 0 | AJ54: 0 | AK54: 0 | AN54: AN54 | AP54: TBC | AQ54: TBC | AR54: TBC | AS54: TBC | AT54: TBC | AU54: TBC | AV54: 0 | AW54: 0 | AX54: 0 | BA54: BA54 | BC54: TBC | BD54: TBC | BE54: TBC | BF54: TBC | BG54: TBC | BH54: TBC | BI54: 0 | BJ54: 0 | BK54: 0 | BN54: BN54 | BP54: TBC | BQ54: TBC | BR54: TBC | BS54: TBC | BT54: TBC | BU54: TBC | BV54: 0 | BW54: 0 | BX54: 0
A55: A55 | C55: TBC | D55: TBC | E55: TBC | F55: TBC | G55: TBC | H55: TBC | I55: 0 | J55: 0 | K55: 0 | N55: N55 | P55: TBC | Q55: TBC | R55: TBC | S55: TBC | T55: TBC | U55: TBC | V55: 0 | W55: 0 | X55: 0 | AA55: AA55 | AC55: TBC | AD55: TBC | AE55: TBC | AF55: TBC | AG55: TBC | AH55: TBC | AI55: 0 | AJ55: 0 | AK55: 0 | AN55: AN55 | AP55: TBC | AQ55: TBC | AR55: TBC | AS55: TBC | AT55: TBC | AU55: TBC | AV55: 0 | AW55: 0 | AX55: 0 | BA55: BA55 | BC55: TBC | BD55: TBC | BE55: TBC | BF55: TBC | BG55: TBC | BH55: TBC | BI55: 0 | BJ55: 0 | BK55: 0 | BN55: BN55 | BP55: TBC | BQ55: TBC | BR55: TBC | BS55: TBC | BT55: TBC | BU55: TBC | BV55: 0 | BW55: 0 | BX55: 0
A56: A56 | C56: TBC | D56: TBC | E56: TBC | F56: TBC | G56: TBC | H56: TBC | I56: 0 | J56: 0 | K56: 0 | N56: N56 | P56: TBC | Q56: TBC | R56: TBC | S56: TBC | T56: TBC | U56: TBC | V56: 0 | W56: 0 | X56: 0 | AA56: AA56 | AC56: TBC | AD56: TBC | AE56: TBC | AF56: TBC | AG56: TBC | AH56: TBC | AI56: 0 | AJ56: 0 | AK56: 0 | AN56: AN56 | AP56: TBC | AQ56: TBC | AR56: TBC | AS56: TBC | AT56: TBC | AU56: TBC | AV56: 0 | AW56: 0 | AX56: 0 | BA56: BA56 | BC56: TBC | BD56: TBC | BE56: TBC | BF56: TBC | BG56: TBC | BH56: TBC | BI56: 0 | BJ56: 0 | BK56: 0 | BN56: BN56 | BP56: TBC | BQ56: TBC | BR56: TBC | BS56: TBC | BT56: TBC | BU56: TBC | BV56: 0 | BW56: 0 | BX56: 0
A57: A57 | C57: TBC | D57: TBC | E57: TBC | F57: TBC | G57: TBC | H57: TBC | I57: 0 | J57: 0 | K57: 0 | N57: N57 | P57: TBC | Q57: TBC | R57: TBC | S57: TBC | T57: TBC | U57: TBC | V57: 0 | W57: 0 | X57: 0 | AA57: AA57 | AC57: TBC | AD57: TBC | AE57: TBC | AF57: TBC | AG57: TBC | AH57: TBC | AI57: 0 | AJ57: 0 | AK57: 0 | AN57: AN57 | AP57: TBC | AQ57: TBC | AR57: TBC | AS57: TBC | AT57: TBC | AU57: TBC | AV57: 0 | AW57: 0 | AX57: 0 | BA57: BA57 | BC57: TBC | BD57: TBC | BE57: TBC | BF57: TBC | BG57: TBC | BH57: TBC | BI57: 0 | BJ57: 0 | BK57: 0 | BN57: BN57 | BP57: TBC | BQ57: TBC | BR57: TBC | BS57: TBC | BT57: TBC | BU57: TBC | BV57: 0 | BW57: 0 | BX57: 0
A58: A58 | C58: TBC | D58: TBC | E58: TBC | F58: TBC | G58: TBC | H58: TBC | I58: 0 | J58: 0 | K58: 0 | N58: N58 | P58: TBC | Q58: TBC | R58: TBC | S58: TBC | T58: TBC | U58: TBC | V58: 0 | W58: 0 | X58: 0 | AA58: AA58 | AC58: TBC | AD58: TBC | AE58: TBC | AF58: TBC | AG58: TBC | AH58: TBC | AI58: 0 | AJ58: 0 | AK58: 0 | AN58: AN58 | AP58: TBC | AQ58: TBC | AR58: TBC | AS58: TBC | AT58: TBC | AU58: TBC | AV58: 0 | AW58: 0 | AX58: 0 | BA58: BA58 | BC58: TBC | BD58: TBC | BE58: TBC | BF58: TBC | BG58: TBC | BH58: TBC | BI58: 0 | BJ58: 0 | BK58: 0 | BN58: BN58 | BP58: TBC | BQ58: TBC | BR58: TBC | BS58: TBC | BT58: TBC | BU58: TBC | BV58: 0 | BW58: 0 | BX58: 0
A59: A59 | C59: TBC | D59: TBC | E59: TBC | F59: TBC | G59: TBC | H59: TBC | I59: 0 | J59: 0 | K59: 0 | N59: N59 | P59: TBC | Q59: TBC | R59: TBC | S59: TBC | T59: TBC | U59: TBC | V59: 0 | W59: 0 | X59: 0 | AA59: AA59 | AC59: TBC | AD59: TBC | AE59: TBC | AF59: TBC | AG59: TBC | AH59: TBC | AI59: 0 | AJ59: 0 | AK59: 0 | AN59: AN59 | AP59: TBC | AQ59: TBC | AR59: TBC | AS59: TBC | AT59: TBC | AU59: TBC | AV59: 0 | AW59: 0 | AX59: 0 | BA59: BA59 | BC59: TBC | BD59: TBC | BE59: TBC | BF59: TBC | BG59: TBC | BH59: TBC | BI59: 0 | BJ59: 0 | BK59: 0 | BN59: BN59 | BP59: TBC | BQ59: TBC | BR59: TBC | BS59: TBC | BT59: TBC | BU59: TBC | BV59: 0 | BW59: 0 | BX59: 0
A60: A60 | C60: TBC | D60: TBC | E60: TBC | F60: TBC | G60: TBC | H60: TBC | I60: 0 | J60: 0 | K60: 0 | N60: N60 | P60: TBC | Q60: TBC | R60: TBC | S60: TBC | T60: TBC | U60: TBC | V60: 0 | W60: 0 | X60: 0 | AA60: AA60 | AC60: TBC | AD60: TBC | AE60: TBC | AF60: TBC | AG60: TBC | AH60: TBC | AI60: 0 | AJ60: 0 | AK60: 0 | AN60: AN60 | AP60: TBC | AQ60: TBC | AR60: TBC | AS60: TBC | AT60: TBC | AU60: TBC | AV60: 0 | AW60: 0 | AX60: 0 | BA60: BA60 | BC60: TBC | BD60: TBC | BE60: TBC | BF60: TBC | BG60: TBC | BH60: TBC | BI60: 0 | BJ60: 0 | BK60: 0 | BN60: BN60 | BP60: TBC | BQ60: TBC | BR60: TBC | BS60: TBC | BT60: TBC | BU60: TBC | BV60: 0 | BW60: 0 | BX60: 0
A61: A61 | C61: TBC | D61: TBC | E61: TBC | F61: TBC | G61: TBC | H61: TBC | I61: 0 | J61: 0 | K61: 0 | N61: N61 | P61: TBC | Q61: TBC | R61: TBC | S61: TBC | T61: TBC | U61: TBC | V61: 0 | W61: 0 | X61: 0 | AA61: AA61 | AC61: TBC | AD61: TBC | AE61: TBC | AF61: TBC | AG61: TBC | AH61: TBC | AI61: 0 | AJ61: 0 | AK61: 0 | AN61: AN61 | AP61: TBC | AQ61: TBC | AR61: TBC | AS61: TBC | AT61: TBC | AU61: TBC | AV61: 0 | AW61: 0 | AX61: 0 | BA61: BA61 | BC61: TBC | BD61: TBC | BE61: TBC | BF61: TBC | BG61: TBC | BH61: TBC | BI61: 0 | BJ61: 0 | BK61: 0 | BN61: BN61 | BP61: TBC | BQ61: TBC | BR61: TBC | BS61: TBC | BT61: TBC | BU61: TBC | BV61: 0 | BW61: 0 | BX61: 0
A62: A62 | C62: TBC | D62: TBC | E62: TBC | F62: TBC | G62: TBC | H62: TBC | I62: 0 | J62: 0 | K62: 0 | N62: N62 | P62: TBC | Q62: TBC | R62: TBC | S62: TBC | T62: TBC | U62: TBC | V62: 0 | W62: 0 | X62: 0 | AA62: AA62 | AC62: TBC | AD62: TBC | AE62: TBC | AF62: TBC | AG62: TBC | AH62: TBC | AI62: 0 | AJ62: 0 | AK62: 0 | AN62: AN62 | AP62: TBC | AQ62: TBC | AR62: TBC | AS62: TBC | AT62: TBC | AU62: TBC | AV62: 0 | AW62: 0 | AX62: 0 | BA62: BA62 | BC62: TBC | BD62: TBC | BE62: TBC | BF62: TBC | BG62: TBC | BH62: TBC | BI62: 0 | BJ62: 0 | BK62: 0 | BN62: BN62 | BP62: TBC | BQ62: TBC | BR62: TBC | BS62: TBC | BT62: TBC | BU62: TBC | BV62: 0 | BW62: 0 | BX62: 0
A63: A63 | C63: TBC | D63: TBC | E63: TBC | F63: TBC | G63: TBC | H63: TBC | I63: 0 | J63: 0 | K63: 0 | N63: N63 | P63: TBC | Q63: TBC | R63: TBC | S63: TBC | T63: TBC | U63: TBC | V63: 0 | W63: 0 | X63: 0 | AA63: AA63 | AC63: TBC | AD63: TBC | AE63: TBC | AF63: TBC | AG63: TBC | AH63: TBC | AI63: 0 | AJ63: 0 | AK63: 0 | AN63: AN63 | AP63: TBC | AQ63: TBC | AR63: TBC | AS63: TBC | AT63: TBC | AU63: TBC | AV63: 0 | AW63: 0 | AX63: 0 | BA63: BA63 | BC63: TBC | BD63: TBC | BE63: TBC | BF63: TBC | BG63: TBC | BH63: TBC | BI63: 0 | BJ63: 0 | BK63: 0 | BN63: BN63 | BP63: TBC | BQ63: TBC | BR63: TBC | BS63: TBC | BT63: TBC | BU63: TBC | BV63: 0 | BW63: 0 | BX63: 0
A64: A64 | C64: TBC | D64: TBC | E64: TBC | F64: TBC | G64: TBC | H64: TBC | I64: 0 | J64: 0 | K64: 0 | N64: N64 | P64: TBC | Q64: TBC | R64: TBC | S64: TBC | T64: TBC | U64: TBC | V64: 0 | W64: 0 | X64: 0 | AA64: AA64 | AC64: TBC | AD64: TBC | AE64: TBC | AF64: TBC | AG64: TBC | AH64: TBC | AI64: 0 | AJ64: 0 | AK64: 0 | AN64: AN64 | AP64: TBC | AQ64: TBC | AR64: TBC | AS64: TBC | AT64: TBC | AU64: TBC | AV64: 0 | AW64: 0 | AX64: 0 | BA64: BA64 | BC64: TBC | BD64: TBC | BE64: TBC | BF64: TBC | BG64: TBC | BH64: TBC | BI64: 0 | BJ64: 0 | BK64: 0 | BN64: BN64 | BP64: TBC | BQ64: TBC | BR64: TBC | BS64: TBC | BT64: TBC | BU64: TBC | BV64: 0 | BW64: 0 | BX64: 0
A65: A65 | C65: TBC | D65: TBC | E65: TBC | F65: TBC | G65: TBC | H65: TBC | I65: 0 | J65: 0 | K65: 0 | N65: N65 | P65: TBC | Q65: TBC | R65: TBC | S65: TBC | T65: TBC | U65: TBC | V65: 0 | W65: 0 | X65: 0 | AA65: AA65 | AC65: TBC | AD65: TBC | AE65: TBC | AF65: TBC | AG65: TBC | AH65: TBC | AI65: 0 | AJ65: 0 | AK65: 0 | AN65: AN65 | AP65: TBC | AQ65: TBC | AR65: TBC | AS65: TBC | AT65: TBC | AU65: TBC | AV65: 0 | AW65: 0 | AX65: 0 | BA65: BA65 | BC65: TBC | BD65: TBC | BE65: TBC | BF65: TBC | BG65: TBC | BH65: TBC | BI65: 0 | BJ65: 0 | BK65: 0 | BN65: BN65 | BP65: TBC | BQ65: TBC | BR65: TBC | BS65: TBC | BT65: TBC | BU65: TBC | BV65: 0 | BW65: 0 | BX65: 0
A66: A66 | C66: TBC | D66: TBC | E66: TBC | F66: TBC | G66: TBC | H66: TBC | I66: 0 | J66: 0 | K66: 0 | N66: N66 | P66: TBC | Q66: TBC | R66: TBC | S66: TBC | T66: TBC | U66: TBC | V66: 0 | W66: 0 | X66: 0 | AA66: AA66 | AC66: TBC | AD66: TBC | AE66: TBC | AF66: TBC | AG66: TBC | AH66: TBC | AI66: 0 | AJ66: 0 | AK66: 0 | AN66: AN66 | AP66: TBC | AQ66: TBC | AR66: TBC | AS66: TBC | AT66: TBC | AU66: TBC | AV66: 0 | AW66: 0 | AX66: 0 | BA66: BA66 | BC66: TBC | BD66: TBC | BE66: TBC | BF66: TBC | BG66: TBC | BH66: TBC | BI66: 0 | BJ66: 0 | BK66: 0 | BN66: BN66 | BP66: TBC | BQ66: TBC | BR66: TBC | BS66: TBC | BT66: TBC | BU66: TBC | BV66: 0 | BW66: 0 | BX66: 0
A67: A67 | C67: TBC | D67: TBC | E67: TBC | F67: TBC | G67: TBC | H67: TBC | I67: 0 | J67: 0 | K67: 0 | N67: N67 | P67: TBC | Q67: TBC | R67: TBC | S67: TBC | T67: TBC | U67: TBC | V67: 0 | W67: 0 | X67: 0 | AA67: AA67 | AC67: TBC | AD67: TBC | AE67: TBC | AF67: TBC | AG67: TBC | AH67: TBC | AI67: 0 | AJ67: 0 | AK67: 0 | AN67: AN67 | AP67: TBC | AQ67: TBC | AR67: TBC | AS67: TBC | AT67: TBC | AU67: TBC | AV67: 0 | AW67: 0 | AX67: 0 | BA67: BA67 | BC67: TBC | BD67: TBC | BE67: TBC | BF67: TBC | BG67: TBC | BH67: TBC | BI67: 0 | BJ67: 0 | BK67: 0 | BN67: BN67 | BP67: TBC | BQ67: TBC | BR67: TBC | BS67: TBC | BT67: TBC | BU67: TBC | BV67: 0 | BW67: 0 | BX67: 0
A68: A68 | C68: TBC | D68: TBC | E68: TBC | F68: TBC | G68: TBC | H68: TBC | I68: 0 | J68: 0 | K68: 0 | N68: N68 | P68: TBC | Q68: TBC | R68: TBC | S68: TBC | T68: TBC | U68: TBC | V68: 0 | W68: 0 | X68: 0 | AA68: AA68 | AC68: TBC | AD68: TBC | AE68: TBC | AF68: TBC | AG68: TBC | AH68: TBC | AI68: 0 | AJ68: 0 | AK68: 0 | AN68: AN68 | AP68: TBC | AQ68: TBC | AR68: TBC | AS68: TBC | AT68: TBC | AU68: TBC | AV68: 0 | AW68: 0 | AX68: 0 | BA68: BA68 | BC68: TBC | BD68: TBC | BE68: TBC | BF68: TBC | BG68: TBC | BH68: TBC | BI68: 0 | BJ68: 0 | BK68: 0 | BN68: BN68 | BP68: TBC | BQ68: TBC | BR68: TBC | BS68: TBC | BT68: TBC | BU68: TBC | BV68: 0 | BW68: 0 | BX68: 0
A69: A69 | C69: TBC | D69: TBC | E69: TBC | F69: TBC | G69: TBC | H69: TBC | I69: 0 | J69: 0 | K69: 0 | N69: N69 | P69: TBC | Q69: TBC | R69: TBC | S69: TBC | T69: TBC | U69: TBC | V69: 0 | W69: 0 | X69: 0 | AA69: AA69 | AC69: TBC | AD69: TBC | AE69: TBC | AF69: TBC | AG69: TBC | AH69: TBC | AI69: 0 | AJ69: 0 | AK69: 0 | AN69: AN69 | AP69: TBC | AQ69: TBC | AR69: TBC | AS69: TBC | AT69: TBC | AU69: TBC | AV69: 0 | AW69: 0 | AX69: 0 | BA69: BA69 | BC69: TBC | BD69: TBC | BE69: TBC | BF69: TBC | BG69: TBC | BH69: TBC | BI69: 0 | BJ69: 0 | BK69: 0 | BN69: BN69 | BP69: TBC | BQ69: TBC | BR69: TBC | BS69: TBC | BT69: TBC | BU69: TBC | BV69: 0 | BW69: 0 | BX69: 0
A70: A70 | C70: TBC | D70: TBC | E70: TBC | F70: TBC | G70: TBC | H70: TBC | I70: 0 | J70: 0 | K70: 0 | N70: N70 | P70: TBC | Q70: TBC | R70: TBC | S70: TBC | T70: TBC | U70: TBC | V70: 0 | W70: 0 | X70: 0 | AA70: AA70 | AC70: TBC | AD70: TBC | AE70: TBC | AF70: TBC | AG70: TBC | AH70: TBC | AI70: 0 | AJ70: 0 | AK70: 0 | AN70: AN70 | AP70: TBC | AQ70: TBC | AR70: TBC | AS70: TBC | AT70: TBC | AU70: TBC | AV70: 0 | AW70: 0 | AX70: 0 | BA70: BA70 | BC70: TBC | BD70: TBC | BE70: TBC | BF70: TBC | BG70: TBC | BH70: TBC | BI70: 0 | BJ70: 0 | BK70: 0 | BN70: BN70 | BP70: TBC | BQ70: TBC | BR70: TBC | BS70: TBC | BT70: TBC | BU70: TBC | BV70: 0 | BW70: 0 | BX70: 0
A71: A71 | C71: TBC | D71: TBC | E71: TBC | F71: TBC | G71: TBC | H71: TBC | I71: =SUM(D71:H71) -> 0 | J71: =MIN(D71:H71) -> 0 | K71: 0 | N71: N71 | P71: TBC | Q71: TBC | R71: TBC | S71: TBC | T71: TBC | U71: TBC | V71: =SUM(Q71:U71) -> 0 | W71: 0 | X71: 0 | AA71: AA71 | AC71: TBC | AD71: TBC | AE71: TBC | AF71: TBC | AG71: TBC | AH71: TBC | AI71: =SUM(AD71:AH71) -> 0 | AJ71: 0 | AK71: 0 | AN71: AN71 | AP71: TBC | AQ71: TBC | AR71: TBC | AS71: TBC | AT71: TBC | AU71: TBC | AV71: =SUM(AQ71:AU71) -> 0 | AW71: 0 | AX71: 0 | BA71: BA71 | BC71: TBC | BD71: TBC | BE71: TBC | BF71: TBC | BG71: TBC | BH71: TBC | BI71: =SUM(BD71:BH71) -> 0 | BJ71: 0 | BK71: 0 | BN71: BN71 | BP71: TBC | BQ71: TBC | BR71: TBC | BS71: TBC | BT71: TBC | BU71: TBC | BV71: =SUM(BQ71:BU71) -> 0 | BW71: 0 | BX71: 0
A72: A72 | C72: TBC | D72: TBC | E72: TBC | F72: TBC | G72: TBC | H72: TBC | I72: 0 | J72: 0 | K72: =IF(C72="TBC",0,(I72-J72)+(LARGE(D72:H72,1)/10000)+(LARGE(D72:H72,2)/10000000)) -> 0 | N72: N72 | P72: TBC | Q72: TBC | R72: TBC | S72: TBC | T72: TBC | U72: TBC | V72: 0 | W72: 0 | X72: =IF(P72="TBC",0,(V72-W72)+(LARGE(Q72:U72,1)/10000)+(LARGE(Q72:U72,2)/10000000)) -> 0 | AA72: AA72 | AC72: TBC | AD72: TBC | AE72: TBC | AF72: TBC | AG72: TBC | AH72: TBC | AI72: 0 | AJ72: 0 | AK72: =IF(AC72="TBC",0,(AI72-AJ72)+(LARGE(AD72:AH72,1)/10000)+(LARGE(AD72:AH72,2)/10000000)) -> 0 | AN72: AN72 | AP72: TBC | AQ72: TBC | AR72: TBC | AS72: TBC | AT72: TBC | AU72: TBC | AV72: 0 | AW72: 0 | AX72: =IF(AP72="TBC",0,(AV72-AW72)+(LARGE(AQ72:AU72,1)/10000)+(LARGE(AQ72:AU72,2)/10000000)) -> 0 | BA72: BA72 | BC72: TBC | BD72: TBC | BE72: TBC | BF72: TBC | BG72: TBC | BH72: TBC | BI72: 0 | BJ72: 0 | BK72: =IF(BC72="TBC",0,(BI72-BJ72)+(LARGE(BD72:BH72,1)/10000)+(LARGE(BD72:BH72,2)/10000000)) -> 0 | BN72: BN72 | BP72: TBC | BQ72: TBC | BR72: TBC | BS72: TBC | BT72: TBC | BU72: TBC | BV72: 0 | BW72: 0 | BX72: =IF(BP72="TBC",0,(BV72-BW72)+(LARGE(BQ72:BU72,1)/10000)+(LARGE(BQ72:BU72,2)/10000000)) -> 0
A73: A73 | C73: TBC | D73: TBC | E73: TBC | F73: TBC | G73: TBC | H73: TBC | I73: 0 | J73: 0 | K73: 0 | N73: N73 | P73: TBC | Q73: TBC | R73: TBC | S73: TBC | T73: TBC | U73: TBC | V73: 0 | W73: =MIN(Q73:U73) -> 0 | X73: 0 | AA73: AA73 | AC73: TBC | AD73: TBC | AE73: TBC | AF73: TBC | AG73: TBC | AH73: TBC | AI73: 0 | AJ73: =MIN(AD73:AH73) -> 0 | AK73: 0 | AN73: AN73 | AP73: TBC | AQ73: TBC | AR73: TBC | AS73: TBC | AT73: TBC | AU73: TBC | AV73: 0 | AW73: =MIN(AQ73:AU73) -> 0 | AX73: 0 | BA73: BA73 | BC73: TBC | BD73: TBC | BE73: TBC | BF73: TBC | BG73: TBC | BH73: TBC | BI73: 0 | BJ73: =MIN(BD73:BH73) -> 0 | BK73: 0 | BN73: BN73 | BP73: TBC | BQ73: TBC | BR73: TBC | BS73: TBC | BT73: TBC | BU73: TBC | BV73: 0 | BW73: =MIN(BQ73:BU73) -> 0 | BX73: 0
A74: A74 | C74: TBC | D74: TBC | E74: TBC | F74: TBC | G74: TBC | H74: TBC | I74: 0 | J74: 0 | K74: 0 | N74: N74 | P74: TBC | Q74: TBC | R74: TBC | S74: TBC | T74: TBC | U74: TBC | V74: 0 | W74: 0 | X74: 0 | AA74: AA74 | AC74: TBC | AD74: TBC | AE74: TBC | AF74: TBC | AG74: TBC | AH74: TBC | AI74: 0 | AJ74: 0 | AK74: 0 | AN74: AN74 | AP74: TBC | AQ74: TBC | AR74: TBC | AS74: TBC | AT74: TBC | AU74: TBC | AV74: 0 | AW74: 0 | AX74: 0 | BA74: BA74 | BC74: TBC | BD74: TBC | BE74: TBC | BF74: TBC | BG74: TBC | BH74: TBC | BI74: 0 | BJ74: 0 | BK74: 0 | BN74: BN74 | BP74: TBC | BQ74: TBC | BR74: TBC | BS74: TBC | BT74: TBC | BU74: TBC | BV74: 0 | BW74: 0 | BX74: 0
A75: A75 | C75: TBC | D75: TBC | E75: TBC | F75: TBC | G75: TBC | H75: TBC | I75: 0 | J75: 0 | K75: 0 | N75: N75 | P75: TBC | Q75: TBC | R75: TBC | S75: TBC | T75: TBC | U75: TBC | V75: 0 | W75: 0 | X75: 0 | AA75: AA75 | AC75: TBC | AD75: TBC | AE75: TBC | AF75: TBC | AG75: TBC | AH75: TBC | AI75: 0 | AJ75: 0 | AK75: 0 | AN75: AN75 | AP75: TBC | AQ75: TBC | AR75: TBC | AS75: TBC | AT75: TBC | AU75: TBC | AV75: 0 | AW75: 0 | AX75: 0 | BA75: BA75 | BC75: TBC | BD75: TBC | BE75: TBC | BF75: TBC | BG75: TBC | BH75: TBC | BI75: 0 | BJ75: 0 | BK75: 0 | BN75: BN75 | BP75: TBC | BQ75: TBC | BR75: TBC | BS75: TBC | BT75: TBC | BU75: TBC | BV75: 0 | BW75: 0 | BX75: 0
A76: A76 | C76: TBC | D76: TBC | E76: TBC | F76: TBC | G76: TBC | H76: TBC | I76: 0 | J76: 0 | K76: 0 | N76: N76 | P76: TBC | Q76: TBC | R76: TBC | S76: TBC | T76: TBC | U76: TBC | V76: 0 | W76: 0 | X76: 0 | AA76: AA76 | AC76: TBC | AD76: TBC | AE76: TBC | AF76: TBC | AG76: TBC | AH76: TBC | AI76: 0 | AJ76: 0 | AK76: 0 | AN76: AN76 | AP76: TBC | AQ76: TBC | AR76: TBC | AS76: TBC | AT76: TBC | AU76: TBC | AV76: 0 | AW76: 0 | AX76: 0 | BA76: BA76 | BC76: TBC | BD76: TBC | BE76: TBC | BF76: TBC | BG76: TBC | BH76: TBC | BI76: 0 | BJ76: 0 | BK76: 0 | BN76: BN76 | BP76: TBC | BQ76: TBC | BR76: TBC | BS76: TBC | BT76: TBC | BU76: TBC | BV76: 0 | BW76: 0 | BX76: 0
A77: A77 | C77: TBC | D77: TBC | E77: TBC | F77: TBC | G77: TBC | H77: TBC | I77: 0 | J77: 0 | K77: 0 | N77: N77 | P77: TBC | Q77: TBC | R77: TBC | S77: TBC | T77: TBC | U77: TBC | V77: 0 | W77: 0 | X77: 0 | AA77: AA77 | AC77: TBC | AD77: TBC | AE77: TBC | AF77: TBC | AG77: TBC | AH77: TBC | AI77: 0 | AJ77: 0 | AK77: 0 | AN77: AN77 | AP77: TBC | AQ77: TBC | AR77: TBC | AS77: TBC | AT77: TBC | AU77: TBC | AV77: 0 | AW77: 0 | AX77: 0 | BA77: BA77 | BC77: TBC | BD77: TBC | BE77: TBC | BF77: TBC | BG77: TBC | BH77: TBC | BI77: 0 | BJ77: 0 | BK77: 0 | BN77: BN77 | BP77: TBC | BQ77: TBC | BR77: TBC | BS77: TBC | BT77: TBC | BU77: TBC | BV77: 0 | BW77: 0 | BX77: 0
A78: A78 | C78: TBC | D78: TBC | E78: TBC | F78: TBC | G78: TBC | H78: TBC | I78: =SUM(D78:H78) -> 0 | J78: =MIN(D78:H78) -> 0 | K78: 0 | N78: N78 | P78: TBC | Q78: TBC | R78: TBC | S78: TBC | T78: TBC | U78: TBC | V78: 0 | W78: 0 | X78: 0 | AA78: AA78 | AC78: TBC | AD78: TBC | AE78: TBC | AF78: TBC | AG78: TBC | AH78: TBC | AI78: 0 | AJ78: 0 | AK78: 0 | AN78: AN78 | AP78: TBC | AQ78: TBC | AR78: TBC | AS78: TBC | AT78: TBC | AU78: TBC | AV78: 0 | AW78: 0 | AX78: 0 | BA78: BA78 | BC78: TBC | BD78: TBC | BE78: TBC | BF78: TBC | BG78: TBC | BH78: TBC | BI78: 0 | BJ78: 0 | BK78: 0 | BN78: BN78 | BP78: TBC | BQ78: TBC | BR78: TBC | BS78: TBC | BT78: TBC | BU78: TBC | BV78: 0 | BW78: 0 | BX78: 0
A79: A79 | C79: TBC | D79: TBC | E79: TBC | F79: TBC | G79: TBC | H79: TBC | I79: 0 | J79: 0 | K79: 0 | N79: N79 | P79: TBC | Q79: TBC | R79: TBC | S79: TBC | T79: TBC | U79: TBC | V79: 0 | W79: 0 | X79: 0 | AA79: AA79 | AC79: TBC | AD79: TBC | AE79: TBC | AF79: TBC | AG79: TBC | AH79: TBC | AI79: 0 | AJ79: 0 | AK79: 0 | AN79: AN79 | AP79: TBC | AQ79: TBC | AR79: TBC | AS79: TBC | AT79: TBC | AU79: TBC | AV79: 0 | AW79: 0 | AX79: 0 | BA79: BA79 | BC79: TBC | BD79: TBC | BE79: TBC | BF79: TBC | BG79: TBC | BH79: TBC | BI79: 0 | BJ79: 0 | BK79: 0 | BN79: BN79 | BP79: TBC | BQ79: TBC | BR79: TBC | BS79: TBC | BT79: TBC | BU79: TBC | BV79: 0 | BW79: 0 | BX79: 0
A80: A80 | C80: TBC | D80: TBC | E80: TBC | F80: TBC | G80: TBC | H80: TBC | I80: 0 | J80: 0 | K80: 0 | N80: N80 | P80: TBC | Q80: TBC | R80: TBC | S80: TBC | T80: TBC | U80: TBC | V80: 0 | W80: 0 | X80: 0 | AA80: AA80 | AC80: TBC | AD80: TBC | AE80: TBC | AF80: TBC | AG80: TBC | AH80: TBC | AI80: 0 | AJ80: 0 | AK80: 0 | AN80: AN80 | AP80: TBC | AQ80: TBC | AR80: TBC | AS80: TBC | AT80: TBC | AU80: TBC | AV80: 0 | AW80: 0 | AX80: 0 | BA80: BA80 | BC80: TBC | BD80: TBC | BE80: TBC | BF80: TBC | BG80: TBC | BH80: TBC | BI80: 0 | BJ80: 0 | BK80: 0 | BN80: BN80 | BP80: TBC | BQ80: TBC | BR80: TBC | BS80: TBC | BT80: TBC | BU80: TBC | BV80: 0 | BW80: 0 | BX80: 0
A81: A81 | C81: TBC | D81: TBC | E81: TBC | F81: TBC | G81: TBC | H81: TBC | I81: 0 | J81: 0 | K81: 0 | N81: N81 | P81: TBC | Q81: TBC | R81: TBC | S81: TBC | T81: TBC | U81: TBC | V81: 0 | W81: 0 | X81: 0 | AA81: AA81 | AC81: TBC | AD81: TBC | AE81: TBC | AF81: TBC | AG81: TBC | AH81: TBC | AI81: 0 | AJ81: 0 | AK81: 0 | AN81: AN81 | AP81: TBC | AQ81: TBC | AR81: TBC | AS81: TBC | AT81: TBC | AU81: TBC | AV81: 0 | AW81: 0 | AX81: 0 | BA81: BA81 | BC81: TBC | BD81: TBC | BE81: TBC | BF81: TBC | BG81: TBC | BH81: TBC | BI81: 0 | BJ81: 0 | BK81: 0 | BN81: BN81 | BP81: TBC | BQ81: TBC | BR81: TBC | BS81: TBC | BT81: TBC | BU81: TBC | BV81: 0 | BW81: 0 | BX81: 0
A82: A82 | B82: 0 | C82: TBC | D82: TBC | E82: TBC | F82: TBC | G82: TBC | H82: TBC | I82: 0 | J82: 0 | K82: 0 | N82: N82 | O82: 0 | P82: TBC | Q82: TBC | R82: TBC | S82: TBC | T82: TBC | U82: TBC | V82: 0 | W82: 0 | X82: 0 | AA82: AA82 | AB82: 0 | AC82: TBC | AD82: TBC | AE82: TBC | AF82: TBC | AG82: TBC | AH82: TBC | AI82: 0 | AJ82: 0 | AK82: 0 | AN82: AN82 | AO82: 0 | AP82: TBC | AQ82: TBC | AR82: TBC | AS82: TBC | AT82: TBC | AU82: TBC | AV82: 0 | AW82: 0 | AX82: 0 | BA82: BA82 | BB82: 0 | BC82: TBC | BD82: TBC | BE82: TBC | BF82: TBC | BG82: TBC | BH82: TBC | BI82: 0 | BJ82: 0 | BK82: 0 | BN82: BN82 | BO82: 0 | BP82: TBC | BQ82: TBC | BR82: TBC | BS82: TBC | BT82: TBC | BU82: TBC | BV82: 0 | BW82: 0 | BX82: 0
B87: Gender | C87: M | E87: Male Beginner Barebow | O87: Gender | P87: F | R87: Female Beginner Barebow | AB87: Gender | AC87: M | AE87: Male Advanced Barebow | AO87: Gender | AP87: F | AR87: Female Advanced Barebow | BB87: Gender | BC87: M | BE87: Male Compound | BO87: Gender | BP87: F | BR87: Female Compound
B88: Bow | C88: Barebow | O88: Bow | P88: Barebow | AB88: Bow | AC88: Barebow | AO88: Bow | AP88: Barebow | BB88: Bow | BC88: Compound | BO88: Bow | BP88: Compound
B89: Level | C89: Beginner | O89: Level | P89: Beginner | AB89: Level | AC89: Advanced | AO89: Level | AP89: Advanced | BB89: Level | BC89: (Multiple Items) | BO89: Level | BP89: (Multiple Items)
B91: Sum of Points | D91: IV | I91: Grand Total | J91: Lowest | K91: League total | O91: Sum of Points | Q91: IV | V91: Grand Total | W91: Lowest | X91: League total | AB91: Sum of Points | AD91: IV | AI91: Grand Total | AJ91: Lowest | AK91: League total | AO91: Sum of Points | AQ91: IV | AV91: Grand Total | AW91: Lowest | AX91: League total | BB91: Sum of Points | BD91: IV | BI91: Total | BJ91: Minimum | BK91: League total | BO91: Sum of Points | BQ91: IV | BV91: Grand Total | BW91: Lowest | BX91: League total
B92: Name | C92: College | D92: UL | E92: DkIT | F92: GMIT | G92: DCU | H92: NUIG | O92: Name | P92: College | Q92: UL | R92: DkIT | S92: GMIT | T92: DCU | U92: NUIG | AB92: Name | AC92: College | AD92: UL | AE92: DkIT | AF92: GMIT | AG92: DCU | AH92: NUIG | AO92: Name | AP92: College | AQ92: UL | AR92: DkIT | AS92: GMIT | AT92: DCU | AU92: NUIG | BB92: Name | BC92: College | BD92: UL | BE92: DkIT | BF92: GMIT | BG92: DCU | BH92: NUIG | BO92: Name | BP92: College | BQ92: UL | BR92: DkIT | BS92: GMIT | BT92: DCU | BU92: NUIG
A93: A93 | B93: Andrew Fahey | C93: GMIT | D93: 393 | E93: 391 | F93: 439 | G93: 307 | H93: 360 | I93: =SUM(D93:H93) -> 1890 | J93: =MIN(D93:H93) -> 307 | K93: =IF(C93="TBC",0,(I93-J93)+(LARGE(D93:H93,1)/10000)+(LARGE(D93:H93,2)/10000000)) -> 1583.043939 | N93: N93 | O93: Siobhán Tuffy | P93: GMIT | Q93: 365 | R93: 388 | S93: 420 | T93: 234 | U93: 201 | V93: =SUM(Q93:U93) -> 1608 | W93: =MIN(Q93:U93) -> 201 | X93: =IF(P93="TBC",0,(V93-W93)+(LARGE(Q93:U93,1)/10000)+(LARGE(Q93:U93,2)/10000000)) -> 1407.042039 | AA93: AA93 | AB93: Dean Lalor | AC93: DCU | AD93: 413 | AE93: 394 | AF93: 446 | AG93: 469 | AH93: 437 | AI93: =SUM(AD93:AH93) -> 2159 | AJ93: =MIN(AD93:AH93) -> 394 | AK93: =IF(AC93="TBC",0,(AI93-AJ93)+(LARGE(AD93:AH93,1)/10000)+(LARGE(AD93:AH93,2)/10000000)) -> 1765.046945 | AN93: AN93 | AO93: Sarah Howard | AP93: DCU | AQ93: 296 | AR93: 357 | AS93: 0 | AT93: 296 | AU93: 342 | AV93: =SUM(AQ93:AU93) -> 1291 | AW93: =MIN(AQ93:AU93) -> 0 | AX93: =IF(AP93="TBC",0,(AV93-AW93)+(LARGE(AQ93:AU93,1)/10000)+(LARGE(AQ93:AU93,2)/10000000)) -> 1291.035734 | BA93: BA93 | BB93: Glen Conway | BC93: IT Tallaght | BD93: 568 | BE93: 564 | BF93: 537 | BG93: 565 | BH93: 567 | BI93: =SUM(BD93:BH93) -> 2801 | BJ93: =MIN(BD93:BH93) -> 537 | BK93: =IF(BC93="TBC",0,(BI93-BJ93)+(LARGE(BD93:BH93,1)/10000)+(LARGE(BD93:BH93,2)/10000000)) -> 2264.056857 | BN93: BN93 | BO93: Niamh Kenny | BP93: NUIG | BQ93: 529 | BR93: 541 | BS93: 538 | BT93: 543 | BU93: 517 | BV93: =SUM(BQ93:BU93) -> 2668 | BW93: =MIN(BQ93:BU93) -> 517 | BX93: =IF(BP93="TBC",0,(BV93-BW93)+(LARGE(BQ93:BU93,1)/10000)+(LARGE(BQ93:BU93,2)/10000000)) -> 2151.054354
A94: A94 | B94: Jamie McMahon | C94: IT Tallaght | D94: 380 | E94: 383 | F94: 431 | G94: 331 | H94: 271 | I94: =SUM(D94:H94) -> 1796 | J94: =MIN(D94:H94) -> 271 | K94: 1525.043138 | N94: N94 | O94: Hannah Cunniffe | P94: GMIT | Q94: 170 | R94: 320 | S94: 329 | T94: 402 | U94: 365 | V94: =SUM(Q94:U94) -> 1586 | W94: =MIN(Q94:U94) -> 170 | X94: 1416.040236 | AA94: AA94 | AB94: Bernard O'Connor | AC94: DCU | AD94: 326 | AE94: 411 | AF94: 403 | AG94: 379 | AH94: 404 | AI94: =SUM(AD94:AH94) -> 1923 | AJ94: =MIN(AD94:AH94) -> 326 | AK94: 1597.04114 | AN94: AN94 | AO94: Raizel Burstein-Frame | AP94: NUIG | AQ94: 159 | AR94: 159 | AS94: 174 | AT94: 0 | AU94: 0 | AV94: =SUM(AQ94:AU94) -> 492 | AW94: =MIN(AQ94:AU94) -> 0 | AX94: 492.0174159 | BA94: BA94 | BB94: Cillian Byrne | BC94: DCU | BD94: 544 | BE94: 547 | BF94: 539 | BG94: 540 | BH94: 535 | BI94: =SUM(BD94:BH94) -> 2705 | BJ94: =MIN(BD94:BH94) -> 535 | BK94: 2170.054754 | BN94: BN94 | BO94: Niamh Merry | BP94: DCU | BQ94: 361 | BR94: 516 | BS94: 523 | BT94: 513 | BU94: 386 | BV94: =SUM(BQ94:BU94) -> 2299 | BW94: =MIN(BQ94:BU94) -> 361 | BX94: 1938.052352
A95: A95 | B95: Elliot Barry | C95: MU | D95: 241 | E95: 337 | F95: 348 | G95: 380 | H95: 322 | I95: 1628 | J95: 241 | K95: 1387.038035 | N95: N95 | O95: Yingbo Li | P95: ITC | Q95: 154 | R95: 239 | S95: 378 | T95: 395 | U95: 396 | V95: 1562 | W95: 154 | X95: 1408.03964 | AA95: AA95 | AB95: Niall O'Hanlon | AC95: DCU | AD95: 422 | AE95: 331 | AF95: 407 | AG95: 362 | AH95: 353 | AI95: 1875 | AJ95: 331 | AK95: 1544.042241 | AN95: AN95 | AO95: Aoife Monaghan | AP95: GMIT | AQ95: 0 | AR95: 0 | AS95: 0 | AT95: 156 | AU95: 307 | AV95: 463 | AW95: 0 | AX95: 463.0307156 | BA95: BA95 | BB95: Luke Oonan | BC95: DCU | BD95: 265 | BE95: 394 | BF95: 497 | BG95: 520 | BH95: 506 | BI95: 2182 | BJ95: 265 | BK95: 1917.052051 | BN95: BN95 | BO95: Beth Freeman | BP95: DCU | BQ95: 494 | BR95: 517 | BS95: 0 | BT95: 526 | BU95: 517 | BV95: 2054 | BW95: 0 | BX95: 2054.052652
A96: A96 | B96: Sean Potts | C96: MU | D96: 0 | E96: 327 | F96: 406 | G96: 325 | H96: 365 | I96: 1423 | J96: 0 | K96: 1423.040637 | N96: N96 | O96: Charlotte Lokko | P96: MU | Q96: 206 | R96: 275 | S96: 306 | T96: 267 | U96: 307 | V96: 1361 | W96: 206 | X96: 1155.030731 | AA96: AA96 | AB96: Jericho Siababa | AC96: DCU | AD96: 0 | AE96: 437 | AF96: 465 | AG96: 457 | AH96: 486 | AI96: 1845 | AJ96: 0 | AK96: 1845.048647 | AN96: AN96 | AO96: Nada Khaled-Abdo | AP96: NUIG | AQ96: 367 | AR96: 0 | AS96: 0 | AT96: 0 | AU96: 0 | AV96: 367 | AW96: 0 | AX96: 367.0367 | BA96: BA96 | BB96: Marko Kovacevic | BC96: GMIT | BD96: 539 | BE96: 548 | BF96: 0 | BG96: 547 | BH96: 542 | BI96: 2176 | BJ96: 0 | BK96: 2176.054855 | BN96: BN96 | BO96: Kerrie Leonard | BP96: MU | BQ96: 537 | BR96: 0 | BS96: 0 | BT96: 0 | BU96: 0 | BV96: 537 | BW96: 0 | BX96: 537.0537
A97: A97 | B97: Shannon Birch | C97: IT Tallaght | D97: 261 | E97: 387 | F97: 351 | G97: 0 | H97: 384 | I97: 1383 | J97: 0 | K97: 1383.038738 | N97: N97 | O97: Sorcha Griffin | P97: MU | Q97: 0 | R97: 337 | S97: 338 | T97: 354 | U97: 327 | V97: 1356 | W97: 0 | X97: 1356.035434 | AA97: AA97 | AB97: Pawel Nalecz-Nieniewski | AC97: ITC | AD97: 353 | AE97: 364 | AF97: 359 | AG97: 357 | AH97: 395 | AI97: 1828 | AJ97: 353 | AK97: 1475.039536 | AN97: AN97 | AO97: Emily Flanagan | AP97: NUIG | AQ97: 286 | AR97: 0 | AS97: 0 | AT97: 0 | AU97: 0 | AV97: 286 | AW97: 0 | AX97: 286.0286 | BA97: BA97 | BB97: Brendan Browne | BC97: GMIT | BD97: 532 | BE97: 0 | BF97: 548 | BG97: 545 | BH97: 547 | BI97: 2172 | BJ97: 0 | BK97: 2172.054855 | BN97: BN97 | BO97: Morgan Russell-Cowan | BP97: UU | BQ97: 0 | BR97: 0 | BS97: 0 | BT97: 523 | BU97: 0 | BV97: 523 | BW97: 0 | BX97: 523.0523
A98: A98 | B98: Ciarán Martin | C98: MU | D98: 380 | E98: 0 | F98: 298 | G98: 327 | H98: 296 | I98: 1301 | J98: 0 | K98: 1301.038033 | N98: N98 | O98: Katie Kruse | P98: NUIG | Q98: 0 | R98: 0 | S98: 303 | T98: 262 | U98: 421 | V98: 986 | W98: 0 | X98: 986.0421303 | AA98: AA98 | AB98: Conor Ó Beoláin | AC98: NUIG | AD98: 471 | AE98: 393 | AF98: 0 | AG98: 340 | AH98: 0 | AI98: 1204 | AJ98: 0 | AK98: 1204.047139 | AN98: AN98 | AO98: Ellis O'Sulliven | AP98: UCD | AQ98: 0 | AR98: 0 | AS98: 0 | AT98: 157 | AU98: 0 | AV98: 157 | AW98: 0 | AX98: 157.0157 | BA98: BA98 | BB98: Joao Vitor | BC98: NUIG | BD98: 380 | BE98: 0 | BF98: 405 | BG98: 430 | BH98: 495 | BI98: 1710 | BJ98: 0 | BK98: 1710.049543 | BN98: BN98 | BP98: TBC | BQ98: TBC | BR98: TBC | BS98: TBC | BT98: TBC | BU98: TBC | BV98: 0 | BW98: 0 | BX98: 0
A99: A99 | B99: Christopher Balfe | C99: IT Tallaght | D99: 0 | E99: 0 | F99: 439 | G99: 395 | H99: 369 | I99: 1203 | J99: 0 | K99: 1203.043939 | N99: N99 | O99: Emma-Jane Doyle | P99: IT Tallaght | Q99: 184 | R99: 0 | S99: 223 | T99: 278 | U99: 291 | V99: 976 | W99: 0 | X99: 976.0291278 | AA99: AA99 | AB99: David Price | AC99: ITC | AD99: 391 | AE99: 403 | AF99: 370 | AG99: 0 | AH99: 0 | AI99: 1164 | AJ99: 0 | AK99: 1164.040339 | AN99: AN99 | AP99: TBC | AQ99: TBC | AR99: TBC | AS99: TBC | AT99: TBC | AU99: TBC | AV99: 0 | AW99: 0 | AX99: 0 | BA99: BA99 | BB99: Christopher Ryan | BC99: NUIG | BD99: 565 | BE99: 549 | BF99: 0 | BG99: 0 | BH99: 561 | BI99: 1675 | BJ99: 0 | BK99: 1675.056556 | BN99: BN99 | BP99: TBC | BQ99: TBC | BR99: TBC | BS99: TBC | BT99: TBC | BU99: TBC | BV99: 0 | BW99: 0 | BX99: 0
A100: A100 | B100: Brian McDonagh ITT | C100: IT Tallaght | D100: 205 | E100: 0 | F100: 308 | G100: 283 | H100: 313 | I100: 1109 | J100: 0 | K100: 1109.031331 | N100: N100 | O100: Caroline Clarke | P100: GMITC | Q100: 283 | R100: 0 | S100: 167 | T100: 181 | U100: 260 | V100: 891 | W100: 0 | X100: 891.028326 | AA100: AA100 | AB100: Andrew Warrington | AC100: GMITC | AD100: 306 | AE100: 0 | AF100: 274 | AG100: 0 | AH100: 321 | AI100: 901 | AJ100: 0 | AK100: 901.0321306 | AN100: AN100 | AP100: TBC | AQ100: TBC | AR100: TBC | AS100: TBC | AT100: TBC | AU100: TBC | AV100: 0 | AW100: 0 | AX100: 0 | BA100: BA100 | BB100: Eimhin Gaynor | BC100: GMIT | BD100: 0 | BE100: 0 | BF100: 0 | BG100: 559 | BH100: 566 | BI100: 1125 | BJ100: 0 | BK100: 1125.056656 | BN100: BN100 | BP100: TBC | BQ100: TBC | BR100: TBC | BS100: TBC | BT100: TBC | BU100: TBC | BV100: 0 | BW100: 0 | BX100: 0
A101: A101 | B101: Richard Morrell | C101: ITC | D101: 313 | E101: 238 | F101: 0 | G101: 292 | H101: 0 | I101: 843 | J101: 0 | K101: 843.0313292 | N101: N101 | O101: Julie Saes | P101: NUIG | Q101: 0 | R101: 0 | S101: 307 | T101: 0 | U101: 451 | V101: 758 | W101: 0 | X101: 758.0451307 | AA101: AA101 | AB101: Daniel Kelly | AC101: NUIG | AD101: 0 | AE101: 293 | AF101: 383 | AG101: 0 | AH101: 0 | AI101: 676 | AJ101: 0 | AK101: 676.0383293 | AN101: AN101 | AP101: TBC | AQ101: TBC | AR101: TBC | AS101: TBC | AT101: TBC | AU101: TBC | AV101: 0 | AW101: 0 | AX101: 0 | BA101: BA101 | BB101: Shane McGloin | BC101: GMIT | BD101: 0 | BE101: 0 | BF101: 538 | BG101: 548 | BH101: 0 | BI101: 1086 | BJ101: 0 | BK101: 1086.054854 | BN101: BN101 | BP101: TBC | BQ101: TBC | BR101: TBC | BS101: TBC | BT101: TBC | BU101: TBC | BV101: 0 | BW101: 0 | BX101: 0
A102: A102 | B102: Cormac Begley | C102: DUAC | D102: 0 | E102: 282 | F102: 253 | G102: 0 | H102: 267 | I102: 802 | J102: 0 | K102: 802.0282267 | N102: N102 | O102: Gabrielle Zeman | P102: NUIG | Q102: 0 | R102: 0 | S102: 193 | T102: 0 | U102: 429 | V102: 622 | W102: 0 | X102: 622.0429193 | AA102: AA102 | AB102: Jay McCarron | AC102: GMIT | AD102: 0 | AE102: 0 | AF102: 62 | AG102: 0 | AH102: 0 | AI102: 62 | AJ102: 0 | AK102: 62.0062 | AN102: AN102 | AP102: TBC | AQ102: TBC | AR102: TBC | AS102: TBC | AT102: TBC | AU102: TBC | AV102: 0 | AW102: 0 | AX102: 0 | BA102: BA102 | BB102: Devon Long | BC102: UL | BD102: 0 | BE102: 0 | BF102: 520 | BG102: 520 | BH102: 0 | BI102: 1040 | BJ102: 0 | BK102: 1040.052052 | BN102: BN102 | BP102: TBC | BQ102: TBC | BR102: TBC | BS102: TBC | BT102: TBC | BU102: TBC | BV102: 0 | BW102: 0 | BX102: 0
A103: A103 | B103: Eoin Dwyer | C103: GMITC | D103: 243 | E103: 0 | F103: 0 | G103: 353 | H103: 188 | I103: 784 | J103: 0 | K103: 784.0353243 | N103: N103 | O103: Maorgain Siede | P103: UCC | Q103: 0 | R103: 0 | S103: 232 | T103: 0 | U103: 202 | V103: 434 | W103: 0 | X103: 434.0232202 | AA103: AA103 | AC103: TBC | AD103: TBC | AE103: TBC | AF103: TBC | AG103: TBC | AH103: TBC | AI103: 0 | AJ103: 0 | AK103: 0 | AN103: AN103 | AP103: TBC | AQ103: TBC | AR103: TBC | AS103: TBC | AT103: TBC | AU103: TBC | AV103: 0 | AW103: 0 | AX103: 0 | BA103: BA103 | BB103: James Floyd | BC103: MU | BD103: 0 | BE103: 0 | BF103: 507 | BG103: 0 | BH103: 510 | BI103: 1017 | BJ103: 0 | BK103: 1017.051051 | BN103: BN103 | BP103: TBC | BQ103: TBC | BR103: TBC | BS103: TBC | BT103: TBC | BU103: TBC | BV103: 0 | BW103: 0 | BX103: 0
A104: A104 | B104: Mark Harrington | C104: NUIG | D104: 0 | E104: 0 | F104: 341 | G104: 0 | H104: 441 | I104: 782 | J104: 0 | K104: 782.0441341 | N104: N104 | O104: Niamh Meyler | P104: NUIG | Q104: 0 | R104: 0 | S104: 0 | T104: 348 | U104: 0 | V104: 348 | W104: 0 | X104: 348.0348 | AA104: AA104 | AC104: TBC | AD104: TBC | AE104: TBC | AF104: TBC | AG104: TBC | AH104: TBC | AI104: 0 | AJ104: 0 | AK104: 0 | AN104: AN104 | AP104: TBC | AQ104: TBC | AR104: TBC | AS104: TBC | AT104: TBC | AU104: TBC | AV104: 0 | AW104: 0 | AX104: 0 | BA104: BA104 | BB104: Carl Byrne | BC104: NUIG | BD104: 0 | BE104: 0 | BF104: 560 | BG104: 0 | BH104: 0 | BI104: 560 | BJ104: 0 | BK104: 560.056 | BN104: BN104 | BP104: TBC | BQ104: TBC | BR104: TBC | BS104: TBC | BT104: TBC | BU104: TBC | BV104: 0 | BW104: 0 | BX104: 0
A105: A105 | B105: Jack Buttery | C105: DUAC | D105: 0 | E105: 144 | F105: 308 | G105: 0 | H105: 319 | I105: 771 | J105: 0 | K105: 771.0319308 | N105: N105 | O105: Sophie Hunt | P105: GMITC | Q105: 0 | R105: 0 | S105: 0 | T105: 0 | U105: 318 | V105: 318 | W105: 0 | X105: 318.0318 | AA105: AA105 | AC105: TBC | AD105: TBC | AE105: TBC | AF105: TBC | AG105: TBC | AH105: TBC | AI105: 0 | AJ105: 0 | AK105: 0 | AN105: AN105 | AP105: TBC | AQ105: TBC | AR105: TBC | AS105: TBC | AT105: TBC | AU105: TBC | AV105: 0 | AW105: 0 | AX105: 0 | BA105: BA105 | BB105: Ross McQuade | BC105: UU | BD105: 0 | BE105: 0 | BF105: 0 | BG105: 261 | BH105: 0 | BI105: 261 | BJ105: 0 | BK105: 261.0261 | BN105: BN105 | BP105: TBC | BQ105: TBC | BR105: TBC | BS105: TBC | BT105: TBC | BU105: TBC | BV105: 0 | BW105: 0 | BX105: 0
A106: A106 | B106: Eoin De Brit | C106: MU | D106: 0 | E106: 0 | F106: 0 | G106: 422 | H106: 336 | I106: 758 | J106: 0 | K106: 758.0422336 | N106: N106 | O106: Melissa Gueey | P106: ITC | Q106: 0 | R106: 0 | S106: 0 | T106: 0 | U106: 317 | V106: 317 | W106: 0 | X106: 317.0317 | AA106: AA106 | AC106: TBC | AD106: TBC | AE106: TBC | AF106: TBC | AG106: TBC | AH106: TBC | AI106: 0 | AJ106: 0 | AK106: 0 | AN106: AN106 | AP106: TBC | AQ106: TBC | AR106: TBC | AS106: TBC | AT106: TBC | AU106: TBC | AV106: 0 | AW106: 0 | AX106: 0 | BA106: BA106 | BC106: TBC | BD106: TBC | BE106: TBC | BF106: TBC | BG106: TBC | BH106: TBC | BI106: 0 | BJ106: 0 | BK106: 0 | BN106: BN106 | BP106: TBC | BQ106: TBC | BR106: TBC | BS106: TBC | BT106: TBC | BU106: TBC | BV106: 0 | BW106: 0 | BX106: 0
A107: A107 | B107: Darren Martyn | C107: GMIT | D107: 0 | E107: 0 | F107: 291 | G107: 0 | H107: 440 | I107: 731 | J107: 0 | K107: 731.0440291 | N107: N107 | O107: Laury Despres | P107: MU | Q107: 310 | R107: 0 | S107: 0 | T107: 0 | U107: 0 | V107: 310 | W107: 0 | X107: 310.031 | AA107: AA107 | AC107: TBC | AD107: TBC | AE107: TBC | AF107: TBC | AG107: TBC | AH107: TBC | AI107: 0 | AJ107: 0 | AK107: 0 | AN107: AN107 | AP107: TBC | AQ107: TBC | AR107: TBC | AS107: TBC | AT107: TBC | AU107: TBC | AV107: 0 | AW107: 0 | AX107: 0 | BA107: BA107 | BC107: TBC | BD107: TBC | BE107: TBC | BF107: TBC | BG107: TBC | BH107: TBC | BI107: 0 | BJ107: 0 | BK107: 0 | BN107: BN107 | BP107: TBC | BQ107: TBC | BR107: TBC | BS107: TBC | BT107: TBC | BU107: TBC | BV107: 0 | BW107: 0 | BX107: 0
A108: A108 | B108: Dylan Do Couto | C108: DCU | D108: 0 | E108: 339 | F108: 0 | G108: 344 | H108: 0 | I108: 683 | J108: 0 | K108: 683.0344339 | N108: N108 | O108: Heather Kelly | P108: IT Tallaght | Q108: 118 | R108: 187 | S108: 0 | T108: 0 | U108: 0 | V108: 305 | W108: 0 | X108: 305.0187118 | AA108: AA108 | AC108: TBC | AD108: TBC | AE108: TBC | AF108: TBC | AG108: TBC | AH108: TBC | AI108: 0 | AJ108: 0 | AK108: 0 | AN108: AN108 | AP108: TBC | AQ108: TBC | AR108: TBC | AS108: TBC | AT108: TBC | AU108: TBC | AV108: 0 | AW108: 0 | AX108: 0 | BA108: BA108 | BC108: TBC | BD108: TBC | BE108: TBC | BF108: TBC | BG108: TBC | BH108: TBC | BI108: 0 | BJ108: 0 | BK108: 0 | BN108: BN108 | BP108: TBC | BQ108: TBC | BR108: TBC | BS108: TBC | BT108: TBC | BU108: TBC | BV108: 0 | BW108: 0 | BX108: 0
A109: A109 | B109: Darren Watkin | C109: MU | D109: 0 | E109: 287 | F109: 0 | G109: 380 | H109: 0 | I109: 667 | J109: 0 | K109: 667.0380287 | N109: N109 | O109: Amy Garde | P109: UCC | Q109: 0 | R109: 0 | S109: 0 | T109: 0 | U109: 289 | V109: 289 | W109: 0 | X109: 289.0289 | AA109: AA109 | AC109: TBC | AD109: TBC | AE109: TBC | AF109: TBC | AG109: TBC | AH109: TBC | AI109: 0 | AJ109: 0 | AK109: 0 | AN109: AN109 | AP109: TBC | AQ109: TBC | AR109: TBC | AS109: TBC | AT109: TBC | AU109: TBC | AV109: 0 | AW109: 0 | AX109: 0 | BA109: BA109 | BC109: TBC | BD109: TBC | BE109: TBC | BF109: TBC | BG109: TBC | BH109: TBC | BI109: 0 | BJ109: 0 | BK109: 0 | BN109: BN109 | BP109: TBC | BQ109: TBC | BR109: TBC | BS109: TBC | BT109: TBC | BU109: TBC | BV109: 0 | BW109: 0 | BX109: 0
A110: A110 | B110: Raymond Conlin | C110: NUIG | D110: 0 | E110: 326 | F110: 313 | G110: 0 | H110: 0 | I110: 639 | J110: 0 | K110: 639.0326313 | N110: N110 | O110: Siobhan Flynn | P110: DUAC | Q110: 0 | R110: 284 | S110: 0 | T110: 0 | U110: 0 | V110: 284 | W110: 0 | X110: 284.0284 | AA110: AA110 | AC110: TBC | AD110: TBC | AE110: TBC | AF110: TBC | AG110: TBC | AH110: TBC | AI110: 0 | AJ110: 0 | AK110: 0 | AN110: AN110 | AP110: TBC | AQ110: TBC | AR110: TBC | AS110: TBC | AT110: TBC | AU110: TBC | AV110: 0 | AW110: 0 | AX110: 0 | BA110: BA110 | BC110: TBC | BD110: TBC | BE110: TBC | BF110: TBC | BG110: TBC | BH110: TBC | BI110: 0 | BJ110: 0 | BK110: 0 | BN110: BN110 | BP110: TBC | BQ110: TBC | BR110: TBC | BS110: TBC | BT110: TBC | BU110: TBC | BV110: 0 | BW110: 0 | BX110: 0
A111: A111 | B111: Blair Flinn | C111: UCD | D111: 534 | E111: 0 | F111: 0 | G111: 0 | H111: 0 | I111: 534 | J111: 0 | K111: 534.0534 | N111: N111 | O111: Michaela Ní Mhurchú | P111: GMITC | Q111: 0 | R111: 0 | S111: 77 | T111: 0 | U111: 200 | V111: 277 | W111: 0 | X111: 277.0200077 | AA111: AA111 | AC111: TBC | AD111: TBC | AE111: TBC | AF111: TBC | AG111: TBC | AH111: TBC | AI111: 0 | AJ111: 0 | AK111: 0 | AN111: AN111 | AP111: TBC | AQ111: TBC | AR111: TBC | AS111: TBC | AT111: TBC | AU111: TBC | AV111: 0 | AW111: 0 | AX111: 0 | BA111: BA111 | BC111: TBC | BD111: TBC | BE111: TBC | BF111: TBC | BG111: TBC | BH111: TBC | BI111: 0 | BJ111: 0 | BK111: 0 | BN111: BN111 | BP111: TBC | BQ111: TBC | BR111: TBC | BS111: TBC | BT111: TBC | BU111: TBC | BV111: 0 | BW111: 0 | BX111: 0
A112: A112 | B112: Thomas Ganley | C112: GMITC | D112: 255 | E112: 0 | F112: 0 | G112: 267 | H112: 0 | I112: 522 | J112: 0 | K112: 522.0267255 | N112: N112 | O112: Anke Jaeger | P112: NUIG | Q112: 0 | R112: 250 | S112: 0 | T112: 0 | U112: 0 | V112: 250 | W112: 0 | X112: 250.025 | AA112: AA112 | AC112: TBC | AD112: TBC | AE112: TBC | AF112: TBC | AG112: TBC | AH112: TBC | AI112: 0 | AJ112: 0 | AK112: 0 | AN112: AN112 | AP112: TBC | AQ112: TBC | AR112: TBC | AS112: TBC | AT112: TBC | AU112: TBC | AV112: 0 | AW112: 0 | AX112: 0 | BA112: BA112 | BC112: TBC | BD112: TBC | BE112: TBC | BF112: TBC | BG112: TBC | BH112: TBC | BI112: 0 | BJ112: 0 | BK112: 0 | BN112: BN112 | BP112: TBC | BQ112: TBC | BR112: TBC | BS112: TBC | BT112: TBC | BU112: TBC | BV112: 0 | BW112: 0 | BX112: 0
A113: A113 | B113: Sean Flynn | C113: IT Tallaght | D113: 0 | E113: 0 | F113: 0 | G113: 276 | H113: 245 | I113: 521 | J113: 0 | K113: 521.0276245 | N113: N113 | O113: Alessandra Pennesi | P113: NUIG | Q113: 0 | R113: 0 | S113: 211 | T113: 0 | U113: 0 | V113: 211 | W113: 0 | X113: 211.0211 | AA113: AA113 | AC113: TBC | AD113: TBC | AE113: TBC | AF113: TBC | AG113: TBC | AH113: TBC | AI113: 0 | AJ113: 0 | AK113: 0 | AN113: AN113 | AP113: TBC | AQ113: TBC | AR113: TBC | AS113: TBC | AT113: TBC | AU113: TBC | AV113: 0 | AW113: 0 | AX113: 0 | BA113: BA113 | BC113: TBC | BD113: TBC | BE113: TBC | BF113: TBC | BG113: TBC | BH113: TBC | BI113: 0 | BJ113: 0 | BK113: 0 | BN113: BN113 | BP113: TBC | BQ113: TBC | BR113: TBC | BS113: TBC | BT113: TBC | BU113: TBC | BV113: 0 | BW113: 0 | BX113: 0
A114: A114 | B114: Lee Nolan | C114: GMITC | D114: 0 | E114: 0 | F114: 0 | G114: 211 | H114: 291 | I114: 502 | J114: 0 | K114: 502.0291211 | N114: N114 | O114: Nicole Maoirano | P114: DUAC | Q114: 0 | R114: 0 | S114: 42 | T114: 0 | U114: 155 | V114: 197 | W114: 0 | X114: 197.0155042 | AA114: AA114 | AC114: TBC | AD114: TBC | AE114: TBC | AF114: TBC | AG114: TBC | AH114: TBC | AI114: 0 | AJ114: 0 | AK114: 0 | AN114: AN114 | AP114: TBC | AQ114: TBC | AR114: TBC | AS114: TBC | AT114: TBC | AU114: TBC | AV114: 0 | AW114: 0 | AX114: 0 | BA114: BA114 | BC114: TBC | BD114: TBC | BE114: TBC | BF114: TBC | BG114: TBC | BH114: TBC | BI114: 0 | BJ114: 0 | BK114: 0 | BN114: BN114 | BP114: TBC | BQ114: TBC | BR114: TBC | BS114: TBC | BT114: TBC | BU114: TBC | BV114: 0 | BW114: 0 | BX114: 0
A115: A115 | B115: Matthew O'Connor | C115: MU | D115: 0 | E115: 465 | F115: 0 | G115: 0 | H115: 0 | I115: 465 | J115: 0 | K115: 465.0465 | N115: N115 | P115: TBC | Q115: TBC | R115: TBC | S115: TBC | T115: TBC | U115: TBC | V115: 0 | W115: 0 | X115: 0 | AA115: AA115 | AC115: TBC | AD115: TBC | AE115: TBC | AF115: TBC | AG115: TBC | AH115: TBC | AI115: 0 | AJ115: 0 | AK115: 0 | AN115: AN115 | AP115: TBC | AQ115: TBC | AR115: TBC | AS115: TBC | AT115: TBC | AU115: TBC | AV115: 0 | AW115: 0 | AX115: 0 | BA115: BA115 | BC115: TBC | BD115: TBC | BE115: TBC | BF115: TBC | BG115: TBC | BH115: TBC | BI115: 0 | BJ115: 0 | BK115: 0 | BN115: BN115 | BP115: TBC | BQ115: TBC | BR115: TBC | BS115: TBC | BT115: TBC | BU115: TBC | BV115: 0 | BW115: 0 | BX115: 0
A116: A116 | B116: Brian McDonagh MU | C116: MU | D116: 0 | E116: 0 | F116: 0 | G116: 430 | H116: 0 | I116: 430 | J116: 0 | K116: 430.043 | N116: N116 | P116: TBC | Q116: TBC | R116: TBC | S116: TBC | T116: TBC | U116: TBC | V116: 0 | W116: 0 | X116: 0 | AA116: AA116 | AC116: TBC | AD116: TBC | AE116: TBC | AF116: TBC | AG116: TBC | AH116: TBC | AI116: 0 | AJ116: 0 | AK116: 0 | AN116: AN116 | AP116: TBC | AQ116: TBC | AR116: TBC | AS116: TBC | AT116: TBC | AU116: TBC | AV116: 0 | AW116: 0 | AX116: 0 | BA116: BA116 | BC116: TBC | BD116: TBC | BE116: TBC | BF116: TBC | BG116: TBC | BH116: TBC | BI116: 0 | BJ116: 0 | BK116: 0 | BN116: BN116 | BP116: TBC | BQ116: TBC | BR116: TBC | BS116: TBC | BT116: TBC | BU116: TBC | BV116: 0 | BW116: 0 | BX116: 0
A117: A117 | B117: Gavin Munnelly | C117: DCU | D117: 0 | E117: 0 | F117: 0 | G117: 417 | H117: 0 | I117: 417 | J117: 0 | K117: 417.0417 | N117: N117 | P117: TBC | Q117: TBC | R117: TBC | S117: TBC | T117: TBC | U117: TBC | V117: 0 | W117: 0 | X117: 0 | AA117: AA117 | AC117: TBC | AD117: TBC | AE117: TBC | AF117: TBC | AG117: TBC | AH117: TBC | AI117: 0 | AJ117: 0 | AK117: 0 | AN117: AN117 | AP117: TBC | AQ117: TBC | AR117: TBC | AS117: TBC | AT117: TBC | AU117: TBC | AV117: 0 | AW117: 0 | AX117: 0 | BA117: BA117 | BC117: TBC | BD117: TBC | BE117: TBC | BF117: TBC | BG117: TBC | BH117: TBC | BI117: 0 | BJ117: 0 | BK117: 0 | BN117: BN117 | BP117: TBC | BQ117: TBC | BR117: TBC | BS117: TBC | BT117: TBC | BU117: TBC | BV117: 0 | BW117: 0 | BX117: 0
A118: A118 | B118: Ciarán Martin | C118: MU | D118: 0 | E118: 413 | F118: 0 | G118: 0 | H118: 0 | I118: 413 | J118: 0 | K118: 413.0413 | N118: N118 | P118: TBC | Q118: TBC | R118: TBC | S118: TBC | T118: TBC | U118: TBC | V118: 0 | W118: 0 | X118: 0 | AA118: AA118 | AC118: TBC | AD118: TBC | AE118: TBC | AF118: TBC | AG118: TBC | AH118: TBC | AI118: 0 | AJ118: 0 | AK118: 0 | AN118: AN118 | AP118: TBC | AQ118: TBC | AR118: TBC | AS118: TBC | AT118: TBC | AU118: TBC | AV118: 0 | AW118: 0 | AX118: 0 | BA118: BA118 | BC118: TBC | BD118: TBC | BE118: TBC | BF118: TBC | BG118: TBC | BH118: TBC | BI118: 0 | BJ118: 0 | BK118: 0 | BN118: BN118 | BP118: TBC | BQ118: TBC | BR118: TBC | BS118: TBC | BT118: TBC | BU118: TBC | BV118: 0 | BW118: 0 | BX118: 0
A119: A119 | B119: Domagoj Kos | C119: UCD | D119: 0 | E119: 0 | F119: 0 | G119: 0 | H119: 398 | I119: 398 | J119: 0 | K119: 398.0398 | N119: N119 | P119: TBC | Q119: TBC | R119: TBC | S119: TBC | T119: TBC | U119: TBC | V119: 0 | W119: 0 | X119: 0 | AA119: AA119 | AC119: TBC | AD119: TBC | AE119: TBC | AF119: TBC | AG119: TBC | AH119: TBC | AI119: 0 | AJ119: 0 | AK119: 0 | AN119: AN119 | AP119: TBC | AQ119: TBC | AR119: TBC | AS119: TBC | AT119: TBC | AU119: TBC | AV119: 0 | AW119: 0 | AX119: 0 | BA119: BA119 | BC119: TBC | BD119: TBC | BE119: TBC | BF119: TBC | BG119: TBC | BH119: TBC | BI119: 0 | BJ119: 0 | BK119: 0 | BN119: BN119 | BP119: TBC | BQ119: TBC | BR119: TBC | BS119: TBC | BT119: TBC | BU119: TBC | BV119: 0 | BW119: 0 | BX119: 0
A120: A120 | B120: Victor Stoian | C120: MU | D120: 0 | E120: 377 | F120: 0 | G120: 0 | H120: 0 | I120: 377 | J120: 0 | K120: 377.0377 | N120: N120 | P120: TBC | Q120: TBC | R120: TBC | S120: TBC | T120: TBC | U120: TBC | V120: 0 | W120: 0 | X120: 0 | AA120: AA120 | AC120: TBC | AD120: TBC | AE120: TBC | AF120: TBC | AG120: TBC | AH120: TBC | AI120: 0 | AJ120: 0 | AK120: 0 | AN120: AN120 | AP120: TBC | AQ120: TBC | AR120: TBC | AS120: TBC | AT120: TBC | AU120: TBC | AV120: 0 | AW120: 0 | AX120: 0 | BA120: BA120 | BC120: TBC | BD120: TBC | BE120: TBC | BF120: TBC | BG120: TBC | BH120: TBC | BI120: 0 | BJ120: 0 | BK120: 0 | BN120: BN120 | BP120: TBC | BQ120: TBC | BR120: TBC | BS120: TBC | BT120: TBC | BU120: TBC | BV120: 0 | BW120: 0 | BX120: 0
A121: A121 | B121: Ryan Claffey | C121: GMIT | D121: 0 | E121: 0 | F121: 0 | G121: 0 | H121: 371 | I121: 371 | J121: 0 | K121: 371.0371 | N121: N121 | P121: TBC | Q121: TBC | R121: TBC | S121: TBC | T121: TBC | U121: TBC | V121: 0 | W121: 0 | X121: 0 | AA121: AA121 | AC121: TBC | AD121: TBC | AE121: TBC | AF121: TBC | AG121: TBC | AH121: TBC | AI121: 0 | AJ121: 0 | AK121: 0 | AN121: AN121 | AP121: TBC | AQ121: TBC | AR121: TBC | AS121: TBC | AT121: TBC | AU121: TBC | AV121: 0 | AW121: 0 | AX121: 0 | BA121: BA121 | BC121: TBC | BD121: TBC | BE121: TBC | BF121: TBC | BG121: TBC | BH121: TBC | BI121: 0 | BJ121: 0 | BK121: 0 | BN121: BN121 | BP121: TBC | BQ121: TBC | BR121: TBC | BS121: TBC | BT121: TBC | BU121: TBC | BV121: 0 | BW121: 0 | BX121: 0
A122: A122 | B122: Connor Newman | C122: MU | D122: 359 | E122: 0 | F122: 0 | G122: 0 | H122: 0 | I122: 359 | J122: 0 | K122: 359.0359 | N122: N122 | P122: TBC | Q122: TBC | R122: TBC | S122: TBC | T122: TBC | U122: TBC | V122: 0 | W122: 0 | X122: 0 | AA122: AA122 | AC122: TBC | AD122: TBC | AE122: TBC | AF122: TBC | AG122: TBC | AH122: TBC | AI122: 0 | AJ122: 0 | AK122: 0 | AN122: AN122 | AP122: TBC | AQ122: TBC | AR122: TBC | AS122: TBC | AT122: TBC | AU122: TBC | AV122: 0 | AW122: 0 | AX122: 0 | BA122: BA122 | BC122: TBC | BD122: TBC | BE122: TBC | BF122: TBC | BG122: TBC | BH122: TBC | BI122: 0 | BJ122: 0 | BK122: 0 | BN122: BN122 | BP122: TBC | BQ122: TBC | BR122: TBC | BS122: TBC | BT122: TBC | BU122: TBC | BV122: 0 | BW122: 0 | BX122: 0
A123: A123 | B123: Conn De Barra | C123: DUAC | D123: 0 | E123: 0 | F123: 0 | G123: 152 | H123: 201 | I123: 353 | J123: 0 | K123: 353.0201152 | N123: N123 | P123: TBC | Q123: TBC | R123: TBC | S123: TBC | T123: TBC | U123: TBC | V123: 0 | W123: 0 | X123: 0 | AA123: AA123 | AC123: TBC | AD123: TBC | AE123: TBC | AF123: TBC | AG123: TBC | AH123: TBC | AI123: 0 | AJ123: 0 | AK123: 0 | AN123: AN123 | AP123: TBC | AQ123: TBC | AR123: TBC | AS123: TBC | AT123: TBC | AU123: TBC | AV123: 0 | AW123: 0 | AX123: 0 | BA123: BA123 | BC123: TBC | BD123: TBC | BE123: TBC | BF123: TBC | BG123: TBC | BH123: TBC | BI123: 0 | BJ123: 0 | BK123: 0 | BN123: BN123 | BP123: TBC | BQ123: TBC | BR123: TBC | BS123: TBC | BT123: TBC | BU123: TBC | BV123: 0 | BW123: 0 | BX123: 0
A124: A124 | B124: Theo De Groot | C124: UU | D124: 0 | E124: 0 | F124: 0 | G124: 351 | H124: 0 | I124: 351 | J124: 0 | K124: 351.0351 | N124: N124 | P124: TBC | Q124: TBC | R124: TBC | S124: TBC | T124: TBC | U124: TBC | V124: 0 | W124: 0 | X124: 0 | AA124: AA124 | AC124: TBC | AD124: TBC | AE124: TBC | AF124: TBC | AG124: TBC | AH124: TBC | AI124: 0 | AJ124: 0 | AK124: 0 | AN124: AN124 | AP124: TBC | AQ124: TBC | AR124: TBC | AS124: TBC | AT124: TBC | AU124: TBC | AV124: 0 | AW124: 0 | AX124: 0 | BA124: BA124 | BC124: TBC | BD124: TBC | BE124: TBC | BF124: TBC | BG124: TBC | BH124: TBC | BI124: 0 | BJ124: 0 | BK124: 0 | BN124: BN124 | BP124: TBC | BQ124: TBC | BR124: TBC | BS124: TBC | BT124: TBC | BU124: TBC | BV124: 0 | BW124: 0 | BX124: 0
A125: A125 | B125: Raymond Onwunali | C125: MU | D125: 0 | E125: 0 | F125: 0 | G125: 0 | H125: 334 | I125: 334 | J125: 0 | K125: 334.0334 | N125: N125 | P125: TBC | Q125: TBC | R125: TBC | S125: TBC | T125: TBC | U125: TBC | V125: 0 | W125: 0 | X125: 0 | AA125: AA125 | AC125: TBC | AD125: TBC | AE125: TBC | AF125: TBC | AG125: TBC | AH125: TBC | AI125: 0 | AJ125: 0 | AK125: 0 | AN125: AN125 | AP125: TBC | AQ125: TBC | AR125: TBC | AS125: TBC | AT125: TBC | AU125: TBC | AV125: 0 | AW125: 0 | AX125: 0 | BA125: BA125 | BC125: TBC | BD125: TBC | BE125: TBC | BF125: TBC | BG125: TBC | BH125: TBC | BI125: 0 | BJ125: 0 | BK125: 0 | BN125: BN125 | BP125: TBC | BQ125: TBC | BR125: TBC | BS125: TBC | BT125: TBC | BU125: TBC | BV125: 0 | BW125: 0 | BX125: 0
A126: A126 | B126: Rashed Alfuzaie | C126: RCSI | D126: 0 | E126: 0 | F126: 326 | G126: 0 | H126: 0 | I126: 326 | J126: 0 | K126: 326.0326 | N126: N126 | P126: TBC | Q126: TBC | R126: TBC | S126: TBC | T126: TBC | U126: TBC | V126: 0 | W126: 0 | X126: 0 | AA126: AA126 | AC126: TBC | AD126: TBC | AE126: TBC | AF126: TBC | AG126: TBC | AH126: TBC | AI126: 0 | AJ126: 0 | AK126: 0 | AN126: AN126 | AP126: TBC | AQ126: TBC | AR126: TBC | AS126: TBC | AT126: TBC | AU126: TBC | AV126: 0 | AW126: 0 | AX126: 0 | BA126: BA126 | BC126: TBC | BD126: TBC | BE126: TBC | BF126: TBC | BG126: TBC | BH126: TBC | BI126: 0 | BJ126: 0 | BK126: 0 | BN126: BN126 | BP126: TBC | BQ126: TBC | BR126: TBC | BS126: TBC | BT126: TBC | BU126: TBC | BV126: 0 | BW126: 0 | BX126: 0
A127: A127 | B127: Conor Sheridan | C127: UCD | D127: 0 | E127: 0 | F127: 0 | G127: 299 | H127: 0 | I127: 299 | J127: 0 | K127: 299.0299 | N127: N127 | P127: TBC | Q127: TBC | R127: TBC | S127: TBC | T127: TBC | U127: TBC | V127: 0 | W127: 0 | X127: 0 | AA127: AA127 | AC127: TBC | AD127: TBC | AE127: TBC | AF127: TBC | AG127: TBC | AH127: TBC | AI127: 0 | AJ127: 0 | AK127: 0 | AN127: AN127 | AP127: TBC | AQ127: TBC | AR127: TBC | AS127: TBC | AT127: TBC | AU127: TBC | AV127: 0 | AW127: 0 | AX127: 0 | BA127: BA127 | BC127: TBC | BD127: TBC | BE127: TBC | BF127: TBC | BG127: TBC | BH127: TBC | BI127: 0 | BJ127: 0 | BK127: 0 | BN127: BN127 | BP127: TBC | BQ127: TBC | BR127: TBC | BS127: TBC | BT127: TBC | BU127: TBC | BV127: 0 | BW127: 0 | BX127: 0
A128: A128 | B128: David Melcher | C128: IT Tallaght | D128: 0 | E128: 285 | F128: 0 | G128: 0 | H128: 0 | I128: 285 | J128: 0 | K128: 285.0285 | N128: N128 | P128: TBC | Q128: TBC | R128: TBC | S128: TBC | T128: TBC | U128: TBC | V128: 0 | W128: 0 | X128: 0 | AA128: AA128 | AC128: TBC | AD128: TBC | AE128: TBC | AF128: TBC | AG128: TBC | AH128: TBC | AI128: 0 | AJ128: 0 | AK128: 0 | AN128: AN128 | AP128: TBC | AQ128: TBC | AR128: TBC | AS128: TBC | AT128: TBC | AU128: TBC | AV128: 0 | AW128: 0 | AX128: 0 | BA128: BA128 | BC128: TBC | BD128: TBC | BE128: TBC | BF128: TBC | BG128: TBC | BH128: TBC | BI128: 0 | BJ128: 0 | BK128: 0 | BN128: BN128 | BP128: TBC | BQ128: TBC | BR128: TBC | BS128: TBC | BT128: TBC | BU128: TBC | BV128: 0 | BW128: 0 | BX128: 0
A129: A129 | B129: Jonnie Swain | C129: UU | D129: 0 | E129: 0 | F129: 0 | G129: 0 | H129: 279 | I129: 279 | J129: 0 | K129: 279.0279 | N129: N129 | P129: TBC | Q129: TBC | R129: TBC | S129: TBC | T129: TBC | U129: TBC | V129: 0 | W129: 0 | X129: 0 | AA129: AA129 | AC129: TBC | AD129: TBC | AE129: TBC | AF129: TBC | AG129: TBC | AH129: TBC | AI129: 0 | AJ129: 0 | AK129: 0 | AN129: AN129 | AP129: TBC | AQ129: TBC | AR129: TBC | AS129: TBC | AT129: TBC | AU129: TBC | AV129: 0 | AW129: 0 | AX129: 0 | BA129: BA129 | BC129: TBC | BD129: TBC | BE129: TBC | BF129: TBC | BG129: TBC | BH129: TBC | BI129: 0 | BJ129: 0 | BK129: 0 | BN129: BN129 | BP129: TBC | BQ129: TBC | BR129: TBC | BS129: TBC | BT129: TBC | BU129: TBC | BV129: 0 | BW129: 0 | BX129: 0
A130: A130 | B130: Vojtěch Halama | C130: NUIG | D130: 0 | E130: 271 | F130: 0 | G130: 0 | H130: 0 | I130: 271 | J130: 0 | K130: 271.0271 | N130: N130 | P130: TBC | Q130: TBC | R130: TBC | S130: TBC | T130: TBC | U130: TBC | V130: 0 | W130: 0 | X130: 0 | AA130: AA130 | AC130: TBC | AD130: TBC | AE130: TBC | AF130: TBC | AG130: TBC | AH130: TBC | AI130: 0 | AJ130: 0 | AK130: 0 | AN130: AN130 | AP130: TBC | AQ130: TBC | AR130: TBC | AS130: TBC | AT130: TBC | AU130: TBC | AV130: 0 | AW130: 0 | AX130: 0 | BA130: BA130 | BC130: TBC | BD130: TBC | BE130: TBC | BF130: TBC | BG130: TBC | BH130: TBC | BI130: 0 | BJ130: 0 | BK130: 0 | BN130: BN130 | BP130: TBC | BQ130: TBC | BR130: TBC | BS130: TBC | BT130: TBC | BU130: TBC | BV130: 0 | BW130: 0 | BX130: 0
A131: A131 | B131: Simon Bluett | C131: DUAC | D131: 0 | E131: 0 | F131: 0 | G131: 0 | H131: 248 | I131: 248 | J131: 0 | K131: 248.0248 | N131: N131 | P131: TBC | Q131: TBC | R131: TBC | S131: TBC | T131: TBC | U131: TBC | V131: 0 | W131: 0 | X131: 0 | AA131: AA131 | AC131: TBC | AD131: TBC | AE131: TBC | AF131: TBC | AG131: TBC | AH131: TBC | AI131: 0 | AJ131: 0 | AK131: 0 | AN131: AN131 | AP131: TBC | AQ131: TBC | AR131: TBC | AS131: TBC | AT131: TBC | AU131: TBC | AV131: 0 | AW131: 0 | AX131: 0 | BA131: BA131 | BC131: TBC | BD131: TBC | BE131: TBC | BF131: TBC | BG131: TBC | BH131: TBC | BI131: 0 | BJ131: 0 | BK131: 0 | BN131: BN131 | BP131: TBC | BQ131: TBC | BR131: TBC | BS131: TBC | BT131: TBC | BU131: TBC | BV131: 0 | BW131: 0 | BX131: 0
A132: A132 | B132: Andrew Fairbrother | C132: UCD | D132: 242 | E132: 0 | F132: 0 | G132: 0 | H132: 0 | I132: 242 | J132: 0 | K132: 242.0242 | N132: N132 | P132: TBC | Q132: TBC | R132: TBC | S132: TBC | T132: TBC | U132: TBC | V132: 0 | W132: 0 | X132: 0 | AA132: AA132 | AC132: TBC | AD132: TBC | AE132: TBC | AF132: TBC | AG132: TBC | AH132: TBC | AI132: 0 | AJ132: 0 | AK132: 0 | AN132: AN132 | AP132: TBC | AQ132: TBC | AR132: TBC | AS132: TBC | AT132: TBC | AU132: TBC | AV132: 0 | AW132: 0 | AX132: 0 | BA132: BA132 | BC132: TBC | BD132: TBC | BE132: TBC | BF132: TBC | BG132: TBC | BH132: TBC | BI132: 0 | BJ132: 0 | BK132: 0 | BN132: BN132 | BP132: TBC | BQ132: TBC | BR132: TBC | BS132: TBC | BT132: TBC | BU132: TBC | BV132: 0 | BW132: 0 | BX132: 0
A133: A133 | B133: Sam Gibson | C133: MU | D133: 224 | E133: 0 | F133: 0 | G133: 0 | H133: 0 | I133: 224 | J133: 0 | K133: 224.0224 | N133: N133 | P133: TBC | Q133: TBC | R133: TBC | S133: TBC | T133: TBC | U133: TBC | V133: 0 | W133: 0 | X133: 0 | AA133: AA133 | AC133: TBC | AD133: TBC | AE133: TBC | AF133: TBC | AG133: TBC | AH133: TBC | AI133: 0 | AJ133: 0 | AK133: 0 | AN133: AN133 | AP133: TBC | AQ133: TBC | AR133: TBC | AS133: TBC | AT133: TBC | AU133: TBC | AV133: 0 | AW133: 0 | AX133: 0 | BA133: BA133 | BC133: TBC | BD133: TBC | BE133: TBC | BF133: TBC | BG133: TBC | BH133: TBC | BI133: 0 | BJ133: 0 | BK133: 0 | BN133: BN133 | BP133: TBC | BQ133: TBC | BR133: TBC | BS133: TBC | BT133: TBC | BU133: TBC | BV133: 0 | BW133: 0 | BX133: 0
A134: A134 | B134: Nik Idlan Faiq | C134: RCSI | D134: 0 | E134: 0 | F134: 166 | G134: 0 | H134: 0 | I134: 166 | J134: 0 | K134: 166.0166 | N134: N134 | P134: TBC | Q134: TBC | R134: TBC | S134: TBC | T134: TBC | U134: TBC | V134: 0 | W134: 0 | X134: 0 | AA134: AA134 | AC134: TBC | AD134: TBC | AE134: TBC | AF134: TBC | AG134: TBC | AH134: TBC | AI134: 0 | AJ134: 0 | AK134: 0 | AN134: AN134 | AP134: TBC | AQ134: TBC | AR134: TBC | AS134: TBC | AT134: TBC | AU134: TBC | AV134: 0 | AW134: 0 | AX134: 0 | BA134: BA134 | BC134: TBC | BD134: TBC | BE134: TBC | BF134: TBC | BG134: TBC | BH134: TBC | BI134: 0 | BJ134: 0 | BK134: 0 | BN134: BN134 | BP134: TBC | BQ134: TBC | BR134: TBC | BS134: TBC | BT134: TBC | BU134: TBC | BV134: 0 | BW134: 0 | BX134: 0
A135: A135 | B135: Max Fursman | C135: DUAC | D135: 0 | E135: 106 | F135: 0 | G135: 0 | H135: 0 | I135: 106 | J135: 0 | K135: 106.0106 | N135: N135 | P135: TBC | Q135: TBC | R135: TBC | S135: TBC | T135: TBC | U135: TBC | V135: 0 | W135: 0 | X135: 0 | AA135: AA135 | AC135: TBC | AD135: TBC | AE135: TBC | AF135: TBC | AG135: TBC | AH135: TBC | AI135: 0 | AJ135: 0 | AK135: 0 | AN135: AN135 | AP135: TBC | AQ135: TBC | AR135: TBC | AS135: TBC | AT135: TBC | AU135: TBC | AV135: 0 | AW135: 0 | AX135: 0 | BA135: BA135 | BC135: TBC | BD135: TBC | BE135: TBC | BF135: TBC | BG135: TBC | BH135: TBC | BI135: 0 | BJ135: 0 | BK135: 0 | BN135: BN135 | BP135: TBC | BQ135: TBC | BR135: TBC | BS135: TBC | BT135: TBC | BU135: TBC | BV135: 0 | BW135: 0 | BX135: 0
A136: A136 | B136: Victor Agular | C136: GMITC | D136: 0 | E136: 0 | F136: 0 | G136: 93 | H136: 0 | I136: 93 | J136: 0 | K136: 93.0093 | N136: N136 | P136: TBC | Q136: TBC | R136: TBC | S136: TBC | T136: TBC | U136: TBC | V136: 0 | W136: 0 | X136: 0 | AA136: AA136 | AC136: TBC | AD136: TBC | AE136: TBC | AF136: TBC | AG136: TBC | AH136: TBC | AI136: 0 | AJ136: 0 | AK136: 0 | AN136: AN136 | AP136: TBC | AQ136: TBC | AR136: TBC | AS136: TBC | AT136: TBC | AU136: TBC | AV136: 0 | AW136: 0 | AX136: 0 | BA136: BA136 | BC136: TBC | BD136: TBC | BE136: TBC | BF136: TBC | BG136: TBC | BH136: TBC | BI136: 0 | BJ136: 0 | BK136: 0 | BN136: BN136 | BP136: TBC | BQ136: TBC | BR136: TBC | BS136: TBC | BT136: TBC | BU136: TBC | BV136: 0 | BW136: 0 | BX136: 0
A137: A137 | C137: TBC | D137: TBC | E137: TBC | F137: TBC | G137: TBC | H137: TBC | I137: 0 | J137: 0 | K137: 0 | N137: N137 | P137: TBC | Q137: TBC | R137: TBC | S137: TBC | T137: TBC | U137: TBC | V137: 0 | W137: 0 | X137: 0 | AA137: AA137 | AC137: TBC | AD137: TBC | AE137: TBC | AF137: TBC | AG137: TBC | AH137: TBC | AI137: 0 | AJ137: 0 | AK137: 0 | AN137: AN137 | AP137: TBC | AQ137: TBC | AR137: TBC | AS137: TBC | AT137: TBC | AU137: TBC | AV137: 0 | AW137: 0 | AX137: 0 | BA137: BA137 | BC137: TBC | BD137: TBC | BE137: TBC | BF137: TBC | BG137: TBC | BH137: TBC | BI137: 0 | BJ137: 0 | BK137: 0 | BN137: BN137 | BP137: TBC | BQ137: TBC | BR137: TBC | BS137: TBC | BT137: TBC | BU137: TBC | BV137: 0 | BW137: 0 | BX137: 0
A138: A138 | C138: TBC | D138: TBC | E138: TBC | F138: TBC | G138: TBC | H138: TBC | I138: 0 | J138: 0 | K138: 0 | N138: N138 | P138: TBC | Q138: TBC | R138: TBC | S138: TBC | T138: TBC | U138: TBC | V138: 0 | W138: 0 | X138: 0 | AA138: AA138 | AC138: TBC | AD138: TBC | AE138: TBC | AF138: TBC | AG138: TBC | AH138: TBC | AI138: 0 | AJ138: 0 | AK138: 0 | AN138: AN138 | AP138: TBC | AQ138: TBC | AR138: TBC | AS138: TBC | AT138: TBC | AU138: TBC | AV138: 0 | AW138: 0 | AX138: 0 | BA138: BA138 | BC138: TBC | BD138: TBC | BE138: TBC | BF138: TBC | BG138: TBC | BH138: TBC | BI138: 0 | BJ138: 0 | BK138: 0 | BN138: BN138 | BP138: TBC | BQ138: TBC | BR138: TBC | BS138: TBC | BT138: TBC | BU138: TBC | BV138: 0 | BW138: 0 | BX138: 0
A139: A139 | C139: TBC | D139: TBC | E139: TBC | F139: TBC | G139: TBC | H139: TBC | I139: 0 | J139: 0 | K139: 0 | N139: N139 | P139: TBC | Q139: TBC | R139: TBC | S139: TBC | T139: TBC | U139: TBC | V139: 0 | W139: 0 | X139: 0 | AA139: AA139 | AC139: TBC | AD139: TBC | AE139: TBC | AF139: TBC | AG139: TBC | AH139: TBC | AI139: 0 | AJ139: 0 | AK139: 0 | AN139: AN139 | AP139: TBC | AQ139: TBC | AR139: TBC | AS139: TBC | AT139: TBC | AU139: TBC | AV139: 0 | AW139: 0 | AX139: 0 | BA139: BA139 | BC139: TBC | BD139: TBC | BE139: TBC | BF139: TBC | BG139: TBC | BH139: TBC | BI139: 0 | BJ139: 0 | BK139: 0 | BN139: BN139 | BP139: TBC | BQ139: TBC | BR139: TBC | BS139: TBC | BT139: TBC | BU139: TBC | BV139: 0 | BW139: 0 | BX139: 0
A140: A140 | C140: TBC | D140: TBC | E140: TBC | F140: TBC | G140: TBC | H140: TBC | I140: 0 | J140: 0 | K140: 0 | N140: N140 | P140: TBC | Q140: TBC | R140: TBC | S140: TBC | T140: TBC | U140: TBC | V140: 0 | W140: 0 | X140: 0 | AA140: AA140 | AC140: TBC | AD140: TBC | AE140: TBC | AF140: TBC | AG140: TBC | AH140: TBC | AI140: 0 | AJ140: 0 | AK140: 0 | AN140: AN140 | AP140: TBC | AQ140: TBC | AR140: TBC | AS140: TBC | AT140: TBC | AU140: TBC | AV140: 0 | AW140: 0 | AX140: 0 | BA140: BA140 | BC140: TBC | BD140: TBC | BE140: TBC | BF140: TBC | BG140: TBC | BH140: TBC | BI140: 0 | BJ140: 0 | BK140: 0 | BN140: BN140 | BP140: TBC | BQ140: TBC | BR140: TBC | BS140: TBC | BT140: TBC | BU140: TBC | BV140: 0 | BW140: 0 | BX140: 0
A141: A141 | C141: TBC | D141: TBC | E141: TBC | F141: TBC | G141: TBC | H141: TBC | I141: 0 | J141: 0 | K141: 0 | N141: N141 | P141: TBC | Q141: TBC | R141: TBC | S141: TBC | T141: TBC | U141: TBC | V141: 0 | W141: 0 | X141: 0 | AA141: AA141 | AC141: TBC | AD141: TBC | AE141: TBC | AF141: TBC | AG141: TBC | AH141: TBC | AI141: 0 | AJ141: 0 | AK141: 0 | AN141: AN141 | AP141: TBC | AQ141: TBC | AR141: TBC | AS141: TBC | AT141: TBC | AU141: TBC | AV141: 0 | AW141: 0 | AX141: 0 | BA141: BA141 | BC141: TBC | BD141: TBC | BE141: TBC | BF141: TBC | BG141: TBC | BH141: TBC | BI141: 0 | BJ141: 0 | BK141: 0 | BN141: BN141 | BP141: TBC | BQ141: TBC | BR141: TBC | BS141: TBC | BT141: TBC | BU141: TBC | BV141: 0 | BW141: 0 | BX141: 0
A142: A142 | C142: TBC | D142: TBC | E142: TBC | F142: TBC | G142: TBC | H142: TBC | I142: 0 | J142: 0 | K142: 0 | N142: N142 | P142: TBC | Q142: TBC | R142: TBC | S142: TBC | T142: TBC | U142: TBC | V142: 0 | W142: 0 | X142: 0 | AA142: AA142 | AC142: TBC | AD142: TBC | AE142: TBC | AF142: TBC | AG142: TBC | AH142: TBC | AI142: 0 | AJ142: 0 | AK142: 0 | AN142: AN142 | AP142: TBC | AQ142: TBC | AR142: TBC | AS142: TBC | AT142: TBC | AU142: TBC | AV142: 0 | AW142: 0 | AX142: 0 | BA142: BA142 | BC142: TBC | BD142: TBC | BE142: TBC | BF142: TBC | BG142: TBC | BH142: TBC | BI142: 0 | BJ142: 0 | BK142: 0 | BN142: BN142 | BP142: TBC | BQ142: TBC | BR142: TBC | BS142: TBC | BT142: TBC | BU142: TBC | BV142: 0 | BW142: 0 | BX142: 0
A143: A143 | C143: TBC | D143: TBC | E143: TBC | F143: TBC | G143: TBC | H143: TBC | I143: 0 | J143: 0 | K143: 0 | N143: N143 | P143: TBC | Q143: TBC | R143: TBC | S143: TBC | T143: TBC | U143: TBC | V143: 0 | W143: 0 | X143: 0 | AA143: AA143 | AC143: TBC | AD143: TBC | AE143: TBC | AF143: TBC | AG143: TBC | AH143: TBC | AI143: 0 | AJ143: 0 | AK143: 0 | AN143: AN143 | AP143: TBC | AQ143: TBC | AR143: TBC | AS143: TBC | AT143: TBC | AU143: TBC | AV143: 0 | AW143: 0 | AX143: 0 | BA143: BA143 | BC143: TBC | BD143: TBC | BE143: TBC | BF143: TBC | BG143: TBC | BH143: TBC | BI143: 0 | BJ143: 0 | BK143: 0 | BN143: BN143 | BP143: TBC | BQ143: TBC | BR143: TBC | BS143: TBC | BT143: TBC | BU143: TBC | BV143: 0 | BW143: 0 | BX143: 0
A144: A144 | C144: TBC | D144: TBC | E144: TBC | F144: TBC | G144: TBC | H144: TBC | I144: 0 | J144: 0 | K144: 0 | N144: N144 | P144: TBC | Q144: TBC | R144: TBC | S144: TBC | T144: TBC | U144: TBC | V144: 0 | W144: 0 | X144: 0 | AA144: AA144 | AC144: TBC | AD144: TBC | AE144: TBC | AF144: TBC | AG144: TBC | AH144: TBC | AI144: 0 | AJ144: 0 | AK144: 0 | AN144: AN144 | AP144: TBC | AQ144: TBC | AR144: TBC | AS144: TBC | AT144: TBC | AU144: TBC | AV144: 0 | AW144: 0 | AX144: 0 | BA144: BA144 | BC144: TBC | BD144: TBC | BE144: TBC | BF144: TBC | BG144: TBC | BH144: TBC | BI144: 0 | BJ144: 0 | BK144: 0 | BN144: BN144 | BP144: TBC | BQ144: TBC | BR144: TBC | BS144: TBC | BT144: TBC | BU144: TBC | BV144: 0 | BW144: 0 | BX144: 0
A145: A145 | C145: TBC | D145: TBC | E145: TBC | F145: TBC | G145: TBC | H145: TBC | I145: 0 | J145: 0 | K145: 0 | N145: N145 | P145: TBC | Q145: TBC | R145: TBC | S145: TBC | T145: TBC | U145: TBC | V145: 0 | W145: 0 | X145: 0 | AA145: AA145 | AC145: TBC | AD145: TBC | AE145: TBC | AF145: TBC | AG145: TBC | AH145: TBC | AI145: 0 | AJ145: 0 | AK145: 0 | AN145: AN145 | AP145: TBC | AQ145: TBC | AR145: TBC | AS145: TBC | AT145: TBC | AU145: TBC | AV145: 0 | AW145: 0 | AX145: 0 | BA145: BA145 | BC145: TBC | BD145: TBC | BE145: TBC | BF145: TBC | BG145: TBC | BH145: TBC | BI145: 0 | BJ145: 0 | BK145: 0 | BN145: BN145 | BP145: TBC | BQ145: TBC | BR145: TBC | BS145: TBC | BT145: TBC | BU145: TBC | BV145: 0 | BW145: 0 | BX145: 0
A146: A146 | C146: TBC | D146: TBC | E146: TBC | F146: TBC | G146: TBC | H146: TBC | I146: 0 | J146: 0 | K146: 0 | N146: N146 | P146: TBC | Q146: TBC | R146: TBC | S146: TBC | T146: TBC | U146: TBC | V146: 0 | W146: 0 | X146: 0 | AA146: AA146 | AC146: TBC | AD146: TBC | AE146: TBC | AF146: TBC | AG146: TBC | AH146: TBC | AI146: 0 | AJ146: 0 | AK146: 0 | AN146: AN146 | AP146: TBC | AQ146: TBC | AR146: TBC | AS146: TBC | AT146: TBC | AU146: TBC | AV146: 0 | AW146: 0 | AX146: 0 | BA146: BA146 | BC146: TBC | BD146: TBC | BE146: TBC | BF146: TBC | BG146: TBC | BH146: TBC | BI146: 0 | BJ146: 0 | BK146: 0 | BN146: BN146 | BP146: TBC | BQ146: TBC | BR146: TBC | BS146: TBC | BT146: TBC | BU146: TBC | BV146: 0 | BW146: 0 | BX146: 0
A147: A147 | C147: TBC | D147: TBC | E147: TBC | F147: TBC | G147: TBC | H147: TBC | I147: 0 | J147: 0 | K147: 0 | N147: N147 | P147: TBC | Q147: TBC | R147: TBC | S147: TBC | T147: TBC | U147: TBC | V147: 0 | W147: 0 | X147: 0 | AA147: AA147 | AC147: TBC | AD147: TBC | AE147: TBC | AF147: TBC | AG147: TBC | AH147: TBC | AI147: 0 | AJ147: 0 | AK147: 0 | AN147: AN147 | AP147: TBC | AQ147: TBC | AR147: TBC | AS147: TBC | AT147: TBC | AU147: TBC | AV147: 0 | AW147: 0 | AX147: 0 | BA147: BA147 | BC147: TBC | BD147: TBC | BE147: TBC | BF147: TBC | BG147: TBC | BH147: TBC | BI147: 0 | BJ147: 0 | BK147: 0 | BN147: BN147 | BP147: TBC | BQ147: TBC | BR147: TBC | BS147: TBC | BT147: TBC | BU147: TBC | BV147: 0 | BW147: 0 | BX147: 0
A148: A148 | C148: TBC | D148: TBC | E148: TBC | F148: TBC | G148: TBC | H148: TBC | I148: 0 | J148: 0 | K148: 0 | N148: N148 | P148: TBC | Q148: TBC | R148: TBC | S148: TBC | T148: TBC | U148: TBC | V148: 0 | W148: 0 | X148: 0 | AA148: AA148 | AC148: TBC | AD148: TBC | AE148: TBC | AF148: TBC | AG148: TBC | AH148: TBC | AI148: 0 | AJ148: 0 | AK148: 0 | AN148: AN148 | AP148: TBC | AQ148: TBC | AR148: TBC | AS148: TBC | AT148: TBC | AU148: TBC | AV148: 0 | AW148: 0 | AX148: 0 | BA148: BA148 | BC148: TBC | BD148: TBC | BE148: TBC | BF148: TBC | BG148: TBC | BH148: TBC | BI148: 0 | BJ148: 0 | BK148: 0 | BN148: BN148 | BP148: TBC | BQ148: TBC | BR148: TBC | BS148: TBC | BT148: TBC | BU148: TBC | BV148: 0 | BW148: 0 | BX148: 0
A149: A149 | C149: TBC | D149: TBC | E149: TBC | F149: TBC | G149: TBC | H149: TBC | I149: 0 | J149: 0 | K149: 0 | N149: N149 | P149: TBC | Q149: TBC | R149: TBC | S149: TBC | T149: TBC | U149: TBC | V149: 0 | W149: 0 | X149: 0 | AA149: AA149 | AC149: TBC | AD149: TBC | AE149: TBC | AF149: TBC | AG149: TBC | AH149: TBC | AI149: 0 | AJ149: 0 | AK149: 0 | AN149: AN149 | AP149: TBC | AQ149: TBC | AR149: TBC | AS149: TBC | AT149: TBC | AU149: TBC | AV149: 0 | AW149: 0 | AX149: 0 | BA149: BA149 | BC149: TBC | BD149: TBC | BE149: TBC | BF149: TBC | BG149: TBC | BH149: TBC | BI149: 0 | BJ149: 0 | BK149: 0 | BN149: BN149 | BP149: TBC | BQ149: TBC | BR149: TBC | BS149: TBC | BT149: TBC | BU149: TBC | BV149: 0 | BW149: 0 | BX149: 0
A150: A150 | C150: TBC | D150: TBC | E150: TBC | F150: TBC | G150: TBC | H150: TBC | I150: 0 | J150: 0 | K150: 0 | N150: N150 | P150: TBC | Q150: TBC | R150: TBC | S150: TBC | T150: TBC | U150: TBC | V150: 0 | W150: 0 | X150: 0 | AA150: AA150 | AC150: TBC | AD150: TBC | AE150: TBC | AF150: TBC | AG150: TBC | AH150: TBC | AI150: 0 | AJ150: 0 | AK150: 0 | AN150: AN150 | AP150: TBC | AQ150: TBC | AR150: TBC | AS150: TBC | AT150: TBC | AU150: TBC | AV150: 0 | AW150: 0 | AX150: 0 | BA150: BA150 | BC150: TBC | BD150: TBC | BE150: TBC | BF150: TBC | BG150: TBC | BH150: TBC | BI150: 0 | BJ150: 0 | BK150: 0 | BN150: BN150 | BP150: TBC | BQ150: TBC | BR150: TBC | BS150: TBC | BT150: TBC | BU150: TBC | BV150: 0 | BW150: 0 | BX150: 0
A151: A151 | C151: TBC | D151: TBC | E151: TBC | F151: TBC | G151: TBC | H151: TBC | I151: 0 | J151: 0 | K151: 0 | N151: N151 | P151: TBC | Q151: TBC | R151: TBC | S151: TBC | T151: TBC | U151: TBC | V151: 0 | W151: 0 | X151: 0 | AA151: AA151 | AC151: TBC | AD151: TBC | AE151: TBC | AF151: TBC | AG151: TBC | AH151: TBC | AI151: 0 | AJ151: 0 | AK151: 0 | AN151: AN151 | AP151: TBC | AQ151: TBC | AR151: TBC | AS151: TBC | AT151: TBC | AU151: TBC | AV151: 0 | AW151: 0 | AX151: 0 | BA151: BA151 | BC151: TBC | BD151: TBC | BE151: TBC | BF151: TBC | BG151: TBC | BH151: TBC | BI151: 0 | BJ151: 0 | BK151: 0 | BN151: BN151 | BP151: TBC | BQ151: TBC | BR151: TBC | BS151: TBC | BT151: TBC | BU151: TBC | BV151: 0 | BW151: 0 | BX151: 0
A152: A152 | C152: TBC | D152: TBC | E152: TBC | F152: TBC | G152: TBC | H152: TBC | I152: 0 | J152: 0 | K152: 0 | N152: N152 | P152: TBC | Q152: TBC | R152: TBC | S152: TBC | T152: TBC | U152: TBC | V152: 0 | W152: 0 | X152: 0 | AA152: AA152 | AC152: TBC | AD152: TBC | AE152: TBC | AF152: TBC | AG152: TBC | AH152: TBC | AI152: 0 | AJ152: 0 | AK152: 0 | AN152: AN152 | AP152: TBC | AQ152: TBC | AR152: TBC | AS152: TBC | AT152: TBC | AU152: TBC | AV152: 0 | AW152: 0 | AX152: 0 | BA152: BA152 | BC152: TBC | BD152: TBC | BE152: TBC | BF152: TBC | BG152: TBC | BH152: TBC | BI152: 0 | BJ152: 0 | BK152: 0 | BN152: BN152 | BP152: TBC | BQ152: TBC | BR152: TBC | BS152: TBC | BT152: TBC | BU152: TBC | BV152: 0 | BW152: 0 | BX152: 0
A153: A153 | C153: TBC | D153: TBC | E153: TBC | F153: TBC | G153: TBC | H153: TBC | I153: 0 | J153: 0 | K153: 0 | N153: N153 | P153: TBC | Q153: TBC | R153: TBC | S153: TBC | T153: TBC | U153: TBC | V153: 0 | W153: 0 | X153: 0 | AA153: AA153 | AC153: TBC | AD153: TBC | AE153: TBC | AF153: TBC | AG153: TBC | AH153: TBC | AI153: 0 | AJ153: 0 | AK153: 0 | AN153: AN153 | AP153: TBC | AQ153: TBC | AR153: TBC | AS153: TBC | AT153: TBC | AU153: TBC | AV153: 0 | AW153: 0 | AX153: 0 | BA153: BA153 | BC153: TBC | BD153: TBC | BE153: TBC | BF153: TBC | BG153: TBC | BH153: TBC | BI153: 0 | BJ153: 0 | BK153: 0 | BN153: BN153 | BP153: TBC | BQ153: TBC | BR153: TBC | BS153: TBC | BT153: TBC | BU153: TBC | BV153: 0 | BW153: 0 | BX153: 0
A154: A154 | C154: TBC | D154: TBC | E154: TBC | F154: TBC | G154: TBC | H154: TBC | I154: 0 | J154: 0 | K154: 0 | N154: N154 | P154: TBC | Q154: TBC | R154: TBC | S154: TBC | T154: TBC | U154: TBC | V154: 0 | W154: 0 | X154: 0 | AA154: AA154 | AC154: TBC | AD154: TBC | AE154: TBC | AF154: TBC | AG154: TBC | AH154: TBC | AI154: 0 | AJ154: 0 | AK154: 0 | AN154: AN154 | AP154: TBC | AQ154: TBC | AR154: TBC | AS154: TBC | AT154: TBC | AU154: TBC | AV154: 0 | AW154: 0 | AX154: 0 | BA154: BA154 | BC154: TBC | BD154: TBC | BE154: TBC | BF154: TBC | BG154: TBC | BH154: TBC | BI154: 0 | BJ154: 0 | BK154: 0 | BN154: BN154 | BP154: TBC | BQ154: TBC | BR154: TBC | BS154: TBC | BT154: TBC | BU154: TBC | BV154: 0 | BW154: 0 | BX154: 0
A155: A155 | C155: TBC | D155: TBC | E155: TBC | F155: TBC | G155: TBC | H155: TBC | I155: 0 | J155: 0 | K155: 0 | N155: N155 | P155: TBC | Q155: TBC | R155: TBC | S155: TBC | T155: TBC | U155: TBC | V155: 0 | W155: 0 | X155: 0 | AA155: AA155 | AC155: TBC | AD155: TBC | AE155: TBC | AF155: TBC | AG155: TBC | AH155: TBC | AI155: 0 | AJ155: 0 | AK155: 0 | AN155: AN155 | AP155: TBC | AQ155: TBC | AR155: TBC | AS155: TBC | AT155: TBC | AU155: TBC | AV155: 0 | AW155: 0 | AX155: 0 | BA155: BA155 | BC155: TBC | BD155: TBC | BE155: TBC | BF155: TBC | BG155: TBC | BH155: TBC | BI155: 0 | BJ155: 0 | BK155: 0 | BN155: BN155 | BP155: TBC | BQ155: TBC | BR155: TBC | BS155: TBC | BT155: TBC | BU155: TBC | BV155: 0 | BW155: 0 | BX155: 0
A156: A156 | C156: TBC | D156: TBC | E156: TBC | F156: TBC | G156: TBC | H156: TBC | I156: =SUM(D156:H156) -> 0 | J156: 0 | K156: 0 | N156: N156 | P156: TBC | Q156: TBC | R156: TBC | S156: TBC | T156: TBC | U156: TBC | V156: =SUM(Q156:U156) -> 0 | W156: 0 | X156: 0 | AA156: AA156 | AC156: TBC | AD156: TBC | AE156: TBC | AF156: TBC | AG156: TBC | AH156: TBC | AI156: =SUM(AD156:AH156) -> 0 | AJ156: 0 | AK156: 0 | AN156: AN156 | AP156: TBC | AQ156: TBC | AR156: TBC | AS156: TBC | AT156: TBC | AU156: TBC | AV156: =SUM(AQ156:AU156) -> 0 | AW156: 0 | AX156: 0 | BA156: BA156 | BC156: TBC | BD156: TBC | BE156: TBC | BF156: TBC | BG156: TBC | BH156: TBC | BI156: =SUM(BD156:BH156) -> 0 | BJ156: 0 | BK156: 0 | BN156: BN156 | BP156: TBC | BQ156: TBC | BR156: TBC | BS156: TBC | BT156: TBC | BU156: TBC | BV156: =SUM(BQ156:BU156) -> 0 | BW156: 0 | BX156: 0
A157: A157 | C157: TBC | D157: TBC | E157: TBC | F157: TBC | G157: TBC | H157: TBC | I157: 0 | J157: 0 | K157: =IF(C157="TBC",0,(I157-J157)+(LARGE(D157:H157,1)/10000)+(LARGE(D157:H157,2)/10000000)) -> 0 | N157: N157 | P157: TBC | Q157: TBC | R157: TBC | S157: TBC | T157: TBC | U157: TBC | V157: 0 | W157: 0 | X157: =IF(P157="TBC",0,(V157-W157)+(LARGE(Q157:U157,1)/10000)+(LARGE(Q157:U157,2)/10000000)) -> 0 | AA157: AA157 | AC157: TBC | AD157: TBC | AE157: TBC | AF157: TBC | AG157: TBC | AH157: TBC | AI157: 0 | AJ157: 0 | AK157: =IF(AC157="TBC",0,(AI157-AJ157)+(LARGE(AD157:AH157,1)/10000)+(LARGE(AD157:AH157,2)/10000000)) -> 0 | AN157: AN157 | AP157: TBC | AQ157: TBC | AR157: TBC | AS157: TBC | AT157: TBC | AU157: TBC | AV157: 0 | AW157: 0 | AX157: =IF(AP157="TBC",0,(AV157-AW157)+(LARGE(AQ157:AU157,1)/10000)+(LARGE(AQ157:AU157,2)/10000000)) -> 0 | BA157: BA157 | BC157: TBC | BD157: TBC | BE157: TBC | BF157: TBC | BG157: TBC | BH157: TBC | BI157: 0 | BJ157: 0 | BK157: =IF(BC157="TBC",0,(BI157-BJ157)+(LARGE(BD157:BH157,1)/10000)+(LARGE(BD157:BH157,2)/10000000)) -> 0 | BN157: BN157 | BP157: TBC | BQ157: TBC | BR157: TBC | BS157: TBC | BT157: TBC | BU157: TBC | BV157: 0 | BW157: 0 | BX157: =IF(BP157="TBC",0,(BV157-BW157)+(LARGE(BQ157:BU157,1)/10000)+(LARGE(BQ157:BU157,2)/10000000)) -> 0
A158: A158 | C158: TBC | D158: TBC | E158: TBC | F158: TBC | G158: TBC | H158: TBC | I158: 0 | J158: =MIN(D158:H158) -> 0 | K158: 0 | N158: N158 | P158: TBC | Q158: TBC | R158: TBC | S158: TBC | T158: TBC | U158: TBC | V158: 0 | W158: =MIN(Q158:U158) -> 0 | X158: 0 | AA158: AA158 | AC158: TBC | AD158: TBC | AE158: TBC | AF158: TBC | AG158: TBC | AH158: TBC | AI158: 0 | AJ158: =MIN(AD158:AH158) -> 0 | AK158: 0 | AN158: AN158 | AP158: TBC | AQ158: TBC | AR158: TBC | AS158: TBC | AT158: TBC | AU158: TBC | AV158: 0 | AW158: =MIN(AQ158:AU158) -> 0 | AX158: 0 | BA158: BA158 | BC158: TBC | BD158: TBC | BE158: TBC | BF158: TBC | BG158: TBC | BH158: TBC | BI158: 0 | BJ158: =MIN(BD158:BH158) -> 0 | BK158: 0 | BN158: BN158 | BP158: TBC | BQ158: TBC | BR158: TBC | BS158: TBC | BT158: TBC | BU158: TBC | BV158: 0 | BW158: =MIN(BQ158:BU158) -> 0 | BX158: 0
A159: A159 | C159: TBC | D159: TBC | E159: TBC | F159: TBC | G159: TBC | H159: TBC | I159: 0 | J159: 0 | K159: 0 | N159: N159 | P159: TBC | Q159: TBC | R159: TBC | S159: TBC | T159: TBC | U159: TBC | V159: 0 | W159: 0 | X159: 0 | AA159: AA159 | AC159: TBC | AD159: TBC | AE159: TBC | AF159: TBC | AG159: TBC | AH159: TBC | AI159: 0 | AJ159: 0 | AK159: 0 | AN159: AN159 | AP159: TBC | AQ159: TBC | AR159: TBC | AS159: TBC | AT159: TBC | AU159: TBC | AV159: 0 | AW159: 0 | AX159: 0 | BA159: BA159 | BC159: TBC | BD159: TBC | BE159: TBC | BF159: TBC | BG159: TBC | BH159: TBC | BI159: 0 | BJ159: 0 | BK159: 0 | BN159: BN159 | BP159: TBC | BQ159: TBC | BR159: TBC | BS159: TBC | BT159: TBC | BU159: TBC | BV159: 0 | BW159: 0 | BX159: 0
A160: A160 | C160: TBC | D160: TBC | E160: TBC | F160: TBC | G160: TBC | H160: TBC | I160: 0 | J160: 0 | K160: 0 | N160: N160 | P160: TBC | Q160: TBC | R160: TBC | S160: TBC | T160: TBC | U160: TBC | V160: 0 | W160: 0 | X160: 0 | AA160: AA160 | AC160: TBC | AD160: TBC | AE160: TBC | AF160: TBC | AG160: TBC | AH160: TBC | AI160: 0 | AJ160: 0 | AK160: 0 | AN160: AN160 | AP160: TBC | AQ160: TBC | AR160: TBC | AS160: TBC | AT160: TBC | AU160: TBC | AV160: 0 | AW160: 0 | AX160: 0 | BA160: BA160 | BC160: TBC | BD160: TBC | BE160: TBC | BF160: TBC | BG160: TBC | BH160: TBC | BI160: 0 | BJ160: 0 | BK160: 0 | BN160: BN160 | BP160: TBC | BQ160: TBC | BR160: TBC | BS160: TBC | BT160: TBC | BU160: TBC | BV160: 0 | BW160: 0 | BX160: 0
A161: A161 | C161: TBC | D161: TBC | E161: TBC | F161: TBC | G161: TBC | H161: TBC | I161: 0 | J161: 0 | K161: 0 | N161: N161 | P161: TBC | Q161: TBC | R161: TBC | S161: TBC | T161: TBC | U161: TBC | V161: 0 | W161: 0 | X161: 0 | AA161: AA161 | AC161: TBC | AD161: TBC | AE161: TBC | AF161: TBC | AG161: TBC | AH161: TBC | AI161: 0 | AJ161: 0 | AK161: 0 | AN161: AN161 | AP161: TBC | AQ161: TBC | AR161: TBC | AS161: TBC | AT161: TBC | AU161: TBC | AV161: 0 | AW161: 0 | AX161: 0 | BA161: BA161 | BC161: TBC | BD161: TBC | BE161: TBC | BF161: TBC | BG161: TBC | BH161: TBC | BI161: 0 | BJ161: 0 | BK161: 0 | BN161: BN161 | BP161: TBC | BQ161: TBC | BR161: TBC | BS161: TBC | BT161: TBC | BU161: TBC | BV161: 0 | BW161: 0 | BX161: 0
A162: A162 | C162: TBC | D162: TBC | E162: TBC | F162: TBC | G162: TBC | H162: TBC | I162: 0 | J162: 0 | K162: 0 | N162: N162 | P162: TBC | Q162: TBC | R162: TBC | S162: TBC | T162: TBC | U162: TBC | V162: 0 | W162: 0 | X162: 0 | AA162: AA162 | AC162: TBC | AD162: TBC | AE162: TBC | AF162: TBC | AG162: TBC | AH162: TBC | AI162: 0 | AJ162: 0 | AK162: 0 | AN162: AN162 | AP162: TBC | AQ162: TBC | AR162: TBC | AS162: TBC | AT162: TBC | AU162: TBC | AV162: 0 | AW162: 0 | AX162: 0 | BA162: BA162 | BC162: TBC | BD162: TBC | BE162: TBC | BF162: TBC | BG162: TBC | BH162: TBC | BI162: 0 | BJ162: 0 | BK162: 0 | BN162: BN162 | BP162: TBC | BQ162: TBC | BR162: TBC | BS162: TBC | BT162: TBC | BU162: TBC | BV162: 0 | BW162: 0 | BX162: 0
A163: A163 | C163: TBC | D163: TBC | E163: TBC | F163: TBC | G163: TBC | H163: TBC | I163: 0 | J163: 0 | K163: 0 | N163: N163 | P163: TBC | Q163: TBC | R163: TBC | S163: TBC | T163: TBC | U163: TBC | V163: 0 | W163: 0 | X163: 0 | AA163: AA163 | AC163: TBC | AD163: TBC | AE163: TBC | AF163: TBC | AG163: TBC | AH163: TBC | AI163: 0 | AJ163: 0 | AK163: 0 | AN163: AN163 | AP163: TBC | AQ163: TBC | AR163: TBC | AS163: TBC | AT163: TBC | AU163: TBC | AV163: 0 | AW163: 0 | AX163: 0 | BA163: BA163 | BC163: TBC | BD163: TBC | BE163: TBC | BF163: TBC | BG163: TBC | BH163: TBC | BI163: 0 | BJ163: 0 | BK163: 0 | BN163: BN163 | BP163: TBC | BQ163: TBC | BR163: TBC | BS163: TBC | BT163: TBC | BU163: TBC | BV163: 0 | BW163: 0 | BX163: 0
A164: A164 | C164: TBC | D164: TBC | E164: TBC | F164: TBC | G164: TBC | H164: TBC | I164: 0 | J164: 0 | K164: 0 | N164: N164 | P164: TBC | Q164: TBC | R164: TBC | S164: TBC | T164: TBC | U164: TBC | V164: 0 | W164: 0 | X164: 0 | AA164: AA164 | AC164: TBC | AD164: TBC | AE164: TBC | AF164: TBC | AG164: TBC | AH164: TBC | AI164: 0 | AJ164: 0 | AK164: 0 | AN164: AN164 | AP164: TBC | AQ164: TBC | AR164: TBC | AS164: TBC | AT164: TBC | AU164: TBC | AV164: 0 | AW164: 0 | AX164: 0 | BA164: BA164 | BC164: TBC | BD164: TBC | BE164: TBC | BF164: TBC | BG164: TBC | BH164: TBC | BI164: 0 | BJ164: 0 | BK164: 0 | BN164: BN164 | BP164: TBC | BQ164: TBC | BR164: TBC | BS164: TBC | BT164: TBC | BU164: TBC | BV164: 0 | BW164: 0 | BX164: 0
A165: A165 | C165: TBC | D165: TBC | E165: TBC | F165: TBC | G165: TBC | H165: TBC | I165: 0 | J165: 0 | K165: 0 | N165: N165 | P165: TBC | Q165: TBC | R165: TBC | S165: TBC | T165: TBC | U165: TBC | V165: 0 | W165: 0 | X165: 0 | AA165: AA165 | AC165: TBC | AD165: TBC | AE165: TBC | AF165: TBC | AG165: TBC | AH165: TBC | AI165: 0 | AJ165: 0 | AK165: 0 | AN165: AN165 | AP165: TBC | AQ165: TBC | AR165: TBC | AS165: TBC | AT165: TBC | AU165: TBC | AV165: 0 | AW165: 0 | AX165: 0 | BA165: BA165 | BC165: TBC | BD165: TBC | BE165: TBC | BF165: TBC | BG165: TBC | BH165: TBC | BI165: 0 | BJ165: 0 | BK165: 0 | BN165: BN165 | BP165: TBC | BQ165: TBC | BR165: TBC | BS165: TBC | BT165: TBC | BU165: TBC | BV165: 0 | BW165: 0 | BX165: 0
A166: A166 | C166: TBC | D166: TBC | E166: TBC | F166: TBC | G166: TBC | H166: TBC | I166: 0 | J166: 0 | K166: 0 | N166: N166 | P166: TBC | Q166: TBC | R166: TBC | S166: TBC | T166: TBC | U166: TBC | V166: 0 | W166: 0 | X166: 0 | AA166: AA166 | AC166: TBC | AD166: TBC | AE166: TBC | AF166: TBC | AG166: TBC | AH166: TBC | AI166: 0 | AJ166: 0 | AK166: 0 | AN166: AN166 | AP166: TBC | AQ166: TBC | AR166: TBC | AS166: TBC | AT166: TBC | AU166: TBC | AV166: 0 | AW166: 0 | AX166: 0 | BA166: BA166 | BC166: TBC | BD166: TBC | BE166: TBC | BF166: TBC | BG166: TBC | BH166: TBC | BI166: 0 | BJ166: 0 | BK166: 0 | BN166: BN166 | BP166: TBC | BQ166: TBC | BR166: TBC | BS166: TBC | BT166: TBC | BU166: TBC | BV166: 0 | BW166: 0 | BX166: 0
A167: A167 | B167: 0 | C167: TBC | D167: TBC | E167: TBC | F167: TBC | G167: TBC | H167: TBC | I167: 0 | J167: 0 | K167: 0 | N167: N167 | O167: 0 | P167: TBC | Q167: TBC | R167: TBC | S167: TBC | T167: TBC | U167: TBC | V167: 0 | W167: 0 | X167: 0 | AA167: AA167 | AB167: 0 | AC167: TBC | AD167: TBC | AE167: TBC | AF167: TBC | AG167: TBC | AH167: TBC | AI167: 0 | AJ167: 0 | AK167: 0 | AN167: AN167 | AO167: 0 | AP167: TBC | AQ167: TBC | AR167: TBC | AS167: TBC | AT167: TBC | AU167: TBC | AV167: 0 | AW167: 0 | AX167: 0 | BA167: BA167 | BB167: 0 | BC167: TBC | BD167: TBC | BE167: TBC | BF167: TBC | BG167: TBC | BH167: TBC | BI167: 0 | BJ167: 0 | BK167: 0 | BN167: BN167 | BO167: 0 | BP167: TBC | BQ167: TBC | BR167: TBC | BS167: TBC | BT167: TBC | BU167: TBC | BV167: 0 | BW167: 0 | BX167: 0
B199: RBM Sort | O199: RBF Sort | AB199: RIM Sort | AO199: RIF Sort | BB199: RAM Sort | BO199: RAF Sort
A200: Tag | B200: Name | C200: College | D200: IV 1 | E200: IV 2 | F200: IV3 | G200: IV4 | H200: IV5 | I200: Total | J200: Lowest | K200: LEAGUE | N200: Tag | O200: Name | P200: College | Q200: IV 1 | R200: IV 2 | S200: IV3 | T200: IV4 | U200: IV5 | V200: Total | W200: Lowest | X200: LEAGUE | AA200: Tag | AB200: Name | AC200: College | AD200: IV 1 | AE200: IV 2 | AF200: IV3 | AG200: IV4 | AH200: IV5 | AI200: Total | AJ200: Lowest | AK200: LEAGUE | AN200: Tag | AO200: Name | AP200: College | AQ200: IV 1 | AR200: IV 2 | AS200: IV3 | AT200: IV4 | AU200: IV5 | AV200: Total | AW200: Lowest | AX200: LEAGUE | BA200: Tag | BB200: Name | BC200: College | BD200: IV 1 | BE200: IV 2 | BF200: IV3 | BG200: IV4 | BH200: IV5 | BI200: Total | BJ200: Lowest | BK200: LEAGUE | BN200: Tag | BO200: Name | BP200: College | BQ200: IV 1 | BR200: IV 2 | BS200: IV3 | BT200: IV4 | BU200: IV5 | BV200: Total | BW200: Lowest | BX200: LEAGUE
A201: A8 | B201: =VLOOKUP($A201,$A$8:$K$82,2,0) -> Domhnall Ò Póil | C201: =VLOOKUP($A201,$A$8:$K$82,3,0) -> MU | D201: =VLOOKUP($A201,$A$8:$K$82,4,0) -> 489 | E201: =VLOOKUP($A201,$A$8:$K$82,5,0) -> 460 | F201: =VLOOKUP($A201,$A$8:$K$82,6,0) -> 511 | G201: =VLOOKUP($A201,$A$8:$K$82,7,0) -> 468 | H201: =VLOOKUP($A201,$A$8:$K$82,8,0) -> 486 | I201: =VLOOKUP($A201,$A$8:$K$82,9,0) -> 2414 | J201: =VLOOKUP($A201,$A$8:$K$82,10,0) -> 460 | K201: =VLOOKUP($A201,$A$8:$K$82,11,0) -> 1954.051149 | N201: N8 | O201: =VLOOKUP($N201,$N$8:$X$82,2,0) -> Mary Aherne | P201: =VLOOKUP($N201,$N$8:$X$82,3,0) -> NUIG | Q201: =VLOOKUP($N201,$N$8:$X$82,4,0) -> 413 | R201: =VLOOKUP($N201,$N$8:$X$82,5,0) -> 343 | S201: =VLOOKUP($N201,$N$8:$X$82,6,0) -> 464 | T201: =VLOOKUP($N201,$N$8:$X$82,7,0) -> 400 | U201: =VLOOKUP($N201,$N$8:$X$82,8,0) -> 420 | V201: =VLOOKUP($N201,$N$8:$X$82,9,0) -> 2040 | W201: =VLOOKUP($N201,$N$8:$X$82,10,0) -> 343 | X201: =VLOOKUP($N201,$N$8:$X$82,11,0) -> 1697.046442 | AA201: AA8 | AB201: =VLOOKUP($AA201,$AA$8:$AK$82,2,0) -> See Qui Ren | AC201: =VLOOKUP($AA201,$AA$8:$AK$82,3,0) -> DKIT | AD201: =VLOOKUP($AA201,$AA$8:$AK$82,4,0) -> 427 | AE201: =VLOOKUP($AA201,$AA$8:$AK$82,5,0) -> 470 | AF201: =VLOOKUP($AA201,$AA$8:$AK$82,6,0) -> 448 | AG201: =VLOOKUP($AA201,$AA$8:$AK$82,7,0) -> 433 | AH201: =VLOOKUP($AA201,$AA$8:$AK$82,8,0) -> 453 | AI201: =VLOOKUP($AA201,$AA$8:$AK$82,9,0) -> 2231 | AJ201: =VLOOKUP($AA201,$AA$8:$AK$82,10,0) -> 427 | AK201: =VLOOKUP($AA201,$AA$8:$AK$82,11,0) -> 1804.047045 | AN201: AN8 | AO201: =VLOOKUP($AN201,$AN$8:$AX$82,2,0) -> Maria Jacob | AP201: =VLOOKUP($AN201,$AN$8:$AX$82,3,0) -> UCD | AQ201: =VLOOKUP($AN201,$AN$8:$AX$82,4,0) -> 439 | AR201: =VLOOKUP($AN201,$AN$8:$AX$82,5,0) -> 438 | AS201: =VLOOKUP($AN201,$AN$8:$AX$82,6,0) -> 425 | AT201: =VLOOKUP($AN201,$AN$8:$AX$82,7,0) -> 427 | AU201: =VLOOKUP($AN201,$AN$8:$AX$82,8,0) -> 404 | AV201: =VLOOKUP($AN201,$AN$8:$AX$82,9,0) -> 2133 | AW201: =VLOOKUP($AN201,$AN$8:$AX$82,10,0) -> 404 | AX201: =VLOOKUP($AN201,$AN$8:$AX$82,11,0) -> 1729.043944 | BA201: BA8 | BB201: =VLOOKUP($BA201,$BA$8:$BK$82,2,0) -> Yeo Eng Jet | BC201: =VLOOKUP($BA201,$BA$8:$BK$82,3,0) -> DKIT | BD201: =VLOOKUP($BA201,$BA$8:$BK$82,4,0) -> 514 | BE201: =VLOOKUP($BA201,$BA$8:$BK$82,5,0) -> 527 | BF201: =VLOOKUP($BA201,$BA$8:$BK$82,6,0) -> 507 | BG201: =VLOOKUP($BA201,$BA$8:$BK$82,7,0) -> 520 | BH201: =VLOOKUP($BA201,$BA$8:$BK$82,8,0) -> 540 | BI201: =VLOOKUP($BA201,$BA$8:$BK$82,9,0) -> 2608 | BJ201: =VLOOKUP($BA201,$BA$8:$BK$82,10,0) -> 507 | BK201: =VLOOKUP($BA201,$BA$8:$BK$82,11,0) -> 2101.054053 | BN201: BN8 | BO201: =VLOOKUP($BN201,$BN$8:$BX$82,2,0) -> Ines Rauch | BP201: =VLOOKUP($BN201,$BN$8:$BX$82,3,0) -> UCD | BQ201: =VLOOKUP($BN201,$BN$8:$BX$82,4,0) -> 439 | BR201: =VLOOKUP($BN201,$BN$8:$BX$82,5,0) -> 481 | BS201: =VLOOKUP($BN201,$BN$8:$BX$82,6,0) -> 473 | BT201: =VLOOKUP($BN201,$BN$8:$BX$82,7,0) -> 517 | BU201: =VLOOKUP($BN201,$BN$8:$BX$82,8,0) -> 516 | BV201: =VLOOKUP($BN201,$BN$8:$BX$82,9,0) -> 2426 | BW201: =VLOOKUP($BN201,$BN$8:$BX$82,10,0) -> 439 | BX201: =VLOOKUP($BN201,$BN$8:$BX$82,11,0) -> 1987.051752
A202: A9 | B202: =VLOOKUP($A202,$A$8:$K$82,2,0) -> Conor Winters | C202: =VLOOKUP($A202,$A$8:$K$82,3,0) -> DKIT | D202: =VLOOKUP($A202,$A$8:$K$82,4,0) -> 455 | E202: =VLOOKUP($A202,$A$8:$K$82,5,0) -> 0 | F202: =VLOOKUP($A202,$A$8:$K$82,6,0) -> 488 | G202: =VLOOKUP($A202,$A$8:$K$82,7,0) -> 486 | H202: =VLOOKUP($A202,$A$8:$K$82,8,0) -> 508 | I202: =VLOOKUP($A202,$A$8:$K$82,9,0) -> 1937 | J202: =VLOOKUP($A202,$A$8:$K$82,10,0) -> 0 | K202: =VLOOKUP($A202,$A$8:$K$82,11,0) -> 1937.050849 | N202: N9 | O202: Eunice Kiew Ying Sing | P202: DKIT | Q202: 501 | R202: 0 | S202: 486 | T202: 509 | U202: 463 | V202: 1959 | W202: 0 | X202: 1959.05095 | AA202: AA9 | AB202: =VLOOKUP($AA202,$AA$8:$AK$82,2,0) -> Charles O'Dowd | AC202: =VLOOKUP($AA202,$AA$8:$AK$82,3,0) -> UCD | AD202: =VLOOKUP($AA202,$AA$8:$AK$82,4,0) -> 423 | AE202: =VLOOKUP($AA202,$AA$8:$AK$82,5,0) -> 414 | AF202: =VLOOKUP($AA202,$AA$8:$AK$82,6,0) -> 482 | AG202: =VLOOKUP($AA202,$AA$8:$AK$82,7,0) -> 435 | AH202: =VLOOKUP($AA202,$AA$8:$AK$82,8,0) -> 465 | AI202: =VLOOKUP($AA202,$AA$8:$AK$82,9,0) -> 2219 | AJ202: =VLOOKUP($AA202,$AA$8:$AK$82,10,0) -> 414 | AK202: =VLOOKUP($AA202,$AA$8:$AK$82,11,0) -> 1805.048247 | AN202: AN9 | AO202: =VLOOKUP($AN202,$AN$8:$AX$82,2,0) -> Victoria Shen Fen Tan | AP202: =VLOOKUP($AN202,$AN$8:$AX$82,3,0) -> DKIT | AQ202: =VLOOKUP($AN202,$AN$8:$AX$82,4,0) -> 380 | AR202: =VLOOKUP($AN202,$AN$8:$AX$82,5,0) -> 319 | AS202: =VLOOKUP($AN202,$AN$8:$AX$82,6,0) -> 375 | AT202: =VLOOKUP($AN202,$AN$8:$AX$82,7,0) -> 460 | AU202: =VLOOKUP($AN202,$AN$8:$AX$82,8,0) -> 486 | AV202: =VLOOKUP($AN202,$AN$8:$AX$82,9,0) -> 2020 | AW202: =VLOOKUP($AN202,$AN$8:$AX$82,10,0) -> 319 | AX202: =VLOOKUP($AN202,$AN$8:$AX$82,11,0) -> 1701.048646 | BA202: BA9 | BB202: =VLOOKUP($BA202,$BA$8:$BK$82,2,0) -> Carl McCaffery | BC202: =VLOOKUP($BA202,$BA$8:$BK$82,3,0) -> UCD | BD202: =VLOOKUP($BA202,$BA$8:$BK$82,4,0) -> 522 | BE202: =VLOOKUP($BA202,$BA$8:$BK$82,5,0) -> 517 | BF202: =VLOOKUP($BA202,$BA$8:$BK$82,6,0) -> 529 | BG202: =VLOOKUP($BA202,$BA$8:$BK$82,7,0) -> 528 | BH202: =VLOOKUP($BA202,$BA$8:$BK$82,8,0) -> 503 | BI202: =VLOOKUP($BA202,$BA$8:$BK$82,9,0) -> 2599 | BJ202: =VLOOKUP($BA202,$BA$8:$BK$82,10,0) -> 503 | BK202: =VLOOKUP($BA202,$BA$8:$BK$82,11,0) -> 2096.052953 | BN202: BN9 | BO202: =VLOOKUP($BN202,$BN$8:$BX$82,2,0) -> Jen Daly | BP202: =VLOOKUP($BN202,$BN$8:$BX$82,3,0) -> DIT | BQ202: =VLOOKUP($BN202,$BN$8:$BX$82,4,0) -> 409 | BR202: =VLOOKUP($BN202,$BN$8:$BX$82,5,0) -> 0 | BS202: =VLOOKUP($BN202,$BN$8:$BX$82,6,0) -> 482 | BT202: =VLOOKUP($BN202,$BN$8:$BX$82,7,0) -> 498 | BU202: =VLOOKUP($BN202,$BN$8:$BX$82,8,0) -> 481 | BV202: =VLOOKUP($BN202,$BN$8:$BX$82,9,0) -> 1870 | BW202: =VLOOKUP($BN202,$BN$8:$BX$82,10,0) -> 0 | BX202: =VLOOKUP($BN202,$BN$8:$BX$82,11,0) -> 1870.049848
A203: A10 | B203: Chris Riddell | C203: NUIG | D203: 342 | E203: 386 | F203: 328 | G203: 434 | H203: 314 | I203: 1804 | J203: 314 | K203: 1490.043439 | N203: N10 | O203: Helen Lacey | P203: NUIG | Q203: 325 | R203: 380 | S203: 424 | T203: 355 | U203: 404 | V203: 1888 | W203: 325 | X203: 1563.04244 | AA203: AA10 | AB203: Frank Stafford | AC203: UL | AD203: 440 | AE203: 432 | AF203: 448 | AG203: 432 | AH203: 433 | AI203: 2185 | AJ203: 432 | AK203: 1753.044844 | AN203: AN10 | AO203: Ciara O'Sullivan | AP203: DCU | AQ203: 0 | AR203: 443 | AS203: 472 | AT203: 411 | AU203: 469 | AV203: 1795 | AW203: 0 | AX203: 1795.047247 | BA203: BA10 | BB203: Diego Coyle Diez | BC203: MU | BD203: 523 | BE203: 486 | BF203: 530 | BG203: 512 | BH203: 524 | BI203: 2575 | BJ203: 486 | BK203: 2089.053052 | BN203: BN10 | BO203: Jocelyn Yee | BP203: DKIT | BQ203: 0 | BR203: 438 | BS203: 0 | BT203: 453 | BU203: 456 | BV203: 1347 | BW203: 0 | BX203: 1347.045645
A204: A11 | B204: Cormac O'Callaghan | C204: UCC | D204: 397 | E204: 0 | F204: 453 | G204: 452 | H204: 466 | I204: 1768 | J204: 0 | K204: 1768.046645 | N204: N11 | O204: Asia Tayyab | P204: GMIT | Q204: 330 | R204: 283 | S204: 376 | T204: 407 | U204: 278 | V204: 1674 | W204: 278 | X204: 1396.040738 | AA204: AA11 | AB204: Wai Hong Keet | AC204: DKIT | AD204: 416 | AE204: 460 | AF204: 455 | AG204: 423 | AH204: 410 | AI204: 2164 | AJ204: 410 | AK204: 1754.046045 | AN204: AN11 | AO204: Sinead Naughton | AP204: GMITC | AQ204: 387 | AR204: 0 | AS204: 397 | AT204: 372 | AU204: 436 | AV204: 1592 | AW204: 0 | AX204: 1592.04364 | BA204: BA11 | BB204: Brendan Forde | BC204: DIT | BD204: 509 | BE204: 506 | BF204: 515 | BG204: 513 | BH204: 512 | BI204: 2555 | BJ204: 506 | BK204: 2049.051551 | BN204: BN11 | BO204: Rachael Foley | BP204: NCAD | BQ204: 0 | BR204: 0 | BS204: 515 | BT204: 0 | BU204: 522 | BV204: 1037 | BW204: 0 | BX204: 1037.052252
A205: A12 | B205: Chua Wei Kwan | C205: DKIT | D205: 439 | E205: 0 | F205: 405 | G205: 464 | H205: 454 | I205: 1762 | J205: 0 | K205: 1762.046445 | N205: N12 | O205: Jane Meehan | P205: DKIT | Q205: 467 | R205: 0 | S205: 393 | T205: 424 | U205: 376 | V205: 1660 | W205: 0 | X205: 1660.046742 | AA205: AA12 | AB205: Kristian Bongo | AC205: DIT | AD205: 381 | AE205: 412 | AF205: 440 | AG205: 405 | AH205: 457 | AI205: 2095 | AJ205: 381 | AK205: 1714.045744 | AN205: AN12 | AO205: Aishling Dignam | AP205: DCU | AQ205: 0 | AR205: 346 | AS205: 314 | AT205: 359 | AU205: 398 | AV205: 1417 | AW205: 0 | AX205: 1417.039836 | BA205: BA12 | BB205: Hugh Farrell | BC205: MU | BD205: 495 | BE205: 495 | BF205: 509 | BG205: 482 | BH205: 502 | BI205: 2483 | BJ205: 482 | BK205: 2001.05095 | BN205: BN12 | BO205: 0 | BP205: TBC | BQ205: TBC | BR205: TBC | BS205: TBC | BT205: TBC | BU205: TBC | BV205: 0 | BW205: 0 | BX205: 0
A206: A13 | B206: Connor Newman | C206: MU | D206: 0 | E206: 398 | F206: 440 | G206: 424 | H206: 451 | I206: 1713 | J206: 0 | K206: 1713.045144 | N206: N13 | O206: Laury Despres | P206: MU | Q206: 0 | R206: 386 | S206: 355 | T206: 394 | U206: 452 | V206: 1587 | W206: 0 | X206: 1587.045239 | AA206: AA13 | AB206: Joshua Tracey | AC206: DIT | AD206: 409 | AE206: 378 | AF206: 427 | AG206: 411 | AH206: 385 | AI206: 2010 | AJ206: 378 | AK206: 1632.042741 | AN206: AN13 | AO206: Katie Doyle | AP206: UCD | AQ206: 435 | AR206: 0 | AS206: 0 | AT206: 436 | AU206: 464 | AV206: 1335 | AW206: 0 | AX206: 1335.046444 | BA206: BA13 | BB206: Kevin Kok Zhi Hao | BC206: DKIT | BD206: 499 | BE206: 510 | BF206: 458 | BG206: 495 | BH206: 496 | BI206: 2458 | BJ206: 458 | BK206: 2000.05105 | BN206: BN13 | BO206: 0 | BP206: TBC | BQ206: TBC | BR206: TBC | BS206: TBC | BT206: TBC | BU206: TBC | BV206: 0 | BW206: 0 | BX206: 0
A207: A14 | B207: Sim Jia Cheng | C207: DKIT | D207: 450 | E207: 0 | F207: 437 | G207: 427 | H207: 349 | I207: 1663 | J207: 0 | K207: 1663.045044 | N207: N14 | O207: Zoe Nicholson | P207: DKIT | Q207: 442 | R207: 0 | S207: 353 | T207: 341 | U207: 372 | V207: 1508 | W207: 0 | X207: 1508.044237 | AA207: AA14 | AB207: Paul Beirne | AC207: UCD | AD207: 454 | AE207: 426 | AF207: 440 | AG207: 0 | AH207: 500 | AI207: 1820 | AJ207: 0 | AK207: 1820.050045 | AN207: AN14 | AO207: Ciara Fergus | AP207: UL | AQ207: 335 | AR207: 352 | AS207: 277 | AT207: 306 | AU207: 0 | AV207: 1270 | AW207: 0 | AX207: 1270.035234 | BA207: BA14 | BB207: James Byrne | BC207: DIT | BD207: 477 | BE207: 497 | BF207: 479 | BG207: 481 | BH207: 510 | BI207: 2444 | BJ207: 477 | BK207: 1967.05105 | BN207: BN14 | BO207: 0 | BP207: TBC | BQ207: TBC | BR207: TBC | BS207: TBC | BT207: TBC | BU207: TBC | BV207: 0 | BW207: 0 | BX207: 0
A208: A15 | B208: Sam Gibson | C208: MU | D208: 0 | E208: 360 | F208: 466 | G208: 395 | H208: 430 | I208: 1651 | J208: 0 | K208: 1651.046643 | N208: N15 | O208: Siun Collins | P208: DIT | Q208: 423 | R208: 0 | S208: 341 | T208: 346 | U208: 374 | V208: 1484 | W208: 0 | X208: 1484.042337 | AA208: AA15 | AB208: Conor McCann | AC208: GMIT | AD208: 435 | AE208: 256 | AF208: 401 | AG208: 398 | AH208: 324 | AI208: 1814 | AJ208: 256 | AK208: 1558.04354 | AN208: AN15 | AO208: Emma Goodwin | AP208: DCU | AQ208: 0 | AR208: 375 | AS208: 290 | AT208: 311 | AU208: 0 | AV208: 976 | AW208: 0 | AX208: 976.0375311 | BA208: BA15 | BB208: Aidan Darcy | BC208: IT Tallaght | BD208: 401 | BE208: 488 | BF208: 525 | BG208: 473 | BH208: 503 | BI208: 2390 | BJ208: 401 | BK208: 1989.05255 | BN208: BN15 | BO208: 0 | BP208: TBC | BQ208: TBC | BR208: TBC | BS208: TBC | BT208: TBC | BU208: TBC | BV208: 0 | BW208: 0 | BX208: 0
A209: A16 | B209: Conor O'Brien | C209: UL | D209: 310 | E209: 287 | F209: 405 | G209: 294 | H209: 300 | I209: 1596 | J209: 287 | K209: 1309.040531 | N209: N16 | O209: Carla Reinhardt | P209: UCC | Q209: 266 | R209: 0 | S209: 424 | T209: 399 | U209: 392 | V209: 1481 | W209: 0 | X209: 1481.04244 | AA209: AA16 | AB209: Brendan McManus | AC209: DCU | AD209: 471 | AE209: 443 | AF209: 0 | AG209: 402 | AH209: 496 | AI209: 1812 | AJ209: 0 | AK209: 1812.049647 | AN209: AN16 | AO209: Julia Obara | AP209: NUIG | AQ209: 354 | AR209: 0 | AS209: 357 | AT209: 91 | AU209: 0 | AV209: 802 | AW209: 0 | AX209: 802.0357354 | BA209: BA16 | BB209: Patrick Molloy | BC209: NUIG | BD209: 410 | BE209: 430 | BF209: 507 | BG209: 483 | BH209: 516 | BI209: 2346 | BJ209: 410 | BK209: 1936.051651 | BN209: BN16 | BO209: 0 | BP209: TBC | BQ209: TBC | BR209: TBC | BS209: TBC | BT209: TBC | BU209: TBC | BV209: 0 | BW209: 0 | BX209: 0
A210: A17 | B210: Aaron Wong Siu Zhen | C210: DKIT | D210: 393 | E210: 423 | F210: 279 | G210: 0 | H210: 294 | I210: 1389 | J210: 0 | K210: 1389.042339 | N210: N17 | O210: =VLOOKUP($N210,$N$8:$X$82,2,0) -> Lynda Miller | P210: =VLOOKUP($N210,$N$8:$X$82,3,0) -> GMIT | Q210: =VLOOKUP($N210,$N$8:$X$82,4,0) -> 0 | R210: =VLOOKUP($N210,$N$8:$X$82,5,0) -> 114 | S210: =VLOOKUP($N210,$N$8:$X$82,6,0) -> 459 | T210: =VLOOKUP($N210,$N$8:$X$82,7,0) -> 253 | U210: =VLOOKUP($N210,$N$8:$X$82,8,0) -> 444 | V210: =VLOOKUP($N210,$N$8:$X$82,9,0) -> 1270 | W210: =VLOOKUP($N210,$N$8:$X$82,10,0) -> 0 | X210: =VLOOKUP($N210,$N$8:$X$82,11,0) -> 1270.045944 | AA210: AA17 | AB210: Mark Sherlock | AC210: GMIT | AD210: 393 | AE210: 371 | AF210: 311 | AG210: 358 | AH210: 338 | AI210: 1771 | AJ210: 311 | AK210: 1460.039337 | AN210: AN17 | AO210: Clarke-Ng Choy-Ping | AP210: DUAC | AQ210: 0 | AR210: 367 | AS210: 0 | AT210: 407 | AU210: 0 | AV210: 774 | AW210: 0 | AX210: 774.0407367 | BA210: BA17 | BB210: Dale Burke | BC210: GMIT | BD210: 524 | BE210: 488 | BF210: 517 | BG210: 0 | BH210: 501 | BI210: 2030 | BJ210: 0 | BK210: 2030.052452 | BN210: BN17 | BO210: 0 | BP210: TBC | BQ210: TBC | BR210: TBC | BS210: TBC | BT210: TBC | BU210: TBC | BV210: 0 | BW210: 0 | BX210: 0
A211: A18 | B211: Liam Higgins | C211: UL | D211: 0 | E211: 317 | F211: 340 | G211: 375 | H211: 353 | I211: 1385 | J211: 0 | K211: 1385.037535 | N211: N18 | O211: Bruna Mota | P211: UCD | Q211: 0 | R211: 0 | S211: 424 | T211: 327 | U211: 395 | V211: 1146 | W211: 0 | X211: 1146.04244 | AA211: AA18 | AB211: Aaron Downes | AC211: GMIT | AD211: 0 | AE211: 392 | AF211: 391 | AG211: 388 | AH211: 330 | AI211: 1501 | AJ211: 0 | AK211: 1501.039239 | AN211: AN18 | AO211: Eve Kearney | AP211: DUAC | AQ211: 0 | AR211: 273 | AS211: 0 | AT211: 0 | AU211: 380 | AV211: 653 | AW211: 0 | AX211: 653.0380273 | BA211: BA18 | BB211: Jordan McCord | BC211: UU | BD211: 0 | BE211: 418 | BF211: 505 | BG211: 478 | BH211: 496 | BI211: 1897 | BJ211: 0 | BK211: 1897.05055 | BN211: BN18 | BO211: 0 | BP211: TBC | BQ211: TBC | BR211: TBC | BS211: TBC | BT211: TBC | BU211: TBC | BV211: 0 | BW211: 0 | BX211: 0
A212: A19 | B212: Brendan O'Sullivan | C212: UCC | D212: 483 | E212: 0 | F212: 0 | G212: 447 | H212: 413 | I212: 1343 | J212: 0 | K212: 1343.048345 | N212: N19 | O212: Judith Bell | P212: UU | Q212: 0 | R212: 239 | S212: 378 | T212: 376 | U212: 134 | V212: 1127 | W212: 0 | X212: 1127.037838 | AA212: AA19 | AB212: Philip Early | AC212: DCU | AD212: 360 | AE212: 373 | AF212: 0 | AG212: 372 | AH212: 344 | AI212: 1449 | AJ212: 0 | AK212: 1449.037337 | AN212: AN19 | AO212: 0 | AP212: TBC | AQ212: TBC | AR212: TBC | AS212: TBC | AT212: TBC | AU212: TBC | AV212: 0 | AW212: 0 | AX212: 0 | BA212: BA19 | BB212: Eric Moore | BC212: NUIG | BD212: 399 | BE212: 380 | BF212: 0 | BG212: 322 | BH212: 384 | BI212: 1485 | BJ212: 0 | BK212: 1485.039938 | BN212: BN19 | BO212: 0 | BP212: TBC | BQ212: TBC | BR212: TBC | BS212: TBC | BT212: TBC | BU212: TBC | BV212: 0 | BW212: 0 | BX212: 0
A213: A20 | B213: Brian Swayne | C213: UCC | D213: 378 | E213: 0 | F213: 448 | G213: 455 | H213: 0 | I213: 1281 | J213: 0 | K213: 1281.045545 | N213: N20 | O213: Fiona Maguire | P213: UCD | Q213: 0 | R213: 0 | S213: 246 | T213: 281 | U213: 371 | V213: 898 | W213: 0 | X213: 898.0371281 | AA213: AA20 | AB213: Leo Byrne | AC213: ITC | AD213: 332 | AE213: 306 | AF213: 275 | AG213: 281 | AH213: 233 | AI213: 1427 | AJ213: 233 | AK213: 1194.033231 | AN213: AN20 | AO213: 0 | AP213: TBC | AQ213: TBC | AR213: TBC | AS213: TBC | AT213: TBC | AU213: TBC | AV213: 0 | AW213: 0 | AX213: 0 | BA213: BA20 | BB213: Dáire Healy | BC213: DUAC | BD213: 0 | BE213: 389 | BF213: 0 | BG213: 379 | BH213: 410 | BI213: 1178 | BJ213: 0 | BK213: 1178.041039 | BN213: BN20 | BO213: 0 | BP213: TBC | BQ213: TBC | BR213: TBC | BS213: TBC | BT213: TBC | BU213: TBC | BV213: 0 | BW213: 0 | BX213: 0
A214: A21 | B214: Lorenzo Diago | C214: DCU | D214: 0 | E214: 480 | F214: 371 | G214: 420 | H214: 0 | I214: 1271 | J214: 0 | K214: 1271.048042 | N214: N21 | O214: Minni Hiltunen | P214: DIT | Q214: 0 | R214: 0 | S214: 0 | T214: 432 | U214: 389 | V214: 821 | W214: 0 | X214: 821.0432389 | AA214: AA21 | AB214: James Burke | AC214: NUIG | AD214: 438 | AE214: 465 | AF214: 0 | AG214: 0 | AH214: 459 | AI214: 1362 | AJ214: 0 | AK214: 1362.046546 | AN214: AN21 | AO214: 0 | AP214: TBC | AQ214: TBC | AR214: TBC | AS214: TBC | AT214: TBC | AU214: TBC | AV214: 0 | AW214: 0 | AX214: 0 | BA214: BA21 | BB214: Gary Kelly | BC214: DCU | BD214: 484 | BE214: 480 | BF214: 0 | BG214: 0 | BH214: 0 | BI214: 964 | BJ214: 0 | BK214: 964.048448 | BN214: BN21 | BO214: 0 | BP214: TBC | BQ214: TBC | BR214: TBC | BS214: TBC | BT214: TBC | BU214: TBC | BV214: 0 | BW214: 0 | BX214: 0
A215: A22 | B215: Wai Jian Keet | C215: DKIT | D215: 0 | E215: 441 | F215: 0 | G215: 360 | H215: 464 | I215: 1265 | J215: 0 | K215: 1265.046444 | N215: N22 | O215: Bruna Duarte | P215: DIT | Q215: 0 | R215: 0 | S215: 0 | T215: 303 | U215: 421 | V215: 724 | W215: 0 | X215: 724.0421303 | AA215: AA22 | AB215: Luke Blake | AC215: UL | AD215: 282 | AE215: 324 | AF215: 332 | AG215: 331 | AH215: 0 | AI215: 1269 | AJ215: 0 | AK215: 1269.033233 | AN215: AN22 | AO215: 0 | AP215: TBC | AQ215: TBC | AR215: TBC | AS215: TBC | AT215: TBC | AU215: TBC | AV215: 0 | AW215: 0 | AX215: 0 | BA215: BA22 | BB215: Oskar Ronan | BC215: DUAC | BD215: 0 | BE215: 464 | BF215: 0 | BG215: 403 | BH215: 0 | BI215: 867 | BJ215: 0 | BK215: 867.0464403 | BN215: BN22 | BO215: 0 | BP215: TBC | BQ215: TBC | BR215: TBC | BS215: TBC | BT215: TBC | BU215: TBC | BV215: 0 | BW215: 0 | BX215: 0
A216: A23 | B216: Lim Cheng Bin | C216: DKIT | D216: 443 | E216: 0 | F216: 154 | G216: 249 | H216: 296 | I216: 1142 | J216: 0 | K216: 1142.04433 | N216: N23 | O216: Maria Borck | P216: UL | Q216: 239 | R216: 0 | S216: 231 | T216: 0 | U216: 232 | V216: 702 | W216: 0 | X216: 702.0239232 | AA216: AA23 | AB216: Yuji Okubo | AC216: DCU | AD216: 458 | AE216: 432 | AF216: 0 | AG216: 0 | AH216: 0 | AI216: 890 | AJ216: 0 | AK216: 890.0458432 | AN216: AN23 | AO216: 0 | AP216: TBC | AQ216: TBC | AR216: TBC | AS216: TBC | AT216: TBC | AU216: TBC | AV216: 0 | AW216: 0 | AX216: 0 | BA216: BA23 | BB216: John Hally | BC216: UL | BD216: 0 | BE216: 436 | BF216: 429 | BG216: 0 | BH216: 0 | BI216: 865 | BJ216: 0 | BK216: 865.0436429 | BN216: BN23 | BO216: 0 | BP216: TBC | BQ216: TBC | BR216: TBC | BS216: TBC | BT216: TBC | BU216: TBC | BV216: 0 | BW216: 0 | BX216: 0
A217: A24 | B217: Darragh Kellegher | C217: UL | D217: 400 | E217: 331 | F217: 0 | G217: 308 | H217: 0 | I217: 1039 | J217: 0 | K217: 1039.040033 | N217: N24 | O217: Laura Ciesa | P217: UL | Q217: 0 | R217: 0 | S217: 0 | T217: 0 | U217: 453 | V217: 453 | W217: 0 | X217: 453.0453 | AA217: AA24 | AB217: Kelvin Yee | AC217: DKIT | AD217: 0 | AE217: 412 | AF217: 0 | AG217: 428 | AH217: 0 | AI217: 840 | AJ217: 0 | AK217: 840.0428412 | AN217: AN24 | AO217: 0 | AP217: TBC | AQ217: TBC | AR217: TBC | AS217: TBC | AT217: TBC | AU217: TBC | AV217: 0 | AW217: 0 | AX217: 0 | BA217: BA24 | BB217: Darren Wallace | BC217: NUIG | BD217: 0 | BE217: 0 | BF217: 569 | BG217: 0 | BH217: 0 | BI217: 569 | BJ217: 0 | BK217: 569.0569 | BN217: BN24 | BO217: 0 | BP217: TBC | BQ217: TBC | BR217: TBC | BS217: TBC | BT217: TBC | BU217: TBC | BV217: 0 | BW217: 0 | BX217: 0
A218: A25 | B218: Nathan Tracey | C218: DIT | D218: 0 | E218: 0 | F218: 0 | G218: 515 | H218: 414 | I218: 929 | J218: 0 | K218: 929.0515414 | N218: N25 | O218: Vanessa Flood | P218: DIT | Q218: 0 | R218: 0 | S218: 0 | T218: 444 | U218: 0 | V218: 444 | W218: 0 | X218: 444.0444 | AA218: AA25 | AB218: Andy Canavan | AC218: DCU | AD218: 429 | AE218: 400 | AF218: 0 | AG218: 0 | AH218: 0 | AI218: 829 | AJ218: 0 | AK218: 829.04294 | AN218: AN25 | AO218: 0 | AP218: TBC | AQ218: TBC | AR218: TBC | AS218: TBC | AT218: TBC | AU218: TBC | AV218: 0 | AW218: 0 | AX218: 0 | BA218: BA25 | BB218: Simon Henleywillis | BC218: UCC | BD218: 471 | BE218: 0 | BF218: 0 | BG218: 0 | BH218: 0 | BI218: 471 | BJ218: 0 | BK218: 471.0471 | BN218: BN25 | BO218: 0 | BP218: TBC | BQ218: TBC | BR218: TBC | BS218: TBC | BT218: TBC | BU218: TBC | BV218: 0 | BW218: 0 | BX218: 0
A219: A26 | B219: Andrew Neville | C219: UU | D219: 0 | E219: 0 | F219: 380 | G219: 365 | H219: 0 | I219: 745 | J219: 0 | K219: 745.0380365 | N219: N26 | O219: Anna Bergert | P219: DKIT | Q219: 0 | R219: 383 | S219: 0 | T219: 0 | U219: 0 | V219: 383 | W219: 0 | X219: 383.0383 | AA219: AA26 | AB219: Chris O'Leary | AC219: UCC | AD219: 0 | AE219: 0 | AF219: 0 | AG219: 390 | AH219: 411 | AI219: 801 | AJ219: 0 | AK219: 801.041139 | AN219: AN26 | AO219: 0 | AP219: TBC | AQ219: TBC | AR219: TBC | AS219: TBC | AT219: TBC | AU219: TBC | AV219: 0 | AW219: 0 | AX219: 0 | BA219: BA26 | BB219: Mark Walsh | BC219: NUIG | BD219: 0 | BE219: 0 | BF219: 0 | BG219: 0 | BH219: 441 | BI219: 441 | BJ219: 0 | BK219: 441.0441 | BN219: BN26 | BO219: 0 | BP219: TBC | BQ219: TBC | BR219: TBC | BS219: TBC | BT219: TBC | BU219: TBC | BV219: 0 | BW219: 0 | BX219: 0
A220: A27 | B220: Shane Fitzgerald | C220: UCC | D220: 0 | E220: 0 | F220: 325 | G220: 0 | H220: 400 | I220: 725 | J220: 0 | K220: 725.0400325 | N220: N27 | O220: Zahratulfatin Mohd Mahfoz | P220: RCSI | Q220: 382 | R220: 0 | S220: 0 | T220: 0 | U220: 0 | V220: 382 | W220: 0 | X220: 382.0382 | AA220: AA27 | AB220: James Greer | AC220: UCD | AD220: 0 | AE220: 376 | AF220: 0 | AG220: 0 | AH220: 423 | AI220: 799 | AJ220: 0 | AK220: 799.0423376 | AN220: AN27 | AO220: 0 | AP220: TBC | AQ220: TBC | AR220: TBC | AS220: TBC | AT220: TBC | AU220: TBC | AV220: 0 | AW220: 0 | AX220: 0 | BA220: BA27 | BB220: Christo Pretorious | BC220: DUAC | BD220: 0 | BE220: 290 | BF220: 0 | BG220: 0 | BH220: 0 | BI220: 290 | BJ220: 0 | BK220: 290.029 | BN220: BN27 | BO220: 0 | BP220: TBC | BQ220: TBC | BR220: TBC | BS220: TBC | BT220: TBC | BU220: TBC | BV220: 0 | BW220: 0 | BX220: 0
A221: A28 | B221: Kyle Rosso | C221: UCD | D221: 0 | E221: 0 | F221: 374 | G221: 0 | H221: 349 | I221: 723 | J221: 0 | K221: 723.0374349 | N221: N28 | O221: Ozeane Zeis | P221: UL | Q221: 0 | R221: 0 | S221: 0 | T221: 0 | U221: 288 | V221: 288 | W221: 0 | X221: 288.0288 | AA221: AA28 | AB221: Issabele Mayumi | AC221: DCU | AD221: 343 | AE221: 0 | AF221: 0 | AG221: 338 | AH221: 0 | AI221: 681 | AJ221: 0 | AK221: 681.0343338 | AN221: AN28 | AO221: 0 | AP221: TBC | AQ221: TBC | AR221: TBC | AS221: TBC | AT221: TBC | AU221: TBC | AV221: 0 | AW221: 0 | AX221: 0 | BA221: BA28 | BB221: 0 | BC221: TBC | BD221: TBC | BE221: TBC | BF221: TBC | BG221: TBC | BH221: TBC | BI221: 0 | BJ221: 0 | BK221: 0 | BN221: BN28 | BO221: 0 | BP221: TBC | BQ221: TBC | BR221: TBC | BS221: TBC | BT221: TBC | BU221: TBC | BV221: 0 | BW221: 0 | BX221: 0
A222: A29 | B222: Jack Deane | C222: NUIG | D222: 379 | E222: 306 | F222: 0 | G222: 0 | H222: 0 | I222: 685 | J222: 0 | K222: 685.0379306 | N222: N29 | O222: Marta Jurczak | P222: DUAC | Q222: 0 | R222: 0 | S222: 0 | T222: 0 | U222: 284 | V222: 284 | W222: 0 | X222: 284.0284 | AA222: AA29 | AB222: Brian Conroy | AC222: UCC | AD222: 0 | AE222: 0 | AF222: 293 | AG222: 0 | AH222: 366 | AI222: 659 | AJ222: 0 | AK222: 659.0366293 | AN222: AN29 | AO222: 0 | AP222: TBC | AQ222: TBC | AR222: TBC | AS222: TBC | AT222: TBC | AU222: TBC | AV222: 0 | AW222: 0 | AX222: 0 | BA222: BA29 | BB222: 0 | BC222: TBC | BD222: TBC | BE222: TBC | BF222: TBC | BG222: TBC | BH222: TBC | BI222: 0 | BJ222: 0 | BK222: 0 | BN222: BN29 | BO222: 0 | BP222: TBC | BQ222: TBC | BR222: TBC | BS222: TBC | BT222: TBC | BU222: TBC | BV222: 0 | BW222: 0 | BX222: 0
A223: A30 | B223: Yusuf Fauzi | C223: UCC | D223: 0 | E223: 0 | F223: 194 | G223: 0 | H223: 339 | I223: 533 | J223: 0 | K223: 533.0339194 | N223: N30 | O223: Nor Fatin Farhani | P223: RCSI | Q223: 0 | R223: 0 | S223: 267 | T223: 0 | U223: 0 | V223: 267 | W223: 0 | X223: 267.0267 | AA223: AA30 | AB223: Kieran Cullinane | AC223: NUIG | AD223: 482 | AE223: 0 | AF223: 0 | AG223: 0 | AH223: 0 | AI223: 482 | AJ223: 0 | AK223: 482.0482 | AN223: AN30 | AO223: 0 | AP223: TBC | AQ223: TBC | AR223: TBC | AS223: TBC | AT223: TBC | AU223: TBC | AV223: 0 | AW223: 0 | AX223: 0 | BA223: BA30 | BB223: 0 | BC223: TBC | BD223: TBC | BE223: TBC | BF223: TBC | BG223: TBC | BH223: TBC | BI223: 0 | BJ223: 0 | BK223: 0 | BN223: BN30 | BO223: 0 | BP223: TBC | BQ223: TBC | BR223: TBC | BS223: TBC | BT223: TBC | BU223: TBC | BV223: 0 | BW223: 0 | BX223: 0
A224: A31 | B224: Sven Radatz | C224: DKIT | D224: 0 | E224: 479 | F224: 0 | G224: 0 | H224: 0 | I224: 479 | J224: 0 | K224: 479.0479 | N224: N31 | O224: Martha Chege | P224: UU | Q224: 0 | R224: 0 | S224: 0 | T224: 201 | U224: 0 | V224: 201 | W224: 0 | X224: 201.0201 | AA224: AA31 | AB224: Sean Sinnott | AC224: UL | AD224: 0 | AE224: 385 | AF224: 0 | AG224: 0 | AH224: 0 | AI224: 385 | AJ224: 0 | AK224: 385.0385 | AN224: AN31 | AO224: 0 | AP224: TBC | AQ224: TBC | AR224: TBC | AS224: TBC | AT224: TBC | AU224: TBC | AV224: 0 | AW224: 0 | AX224: 0 | BA224: BA31 | BB224: 0 | BC224: TBC | BD224: TBC | BE224: TBC | BF224: TBC | BG224: TBC | BH224: TBC | BI224: 0 | BJ224: 0 | BK224: 0 | BN224: BN31 | BO224: 0 | BP224: TBC | BQ224: TBC | BR224: TBC | BS224: TBC | BT224: TBC | BU224: TBC | BV224: 0 | BW224: 0 | BX224: 0
A225: A32 | B225: Devon Long | C225: UL | D225: 473 | E225: 0 | F225: 0 | G225: 0 | H225: 0 | I225: 473 | J225: 0 | K225: 473.0473 | N225: N32 | O225: Apoorva Kashyap | P225: UU | Q225: 0 | R225: 0 | S225: 0 | T225: 200 | U225: 0 | V225: 200 | W225: 0 | X225: 200.02 | AA225: AA32 | AB225: Muhammad Hakim Mohd Nasir | AC225: RCSI | AD225: 0 | AE225: 0 | AF225: 311 | AG225: 0 | AH225: 0 | AI225: 311 | AJ225: 0 | AK225: 311.0311 | AN225: AN32 | AO225: 0 | AP225: TBC | AQ225: TBC | AR225: TBC | AS225: TBC | AT225: TBC | AU225: TBC | AV225: 0 | AW225: 0 | AX225: 0 | BA225: BA32 | BB225: 0 | BC225: TBC | BD225: TBC | BE225: TBC | BF225: TBC | BG225: TBC | BH225: TBC | BI225: 0 | BJ225: 0 | BK225: 0 | BN225: BN32 | BO225: 0 | BP225: TBC | BQ225: TBC | BR225: TBC | BS225: TBC | BT225: TBC | BU225: TBC | BV225: 0 | BW225: 0 | BX225: 0
A226: A33 | B226: Jonas Seesing | C226: NUIG | D226: 470 | E226: 0 | F226: 0 | G226: 0 | H226: 0 | I226: 470 | J226: 0 | K226: 470.047 | N226: N33 | O226: Raja Nur Iyliani | P226: RCSI | Q226: 0 | R226: 0 | S226: 190 | T226: 0 | U226: 0 | V226: 190 | W226: 0 | X226: 190.019 | AA226: AA33 | AB226: DJ Roche | AC226: MU | AD226: 0 | AE226: 306 | AF226: 0 | AG226: 0 | AH226: 0 | AI226: 306 | AJ226: 0 | AK226: 306.0306 | AN226: AN33 | AO226: 0 | AP226: TBC | AQ226: TBC | AR226: TBC | AS226: TBC | AT226: TBC | AU226: TBC | AV226: 0 | AW226: 0 | AX226: 0 | BA226: BA33 | BB226: 0 | BC226: TBC | BD226: TBC | BE226: TBC | BF226: TBC | BG226: TBC | BH226: TBC | BI226: 0 | BJ226: 0 | BK226: 0 | BN226: BN33 | BO226: 0 | BP226: TBC | BQ226: TBC | BR226: TBC | BS226: TBC | BT226: TBC | BU226: TBC | BV226: 0 | BW226: 0 | BX226: 0
A227: A34 | B227: Artem Semenov | C227: UL | D227: 0 | E227: 0 | F227: 0 | G227: 0 | H227: 405 | I227: 405 | J227: 0 | K227: 405.0405 | N227: N34 | O227: Nadia Rodgers | P227: UU | Q227: 0 | R227: 0 | S227: 0 | T227: 187 | U227: 0 | V227: 187 | W227: 0 | X227: 187.0187 | AA227: AA34 | AB227: Shane O'Sulliven | AC227: UCC | AD227: 0 | AE227: 0 | AF227: 0 | AG227: 303 | AH227: 0 | AI227: 303 | AJ227: 0 | AK227: 303.0303 | AN227: AN34 | AO227: 0 | AP227: TBC | AQ227: TBC | AR227: TBC | AS227: TBC | AT227: TBC | AU227: TBC | AV227: 0 | AW227: 0 | AX227: 0 | BA227: BA34 | BB227: 0 | BC227: TBC | BD227: TBC | BE227: TBC | BF227: TBC | BG227: TBC | BH227: TBC | BI227: 0 | BJ227: 0 | BK227: 0 | BN227: BN34 | BO227: 0 | BP227: TBC | BQ227: TBC | BR227: TBC | BS227: TBC | BT227: TBC | BU227: TBC | BV227: 0 | BW227: 0 | BX227: 0
A228: A35 | B228: Gordon Cowpar | C228: UCD | D228: 0 | E228: 398 | F228: 0 | G228: 0 | H228: 0 | I228: 398 | J228: 0 | K228: 398.0398 | N228: N35 | O228: Bronwyn Berkeley | P228: DUAC | Q228: 0 | R228: 121 | S228: 0 | T228: 0 | U228: 0 | V228: 121 | W228: 0 | X228: 121.0121 | AA228: AA35 | AB228: Conor Moran | AC228: UL | AD228: 0 | AE228: 257 | AF228: 0 | AG228: 0 | AH228: 0 | AI228: 257 | AJ228: 0 | AK228: 257.0257 | AN228: AN35 | AO228: 0 | AP228: TBC | AQ228: TBC | AR228: TBC | AS228: TBC | AT228: TBC | AU228: TBC | AV228: 0 | AW228: 0 | AX228: 0 | BA228: BA35 | BB228: 0 | BC228: TBC | BD228: TBC | BE228: TBC | BF228: TBC | BG228: TBC | BH228: TBC | BI228: 0 | BJ228: 0 | BK228: 0 | BN228: BN35 | BO228: 0 | BP228: TBC | BQ228: TBC | BR228: TBC | BS228: TBC | BT228: TBC | BU228: TBC | BV228: 0 | BW228: 0 | BX228: 0
A229: A36 | B229: Aonghus Condren | C229: UCD | D229: 0 | E229: 387 | F229: 0 | G229: 0 | H229: 0 | I229: 387 | J229: 0 | K229: 387.0387 | N229: N36 | O229: Maeve Ruan | P229: UCD | Q229: 0 | R229: 0 | S229: 0 | T229: 70 | U229: 0 | V229: 70 | W229: 0 | X229: 70.007 | AA229: AA36 | AB229: Cian Butler | AC229: DCU | AD229: 224 | AE229: 0 | AF229: 0 | AG229: 0 | AH229: 0 | AI229: 224 | AJ229: 0 | AK229: 224.0224 | AN229: AN36 | AO229: 0 | AP229: TBC | AQ229: TBC | AR229: TBC | AS229: TBC | AT229: TBC | AU229: TBC | AV229: 0 | AW229: 0 | AX229: 0 | BA229: BA36 | BB229: 0 | BC229: TBC | BD229: TBC | BE229: TBC | BF229: TBC | BG229: TBC | BH229: TBC | BI229: 0 | BJ229: 0 | BK229: 0 | BN229: BN36 | BO229: 0 | BP229: TBC | BQ229: TBC | BR229: TBC | BS229: TBC | BT229: TBC | BU229: TBC | BV229: 0 | BW229: 0 | BX229: 0
A230: A37 | B230: Ahmad Nasree M Khairuddin Lim | C230: RCSI | D230: 372 | E230: 0 | F230: 0 | G230: 0 | H230: 0 | I230: 372 | J230: 0 | K230: 372.0372 | N230: N37 | O230: 0 | P230: TBC | Q230: TBC | R230: TBC | S230: TBC | T230: TBC | U230: TBC | V230: 0 | W230: 0 | X230: 0 | AA230: AA37 | AB230: Eoin Hartigan | AC230: UL | AD230: 0 | AE230: 98 | AF230: 0 | AG230: 0 | AH230: 0 | AI230: 98 | AJ230: 0 | AK230: 98.0098 | AN230: AN37 | AO230: 0 | AP230: TBC | AQ230: TBC | AR230: TBC | AS230: TBC | AT230: TBC | AU230: TBC | AV230: 0 | AW230: 0 | AX230: 0 | BA230: BA37 | BB230: 0 | BC230: TBC | BD230: TBC | BE230: TBC | BF230: TBC | BG230: TBC | BH230: TBC | BI230: 0 | BJ230: 0 | BK230: 0 | BN230: BN37 | BO230: 0 | BP230: TBC | BQ230: TBC | BR230: TBC | BS230: TBC | BT230: TBC | BU230: TBC | BV230: 0 | BW230: 0 | BX230: 0
A231: A38 | B231: Thijs Siebt | C231: NUIG | D231: 0 | E231: 371 | F231: 0 | G231: 0 | H231: 0 | I231: 371 | J231: 0 | K231: 371.0371 | N231: N38 | O231: 0 | P231: TBC | Q231: TBC | R231: TBC | S231: TBC | T231: TBC | U231: TBC | V231: 0 | W231: 0 | X231: 0 | AA231: AA38 | AB231: 0 | AC231: TBC | AD231: TBC | AE231: TBC | AF231: TBC | AG231: TBC | AH231: TBC | AI231: 0 | AJ231: 0 | AK231: 0 | AN231: AN38 | AO231: 0 | AP231: TBC | AQ231: TBC | AR231: TBC | AS231: TBC | AT231: TBC | AU231: TBC | AV231: 0 | AW231: 0 | AX231: 0 | BA231: BA38 | BB231: 0 | BC231: TBC | BD231: TBC | BE231: TBC | BF231: TBC | BG231: TBC | BH231: TBC | BI231: 0 | BJ231: 0 | BK231: 0 | BN231: BN38 | BO231: 0 | BP231: TBC | BQ231: TBC | BR231: TBC | BS231: TBC | BT231: TBC | BU231: TBC | BV231: 0 | BW231: 0 | BX231: 0
A232: A39 | B232: Liam Doyle | C232: UL | D232: 0 | E232: 358 | F232: 0 | G232: 0 | H232: 0 | I232: 358 | J232: 0 | K232: 358.0358 | N232: N39 | O232: 0 | P232: TBC | Q232: TBC | R232: TBC | S232: TBC | T232: TBC | U232: TBC | V232: 0 | W232: 0 | X232: 0 | AA232: AA39 | AB232: 0 | AC232: TBC | AD232: TBC | AE232: TBC | AF232: TBC | AG232: TBC | AH232: TBC | AI232: 0 | AJ232: 0 | AK232: 0 | AN232: AN39 | AO232: 0 | AP232: TBC | AQ232: TBC | AR232: TBC | AS232: TBC | AT232: TBC | AU232: TBC | AV232: 0 | AW232: 0 | AX232: 0 | BA232: BA39 | BB232: 0 | BC232: TBC | BD232: TBC | BE232: TBC | BF232: TBC | BG232: TBC | BH232: TBC | BI232: 0 | BJ232: 0 | BK232: 0 | BN232: BN39 | BO232: 0 | BP232: TBC | BQ232: TBC | BR232: TBC | BS232: TBC | BT232: TBC | BU232: TBC | BV232: 0 | BW232: 0 | BX232: 0
A233: A40 | B233: =VLOOKUP($A233,$A$8:$K$82,2,0) -> Jordan McMullan | C233: =VLOOKUP($A233,$A$8:$K$82,3,0) -> UU | D233: =VLOOKUP($A233,$A$8:$K$82,4,0) -> 0 | E233: =VLOOKUP($A233,$A$8:$K$82,5,0) -> 0 | F233: =VLOOKUP($A233,$A$8:$K$82,6,0) -> 0 | G233: =VLOOKUP($A233,$A$8:$K$82,7,0) -> 349 | H233: =VLOOKUP($A233,$A$8:$K$82,8,0) -> 0 | I233: =VLOOKUP($A233,$A$8:$K$82,9,0) -> 349 | J233: =VLOOKUP($A233,$A$8:$K$82,10,0) -> 0 | K233: =VLOOKUP($A233,$A$8:$K$82,11,0) -> 349.0349 | N233: N40 | O233: 0 | P233: TBC | Q233: TBC | R233: TBC | S233: TBC | T233: TBC | U233: TBC | V233: 0 | W233: 0 | X233: 0 | AA233: AA40 | AB233: 0 | AC233: TBC | AD233: TBC | AE233: TBC | AF233: TBC | AG233: TBC | AH233: TBC | AI233: 0 | AJ233: 0 | AK233: 0 | AN233: AN40 | AO233: 0 | AP233: TBC | AQ233: TBC | AR233: TBC | AS233: TBC | AT233: TBC | AU233: TBC | AV233: 0 | AW233: 0 | AX233: 0 | BA233: BA40 | BB233: 0 | BC233: TBC | BD233: TBC | BE233: TBC | BF233: TBC | BG233: TBC | BH233: TBC | BI233: 0 | BJ233: 0 | BK233: 0 | BN233: BN40 | BO233: 0 | BP233: TBC | BQ233: TBC | BR233: TBC | BS233: TBC | BT233: TBC | BU233: TBC | BV233: 0 | BW233: 0 | BX233: 0
A234: A41 | B234: Thomas Joyce | C234: UCD | D234: 0 | E234: 339 | F234: 0 | G234: 0 | H234: 0 | I234: 339 | J234: 0 | K234: 339.0339 | N234: N41 | O234: 0 | P234: TBC | Q234: TBC | R234: TBC | S234: TBC | T234: TBC | U234: TBC | V234: 0 | W234: 0 | X234: 0 | AA234: AA41 | AB234: 0 | AC234: TBC | AD234: TBC | AE234: TBC | AF234: TBC | AG234: TBC | AH234: TBC | AI234: 0 | AJ234: 0 | AK234: 0 | AN234: AN41 | AO234: 0 | AP234: TBC | AQ234: TBC | AR234: TBC | AS234: TBC | AT234: TBC | AU234: TBC | AV234: 0 | AW234: 0 | AX234: 0 | BA234: BA41 | BB234: 0 | BC234: TBC | BD234: TBC | BE234: TBC | BF234: TBC | BG234: TBC | BH234: TBC | BI234: 0 | BJ234: 0 | BK234: 0 | BN234: BN41 | BO234: 0 | BP234: TBC | BQ234: TBC | BR234: TBC | BS234: TBC | BT234: TBC | BU234: TBC | BV234: 0 | BW234: 0 | BX234: 0
A235: A42 | B235: Azeem Mohd Elias | C235: UCD | D235: 335 | E235: 0 | F235: 0 | G235: 0 | H235: 0 | I235: 335 | J235: 0 | K235: 335.0335 | N235: N42 | O235: 0 | P235: TBC | Q235: TBC | R235: TBC | S235: TBC | T235: TBC | U235: TBC | V235: 0 | W235: 0 | X235: 0 | AA235: AA42 | AB235: 0 | AC235: TBC | AD235: TBC | AE235: TBC | AF235: TBC | AG235: TBC | AH235: TBC | AI235: 0 | AJ235: 0 | AK235: 0 | AN235: AN42 | AO235: 0 | AP235: TBC | AQ235: TBC | AR235: TBC | AS235: TBC | AT235: TBC | AU235: TBC | AV235: 0 | AW235: 0 | AX235: 0 | BA235: BA42 | BB235: 0 | BC235: TBC | BD235: TBC | BE235: TBC | BF235: TBC | BG235: TBC | BH235: TBC | BI235: 0 | BJ235: 0 | BK235: 0 | BN235: BN42 | BO235: 0 | BP235: TBC | BQ235: TBC | BR235: TBC | BS235: TBC | BT235: TBC | BU235: TBC | BV235: 0 | BW235: 0 | BX235: 0
A236: A43 | B236: Hugh Carrol | C236: DIT | D236: 0 | E236: 0 | F236: 0 | G236: 0 | H236: 285 | I236: 285 | J236: 0 | K236: 285.0285 | N236: N43 | O236: 0 | P236: TBC | Q236: TBC | R236: TBC | S236: TBC | T236: TBC | U236: TBC | V236: 0 | W236: 0 | X236: 0 | AA236: AA43 | AB236: 0 | AC236: TBC | AD236: TBC | AE236: TBC | AF236: TBC | AG236: TBC | AH236: TBC | AI236: 0 | AJ236: 0 | AK236: 0 | AN236: AN43 | AO236: 0 | AP236: TBC | AQ236: TBC | AR236: TBC | AS236: TBC | AT236: TBC | AU236: TBC | AV236: 0 | AW236: 0 | AX236: 0 | BA236: BA43 | BB236: 0 | BC236: TBC | BD236: TBC | BE236: TBC | BF236: TBC | BG236: TBC | BH236: TBC | BI236: 0 | BJ236: 0 | BK236: 0 | BN236: BN43 | BO236: 0 | BP236: TBC | BQ236: TBC | BR236: TBC | BS236: TBC | BT236: TBC | BU236: TBC | BV236: 0 | BW236: 0 | BX236: 0
A237: A44 | B237: Casey Patmore | C237: UCD | D237: 0 | E237: 261 | F237: 0 | G237: 0 | H237: 0 | I237: 261 | J237: 0 | K237: 261.0261 | N237: N44 | O237: 0 | P237: TBC | Q237: TBC | R237: TBC | S237: TBC | T237: TBC | U237: TBC | V237: 0 | W237: 0 | X237: 0 | AA237: AA44 | AB237: 0 | AC237: TBC | AD237: TBC | AE237: TBC | AF237: TBC | AG237: TBC | AH237: TBC | AI237: 0 | AJ237: 0 | AK237: 0 | AN237: AN44 | AO237: 0 | AP237: TBC | AQ237: TBC | AR237: TBC | AS237: TBC | AT237: TBC | AU237: TBC | AV237: 0 | AW237: 0 | AX237: 0 | BA237: BA44 | BB237: 0 | BC237: TBC | BD237: TBC | BE237: TBC | BF237: TBC | BG237: TBC | BH237: TBC | BI237: 0 | BJ237: 0 | BK237: 0 | BN237: BN44 | BO237: 0 | BP237: TBC | BQ237: TBC | BR237: TBC | BS237: TBC | BT237: TBC | BU237: TBC | BV237: 0 | BW237: 0 | BX237: 0
A238: A45 | B238: Ian Nora | C238: UL | D238: 249 | E238: 0 | F238: 0 | G238: 0 | H238: 0 | I238: 249 | J238: 0 | K238: 249.0249 | N238: N45 | O238: 0 | P238: TBC | Q238: TBC | R238: TBC | S238: TBC | T238: TBC | U238: TBC | V238: 0 | W238: 0 | X238: 0 | AA238: AA45 | AB238: 0 | AC238: TBC | AD238: TBC | AE238: TBC | AF238: TBC | AG238: TBC | AH238: TBC | AI238: 0 | AJ238: 0 | AK238: 0 | AN238: AN45 | AO238: 0 | AP238: TBC | AQ238: TBC | AR238: TBC | AS238: TBC | AT238: TBC | AU238: TBC | AV238: 0 | AW238: 0 | AX238: 0 | BA238: BA45 | BB238: 0 | BC238: TBC | BD238: TBC | BE238: TBC | BF238: TBC | BG238: TBC | BH238: TBC | BI238: 0 | BJ238: 0 | BK238: 0 | BN238: BN45 | BO238: 0 | BP238: TBC | BQ238: TBC | BR238: TBC | BS238: TBC | BT238: TBC | BU238: TBC | BV238: 0 | BW238: 0 | BX238: 0
... 114 more rows

Sheet RBM
A1: =$D$7 -> MU
A2: MU | B2: Male Beginner Recurve | E2: Host Club | J2: =$D$7 -> MU | K2: Scores | N2: =$D$7 -> MU | AH2: =AH7 -> Domhnall Ò Póil | AT2: A1,A2,J2,N2,B5,K5,A82
E3: =Entries!K6 -> UL IV | F3: =Entries!K7 -> DkIT IV | G3: =Entries!K8 -> GMIT IV | H3: =Entries!K9 -> DCU IV | I3: =Entries!K10 -> NUIG IV | K3: Total | L3: Lowest | M3: League
B5: =$D$7 -> MU | K5: MU
C6: Name | D6: College | E6: =Entries!K6 -> UL IV | F6: =Entries!K7 -> DkIT IV | G6: =Entries!K8 -> GMIT IV | H6: =Entries!K9 -> DCU IV | I6: =Entries!K10 -> NUIG IV | K6: Total | L6: Lowest | M6: League total | AT6: $K$7:$M$7,$B$7:$I$7,$B$2
B7: 1 | C7: =Singles!B201 -> Domhnall Ò Póil | D7: =Singles!C201 -> MU | E7: =Singles!D201 -> 489 | F7: =Singles!E201 -> 460 | G7: =Singles!F201 -> 511 | H7: =Singles!G201 -> 468 | I7: =Singles!H201 -> 486 | K7: =Singles!I201 -> 2414 | L7: =Singles!J201 -> 460 | M7: =Singles!K201 -> 1954.051149 | AH7: =C7 -> Domhnall Ò Póil
B8: 2 | C8: =Singles!B202 -> Conor Winters | D8: =Singles!C202 -> DKIT | E8: =Singles!D202 -> 455 | F8: =Singles!E202 -> 0 | G8: =Singles!F202 -> 488 | H8: =Singles!G202 -> 486 | I8: =Singles!H202 -> 508 | K8: =Singles!I202 -> 1937 | L8: =Singles!J202 -> 0 | M8: =Singles!K202 -> 1937.050849 | AT8: DCU CONDITIONAL FORMATTING FORMULA > | AU8: OR($AH7=Tables!$B$131,$AH7=Tables!$B$132,$AH7=Tables!$B$133,$AH7=Tables!$B$134,$AH7=Tables!$B$135,$AH7=Tables!$B$136,$AH7=Tables!$B$137,$AH7=Tables!$B$138,$AH7=Tables!$B$139,$AH7=Tables!$B$140,$AH7=Tables!$B$141,$AH7=Tables!$B$142,$AH7=Tables!$B$143,$AH7=Tables!$B$144,$AH7=Tables!$B$145,$AH7=Tables!$B$146,$AH7=Tables!$B$147,$AH7=Tables!$B$148,$AH7=Tables!$B$149,$AH7=Tables!$B$150,$AH7=Tables!$B$151)
B9: 3 | C9: =Singles!B204 -> Cormac O'Callaghan | D9: =Singles!C204 -> UCC | E9: =Singles!D204 -> 397 | F9: =Singles!E204 -> 0 | G9: =Singles!F204 -> 453 | H9: =Singles!G204 -> 452 | I9: =Singles!H204 -> 466 | K9: =Singles!I204 -> 1768 | L9: =Singles!J204 -> 0 | M9: =Singles!K204 -> 1768.046645 | AT9: DIT CONDITIONAL FORMATTING FORMULA > | AU9: OR($AH7=Tables!$B$156,$AH7=Tables!$B$157,$AH7=Tables!$B$158,$AH7=Tables!$B$159,$AH7=Tables!$B$160,$AH7=Tables!$B$161,$AH7=Tables!$B$162,$AH7=Tables!$B$163,$AH7=Tables!$B$164,$AH7=Tables!$B$165,$AH7=Tables!$B$166,$AH7=Tables!$B$167,$AH7=Tables!$B$168,$AH7=Tables!$B$169,$AH7=Tables!$B$170,$AH7=Tables!$B$171,$AH7=Tables!$B$172,$AH7=Tables!$B$173,$AH7=Tables!$B$174,$AH7=Tables!$B$175,$AH7=Tables!$B$176)
B10: 4 | C10: =Singles!B205 -> Chua Wei Kwan | D10: =Singles!C205 -> DKIT | E10: =Singles!D205 -> 439 | F10: =Singles!E205 -> 0 | G10: =Singles!F205 -> 405 | H10: =Singles!G205 -> 464 | I10: =Singles!H205 -> 454 | K10: =Singles!I205 -> 1762 | L10: =Singles!J205 -> 0 | M10: =Singles!K205 -> 1762.046445 | AT10: DKIT CONDITIONAL FORMATTING FORMULA > | AU10: OR($AH7=Tables!$B$181,$AH7=Tables!$B$182,$AH7=Tables!$B$183,$AH7=Tables!$B$184,$AH7=Tables!$B$185,$AH7=Tables!$B$186,$AH7=Tables!$B$187,$AH7=Tables!$B$188,$AH7=Tables!$B$189,$AH7=Tables!$B$190,$AH7=Tables!$B$191,$AH7=Tables!$B$192,$AH7=Tables!$B$193,$AH7=Tables!$B$194,$AH7=Tables!$B$195,$AH7=Tables!$B$196,$AH7=Tables!$B$197,$AH7=Tables!$B$198,$AH7=Tables!$B$199,$AH7=Tables!$B$200,$AH7=Tables!$B$201)
B11: 5 | C11: =Singles!B206 -> Connor Newman | D11: =Singles!C206 -> MU | E11: =Singles!D206 -> 0 | F11: =Singles!E206 -> 398 | G11: =Singles!F206 -> 440 | H11: =Singles!G206 -> 424 | I11: =Singles!H206 -> 451 | K11: =Singles!I206 -> 1713 | L11: =Singles!J206 -> 0 | M11: =Singles!K206 -> 1713.045144 | AT11: DUAC CONDITIONAL FORMATTING FORMULA > | AU11: OR($AH7=Tables!$B$206,$AH7=Tables!$B$207,$AH7=Tables!$B$208,$AH7=Tables!$B$209,$AH7=Tables!$B$210,$AH7=Tables!$B$211,$AH7=Tables!$B$212,$AH7=Tables!$B$213,$AH7=Tables!$B$214,$AH7=Tables!$B$215,$AH7=Tables!$B$216,$AH7=Tables!$B$217,$AH7=Tables!$B$218,$AH7=Tables!$B$219,$AH7=Tables!$B$220,$AH7=Tables!$B$221,$AH7=Tables!$B$222,$AH7=Tables!$B$223,$AH7=Tables!$B$224,$AH7=Tables!$B$225,$AH7=Tables!$B$226)
B12: 6 | C12: =Singles!B207 -> Sim Jia Cheng | D12: =Singles!C207 -> DKIT | E12: =Singles!D207 -> 450 | F12: =Singles!E207 -> 0 | G12: =Singles!F207 -> 437 | H12: =Singles!G207 -> 427 | I12: =Singles!H207 -> 349 | K12: =Singles!I207 -> 1663 | L12: =Singles!J207 -> 0 | M12: =Singles!K207 -> 1663.045044 | AT12: GMIT CONDITIONAL FORMATTING FORMULA > | AU12: OR($AH7=Tables!$B$231,$AH7=Tables!$B$232,$AH7=Tables!$B$233,$AH7=Tables!$B$234,$AH7=Tables!$B$235,$AH7=Tables!$B$236,$AH7=Tables!$B$237,$AH7=Tables!$B$238,$AH7=Tables!$B$239,$AH7=Tables!$B$240,$AH7=Tables!$B$241,$AH7=Tables!$B$242,$AH7=Tables!$B$243,$AH7=Tables!$B$244,$AH7=Tables!$B$245,$AH7=Tables!$B$246,$AH7=Tables!$B$247,$AH7=Tables!$B$248,$AH7=Tables!$B$249,$AH7=Tables!$B$250,$AH7=Tables!$B$251)
B13: 7 | C13: =Singles!B208 -> Sam Gibson | D13: =Singles!C208 -> MU | E13: =Singles!D208 -> 0 | F13: =Singles!E208 -> 360 | G13: =Singles!F208 -> 466 | H13: =Singles!G208 -> 395 | I13: =Singles!H208 -> 430 | K13: =Singles!I208 -> 1651 | L13: =Singles!J208 -> 0 | M13: =Singles!K208 -> 1651.046643 | AT13: GMITC CONDITIONAL FORMATTING FORMULA > | AU13: OR($AH7=Tables!$B$256,$AH7=Tables!$B$257,$AH7=Tables!$B$258,$AH7=Tables!$B$259,$AH7=Tables!$B$260,$AH7=Tables!$B$261,$AH7=Tables!$B$262,$AH7=Tables!$B$263,$AH7=Tables!$B$264,$AH7=Tables!$B$265,$AH7=Tables!$B$266,$AH7=Tables!$B$267,$AH7=Tables!$B$268,$AH7=Tables!$B$269,$AH7=Tables!$B$270,$AH7=Tables!$B$271,$AH7=Tables!$B$272,$AH7=Tables!$B$273,$AH7=Tables!$B$274,$AH7=Tables!$B$275,$AH7=Tables!$B$276)
B14: 8 | C14: =Singles!B203 -> Chris Riddell | D14: =Singles!C203 -> NUIG | E14: =Singles!D203 -> 342 | F14: =Singles!E203 -> 386 | G14: =Singles!F203 -> 328 | H14: =Singles!G203 -> 434 | I14: =Singles!H203 -> 314 | K14: =Singles!I203 -> 1804 | L14: =Singles!J203 -> 314 | M14: =Singles!K203 -> 1490.043439 | AT14: ITC CONDITIONAL FORMATTING FORMULA > | AU14: OR($AH7=Tables!$B$281,$AH7=Tables!$B$282,$AH7=Tables!$B$283,$AH7=Tables!$B$284,$AH7=Tables!$B$285,$AH7=Tables!$B$286,$AH7=Tables!$B$287,$AH7=Tables!$B$288,$AH7=Tables!$B$289,$AH7=Tables!$B$290,$AH7=Tables!$B$291,$AH7=Tables!$B$292,$AH7=Tables!$B$293,$AH7=Tables!$B$294,$AH7=Tables!$B$295,$AH7=Tables!$B$296,$AH7=Tables!$B$297,$AH7=Tables!$B$298,$AH7=Tables!$B$299,$AH7=Tables!$B$300,$AH7=Tables!$B$301)
B15: 9 | C15: =Singles!B210 -> Aaron Wong Siu Zhen | D15: =Singles!C210 -> DKIT | E15: =Singles!D210 -> 393 | F15: =Singles!E210 -> 423 | G15: =Singles!F210 -> 279 | H15: =Singles!G210 -> 0 | I15: =Singles!H210 -> 294 | K15: =Singles!I210 -> 1389 | L15: =Singles!J210 -> 0 | M15: =Singles!K210 -> 1389.042339 | AT15: ITT CONDITIONAL FORMATTING FORMULA > | AU15: OR($AH7=Tables!$B$306,$AH7=Tables!$B$307,$AH7=Tables!$B$308,$AH7=Tables!$B$309,$AH7=Tables!$B$310,$AH7=Tables!$B$311,$AH7=Tables!$B$312,$AH7=Tables!$B$313,$AH7=Tables!$B$314,$AH7=Tables!$B$315,$AH7=Tables!$B$316,$AH7=Tables!$B$317,$AH7=Tables!$B$318,$AH7=Tables!$B$319,$AH7=Tables!$B$320,$AH7=Tables!$B$321,$AH7=Tables!$B$322,$AH7=Tables!$B$323,$AH7=Tables!$B$324,$AH7=Tables!$B$325,$AH7=Tables!$B$326)
B16: 10 | C16: =Singles!B211 -> Liam Higgins | D16: =Singles!C211 -> UL | E16: =Singles!D211 -> 0 | F16: =Singles!E211 -> 317 | G16: =Singles!F211 -> 340 | H16: =Singles!G211 -> 375 | I16: =Singles!H211 -> 353 | K16: =Singles!I211 -> 1385 | L16: =Singles!J211 -> 0 | M16: =Singles!K211 -> 1385.037535 | AT16: MU CONDITIONAL FORMATTING FORMULA > | AU16: OR($AH7=Tables!$B$331,$AH7=Tables!$B$332,$AH7=Tables!$B$333,$AH7=Tables!$B$334,$AH7=Tables!$B$335,$AH7=Tables!$B$336,$AH7=Tables!$B$337,$AH7=Tables!$B$338,$AH7=Tables!$B$339,$AH7=Tables!$B$340,$AH7=Tables!$B$341,$AH7=Tables!$B$342,$AH7=Tables!$B$343,$AH7=Tables!$B$344,$AH7=Tables!$B$345,$AH7=Tables!$B$346,$AH7=Tables!$B$347,$AH7=Tables!$B$348,$AH7=Tables!$B$349,$AH7=Tables!$B$350,$AH7=Tables!$B$351)
B17: 11 | C17: =Singles!B212 -> Brendan O'Sullivan | D17: =Singles!C212 -> UCC | E17: =Singles!D212 -> 483 | F17: =Singles!E212 -> 0 | G17: =Singles!F212 -> 0 | H17: =Singles!G212 -> 447 | I17: =Singles!H212 -> 413 | K17: =Singles!I212 -> 1343 | L17: =Singles!J212 -> 0 | M17: =Singles!K212 -> 1343.048345 | AT17: NCAD CONDITIONAL FORMATTING FORMULA > | AU17: OR($AH7=Tables!$B$356,$AH7=Tables!$B$357,$AH7=Tables!$B$358,$AH7=Tables!$B$359,$AH7=Tables!$B$360,$AH7=Tables!$B$361,$AH7=Tables!$B$362,$AH7=Tables!$B$363,$AH7=Tables!$B$364,$AH7=Tables!$B$365,$AH7=Tables!$B$366,$AH7=Tables!$B$367,$AH7=Tables!$B$368,$AH7=Tables!$B$369,$AH7=Tables!$B$370,$AH7=Tables!$B$371,$AH7=Tables!$B$372,$AH7=Tables!$B$373,$AH7=Tables!$B$374,$AH7=Tables!$B$375,$AH7=Tables!$B$376)
B18: 12 | C18: =Singles!B209 -> Conor O'Brien | D18: =Singles!C209 -> UL | E18: =Singles!D209 -> 310 | F18: =Singles!E209 -> 287 | G18: =Singles!F209 -> 405 | H18: =Singles!G209 -> 294 | I18: =Singles!H209 -> 300 | K18: =Singles!I209 -> 1596 | L18: =Singles!J209 -> 287 | M18: =Singles!K209 -> 1309.040531 | AT18: NUIG CONDITIONAL FORMATTING FORMULA > | AU18: OR($AH7=Tables!$B$381,$AH7=Tables!$B$382,$AH7=Tables!$B$383,$AH7=Tables!$B$384,$AH7=Tables!$B$385,$AH7=Tables!$B$386,$AH7=Tables!$B$387,$AH7=Tables!$B$388,$AH7=Tables!$B$389,$AH7=Tables!$B$390,$AH7=Tables!$B$391,$AH7=Tables!$B$392,$AH7=Tables!$B$393,$AH7=Tables!$B$394,$AH7=Tables!$B$395,$AH7=Tables!$B$396,$AH7=Tables!$B$397,$AH7=Tables!$B$398,$AH7=Tables!$B$399,$AH7=Tables!$B$400,$AH7=Tables!$B$401)
B19: 13 | C19: =Singles!B213 -> Brian Swayne | D19: =Singles!C213 -> UCC | E19: =Singles!D213 -> 378 | F19: =Singles!E213 -> 0 | G19: =Singles!F213 -> 448 | H19: =Singles!G213 -> 455 | I19: =Singles!H213 -> 0 | K19: =Singles!I213 -> 1281 | L19: =Singles!J213 -> 0 | M19: =Singles!K213 -> 1281.045545 | AT19: RCSI CONDITIONAL FORMATTING FORMULA > | AU19: OR($AH7=Tables!$B$406,$AH7=Tables!$B$407,$AH7=Tables!$B$408,$AH7=Tables!$B$409,$AH7=Tables!$B$410,$AH7=Tables!$B$411,$AH7=Tables!$B$412,$AH7=Tables!$B$413,$AH7=Tables!$B$414,$AH7=Tables!$B$415,$AH7=Tables!$B$416,$AH7=Tables!$B$417,$AH7=Tables!$B$418,$AH7=Tables!$B$419,$AH7=Tables!$B$420,$AH7=Tables!$B$421,$AH7=Tables!$B$422,$AH7=Tables!$B$423,$AH7=Tables!$B$424,$AH7=Tables!$B$425,$AH7=Tables!$B$426)
B20: 14 | C20: =Singles!B214 -> Lorenzo Diago | D20: =Singles!C214 -> DCU | E20: =Singles!D214 -> 0 | F20: =Singles!E214 -> 480 | G20: =Singles!F214 -> 371 | H20: =Singles!G214 -> 420 | I20: =Singles!H214 -> 0 | K20: =Singles!I214 -> 1271 | L20: =Singles!J214 -> 0 | M20: =Singles!K214 -> 1271.048042 | AT20: UCC CONDITIONAL FORMATTING FORMULA > | AU20: OR($AH7=Tables!$B$431,$AH7=Tables!$B$432,$AH7=Tables!$B$433,$AH7=Tables!$B$434,$AH7=Tables!$B$435,$AH7=Tables!$B$436,$AH7=Tables!$B$437,$AH7=Tables!$B$438,$AH7=Tables!$B$439,$AH7=Tables!$B$440,$AH7=Tables!$B$441,$AH7=Tables!$B$442,$AH7=Tables!$B$443,$AH7=Tables!$B$444,$AH7=Tables!$B$445,$AH7=Tables!$B$446,$AH7=Tables!$B$447,$AH7=Tables!$B$448,$AH7=Tables!$B$449,$AH7=Tables!$B$450,$AH7=Tables!$B$451)
B21: 15 | C21: =Singles!B215 -> Wai Jian Keet | D21: =Singles!C215 -> DKIT | E21: =Singles!D215 -> 0 | F21: =Singles!E215 -> 441 | G21: =Singles!F215 -> 0 | H21: =Singles!G215 -> 360 | I21: =Singles!H215 -> 464 | K21: =Singles!I215 -> 1265 | L21: =Singles!J215 -> 0 | M21: =Singles!K215 -> 1265.046444 | AH21: Wai Jian Keet | AT21: UCD CONDITIONAL FORMATTING FORMULA > | AU21: OR($AH7=Tables!$B$456,$AH7=Tables!$B$457,$AH7=Tables!$B$458,$AH7=Tables!$B$459,$AH7=Tables!$B$460,$AH7=Tables!$B$461,$AH7=Tables!$B$462,$AH7=Tables!$B$463,$AH7=Tables!$B$464,$AH7=Tables!$B$465,$AH7=Tables!$B$466,$AH7=Tables!$B$467,$AH7=Tables!$B$468,$AH7=Tables!$B$469,$AH7=Tables!$B$470,$AH7=Tables!$B$471,$AH7=Tables!$B$472,$AH7=Tables!$B$473,$AH7=Tables!$B$474,$AH7=Tables!$B$475,$AH7=Tables!$B$476)
B22: 16 | C22: =Singles!B216 -> Lim Cheng Bin | D22: =Singles!C216 -> DKIT | E22: =Singles!D216 -> 443 | F22: =Singles!E216 -> 0 | G22: =Singles!F216 -> 154 | H22: =Singles!G216 -> 249 | I22: =Singles!H216 -> 296 | K22: =Singles!I216 -> 1142 | L22: =Singles!J216 -> 0 | M22: =Singles!K216 -> 1142.04433 | AH22: Lim Cheng Bin | AT22: UL CONDITIONAL FORMATTING FORMULA > | AU22: OR($AH7=Tables!$B$481,$AH7=Tables!$B$482,$AH7=Tables!$B$483,$AH7=Tables!$B$484,$AH7=Tables!$B$485,$AH7=Tables!$B$486,$AH7=Tables!$B$487,$AH7=Tables!$B$488,$AH7=Tables!$B$489,$AH7=Tables!$B$490,$AH7=Tables!$B$491,$AH7=Tables!$B$492,$AH7=Tables!$B$493,$AH7=Tables!$B$494,$AH7=Tables!$B$495,$AH7=Tables!$B$496,$AH7=Tables!$B$497,$AH7=Tables!$B$498,$AH7=Tables!$B$499,$AH7=Tables!$B$500,$AH7=Tables!$B$501)
B23: 17 | C23: =Singles!B217 -> Darragh Kellegher | D23: =Singles!C217 -> UL | E23: =Singles!D217 -> 400 | F23: =Singles!E217 -> 331 | G23: =Singles!F217 -> 0 | H23: =Singles!G217 -> 308 | I23: =Singles!H217 -> 0 | K23: =Singles!I217 -> 1039 | L23: =Singles!J217 -> 0 | M23: =Singles!K217 -> 1039.040033 | AH23: Darragh Kellegher | AT23: UU CONDITIONAL FORMATTING FORMULA > | AU23: OR($AH7=Tables!$B$506,$AH7=Tables!$B$507,$AH7=Tables!$B$508,$AH7=Tables!$B$509,$AH7=Tables!$B$510,$AH7=Tables!$B$511,$AH7=Tables!$B$512,$AH7=Tables!$B$513,$AH7=Tables!$B$514,$AH7=Tables!$B$515,$AH7=Tables!$B$516,$AH7=Tables!$B$517,$AH7=Tables!$B$518,$AH7=Tables!$B$519,$AH7=Tables!$B$520,$AH7=Tables!$B$521,$AH7=Tables!$B$522,$AH7=Tables!$B$523,$AH7=Tables!$B$524,$AH7=Tables!$B$525,$AH7=Tables!$B$526)
B24: 18 | C24: =Singles!B218 -> Nathan Tracey | D24: =Singles!C218 -> DIT | E24: =Singles!D218 -> 0 | F24: =Singles!E218 -> 0 | G24: =Singles!F218 -> 0 | H24: =Singles!G218 -> 515 | I24: =Singles!H218 -> 414 | K24: =Singles!I218 -> 929 | L24: =Singles!J218 -> 0 | M24: =Singles!K218 -> 929.0515414 | AH24: Nathan Tracey | AT24: WIT CONDITIONAL FORMATTING FORMULA > | AU24: OR($AH7=Tables!$B$531,$AH7=Tables!$B$532,$AH7=Tables!$B$533,$AH7=Tables!$B$534,$AH7=Tables!$B$535,$AH7=Tables!$B$536,$AH7=Tables!$B$537,$AH7=Tables!$B$538,$AH7=Tables!$B$539,$AH7=Tables!$B$540,$AH7=Tables!$B$541,$AH7=Tables!$B$542,$AH7=Tables!$B$543,$AH7=Tables!$B$544,$AH7=Tables!$B$545,$AH7=Tables!$B$546,$AH7=Tables!$B$547,$AH7=Tables!$B$548,$AH7=Tables!$B$549,$AH7=Tables!$B$550,$AH7=Tables!$B$551)
B25: 19 | C25: =Singles!B219 -> Andrew Neville | D25: =Singles!C219 -> UU | E25: =Singles!D219 -> 0 | F25: =Singles!E219 -> 0 | G25: =Singles!F219 -> 380 | H25: =Singles!G219 -> 365 | I25: =Singles!H219 -> 0 | K25: =Singles!I219 -> 745 | L25: =Singles!J219 -> 0 | M25: =Singles!K219 -> 745.0380365 | AH25: Andrew Neville | AT25: AAA CONDITIONAL FORMATTING FORMULA > | AU25: OR($AH7=Tables!$B$1151,$AH7=Tables!$B$1152,$AH7=Tables!$B$1153,$AH7=Tables!$B$1154,$AH7=Tables!$B$1155,$AH7=Tables!$B$1156,$AH7=Tables!$B$1157,$AH7=Tables!$B$1158,$AH7=Tables!$B$1159,$AH7=Tables!$B$1160,$AH7=Tables!$B$1161,$AH7=Tables!$B$1162,$AH7=Tables!$B$1163,$AH7=Tables!$B$1164,$AH7=Tables!$B$1165,$AH7=Tables!$B$1166,$AH7=Tables!$B$1167,$AH7=Tables!$B$1168,$AH7=Tables!$B$1169,$AH7=Tables!$B$1170,$AH7=Tables!$B$1171)
B26: 20 | C26: =Singles!B220 -> Shane Fitzgerald | D26: =Singles!C220 -> UCC | E26: =Singles!D220 -> 0 | F26: =Singles!E220 -> 0 | G26: =Singles!F220 -> 325 | H26: =Singles!G220 -> 0 | I26: =Singles!H220 -> 400 | K26: =Singles!I220 -> 725 | L26: =Singles!J220 -> 0 | M26: =Singles!K220 -> 725.0400325 | AH26: Shane Fitzgerald | AT26: BBB CONDITIONAL FORMATTING FORMULA > | AU26: OR($AH7=Tables!$B$1176,$AH7=Tables!$B$1177,$AH7=Tables!$B$1178,$AH7=Tables!$B$1179,$AH7=Tables!$B$1180,$AH7=Tables!$B$1181,$AH7=Tables!$B$1182,$AH7=Tables!$B$1183,$AH7=Tables!$B$1184,$AH7=Tables!$B$1185,$AH7=Tables!$B$1186,$AH7=Tables!$B$1187,$AH7=Tables!$B$1188,$AH7=Tables!$B$1189,$AH7=Tables!$B$1190,$AH7=Tables!$B$1191,$AH7=Tables!$B$1192,$AH7=Tables!$B$1193,$AH7=Tables!$B$1194,$AH7=Tables!$B$1195,$AH7=Tables!$B$1196)
B27: 21 | C27: =Singles!B221 -> Kyle Rosso | D27: =Singles!C221 -> UCD | E27: =Singles!D221 -> 0 | F27: =Singles!E221 -> 0 | G27: =Singles!F221 -> 374 | H27: =Singles!G221 -> 0 | I27: =Singles!H221 -> 349 | K27: =Singles!I221 -> 723 | L27: =Singles!J221 -> 0 | M27: =Singles!K221 -> 723.0374349 | AH27: Kyle Rosso | AT27: CCC CONDITIONAL FORMATTING FORMULA > | AU27: OR($AH7=Tables!$B$1201,$AH7=Tables!$B$1202,$AH7=Tables!$B$1203,$AH7=Tables!$B$1204,$AH7=Tables!$B$1205,$AH7=Tables!$B$1206,$AH7=Tables!$B$1207,$AH7=Tables!$B$1208,$AH7=Tables!$B$1209,$AH7=Tables!$B$1210,$AH7=Tables!$B$1211,$AH7=Tables!$B$1212,$AH7=Tables!$B$1213,$AH7=Tables!$B$1214,$AH7=Tables!$B$1215,$AH7=Tables!$B$1216,$AH7=Tables!$B$1217,$AH7=Tables!$B$1218,$AH7=Tables!$B$1219,$AH7=Tables!$B$1220,$AH7=Tables!$B$1221)
B28: 22 | C28: =Singles!B222 -> Jack Deane | D28: =Singles!C222 -> NUIG | E28: =Singles!D222 -> 379 | F28: =Singles!E222 -> 306 | G28: =Singles!F222 -> 0 | H28: =Singles!G222 -> 0 | I28: =Singles!H222 -> 0 | K28: =Singles!I222 -> 685 | L28: =Singles!J222 -> 0 | M28: =Singles!K222 -> 685.0379306 | AH28: Jack Deane | AT28: DDD CONDITIONAL FORMATTING FORMULA > | AU28: OR($AH7=Tables!$B$1226,$AH7=Tables!$B$1227,$AH7=Tables!$B$1228,$AH7=Tables!$B$1229,$AH7=Tables!$B$1230,$AH7=Tables!$B$1231,$AH7=Tables!$B$1232,$AH7=Tables!$B$1233,$AH7=Tables!$B$1234,$AH7=Tables!$B$1235,$AH7=Tables!$B$1236,$AH7=Tables!$B$1237,$AH7=Tables!$B$1238,$AH7=Tables!$B$1239,$AH7=Tables!$B$1240,$AH7=Tables!$B$1241,$AH7=Tables!$B$1242,$AH7=Tables!$B$1243,$AH7=Tables!$B$1244,$AH7=Tables!$B$1245,$AH7=Tables!$B$1246)
B29: 23 | C29: =Singles!B223 -> Yusuf Fauzi | D29: =Singles!C223 -> UCC | E29: =Singles!D223 -> 0 | F29: =Singles!E223 -> 0 | G29: =Singles!F223 -> 194 | H29: =Singles!G223 -> 0 | I29: =Singles!H223 -> 339 | K29: =Singles!I223 -> 533 | L29: =Singles!J223 -> 0 | M29: =Singles!K223 -> 533.0339194 | AH29: Yusuf Fauzi | AT29: EEE CONDITIONAL FORMATTING FORMULA > | AU29: OR($AH7=Tables!$B$1251,$AH7=Tables!$B$1252,$AH7=Tables!$B$1253,$AH7=Tables!$B$1254,$AH7=Tables!$B$1255,$AH7=Tables!$B$1256,$AH7=Tables!$B$1257,$AH7=Tables!$B$1258,$AH7=Tables!$B$1259,$AH7=Tables!$B$1260,$AH7=Tables!$B$1261,$AH7=Tables!$B$1262,$AH7=Tables!$B$1263,$AH7=Tables!$B$1264,$AH7=Tables!$B$1265,$AH7=Tables!$B$1266,$AH7=Tables!$B$1267,$AH7=Tables!$B$1268,$AH7=Tables!$B$1269,$AH7=Tables!$B$1270,$AH7=Tables!$B$1271)
B30: 24 | C30: =Singles!B224 -> Sven Radatz | D30: =Singles!C224 -> DKIT | E30: =Singles!D224 -> 0 | F30: =Singles!E224 -> 479 | G30: =Singles!F224 -> 0 | H30: =Singles!G224 -> 0 | I30: =Singles!H224 -> 0 | K30: =Singles!I224 -> 479 | L30: =Singles!J224 -> 0 | M30: =Singles!K224 -> 479.0479 | AH30: Sven Radatz
B31: 25 | C31: =Singles!B225 -> Devon Long | D31: =Singles!C225 -> UL | E31: =Singles!D225 -> 473 | F31: =Singles!E225 -> 0 | G31: =Singles!F225 -> 0 | H31: =Singles!G225 -> 0 | I31: =Singles!H225 -> 0 | K31: =Singles!I225 -> 473 | L31: =Singles!J225 -> 0 | M31: =Singles!K225 -> 473.0473 | AH31: Devon Long
B32: 26 | C32: =Singles!B226 -> Jonas Seesing | D32: =Singles!C226 -> NUIG | E32: =Singles!D226 -> 470 | F32: =Singles!E226 -> 0 | G32: =Singles!F226 -> 0 | H32: =Singles!G226 -> 0 | I32: =Singles!H226 -> 0 | K32: =Singles!I226 -> 470 | L32: =Singles!J226 -> 0 | M32: =Singles!K226 -> 470.047 | AH32: Jonas Seesing
B33: 27 | C33: =Singles!B227 -> Artem Semenov | D33: =Singles!C227 -> UL | E33: =Singles!D227 -> 0 | F33: =Singles!E227 -> 0 | G33: =Singles!F227 -> 0 | H33: =Singles!G227 -> 0 | I33: =Singles!H227 -> 405 | K33: =Singles!I227 -> 405 | L33: =Singles!J227 -> 0 | M33: =Singles!K227 -> 405.0405 | AH33: Artem Semenov
B34: 28 | C34: =Singles!B228 -> Gordon Cowpar | D34: =Singles!C228 -> UCD | E34: =Singles!D228 -> 0 | F34: =Singles!E228 -> 398 | G34: =Singles!F228 -> 0 | H34: =Singles!G228 -> 0 | I34: =Singles!H228 -> 0 | K34: =Singles!I228 -> 398 | L34: =Singles!J228 -> 0 | M34: =Singles!K228 -> 398.0398 | AH34: Gordon Cowpar
B35: 29 | C35: =Singles!B229 -> Aonghus Condren | D35: =Singles!C229 -> UCD | E35: =Singles!D229 -> 0 | F35: =Singles!E229 -> 387 | G35: =Singles!F229 -> 0 | H35: =Singles!G229 -> 0 | I35: =Singles!H229 -> 0 | K35: =Singles!I229 -> 387 | L35: =Singles!J229 -> 0 | M35: =Singles!K229 -> 387.0387 | AH35: Aonghus Condren
B36: 30 | C36: =Singles!B230 -> Ahmad Nasree M Khairuddin Lim | D36: =Singles!C230 -> RCSI | E36: =Singles!D230 -> 372 | F36: =Singles!E230 -> 0 | G36: =Singles!F230 -> 0 | H36: =Singles!G230 -> 0 | I36: =Singles!H230 -> 0 | K36: =Singles!I230 -> 372 | L36: =Singles!J230 -> 0 | M36: =Singles!K230 -> 372.0372 | AH36: Ahmad Nasree M Khairuddin Lim
B37: 31 | C37: =Singles!B231 -> Thijs Siebt | D37: =Singles!C231 -> NUIG | E37: =Singles!D231 -> 0 | F37: =Singles!E231 -> 371 | G37: =Singles!F231 -> 0 | H37: =Singles!G231 -> 0 | I37: =Singles!H231 -> 0 | K37: =Singles!I231 -> 371 | L37: =Singles!J231 -> 0 | M37: =Singles!K231 -> 371.0371 | AH37: Thijs Siebt
B38: 32 | C38: =Singles!B232 -> Liam Doyle | D38: =Singles!C232 -> UL | E38: =Singles!D232 -> 0 | F38: =Singles!E232 -> 358 | G38: =Singles!F232 -> 0 | H38: =Singles!G232 -> 0 | I38: =Singles!H232 -> 0 | K38: =Singles!I232 -> 358 | L38: =Singles!J232 -> 0 | M38: =Singles!K232 -> 358.0358 | AH38: Liam Doyle
B39: 33 | C39: =Singles!B233 -> Jordan McMullan | D39: =Singles!C233 -> UU | E39: =Singles!D233 -> 0 | F39: =Singles!E233 -> 0 | G39: =Singles!F233 -> 0 | H39: =Singles!G233 -> 349 | I39: =Singles!H233 -> 0 | K39: =Singles!I233 -> 349 | L39: =Singles!J233 -> 0 | M39: =Singles!K233 -> 349.0349 | AH39: =C39 -> Jordan McMullan
B40: 34 | C40: =Singles!B234 -> Thomas Joyce | D40: =Singles!C234 -> UCD | E40: =Singles!D234 -> 0 | F40: =Singles!E234 -> 339 | G40: =Singles!F234 -> 0 | H40: =Singles!G234 -> 0 | I40: =Singles!H234 -> 0 | K40: =Singles!I234 -> 339 | L40: =Singles!J234 -> 0 | M40: =Singles!K234 -> 339.0339 | AH40: Thomas Joyce
B41: 35 | C41: =Singles!B235 -> Azeem Mohd Elias | D41: =Singles!C235 -> UCD | E41: =Singles!D235 -> 335 | F41: =Singles!E235 -> 0 | G41: =Singles!F235 -> 0 | H41: =Singles!G235 -> 0 | I41: =Singles!H235 -> 0 | K41: =Singles!I235 -> 335 | L41: =Singles!J235 -> 0 | M41: =Singles!K235 -> 335.0335 | AH41: Azeem Mohd Elias
B42: 36 | C42: =Singles!B236 -> Hugh Carrol | D42: =Singles!C236 -> DIT | E42: =Singles!D236 -> 0 | F42: =Singles!E236 -> 0 | G42: =Singles!F236 -> 0 | H42: =Singles!G236 -> 0 | I42: =Singles!H236 -> 285 | K42: =Singles!I236 -> 285 | L42: =Singles!J236 -> 0 | M42: =Singles!K236 -> 285.0285 | AH42: Hugh Carrol
B43: 37 | C43: =Singles!B237 -> Casey Patmore | D43: =Singles!C237 -> UCD | E43: =Singles!D237 -> 0 | F43: =Singles!E237 -> 261 | G43: =Singles!F237 -> 0 | H43: =Singles!G237 -> 0 | I43: =Singles!H237 -> 0 | K43: =Singles!I237 -> 261 | L43: =Singles!J237 -> 0 | M43: =Singles!K237 -> 261.0261 | AH43: Casey Patmore
B44: 38 | C44: =Singles!B238 -> Ian Nora | D44: =Singles!C238 -> UL | E44: =Singles!D238 -> 249 | F44: =Singles!E238 -> 0 | G44: =Singles!F238 -> 0 | H44: =Singles!G238 -> 0 | I44: =Singles!H238 -> 0 | K44: =Singles!I238 -> 249 | L44: =Singles!J238 -> 0 | M44: =Singles!K238 -> 249.0249 | AH44: Ian Nora
B45: 39 | C45: =Singles!B239 -> Jacob Byrne | D45: =Singles!C239 -> DIT | E45: =Singles!D239 -> 0 | F45: =Singles!E239 -> 0 | G45: =Singles!F239 -> 0 | H45: =Singles!G239 -> 225 | I45: =Singles!H239 -> 0 | K45: =Singles!I239 -> 225 | L45: =Singles!J239 -> 0 | M45: =Singles!K239 -> 225.0225 | AH45: Jacob Byrne
B46: 40 | C46: =Singles!B240 -> Caoimhe Lalor | D46: =Singles!C240 -> UCD | E46: =Singles!D240 -> 0 | F46: =Singles!E240 -> 0 | G46: =Singles!F240 -> 0 | H46: =Singles!G240 -> 168 | I46: =Singles!H240 -> 0 | K46: =Singles!I240 -> 168 | L46: =Singles!J240 -> 0 | M46: =Singles!K240 -> 168.0168 | AH46: Caoimhe Lalor
B47: 41 | C47: =Singles!B241 -> 0 | D47: =Singles!C241 -> TBC | E47: =Singles!D241 -> TBC | F47: =Singles!E241 -> TBC | G47: =Singles!F241 -> TBC | H47: =Singles!G241 -> TBC | I47: =Singles!H241 -> TBC | K47: =Singles!I241 -> 0 | L47: =Singles!J241 -> 0 | M47: =Singles!K241 -> 0 | AH47: 0
B48: 42 | C48: =Singles!B242 -> 0 | D48: =Singles!C242 -> TBC | E48: =Singles!D242 -> TBC | F48: =Singles!E242 -> TBC | G48: =Singles!F242 -> TBC | H48: =Singles!G242 -> TBC | I48: =Singles!H242 -> TBC | K48: =Singles!I242 -> 0 | L48: =Singles!J242 -> 0 | M48: =Singles!K242 -> 0 | AH48: 0
B49: 43 | C49: =Singles!B243 -> 0 | D49: =Singles!C243 -> TBC | E49: =Singles!D243 -> TBC | F49: =Singles!E243 -> TBC | G49: =Singles!F243 -> TBC | H49: =Singles!G243 -> TBC | I49: =Singles!H243 -> TBC | K49: =Singles!I243 -> 0 | L49: =Singles!J243 -> 0 | M49: =Singles!K243 -> 0 | AH49: 0
B50: 44 | C50: =Singles!B244 -> 0 | D50: =Singles!C244 -> TBC | E50: =Singles!D244 -> TBC | F50: =Singles!E244 -> TBC | G50: =Singles!F244 -> TBC | H50: =Singles!G244 -> TBC | I50: =Singles!H244 -> TBC | K50: =Singles!I244 -> 0 | L50: =Singles!J244 -> 0 | M50: =Singles!K244 -> 0 | AH50: 0
B51: 45 | C51: =Singles!B245 -> 0 | D51: =Singles!C245 -> TBC | E51: =Singles!D245 -> TBC | F51: =Singles!E245 -> TBC | G51: =Singles!F245 -> TBC | H51: =Singles!G245 -> TBC | I51: =Singles!H245 -> TBC | K51: =Singles!I245 -> 0 | L51: =Singles!J245 -> 0 | M51: =Singles!K245 -> 0 | AH51: 0
B52: 46 | C52: =Singles!B246 -> 0 | D52: =Singles!C246 -> TBC | E52: =Singles!D246 -> TBC | F52: =Singles!E246 -> TBC | G52: =Singles!F246 -> TBC | H52: =Singles!G246 -> TBC | I52: =Singles!H246 -> TBC | K52: =Singles!I246 -> 0 | L52: =Singles!J246 -> 0 | M52: =Singles!K246 -> 0 | AH52: 0
B53: 47 | C53: =Singles!B247 -> 0 | D53: =Singles!C247 -> TBC | E53: =Singles!D247 -> TBC | F53: =Singles!E247 -> TBC | G53: =Singles!F247 -> TBC | H53: =Singles!G247 -> TBC | I53: =Singles!H247 -> TBC | K53: =Singles!I247 -> 0 | L53: =Singles!J247 -> 0 | M53: =Singles!K247 -> 0 | AH53: 0
B54: 48 | C54: =Singles!B248 -> 0 | D54: =Singles!C248 -> TBC | E54: =Singles!D248 -> TBC | F54: =Singles!E248 -> TBC | G54: =Singles!F248 -> TBC | H54: =Singles!G248 -> TBC | I54: =Singles!H248 -> TBC | K54: =Singles!I248 -> 0 | L54: =Singles!J248 -> 0 | M54: =Singles!K248 -> 0 | AH54: 0
B55: 49 | C55: =Singles!B249 -> 0 | D55: =Singles!C249 -> TBC | E55: =Singles!D249 -> TBC | F55: =Singles!E249 -> TBC | G55: =Singles!F249 -> TBC | H55: =Singles!G249 -> TBC | I55: =Singles!H249 -> TBC | K55: =Singles!I249 -> 0 | L55: =Singles!J249 -> 0 | M55: =Singles!K249 -> 0 | AH55: 0
B56: 50 | C56: =Singles!B250 -> 0 | D56: =Singles!C250 -> TBC | E56: =Singles!D250 -> TBC | F56: =Singles!E250 -> TBC | G56: =Singles!F250 -> TBC | H56: =Singles!G250 -> TBC | I56: =Singles!H250 -> TBC | K56: =Singles!I250 -> 0 | L56: =Singles!J250 -> 0 | M56: =Singles!K250 -> 0 | AH56: 0
B57: 51 | C57: =Singles!B251 -> 0 | D57: =Singles!C251 -> TBC | E57: =Singles!D251 -> TBC | F57: =Singles!E251 -> TBC | G57: =Singles!F251 -> TBC | H57: =Singles!G251 -> TBC | I57: =Singles!H251 -> TBC | K57: =Singles!I251 -> 0 | L57: =Singles!J251 -> 0 | M57: =Singles!K251 -> 0 | AH57: 0
B58: 52 | C58: =Singles!B252 -> 0 | D58: =Singles!C252 -> TBC | E58: =Singles!D252 -> TBC | F58: =Singles!E252 -> TBC | G58: =Singles!F252 -> TBC | H58: =Singles!G252 -> TBC | I58: =Singles!H252 -> TBC | K58: =Singles!I252 -> 0 | L58: =Singles!J252 -> 0 | M58: =Singles!K252 -> 0 | AH58: 0
B59: 53 | C59: =Singles!B253 -> 0 | D59: =Singles!C253 -> TBC | E59: =Singles!D253 -> TBC | F59: =Singles!E253 -> TBC | G59: =Singles!F253 -> TBC | H59: =Singles!G253 -> TBC | I59: =Singles!H253 -> TBC | K59: =Singles!I253 -> 0 | L59: =Singles!J253 -> 0 | M59: =Singles!K253 -> 0 | AH59: 0
B60: 54 | C60: =Singles!B254 -> 0 | D60: =Singles!C254 -> TBC | E60: =Singles!D254 -> TBC | F60: =Singles!E254 -> TBC | G60: =Singles!F254 -> TBC | H60: =Singles!G254 -> TBC | I60: =Singles!H254 -> TBC | K60: =Singles!I254 -> 0 | L60: =Singles!J254 -> 0 | M60: =Singles!K254 -> 0 | AH60: 0
B61: 55 | C61: =Singles!B255 -> 0 | D61: =Singles!C255 -> TBC | E61: =Singles!D255 -> TBC | F61: =Singles!E255 -> TBC | G61: =Singles!F255 -> TBC | H61: =Singles!G255 -> TBC | I61: =Singles!H255 -> TBC | K61: =Singles!I255 -> 0 | L61: =Singles!J255 -> 0 | M61: =Singles!K255 -> 0 | AH61: 0
B62: 56 | C62: =Singles!B256 -> 0 | D62: =Singles!C256 -> TBC | E62: =Singles!D256 -> TBC | F62: =Singles!E256 -> TBC | G62: =Singles!F256 -> TBC | H62: =Singles!G256 -> TBC | I62: =Singles!H256 -> TBC | K62: =Singles!I256 -> 0 | L62: =Singles!J256 -> 0 | M62: =Singles!K256 -> 0 | AH62: 0
B63: 57 | C63: =Singles!B257 -> 0 | D63: =Singles!C257 -> TBC | E63: =Singles!D257 -> TBC | F63: =Singles!E257 -> TBC | G63: =Singles!F257 -> TBC | H63: =Singles!G257 -> TBC | I63: =Singles!H257 -> TBC | K63: =Singles!I257 -> 0 | L63: =Singles!J257 -> 0 | M63: =Singles!K257 -> 0 | AH63: 0
B64: 58 | C64: =Singles!B258 -> 0 | D64: =Singles!C258 -> TBC | E64: =Singles!D258 -> TBC | F64: =Singles!E258 -> TBC | G64: =Singles!F258 -> TBC | H64: =Singles!G258 -> TBC | I64: =Singles!H258 -> TBC | K64: =Singles!I258 -> 0 | L64: =Singles!J258 -> 0 | M64: =Singles!K258 -> 0 | AH64: 0
B65: 59 | C65: =Singles!B259 -> 0 | D65: =Singles!C259 -> TBC | E65: =Singles!D259 -> TBC | F65: =Singles!E259 -> TBC | G65: =Singles!F259 -> TBC | H65: =Singles!G259 -> TBC | I65: =Singles!H259 -> TBC | K65: =Singles!I259 -> 0 | L65: =Singles!J259 -> 0 | M65: =Singles!K259 -> 0 | AH65: 0
B66: 60 | C66: =Singles!B260 -> 0 | D66: =Singles!C260 -> TBC | E66: =Singles!D260 -> TBC | F66: =Singles!E260 -> TBC | G66: =Singles!F260 -> TBC | H66: =Singles!G260 -> TBC | I66: =Singles!H260 -> TBC | K66: =Singles!I260 -> 0 | L66: =Singles!J260 -> 0 | M66: =Singles!K260 -> 0 | AH66: 0
B67: 61 | C67: =Singles!B261 -> 0 | D67: =Singles!C261 -> TBC | E67: =Singles!D261 -> TBC | F67: =Singles!E261 -> TBC | G67: =Singles!F261 -> TBC | H67: =Singles!G261 -> TBC | I67: =Singles!H261 -> TBC | K67: =Singles!I261 -> 0 | L67: =Singles!J261 -> 0 | M67: =Singles!K261 -> 0 | AH67: 0
B68: 62 | C68: =Singles!B262 -> 0 | D68: =Singles!C262 -> TBC | E68: =Singles!D262 -> TBC | F68: =Singles!E262 -> TBC | G68: =Singles!F262 -> TBC | H68: =Singles!G262 -> TBC | I68: =Singles!H262 -> TBC | K68: =Singles!I262 -> 0 | L68: =Singles!J262 -> 0 | M68: =Singles!K262 -> 0 | AH68: 0
B69: 63 | C69: =Singles!B263 -> 0 | D69: =Singles!C263 -> TBC | E69: =Singles!D263 -> TBC | F69: =Singles!E263 -> TBC | G69: =Singles!F263 -> TBC | H69: =Singles!G263 -> TBC | I69: =Singles!H263 -> TBC | K69: =Singles!I263 -> 0 | L69: =Singles!J263 -> 0 | M69: =Singles!K263 -> 0 | AH69: 0
B70: 64 | C70: =Singles!B264 -> 0 | D70: =Singles!C264 -> TBC | E70: =Singles!D264 -> TBC | F70: =Singles!E264 -> TBC | G70: =Singles!F264 -> TBC | H70: =Singles!G264 -> TBC | I70: =Singles!H264 -> TBC | K70: =Singles!I264 -> 0 | L70: =Singles!J264 -> 0 | M70: =Singles!K264 -> 0 | AH70: 0
B71: 65 | C71: =Singles!B265 -> 0 | D71: =Singles!C265 -> TBC | E71: =Singles!D265 -> TBC | F71: =Singles!E265 -> TBC | G71: =Singles!F265 -> TBC | H71: =Singles!G265 -> TBC | I71: =Singles!H265 -> TBC | K71: =Singles!I265 -> 0 | L71: =Singles!J265 -> 0 | M71: =Singles!K265 -> 0 | AH71: 0
B72: 66 | C72: =Singles!B266 -> 0 | D72: =Singles!C266 -> TBC | E72: =Singles!D266 -> TBC | F72: =Singles!E266 -> TBC | G72: =Singles!F266 -> TBC | H72: =Singles!G266 -> TBC | I72: =Singles!H266 -> TBC | K72: =Singles!I266 -> 0 | L72: =Singles!J266 -> 0 | M72: =Singles!K266 -> 0 | AH72: 0
B73: 67 | C73: =Singles!B267 -> 0 | D73: =Singles!C267 -> TBC | E73: =Singles!D267 -> TBC | F73: =Singles!E267 -> TBC | G73: =Singles!F267 -> TBC | H73: =Singles!G267 -> TBC | I73: =Singles!H267 -> TBC | K73: =Singles!I267 -> 0 | L73: =Singles!J267 -> 0 | M73: =Singles!K267 -> 0 | AH73: 0
B74: 68 | C74: =Singles!B268 -> 0 | D74: =Singles!C268 -> TBC | E74: =Singles!D268 -> TBC | F74: =Singles!E268 -> TBC | G74: =Singles!F268 -> TBC | H74: =Singles!G268 -> TBC | I74: =Singles!H268 -> TBC | K74: =Singles!I268 -> 0 | L74: =Singles!J268 -> 0 | M74: =Singles!K268 -> 0 | AH74: 0
B75: 69 | C75: =Singles!B269 -> 0 | D75: =Singles!C269 -> TBC | E75: =Singles!D269 -> TBC | F75: =Singles!E269 -> TBC | G75: =Singles!F269 -> TBC | H75: =Singles!G269 -> TBC | I75: =Singles!H269 -> TBC | K75: =Singles!I269 -> 0 | L75: =Singles!J269 -> 0 | M75: =Singles!K269 -> 0 | AH75: 0
B76: 70 | C76: =Singles!B270 -> 0 | D76: =Singles!C270 -> TBC | E76: =Singles!D270 -> TBC | F76: =Singles!E270 -> TBC | G76: =Singles!F270 -> TBC | H76: =Singles!G270 -> TBC | I76: =Singles!H270 -> TBC | K76: =Singles!I270 -> 0 | L76: =Singles!J270 -> 0 | M76: =Singles!K270 -> 0 | AH76: 0
B77: 71 | C77: =Singles!B271 -> 0 | D77: =Singles!C271 -> TBC | E77: =Singles!D271 -> TBC | F77: =Singles!E271 -> TBC | G77: =Singles!F271 -> TBC | H77: =Singles!G271 -> TBC | I77: =Singles!H271 -> TBC | K77: =Singles!I271 -> 0 | L77: =Singles!J271 -> 0 | M77: =Singles!K271 -> 0 | AH77: 0
B78: 72 | C78: =Singles!B272 -> 0 | D78: =Singles!C272 -> TBC | E78: =Singles!D272 -> TBC | F78: =Singles!E272 -> TBC | G78: =Singles!F272 -> TBC | H78: =Singles!G272 -> TBC | I78: =Singles!H272 -> TBC | K78: =Singles!I272 -> 0 | L78: =Singles!J272 -> 0 | M78: =Singles!K272 -> 0 | AH78: 0
B79: 73 | C79: =Singles!B273 -> 0 | D79: =Singles!C273 -> TBC | E79: =Singles!D273 -> TBC | F79: =Singles!E273 -> TBC | G79: =Singles!F273 -> TBC | H79: =Singles!G273 -> TBC | I79: =Singles!H273 -> TBC | K79: =Singles!I273 -> 0 | L79: =Singles!J273 -> 0 | M79: =Singles!K273 -> 0 | AH79: 0
B80: 74 | C80: =Singles!B274 -> 0 | D80: =Singles!C274 -> TBC | E80: =Singles!D274 -> TBC | F80: =Singles!E274 -> TBC | G80: =Singles!F274 -> TBC | H80: =Singles!G274 -> TBC | I80: =Singles!H274 -> TBC | K80: =Singles!I274 -> 0 | L80: =Singles!J274 -> 0 | M80: =Singles!K274 -> 0 | AH80: 0
B81: 75 | C81: =Singles!B275 -> 0 | D81: =Singles!C275 -> TBC | E81: =Singles!D275 -> TBC | F81: =Singles!E275 -> TBC | G81: =Singles!F275 -> TBC | H81: =Singles!G275 -> TBC | I81: =Singles!H275 -> TBC | K81: =Singles!I275 -> 0 | L81: =Singles!J275 -> 0 | M81: =Singles!K275 -> 0 | AH81: 0
A82: =$D$7 -> MU
A100: DCU | B100: -1
A101: DIT | B101: -2
A102: DKIT | B102: -3
A103: DUAC | B103: -4
A104: GMIT | B104: -5
A105: GMITC | B105: -6
A106: ITC | B106: -7
A107: IT Tallaght | B107: -8
A108: MU | B108: -9
A109: NCAD | B109: -10
A110: NUIG | B110: -11
A111: RCSI | B111: -12
A112: UCC | B112: -13
A113: UCD | B113: -14
A114: UL | B114: -15
A115: UU | B115: -16
A116: WIT | B116: -17
A117: AAA | B117: -18
A118: BBB | B118: -19
A119: CCC | B119: -20
A120: DDD | B120: -21
A121: EEE | B121: -22

Sheet RBF
A1: =$D$7 -> DKIT
A2: =$D$7 -> DKIT | B2: Female Beginner Recurve | E2: Host Club | J2: DKIT | K2: Scores | N2: =$D$7 -> DKIT | AH2: =AH7 -> Eunice Kiew Ying Sing
E3: =Entries!K6 -> UL IV | F3: =Entries!K7 -> DkIT IV | G3: =Entries!K8 -> GMIT IV | H3: =Entries!K9 -> DCU IV | I3: =Entries!K10 -> NUIG IV | K3: Total | L3: Lowest | M3: League
B5: =$D$7 -> DKIT | K5: =$D$7 -> DKIT
C6: Name | D6: College | E6: =Entries!K6 -> UL IV | F6: =Entries!K7 -> DkIT IV | G6: =Entries!K8 -> GMIT IV | H6: =Entries!K9 -> DCU IV | I6: =Entries!K10 -> NUIG IV | K6: Total | L6: Lowest | M6: League total
B7: 1 | C7: =Singles!O202 -> Eunice Kiew Ying Sing | D7: =Singles!P202 -> DKIT | E7: =Singles!Q202 -> 501 | F7: =Singles!R202 -> 0 | G7: =Singles!S202 -> 486 | H7: =Singles!T202 -> 509 | I7: =Singles!U202 -> 463 | K7: =Singles!V202 -> 1959 | L7: =Singles!W202 -> 0 | M7: =Singles!X202 -> 1959.05095 | AH7: =C7 -> Eunice Kiew Ying Sing
B8: 2 | C8: =Singles!O201 -> Mary Aherne | D8: =Singles!P201 -> NUIG | E8: =Singles!Q201 -> 413 | F8: =Singles!R201 -> 343 | G8: =Singles!S201 -> 464 | H8: =Singles!T201 -> 400 | I8: =Singles!U201 -> 420 | K8: =Singles!V201 -> 2040 | L8: =Singles!W201 -> 343 | M8: =Singles!X201 -> 1697.046442 | AH8: Mary Aherne
B9: 3 | C9: =Singles!O205 -> Jane Meehan | D9: =Singles!P205 -> DKIT | E9: =Singles!Q205 -> 467 | F9: =Singles!R205 -> 0 | G9: =Singles!S205 -> 393 | H9: =Singles!T205 -> 424 | I9: =Singles!U205 -> 376 | K9: =Singles!V205 -> 1660 | L9: =Singles!W205 -> 0 | M9: =Singles!X205 -> 1660.046742 | AH9: Jane Meehan
B10: 4 | C10: =Singles!O206 -> Laury Despres | D10: =Singles!P206 -> MU | E10: =Singles!Q206 -> 0 | F10: =Singles!R206 -> 386 | G10: =Singles!S206 -> 355 | H10: =Singles!T206 -> 394 | I10: =Singles!U206 -> 452 | K10: =Singles!V206 -> 1587 | L10: =Singles!W206 -> 0 | M10: =Singles!X206 -> 1587.045239 | AH10: Laury Despres
B11: 5 | C11: =Singles!O203 -> Helen Lacey | D11: =Singles!P203 -> NUIG | E11: =Singles!Q203 -> 325 | F11: =Singles!R203 -> 380 | G11: =Singles!S203 -> 424 | H11: =Singles!T203 -> 355 | I11: =Singles!U203 -> 404 | K11: =Singles!V203 -> 1888 | L11: =Singles!W203 -> 325 | M11: =Singles!X203 -> 1563.04244 | AH11: Helen Lacey
B12: 6 | C12: =Singles!O207 -> Zoe Nicholson | D12: =Singles!P207 -> DKIT | E12: =Singles!Q207 -> 442 | F12: =Singles!R207 -> 0 | G12: =Singles!S207 -> 353 | H12: =Singles!T207 -> 341 | I12: =Singles!U207 -> 372 | K12: =Singles!V207 -> 1508 | L12: =Singles!W207 -> 0 | M12: =Singles!X207 -> 1508.044237 | AH12: Zoe Nicholson
B13: 7 | C13: =Singles!O208 -> Siun Collins | D13: =Singles!P208 -> DIT | E13: =Singles!Q208 -> 423 | F13: =Singles!R208 -> 0 | G13: =Singles!S208 -> 341 | H13: =Singles!T208 -> 346 | I13: =Singles!U208 -> 374 | K13: =Singles!V208 -> 1484 | L13: =Singles!W208 -> 0 | M13: =Singles!X208 -> 1484.042337 | AH13: Siun Collins
B14: 8 | C14: =Singles!O209 -> Carla Reinhardt | D14: =Singles!P209 -> UCC | E14: =Singles!Q209 -> 266 | F14: =Singles!R209 -> 0 | G14: =Singles!S209 -> 424 | H14: =Singles!T209 -> 399 | I14: =Singles!U209 -> 392 | K14: =Singles!V209 -> 1481 | L14: =Singles!W209 -> 0 | M14: =Singles!X209 -> 1481.04244 | AH14: Carla Reinhardt
B15: 9 | C15: =Singles!O204 -> Asia Tayyab | D15: =Singles!P204 -> GMIT | E15: =Singles!Q204 -> 330 | F15: =Singles!R204 -> 283 | G15: =Singles!S204 -> 376 | H15: =Singles!T204 -> 407 | I15: =Singles!U204 -> 278 | K15: =Singles!V204 -> 1674 | L15: =Singles!W204 -> 278 | M15: =Singles!X204 -> 1396.040738 | AH15: Asia Tayyab
B16: 10 | C16: =Singles!O210 -> Lynda Miller | D16: =Singles!P210 -> GMIT | E16: =Singles!Q210 -> 0 | F16: =Singles!R210 -> 114 | G16: =Singles!S210 -> 459 | H16: =Singles!T210 -> 253 | I16: =Singles!U210 -> 444 | K16: =Singles!V210 -> 1270 | L16: =Singles!W210 -> 0 | M16: =Singles!X210 -> 1270.045944 | AH16: Lynda Miller
B17: 11 | C17: =Singles!O211 -> Bruna Mota | D17: =Singles!P211 -> UCD | E17: =Singles!Q211 -> 0 | F17: =Singles!R211 -> 0 | G17: =Singles!S211 -> 424 | H17: =Singles!T211 -> 327 | I17: =Singles!U211 -> 395 | K17: =Singles!V211 -> 1146 | L17: =Singles!W211 -> 0 | M17: =Singles!X211 -> 1146.04244 | AH17: Bruna Mota
B18: 12 | C18: =Singles!O212 -> Judith Bell | D18: =Singles!P212 -> UU | E18: =Singles!Q212 -> 0 | F18: =Singles!R212 -> 239 | G18: =Singles!S212 -> 378 | H18: =Singles!T212 -> 376 | I18: =Singles!U212 -> 134 | K18: =Singles!V212 -> 1127 | L18: =Singles!W212 -> 0 | M18: =Singles!X212 -> 1127.037838 | AH18: Judith Bell
B19: 13 | C19: =Singles!O213 -> Fiona Maguire | D19: =Singles!P213 -> UCD | E19: =Singles!Q213 -> 0 | F19: =Singles!R213 -> 0 | G19: =Singles!S213 -> 246 | H19: =Singles!T213 -> 281 | I19: =Singles!U213 -> 371 | K19: =Singles!V213 -> 898 | L19: =Singles!W213 -> 0 | M19: =Singles!X213 -> 898.0371281 | AH19: Fiona Maguire
B20: 14 | C20: =Singles!O214 -> Minni Hiltunen | D20: =Singles!P214 -> DIT | E20: =Singles!Q214 -> 0 | F20: =Singles!R214 -> 0 | G20: =Singles!S214 -> 0 | H20: =Singles!T214 -> 432 | I20: =Singles!U214 -> 389 | K20: =Singles!V214 -> 821 | L20: =Singles!W214 -> 0 | M20: =Singles!X214 -> 821.0432389 | AH20: Minni Hiltunen
B21: 15 | C21: =Singles!O215 -> Bruna Duarte | D21: =Singles!P215 -> DIT | E21: =Singles!Q215 -> 0 | F21: =Singles!R215 -> 0 | G21: =Singles!S215 -> 0 | H21: =Singles!T215 -> 303 | I21: =Singles!U215 -> 421 | K21: =Singles!V215 -> 724 | L21: =Singles!W215 -> 0 | M21: =Singles!X215 -> 724.0421303 | AH21: Bruna Duarte
B22: 16 | C22: =Singles!O216 -> Maria Borck | D22: =Singles!P216 -> UL | E22: =Singles!Q216 -> 239 | F22: =Singles!R216 -> 0 | G22: =Singles!S216 -> 231 | H22: =Singles!T216 -> 0 | I22: =Singles!U216 -> 232 | K22: =Singles!V216 -> 702 | L22: =Singles!W216 -> 0 | M22: =Singles!X216 -> 702.0239232 | AH22: Maria Borck
B23: 17 | C23: =Singles!O217 -> Laura Ciesa | D23: =Singles!P217 -> UL | E23: =Singles!Q217 -> 0 | F23: =Singles!R217 -> 0 | G23: =Singles!S217 -> 0 | H23: =Singles!T217 -> 0 | I23: =Singles!U217 -> 453 | K23: =Singles!V217 -> 453 | L23: =Singles!W217 -> 0 | M23: =Singles!X217 -> 453.0453 | AH23: Laura Ciesa
B24: 18 | C24: =Singles!O218 -> Vanessa Flood | D24: =Singles!P218 -> DIT | E24: =Singles!Q218 -> 0 | F24: =Singles!R218 -> 0 | G24: =Singles!S218 -> 0 | H24: =Singles!T218 -> 444 | I24: =Singles!U218 -> 0 | K24: =Singles!V218 -> 444 | L24: =Singles!W218 -> 0 | M24: =Singles!X218 -> 444.0444 | AH24: Vanessa Flood
B25: 19 | C25: =Singles!O219 -> Anna Bergert | D25: =Singles!P219 -> DKIT | E25: =Singles!Q219 -> 0 | F25: =Singles!R219 -> 383 | G25: =Singles!S219 -> 0 | H25: =Singles!T219 -> 0 | I25: =Singles!U219 -> 0 | K25: =Singles!V219 -> 383 | L25: =Singles!W219 -> 0 | M25: =Singles!X219 -> 383.0383 | AH25: Anna Bergert
B26: 20 | C26: =Singles!O220 -> Zahratulfatin Mohd Mahfoz | D26: =Singles!P220 -> RCSI | E26: =Singles!Q220 -> 382 | F26: =Singles!R220 -> 0 | G26: =Singles!S220 -> 0 | H26: =Singles!T220 -> 0 | I26: =Singles!U220 -> 0 | K26: =Singles!V220 -> 382 | L26: =Singles!W220 -> 0 | M26: =Singles!X220 -> 382.0382 | AH26: Zahratulfatin Mohd Mahfoz
B27: 21 | C27: =Singles!O221 -> Ozeane Zeis | D27: =Singles!P221 -> UL | E27: =Singles!Q221 -> 0 | F27: =Singles!R221 -> 0 | G27: =Singles!S221 -> 0 | H27: =Singles!T221 -> 0 | I27: =Singles!U221 -> 288 | K27: =Singles!V221 -> 288 | L27: =Singles!W221 -> 0 | M27: =Singles!X221 -> 288.0288 | AH27: Ozeane Zeis
B28: 22 | C28: =Singles!O222 -> Marta Jurczak | D28: =Singles!P222 -> DUAC | E28: =Singles!Q222 -> 0 | F28: =Singles!R222 -> 0 | G28: =Singles!S222 -> 0 | H28: =Singles!T222 -> 0 | I28: =Singles!U222 -> 284 | K28: =Singles!V222 -> 284 | L28: =Singles!W222 -> 0 | M28: =Singles!X222 -> 284.0284 | AH28: Marta Jurczak
B29: 23 | C29: =Singles!O223 -> Nor Fatin Farhani | D29: =Singles!P223 -> RCSI | E29: =Singles!Q223 -> 0 | F29: =Singles!R223 -> 0 | G29: =Singles!S223 -> 267 | H29: =Singles!T223 -> 0 | I29: =Singles!U223 -> 0 | K29: =Singles!V223 -> 267 | L29: =Singles!W223 -> 0 | M29: =Singles!X223 -> 267.0267 | AH29: Nor Fatin Farhani
B30: 24 | C30: =Singles!O224 -> Martha Chege | D30: =Singles!P224 -> UU | E30: =Singles!Q224 -> 0 | F30: =Singles!R224 -> 0 | G30: =Singles!S224 -> 0 | H30: =Singles!T224 -> 201 | I30: =Singles!U224 -> 0 | K30: =Singles!V224 -> 201 | L30: =Singles!W224 -> 0 | M30: =Singles!X224 -> 201.0201 | AH30: Martha Chege
B31: 25 | C31: =Singles!O225 -> Apoorva Kashyap | D31: =Singles!P225 -> UU | E31: =Singles!Q225 -> 0 | F31: =Singles!R225 -> 0 | G31: =Singles!S225 -> 0 | H31: =Singles!T225 -> 200 | I31: =Singles!U225 -> 0 | K31: =Singles!V225 -> 200 | L31: =Singles!W225 -> 0 | M31: =Singles!X225 -> 200.02 | AH31: Apoorva Kashyap
B32: 26 | C32: =Singles!O226 -> Raja Nur Iyliani | D32: =Singles!P226 -> RCSI | E32: =Singles!Q226 -> 0 | F32: =Singles!R226 -> 0 | G32: =Singles!S226 -> 190 | H32: =Singles!T226 -> 0 | I32: =Singles!U226 -> 0 | K32: =Singles!V226 -> 190 | L32: =Singles!W226 -> 0 | M32: =Singles!X226 -> 190.019 | AH32: Raja Nur Iyliani
B33: 27 | C33: =Singles!O227 -> Nadia Rodgers | D33: =Singles!P227 -> UU | E33: =Singles!Q227 -> 0 | F33: =Singles!R227 -> 0 | G33: =Singles!S227 -> 0 | H33: =Singles!T227 -> 187 | I33: =Singles!U227 -> 0 | K33: =Singles!V227 -> 187 | L33: =Singles!W227 -> 0 | M33: =Singles!X227 -> 187.0187 | AH33: Nadia Rodgers
B34: 28 | C34: =Singles!O228 -> Bronwyn Berkeley | D34: =Singles!P228 -> DUAC | E34: =Singles!Q228 -> 0 | F34: =Singles!R228 -> 121 | G34: =Singles!S228 -> 0 | H34: =Singles!T228 -> 0 | I34: =Singles!U228 -> 0 | K34: =Singles!V228 -> 121 | L34: =Singles!W228 -> 0 | M34: =Singles!X228 -> 121.0121 | AH34: Bronwyn Berkeley
B35: 29 | C35: =Singles!O229 -> Maeve Ruan | D35: =Singles!P229 -> UCD | E35: =Singles!Q229 -> 0 | F35: =Singles!R229 -> 0 | G35: =Singles!S229 -> 0 | H35: =Singles!T229 -> 70 | I35: =Singles!U229 -> 0 | K35: =Singles!V229 -> 70 | L35: =Singles!W229 -> 0 | M35: =Singles!X229 -> 70.007 | AH35: Maeve Ruan
B36: 30 | C36: =Singles!O230 -> 0 | D36: =Singles!P230 -> TBC | E36: =Singles!Q230 -> TBC | F36: =Singles!R230 -> TBC | G36: =Singles!S230 -> TBC | H36: =Singles!T230 -> TBC | I36: =Singles!U230 -> TBC | K36: =Singles!V230 -> 0 | L36: =Singles!W230 -> 0 | M36: =Singles!X230 -> 0 | AH36: 0
B37: 31 | C37: =Singles!O231 -> 0 | D37: =Singles!P231 -> TBC | E37: =Singles!Q231 -> TBC | F37: =Singles!R231 -> TBC | G37: =Singles!S231 -> TBC | H37: =Singles!T231 -> TBC | I37: =Singles!U231 -> TBC | K37: =Singles!V231 -> 0 | L37: =Singles!W231 -> 0 | M37: =Singles!X231 -> 0 | AH37: 0
B38: 32 | C38: =Singles!O232 -> 0 | D38: =Singles!P232 -> TBC | E38: =Singles!Q232 -> TBC | F38: =Singles!R232 -> TBC | G38: =Singles!S232 -> TBC | H38: =Singles!T232 -> TBC | I38: =Singles!U232 -> TBC | K38: =Singles!V232 -> 0 | L38: =Singles!W232 -> 0 | M38: =Singles!X232 -> 0 | AH38: 0
B39: 33 | C39: =Singles!O233 -> 0 | D39: =Singles!P233 -> TBC | E39: =Singles!Q233 -> TBC | F39: =Singles!R233 -> TBC | G39: =Singles!S233 -> TBC | H39: =Singles!T233 -> TBC | I39: =Singles!U233 -> TBC | K39: =Singles!V233 -> 0 | L39: =Singles!W233 -> 0 | M39: =Singles!X233 -> 0 | AH39: =C39 -> 0
B40: 34 | C40: =Singles!O234 -> 0 | D40: =Singles!P234 -> TBC | E40: =Singles!Q234 -> TBC | F40: =Singles!R234 -> TBC | G40: =Singles!S234 -> TBC | H40: =Singles!T234 -> TBC | I40: =Singles!U234 -> TBC | K40: =Singles!V234 -> 0 | L40: =Singles!W234 -> 0 | M40: =Singles!X234 -> 0 | AH40: 0
B41: 35 | C41: =Singles!O235 -> 0 | D41: =Singles!P235 -> TBC | E41: =Singles!Q235 -> TBC | F41: =Singles!R235 -> TBC | G41: =Singles!S235 -> TBC | H41: =Singles!T235 -> TBC | I41: =Singles!U235 -> TBC | K41: =Singles!V235 -> 0 | L41: =Singles!W235 -> 0 | M41: =Singles!X235 -> 0 | AH41: 0
B42: 36 | C42: =Singles!O236 -> 0 | D42: =Singles!P236 -> TBC | E42: =Singles!Q236 -> TBC | F42: =Singles!R236 -> TBC | G42: =Singles!S236 -> TBC | H42: =Singles!T236 -> TBC | I42: =Singles!U236 -> TBC | K42: =Singles!V236 -> 0 | L42: =Singles!W236 -> 0 | M42: =Singles!X236 -> 0 | AH42: 0
B43: 37 | C43: =Singles!O237 -> 0 | D43: =Singles!P237 -> TBC | E43: =Singles!Q237 -> TBC | F43: =Singles!R237 -> TBC | G43: =Singles!S237 -> TBC | H43: =Singles!T237 -> TBC | I43: =Singles!U237 -> TBC | K43: =Singles!V237 -> 0 | L43: =Singles!W237 -> 0 | M43: =Singles!X237 -> 0 | AH43: 0
B44: 38 | C44: =Singles!O238 -> 0 | D44: =Singles!P238 -> TBC | E44: =Singles!Q238 -> TBC | F44: =Singles!R238 -> TBC | G44: =Singles!S238 -> TBC | H44: =Singles!T238 -> TBC | I44: =Singles!U238 -> TBC | K44: =Singles!V238 -> 0 | L44: =Singles!W238 -> 0 | M44: =Singles!X238 -> 0 | AH44: 0
B45: 39 | C45: =Singles!O239 -> 0 | D45: =Singles!P239 -> TBC | E45: =Singles!Q239 -> TBC | F45: =Singles!R239 -> TBC | G45: =Singles!S239 -> TBC | H45: =Singles!T239 -> TBC | I45: =Singles!U239 -> TBC | K45: =Singles!V239 -> 0 | L45: =Singles!W239 -> 0 | M45: =Singles!X239 -> 0 | AH45: 0
B46: 40 | C46: =Singles!O240 -> 0 | D46: =Singles!P240 -> TBC | E46: =Singles!Q240 -> TBC | F46: =Singles!R240 -> TBC | G46: =Singles!S240 -> TBC | H46: =Singles!T240 -> TBC | I46: =Singles!U240 -> TBC | K46: =Singles!V240 -> 0 | L46: =Singles!W240 -> 0 | M46: =Singles!X240 -> 0 | AH46: 0
B47: 41 | C47: =Singles!O241 -> 0 | D47: =Singles!P241 -> TBC | E47: =Singles!Q241 -> TBC | F47: =Singles!R241 -> TBC | G47: =Singles!S241 -> TBC | H47: =Singles!T241 -> TBC | I47: =Singles!U241 -> TBC | K47: =Singles!V241 -> 0 | L47: =Singles!W241 -> 0 | M47: =Singles!X241 -> 0 | AH47: 0
B48: 42 | C48: =Singles!O242 -> 0 | D48: =Singles!P242 -> TBC | E48: =Singles!Q242 -> TBC | F48: =Singles!R242 -> TBC | G48: =Singles!S242 -> TBC | H48: =Singles!T242 -> TBC | I48: =Singles!U242 -> TBC | K48: =Singles!V242 -> 0 | L48: =Singles!W242 -> 0 | M48: =Singles!X242 -> 0 | AH48: 0
B49: 43 | C49: =Singles!O243 -> 0 | D49: =Singles!P243 -> TBC | E49: =Singles!Q243 -> TBC | F49: =Singles!R243 -> TBC | G49: =Singles!S243 -> TBC | H49: =Singles!T243 -> TBC | I49: =Singles!U243 -> TBC | K49: =Singles!V243 -> 0 | L49: =Singles!W243 -> 0 | M49: =Singles!X243 -> 0 | AH49: 0
B50: 44 | C50: =Singles!O244 -> 0 | D50: =Singles!P244 -> TBC | E50: =Singles!Q244 -> TBC | F50: =Singles!R244 -> TBC | G50: =Singles!S244 -> TBC | H50: =Singles!T244 -> TBC | I50: =Singles!U244 -> TBC | K50: =Singles!V244 -> 0 | L50: =Singles!W244 -> 0 | M50: =Singles!X244 -> 0 | AH50: 0
B51: 45 | C51: =Singles!O245 -> 0 | D51: =Singles!P245 -> TBC | E51: =Singles!Q245 -> TBC | F51: =Singles!R245 -> TBC | G51: =Singles!S245 -> TBC | H51: =Singles!T245 -> TBC | I51: =Singles!U245 -> TBC | K51: =Singles!V245 -> 0 | L51: =Singles!W245 -> 0 | M51: =Singles!X245 -> 0 | AH51: 0
B52: 46 | C52: =Singles!O246 -> 0 | D52: =Singles!P246 -> TBC | E52: =Singles!Q246 -> TBC | F52: =Singles!R246 -> TBC | G52: =Singles!S246 -> TBC | H52: =Singles!T246 -> TBC | I52: =Singles!U246 -> TBC | K52: =Singles!V246 -> 0 | L52: =Singles!W246 -> 0 | M52: =Singles!X246 -> 0 | AH52: 0
B53: 47 | C53: =Singles!O247 -> 0 | D53: =Singles!P247 -> TBC | E53: =Singles!Q247 -> TBC | F53: =Singles!R247 -> TBC | G53: =Singles!S247 -> TBC | H53: =Singles!T247 -> TBC | I53: =Singles!U247 -> TBC | K53: =Singles!V247 -> 0 | L53: =Singles!W247 -> 0 | M53: =Singles!X247 -> 0 | AH53: 0
B54: 48 | C54: =Singles!O248 -> 0 | D54: =Singles!P248 -> TBC | E54: =Singles!Q248 -> TBC | F54: =Singles!R248 -> TBC | G54: =Singles!S248 -> TBC | H54: =Singles!T248 -> TBC | I54: =Singles!U248 -> TBC | K54: =Singles!V248 -> 0 | L54: =Singles!W248 -> 0 | M54: =Singles!X248 -> 0 | AH54: 0
B55: 49 | C55: =Singles!O249 -> 0 | D55: =Singles!P249 -> TBC | E55: =Singles!Q249 -> TBC | F55: =Singles!R249 -> TBC | G55: =Singles!S249 -> TBC | H55: =Singles!T249 -> TBC | I55: =Singles!U249 -> TBC | K55: =Singles!V249 -> 0 | L55: =Singles!W249 -> 0 | M55: =Singles!X249 -> 0 | AH55: 0
B56: 50 | C56: =Singles!O250 -> 0 | D56: =Singles!P250 -> TBC | E56: =Singles!Q250 -> TBC | F56: =Singles!R250 -> TBC | G56: =Singles!S250 -> TBC | H56: =Singles!T250 -> TBC | I56: =Singles!U250 -> TBC | K56: =Singles!V250 -> 0 | L56: =Singles!W250 -> 0 | M56: =Singles!X250 -> 0 | AH56: 0
B57: 51 | C57: =Singles!O251 -> 0 | D57: =Singles!P251 -> TBC | E57: =Singles!Q251 -> TBC | F57: =Singles!R251 -> TBC | G57: =Singles!S251 -> TBC | H57: =Singles!T251 -> TBC | I57: =Singles!U251 -> TBC | K57: =Singles!V251 -> 0 | L57: =Singles!W251 -> 0 | M57: =Singles!X251 -> 0 | AH57: 0
B58: 52 | C58: =Singles!O252 -> 0 | D58: =Singles!P252 -> TBC | E58: =Singles!Q252 -> TBC | F58: =Singles!R252 -> TBC | G58: =Singles!S252 -> TBC | H58: =Singles!T252 -> TBC | I58: =Singles!U252 -> TBC | K58: =Singles!V252 -> 0 | L58: =Singles!W252 -> 0 | M58: =Singles!X252 -> 0 | AH58: 0
B59: 53 | C59: =Singles!O253 -> 0 | D59: =Singles!P253 -> TBC | E59: =Singles!Q253 -> TBC | F59: =Singles!R253 -> TBC | G59: =Singles!S253 -> TBC | H59: =Singles!T253 -> TBC | I59: =Singles!U253 -> TBC | K59: =Singles!V253 -> 0 | L59: =Singles!W253 -> 0 | M59: =Singles!X253 -> 0 | AH59: 0
B60: 54 | C60: =Singles!O254 -> 0 | D60: =Singles!P254 -> TBC | E60: =Singles!Q254 -> TBC | F60: =Singles!R254 -> TBC | G60: =Singles!S254 -> TBC | H60: =Singles!T254 -> TBC | I60: =Singles!U254 -> TBC | K60: =Singles!V254 -> 0 | L60: =Singles!W254 -> 0 | M60: =Singles!X254 -> 0 | AH60: 0
B61: 55 | C61: =Singles!O255 -> 0 | D61: =Singles!P255 -> TBC | E61: =Singles!Q255 -> TBC | F61: =Singles!R255 -> TBC | G61: =Singles!S255 -> TBC | H61: =Singles!T255 -> TBC | I61: =Singles!U255 -> TBC | K61: =Singles!V255 -> 0 | L61: =Singles!W255 -> 0 | M61: =Singles!X255 -> 0 | AH61: 0
B62: 56 | C62: =Singles!O256 -> 0 | D62: =Singles!P256 -> TBC | E62: =Singles!Q256 -> TBC | F62: =Singles!R256 -> TBC | G62: =Singles!S256 -> TBC | H62: =Singles!T256 -> TBC | I62: =Singles!U256 -> TBC | K62: =Singles!V256 -> 0 | L62: =Singles!W256 -> 0 | M62: =Singles!X256 -> 0 | AH62: 0
B63: 57 | C63: =Singles!O257 -> 0 | D63: =Singles!P257 -> TBC | E63: =Singles!Q257 -> TBC | F63: =Singles!R257 -> TBC | G63: =Singles!S257 -> TBC | H63: =Singles!T257 -> TBC | I63: =Singles!U257 -> TBC | K63: =Singles!V257 -> 0 | L63: =Singles!W257 -> 0 | M63: =Singles!X257 -> 0 | AH63: 0
B64: 58 | C64: =Singles!O258 -> 0 | D64: =Singles!P258 -> TBC | E64: =Singles!Q258 -> TBC | F64: =Singles!R258 -> TBC | G64: =Singles!S258 -> TBC | H64: =Singles!T258 -> TBC | I64: =Singles!U258 -> TBC | K64: =Singles!V258 -> 0 | L64: =Singles!W258 -> 0 | M64: =Singles!X258 -> 0 | AH64: 0
B65: 59 | C65: =Singles!O259 -> 0 | D65: =Singles!P259 -> TBC | E65: =Singles!Q259 -> TBC | F65: =Singles!R259 -> TBC | G65: =Singles!S259 -> TBC | H65: =Singles!T259 -> TBC | I65: =Singles!U259 -> TBC | K65: =Singles!V259 -> 0 | L65: =Singles!W259 -> 0 | M65: =Singles!X259 -> 0 | AH65: 0
B66: 60 | C66: =Singles!O260 -> 0 | D66: =Singles!P260 -> TBC | E66: =Singles!Q260 -> TBC | F66: =Singles!R260 -> TBC | G66: =Singles!S260 -> TBC | H66: =Singles!T260 -> TBC | I66: =Singles!U260 -> TBC | K66: =Singles!V260 -> 0 | L66: =Singles!W260 -> 0 | M66: =Singles!X260 -> 0 | AH66: 0
B67: 61 | C67: =Singles!O261 -> 0 | D67: =Singles!P261 -> TBC | E67: =Singles!Q261 -> TBC | F67: =Singles!R261 -> TBC | G67: =Singles!S261 -> TBC | H67: =Singles!T261 -> TBC | I67: =Singles!U261 -> TBC | K67: =Singles!V261 -> 0 | L67: =Singles!W261 -> 0 | M67: =Singles!X261 -> 0 | AH67: 0
B68: 62 | C68: =Singles!O262 -> 0 | D68: =Singles!P262 -> TBC | E68: =Singles!Q262 -> TBC | F68: =Singles!R262 -> TBC | G68: =Singles!S262 -> TBC | H68: =Singles!T262 -> TBC | I68: =Singles!U262 -> TBC | K68: =Singles!V262 -> 0 | L68: =Singles!W262 -> 0 | M68: =Singles!X262 -> 0 | AH68: 0
B69: 63 | C69: =Singles!O263 -> 0 | D69: =Singles!P263 -> TBC | E69: =Singles!Q263 -> TBC | F69: =Singles!R263 -> TBC | G69: =Singles!S263 -> TBC | H69: =Singles!T263 -> TBC | I69: =Singles!U263 -> TBC | K69: =Singles!V263 -> 0 | L69: =Singles!W263 -> 0 | M69: =Singles!X263 -> 0 | AH69: 0
B70: 64 | C70: =Singles!O264 -> 0 | D70: =Singles!P264 -> TBC | E70: =Singles!Q264 -> TBC | F70: =Singles!R264 -> TBC | G70: =Singles!S264 -> TBC | H70: =Singles!T264 -> TBC | I70: =Singles!U264 -> TBC | K70: =Singles!V264 -> 0 | L70: =Singles!W264 -> 0 | M70: =Singles!X264 -> 0 | AH70: 0
B71: 65 | C71: =Singles!O265 -> 0 | D71: =Singles!P265 -> TBC | E71: =Singles!Q265 -> TBC | F71: =Singles!R265 -> TBC | G71: =Singles!S265 -> TBC | H71: =Singles!T265 -> TBC | I71: =Singles!U265 -> TBC | K71: =Singles!V265 -> 0 | L71: =Singles!W265 -> 0 | M71: =Singles!X265 -> 0 | AH71: 0
B72: 66 | C72: =Singles!O266 -> 0 | D72: =Singles!P266 -> TBC | E72: =Singles!Q266 -> TBC | F72: =Singles!R266 -> TBC | G72: =Singles!S266 -> TBC | H72: =Singles!T266 -> TBC | I72: =Singles!U266 -> TBC | K72: =Singles!V266 -> 0 | L72: =Singles!W266 -> 0 | M72: =Singles!X266 -> 0 | AH72: 0
B73: 67 | C73: =Singles!O267 -> 0 | D73: =Singles!P267 -> TBC | E73: =Singles!Q267 -> TBC | F73: =Singles!R267 -> TBC | G73: =Singles!S267 -> TBC | H73: =Singles!T267 -> TBC | I73: =Singles!U267 -> TBC | K73: =Singles!V267 -> 0 | L73: =Singles!W267 -> 0 | M73: =Singles!X267 -> 0 | AH73: 0
B74: 68 | C74: =Singles!O268 -> 0 | D74: =Singles!P268 -> TBC | E74: =Singles!Q268 -> TBC | F74: =Singles!R268 -> TBC | G74: =Singles!S268 -> TBC | H74: =Singles!T268 -> TBC | I74: =Singles!U268 -> TBC | K74: =Singles!V268 -> 0 | L74: =Singles!W268 -> 0 | M74: =Singles!X268 -> 0 | AH74: 0
B75: 69 | C75: =Singles!O269 -> 0 | D75: =Singles!P269 -> TBC | E75: =Singles!Q269 -> TBC | F75: =Singles!R269 -> TBC | G75: =Singles!S269 -> TBC | H75: =Singles!T269 -> TBC | I75: =Singles!U269 -> TBC | K75: =Singles!V269 -> 0 | L75: =Singles!W269 -> 0 | M75: =Singles!X269 -> 0 | AH75: 0
B76: 70 | C76: =Singles!O270 -> 0 | D76: =Singles!P270 -> TBC | E76: =Singles!Q270 -> TBC | F76: =Singles!R270 -> TBC | G76: =Singles!S270 -> TBC | H76: =Singles!T270 -> TBC | I76: =Singles!U270 -> TBC | K76: =Singles!V270 -> 0 | L76: =Singles!W270 -> 0 | M76: =Singles!X270 -> 0 | AH76: 0
B77: 71 | C77: =Singles!O271 -> 0 | D77: =Singles!P271 -> TBC | E77: =Singles!Q271 -> TBC | F77: =Singles!R271 -> TBC | G77: =Singles!S271 -> TBC | H77: =Singles!T271 -> TBC | I77: =Singles!U271 -> TBC | K77: =Singles!V271 -> 0 | L77: =Singles!W271 -> 0 | M77: =Singles!X271 -> 0 | AH77: 0
B78: 72 | C78: =Singles!O272 -> 0 | D78: =Singles!P272 -> TBC | E78: =Singles!Q272 -> TBC | F78: =Singles!R272 -> TBC | G78: =Singles!S272 -> TBC | H78: =Singles!T272 -> TBC | I78: =Singles!U272 -> TBC | K78: =Singles!V272 -> 0 | L78: =Singles!W272 -> 0 | M78: =Singles!X272 -> 0 | AH78: 0
B79: 73 | C79: =Singles!O273 -> 0 | D79: =Singles!P273 -> TBC | E79: =Singles!Q273 -> TBC | F79: =Singles!R273 -> TBC | G79: =Singles!S273 -> TBC | H79: =Singles!T273 -> TBC | I79: =Singles!U273 -> TBC | K79: =Singles!V273 -> 0 | L79: =Singles!W273 -> 0 | M79: =Singles!X273 -> 0 | AH79: 0
B80: 74 | C80: =Singles!O274 -> 0 | D80: =Singles!P274 -> TBC | E80: =Singles!Q274 -> TBC | F80: =Singles!R274 -> TBC | G80: =Singles!S274 -> TBC | H80: =Singles!T274 -> TBC | I80: =Singles!U274 -> TBC | K80: =Singles!V274 -> 0 | L80: =Singles!W274 -> 0 | M80: =Singles!X274 -> 0 | AH80: 0
B81: 75 | C81: =Singles!O275 -> 0 | D81: =Singles!P275 -> TBC | E81: =Singles!Q275 -> TBC | F81: =Singles!R275 -> TBC | G81: =Singles!S275 -> TBC | H81: =Singles!T275 -> TBC | I81: =Singles!U275 -> TBC | K81: =Singles!V275 -> 0 | L81: =Singles!W275 -> 0 | M81: =Singles!X275 -> 0 | AH81: 0
A82: =$D$7 -> DKIT

Sheet RIM
A1: =$D$7 -> UCD
A2: =$D$7 -> UCD | B2: Male Intermediate Recurve | E2: Host Club | J2: =$D$7 -> UCD | K2: Scores | N2: UCD | AH2: =AH7 -> Paul Beirne
E3: =Entries!K6 -> UL IV | F3: =Entries!K7 -> DkIT IV | G3: =Entries!K8 -> GMIT IV | H3: =Entries!K9 -> DCU IV | I3: =Entries!K10 -> NUIG IV | K3: Total | L3: Lowest | M3: League
B5: UCD | K5: UCD
C6: Name | D6: College | E6: =Entries!K6 -> UL IV | F6: =Entries!K7 -> DkIT IV | G6: =Entries!K8 -> GMIT IV | H6: =Entries!K9 -> DCU IV | I6: =Entries!K10 -> NUIG IV | K6: Total | L6: Lowest | M6: League total
B7: 1 | C7: =Singles!AB207 -> Paul Beirne | D7: =Singles!AC207 -> UCD | E7: =Singles!AD207 -> 454 | F7: =Singles!AE207 -> 426 | G7: =Singles!AF207 -> 440 | H7: =Singles!AG207 -> 0 | I7: =Singles!AH207 -> 500 | K7: =Singles!AI207 -> 1820 | L7: =Singles!AJ207 -> 0 | M7: =Singles!AK207 -> 1820.050045 | AH7: =C7 -> Paul Beirne
B8: 2 | C8: =Singles!AB209 -> Brendan McManus | D8: =Singles!AC209 -> DCU | E8: =Singles!AD209 -> 471 | F8: =Singles!AE209 -> 443 | G8: =Singles!AF209 -> 0 | H8: =Singles!AG209 -> 402 | I8: =Singles!AH209 -> 496 | K8: =Singles!AI209 -> 1812 | L8: =Singles!AJ209 -> 0 | M8: =Singles!AK209 -> 1812.049647 | AH8: Brendan McManus
B9: 3 | C9: =Singles!AB202 -> Charles O'Dowd | D9: =Singles!AC202 -> UCD | E9: =Singles!AD202 -> 423 | F9: =Singles!AE202 -> 414 | G9: =Singles!AF202 -> 482 | H9: =Singles!AG202 -> 435 | I9: =Singles!AH202 -> 465 | K9: =Singles!AI202 -> 2219 | L9: =Singles!AJ202 -> 414 | M9: =Singles!AK202 -> 1805.048247 | AH9: Charles O'Dowd
B10: 4 | C10: =Singles!AB201 -> See Qui Ren | D10: =Singles!AC201 -> DKIT | E10: =Singles!AD201 -> 427 | F10: =Singles!AE201 -> 470 | G10: =Singles!AF201 -> 448 | H10: =Singles!AG201 -> 433 | I10: =Singles!AH201 -> 453 | K10: =Singles!AI201 -> 2231 | L10: =Singles!AJ201 -> 427 | M10: =Singles!AK201 -> 1804.047045 | AH10: See Qui Ren
B11: 5 | C11: =Singles!AB204 -> Wai Hong Keet | D11: =Singles!AC204 -> DKIT | E11: =Singles!AD204 -> 416 | F11: =Singles!AE204 -> 460 | G11: =Singles!AF204 -> 455 | H11: =Singles!AG204 -> 423 | I11: =Singles!AH204 -> 410 | K11: =Singles!AI204 -> 2164 | L11: =Singles!AJ204 -> 410 | M11: =Singles!AK204 -> 1754.046045 | AH11: Wai Hong Keet
B12: 6 | C12: =Singles!AB203 -> Frank Stafford | D12: =Singles!AC203 -> UL | E12: =Singles!AD203 -> 440 | F12: =Singles!AE203 -> 432 | G12: =Singles!AF203 -> 448 | H12: =Singles!AG203 -> 432 | I12: =Singles!AH203 -> 433 | K12: =Singles!AI203 -> 2185 | L12: =Singles!AJ203 -> 432 | M12: =Singles!AK203 -> 1753.044844 | AH12: Frank Stafford
B13: 7 | C13: =Singles!AB205 -> Kristian Bongo | D13: =Singles!AC205 -> DIT | E13: =Singles!AD205 -> 381 | F13: =Singles!AE205 -> 412 | G13: =Singles!AF205 -> 440 | H13: =Singles!AG205 -> 405 | I13: =Singles!AH205 -> 457 | K13: =Singles!AI205 -> 2095 | L13: =Singles!AJ205 -> 381 | M13: =Singles!AK205 -> 1714.045744 | AH13: Kristian Bongo
B14: 8 | C14: =Singles!AB206 -> Joshua Tracey | D14: =Singles!AC206 -> DIT | E14: =Singles!AD206 -> 409 | F14: =Singles!AE206 -> 378 | G14: =Singles!AF206 -> 427 | H14: =Singles!AG206 -> 411 | I14: =Singles!AH206 -> 385 | K14: =Singles!AI206 -> 2010 | L14: =Singles!AJ206 -> 378 | M14: =Singles!AK206 -> 1632.042741 | AH14: Joshua Tracey
B15: 9 | C15: =Singles!AB208 -> Conor McCann | D15: =Singles!AC208 -> GMIT | E15: =Singles!AD208 -> 435 | F15: =Singles!AE208 -> 256 | G15: =Singles!AF208 -> 401 | H15: =Singles!AG208 -> 398 | I15: =Singles!AH208 -> 324 | K15: =Singles!AI208 -> 1814 | L15: =Singles!AJ208 -> 256 | M15: =Singles!AK208 -> 1558.04354 | AH15: Conor McCann
B16: 10 | C16: =Singles!AB211 -> Aaron Downes | D16: =Singles!AC211 -> GMIT | E16: =Singles!AD211 -> 0 | F16: =Singles!AE211 -> 392 | G16: =Singles!AF211 -> 391 | H16: =Singles!AG211 -> 388 | I16: =Singles!AH211 -> 330 | K16: =Singles!AI211 -> 1501 | L16: =Singles!AJ211 -> 0 | M16: =Singles!AK211 -> 1501.039239 | AH16: Aaron Downes
B17: 11 | C17: =Singles!AB210 -> Mark Sherlock | D17: =Singles!AC210 -> GMIT | E17: =Singles!AD210 -> 393 | F17: =Singles!AE210 -> 371 | G17: =Singles!AF210 -> 311 | H17: =Singles!AG210 -> 358 | I17: =Singles!AH210 -> 338 | K17: =Singles!AI210 -> 1771 | L17: =Singles!AJ210 -> 311 | M17: =Singles!AK210 -> 1460.039337 | AH17: Mark Sherlock
B18: 12 | C18: =Singles!AB212 -> Philip Early | D18: =Singles!AC212 -> DCU | E18: =Singles!AD212 -> 360 | F18: =Singles!AE212 -> 373 | G18: =Singles!AF212 -> 0 | H18: =Singles!AG212 -> 372 | I18: =Singles!AH212 -> 344 | K18: =Singles!AI212 -> 1449 | L18: =Singles!AJ212 -> 0 | M18: =Singles!AK212 -> 1449.037337 | AH18: Philip Early
B19: 13 | C19: =Singles!AB214 -> James Burke | D19: =Singles!AC214 -> NUIG | E19: =Singles!AD214 -> 438 | F19: =Singles!AE214 -> 465 | G19: =Singles!AF214 -> 0 | H19: =Singles!AG214 -> 0 | I19: =Singles!AH214 -> 459 | K19: =Singles!AI214 -> 1362 | L19: =Singles!AJ214 -> 0 | M19: =Singles!AK214 -> 1362.046546 | AH19: James Burke
B20: 14 | C20: =Singles!AB215 -> Luke Blake | D20: =Singles!AC215 -> UL | E20: =Singles!AD215 -> 282 | F20: =Singles!AE215 -> 324 | G20: =Singles!AF215 -> 332 | H20: =Singles!AG215 -> 331 | I20: =Singles!AH215 -> 0 | K20: =Singles!AI215 -> 1269 | L20: =Singles!AJ215 -> 0 | M20: =Singles!AK215 -> 1269.033233 | AH20: Luke Blake
B21: 15 | C21: =Singles!AB213 -> Leo Byrne | D21: =Singles!AC213 -> ITC | E21: =Singles!AD213 -> 332 | F21: =Singles!AE213 -> 306 | G21: =Singles!AF213 -> 275 | H21: =Singles!AG213 -> 281 | I21: =Singles!AH213 -> 233 | K21: =Singles!AI213 -> 1427 | L21: =Singles!AJ213 -> 233 | M21: =Singles!AK213 -> 1194.033231 | AH21: Leo Byrne
B22: 16 | C22: =Singles!AB216 -> Yuji Okubo | D22: =Singles!AC216 -> DCU | E22: =Singles!AD216 -> 458 | F22: =Singles!AE216 -> 432 | G22: =Singles!AF216 -> 0 | H22: =Singles!AG216 -> 0 | I22: =Singles!AH216 -> 0 | K22: =Singles!AI216 -> 890 | L22: =Singles!AJ216 -> 0 | M22: =Singles!AK216 -> 890.0458432 | AH22: Yuji Okubo
B23: 17 | C23: =Singles!AB217 -> Kelvin Yee | D23: =Singles!AC217 -> DKIT | E23: =Singles!AD217 -> 0 | F23: =Singles!AE217 -> 412 | G23: =Singles!AF217 -> 0 | H23: =Singles!AG217 -> 428 | I23: =Singles!AH217 -> 0 | K23: =Singles!AI217 -> 840 | L23: =Singles!AJ217 -> 0 | M23: =Singles!AK217 -> 840.0428412 | AH23: Kelvin Yee
B24: 18 | C24: =Singles!AB218 -> Andy Canavan | D24: =Singles!AC218 -> DCU | E24: =Singles!AD218 -> 429 | F24: =Singles!AE218 -> 400 | G24: =Singles!AF218 -> 0 | H24: =Singles!AG218 -> 0 | I24: =Singles!AH218 -> 0 | K24: =Singles!AI218 -> 829 | L24: =Singles!AJ218 -> 0 | M24: =Singles!AK218 -> 829.04294 | AH24: Andy Canavan
B25: 19 | C25: =Singles!AB219 -> Chris O'Leary | D25: =Singles!AC219 -> UCC | E25: =Singles!AD219 -> 0 | F25: =Singles!AE219 -> 0 | G25: =Singles!AF219 -> 0 | H25: =Singles!AG219 -> 390 | I25: =Singles!AH219 -> 411 | K25: =Singles!AI219 -> 801 | L25: =Singles!AJ219 -> 0 | M25: =Singles!AK219 -> 801.041139 | AH25: Chris O'Leary
B26: 20 | C26: =Singles!AB220 -> James Greer | D26: =Singles!AC220 -> UCD | E26: =Singles!AD220 -> 0 | F26: =Singles!AE220 -> 376 | G26: =Singles!AF220 -> 0 | H26: =Singles!AG220 -> 0 | I26: =Singles!AH220 -> 423 | K26: =Singles!AI220 -> 799 | L26: =Singles!AJ220 -> 0 | M26: =Singles!AK220 -> 799.0423376 | AH26: James Greer
B27: 21 | C27: =Singles!AB221 -> Issabele Mayumi | D27: =Singles!AC221 -> DCU | E27: =Singles!AD221 -> 343 | F27: =Singles!AE221 -> 0 | G27: =Singles!AF221 -> 0 | H27: =Singles!AG221 -> 338 | I27: =Singles!AH221 -> 0 | K27: =Singles!AI221 -> 681 | L27: =Singles!AJ221 -> 0 | M27: =Singles!AK221 -> 681.0343338 | AH27: Issabele Mayumi
B28: 22 | C28: =Singles!AB222 -> Brian Conroy | D28: =Singles!AC222 -> UCC | E28: =Singles!AD222 -> 0 | F28: =Singles!AE222 -> 0 | G28: =Singles!AF222 -> 293 | H28: =Singles!AG222 -> 0 | I28: =Singles!AH222 -> 366 | K28: =Singles!AI222 -> 659 | L28: =Singles!AJ222 -> 0 | M28: =Singles!AK222 -> 659.0366293 | AH28: Brian Conroy
B29: 23 | C29: =Singles!AB223 -> Kieran Cullinane | D29: =Singles!AC223 -> NUIG | E29: =Singles!AD223 -> 482 | F29: =Singles!AE223 -> 0 | G29: =Singles!AF223 -> 0 | H29: =Singles!AG223 -> 0 | I29: =Singles!AH223 -> 0 | K29: =Singles!AI223 -> 482 | L29: =Singles!AJ223 -> 0 | M29: =Singles!AK223 -> 482.0482 | AH29: Kieran Cullinane
B30: 24 | C30: =Singles!AB224 -> Sean Sinnott | D30: =Singles!AC224 -> UL | E30: =Singles!AD224 -> 0 | F30: =Singles!AE224 -> 385 | G30: =Singles!AF224 -> 0 | H30: =Singles!AG224 -> 0 | I30: =Singles!AH224 -> 0 | K30: =Singles!AI224 -> 385 | L30: =Singles!AJ224 -> 0 | M30: =Singles!AK224 -> 385.0385 | AH30: Sean Sinnott
B31: 25 | C31: =Singles!AB225 -> Muhammad Hakim Mohd Nasir | D31: =Singles!AC225 -> RCSI | E31: =Singles!AD225 -> 0 | F31: =Singles!AE225 -> 0 | G31: =Singles!AF225 -> 311 | H31: =Singles!AG225 -> 0 | I31: =Singles!AH225 -> 0 | K31: =Singles!AI225 -> 311 | L31: =Singles!AJ225 -> 0 | M31: =Singles!AK225 -> 311.0311 | AH31: Muhammad Hakim Mohd Nasir
B32: 26 | C32: =Singles!AB226 -> DJ Roche | D32: =Singles!AC226 -> MU | E32: =Singles!AD226 -> 0 | F32: =Singles!AE226 -> 306 | G32: =Singles!AF226 -> 0 | H32: =Singles!AG226 -> 0 | I32: =Singles!AH226 -> 0 | K32: =Singles!AI226 -> 306 | L32: =Singles!AJ226 -> 0 | M32: =Singles!AK226 -> 306.0306 | AH32: DJ Roche
B33: 27 | C33: =Singles!AB227 -> Shane O'Sulliven | D33: =Singles!AC227 -> UCC | E33: =Singles!AD227 -> 0 | F33: =Singles!AE227 -> 0 | G33: =Singles!AF227 -> 0 | H33: =Singles!AG227 -> 303 | I33: =Singles!AH227 -> 0 | K33: =Singles!AI227 -> 303 | L33: =Singles!AJ227 -> 0 | M33: =Singles!AK227 -> 303.0303 | AH33: Shane O'Sulliven
B34: 28 | C34: =Singles!AB228 -> Conor Moran | D34: =Singles!AC228 -> UL | E34: =Singles!AD228 -> 0 | F34: =Singles!AE228 -> 257 | G34: =Singles!AF228 -> 0 | H34: =Singles!AG228 -> 0 | I34: =Singles!AH228 -> 0 | K34: =Singles!AI228 -> 257 | L34: =Singles!AJ228 -> 0 | M34: =Singles!AK228 -> 257.0257 | AH34: Conor Moran
B35: 29 | C35: =Singles!AB229 -> Cian Butler | D35: =Singles!AC229 -> DCU | E35: =Singles!AD229 -> 224 | F35: =Singles!AE229 -> 0 | G35: =Singles!AF229 -> 0 | H35: =Singles!AG229 -> 0 | I35: =Singles!AH229 -> 0 | K35: =Singles!AI229 -> 224 | L35: =Singles!AJ229 -> 0 | M35: =Singles!AK229 -> 224.0224 | AH35: Cian Butler
B36: 30 | C36: =Singles!AB230 -> Eoin Hartigan | D36: =Singles!AC230 -> UL | E36: =Singles!AD230 -> 0 | F36: =Singles!AE230 -> 98 | G36: =Singles!AF230 -> 0 | H36: =Singles!AG230 -> 0 | I36: =Singles!AH230 -> 0 | K36: =Singles!AI230 -> 98 | L36: =Singles!AJ230 -> 0 | M36: =Singles!AK230 -> 98.0098 | AH36: Eoin Hartigan
B37: 31 | C37: =Singles!AB231 -> 0 | D37: =Singles!AC231 -> TBC | E37: =Singles!AD231 -> TBC | F37: =Singles!AE231 -> TBC | G37: =Singles!AF231 -> TBC | H37: =Singles!AG231 -> TBC | I37: =Singles!AH231 -> TBC | K37: =Singles!AI231 -> 0 | L37: =Singles!AJ231 -> 0 | M37: =Singles!AK231 -> 0 | AH37: 0
B38: 32 | C38: =Singles!AB232 -> 0 | D38: =Singles!AC232 -> TBC | E38: =Singles!AD232 -> TBC | F38: =Singles!AE232 -> TBC | G38: =Singles!AF232 -> TBC | H38: =Singles!AG232 -> TBC | I38: =Singles!AH232 -> TBC | K38: =Singles!AI232 -> 0 | L38: =Singles!AJ232 -> 0 | M38: =Singles!AK232 -> 0 | AH38: 0
B39: 33 | C39: =Singles!AB233 -> 0 | D39: =Singles!AC233 -> TBC | E39: =Singles!AD233 -> TBC | F39: =Singles!AE233 -> TBC | G39: =Singles!AF233 -> TBC | H39: =Singles!AG233 -> TBC | I39: =Singles!AH233 -> TBC | K39: =Singles!AI233 -> 0 | L39: =Singles!AJ233 -> 0 | M39: =Singles!AK233 -> 0 | AH39: =C39 -> 0
B40: 34 | C40: =Singles!AB234 -> 0 | D40: =Singles!AC234 -> TBC | E40: =Singles!AD234 -> TBC | F40: =Singles!AE234 -> TBC | G40: =Singles!AF234 -> TBC | H40: =Singles!AG234 -> TBC | I40: =Singles!AH234 -> TBC | K40: =Singles!AI234 -> 0 | L40: =Singles!AJ234 -> 0 | M40: =Singles!AK234 -> 0 | AH40: 0
B41: 35 | C41: =Singles!AB235 -> 0 | D41: =Singles!AC235 -> TBC | E41: =Singles!AD235 -> TBC | F41: =Singles!AE235 -> TBC | G41: =Singles!AF235 -> TBC | H41: =Singles!AG235 -> TBC | I41: =Singles!AH235 -> TBC | K41: =Singles!AI235 -> 0 | L41: =Singles!AJ235 -> 0 | M41: =Singles!AK235 -> 0 | AH41: 0
B42: 36 | C42: =Singles!AB236 -> 0 | D42: =Singles!AC236 -> TBC | E42: =Singles!AD236 -> TBC | F42: =Singles!AE236 -> TBC | G42: =Singles!AF236 -> TBC | H42: =Singles!AG236 -> TBC | I42: =Singles!AH236 -> TBC | K42: =Singles!AI236 -> 0 | L42: =Singles!AJ236 -> 0 | M42: =Singles!AK236 -> 0 | AH42: 0
B43: 37 | C43: =Singles!AB237 -> 0 | D43: =Singles!AC237 -> TBC | E43: =Singles!AD237 -> TBC | F43: =Singles!AE237 -> TBC | G43: =Singles!AF237 -> TBC | H43: =Singles!AG237 -> TBC | I43: =Singles!AH237 -> TBC | K43: =Singles!AI237 -> 0 | L43: =Singles!AJ237 -> 0 | M43: =Singles!AK237 -> 0 | AH43: 0
B44: 38 | C44: =Singles!AB238 -> 0 | D44: =Singles!AC238 -> TBC | E44: =Singles!AD238 -> TBC | F44: =Singles!AE238 -> TBC | G44: =Singles!AF238 -> TBC | H44: =Singles!AG238 -> TBC | I44: =Singles!AH238 -> TBC | K44: =Singles!AI238 -> 0 | L44: =Singles!AJ238 -> 0 | M44: =Singles!AK238 -> 0 | AH44: 0
B45: 39 | C45: =Singles!AB239 -> 0 | D45: =Singles!AC239 -> TBC | E45: =Singles!AD239 -> TBC | F45: =Singles!AE239 -> TBC | G45: =Singles!AF239 -> TBC | H45: =Singles!AG239 -> TBC | I45: =Singles!AH239 -> TBC | K45: =Singles!AI239 -> 0 | L45: =Singles!AJ239 -> 0 | M45: =Singles!AK239 -> 0 | AH45: 0
B46: 40 | C46: =Singles!AB240 -> 0 | D46: =Singles!AC240 -> TBC | E46: =Singles!AD240 -> TBC | F46: =Singles!AE240 -> TBC | G46: =Singles!AF240 -> TBC | H46: =Singles!AG240 -> TBC | I46: =Singles!AH240 -> TBC | K46: =Singles!AI240 -> 0 | L46: =Singles!AJ240 -> 0 | M46: =Singles!AK240 -> 0 | AH46: 0
B47: 41 | C47: =Singles!AB241 -> 0 | D47: =Singles!AC241 -> TBC | E47: =Singles!AD241 -> TBC | F47: =Singles!AE241 -> TBC | G47: =Singles!AF241 -> TBC | H47: =Singles!AG241 -> TBC | I47: =Singles!AH241 -> TBC | K47: =Singles!AI241 -> 0 | L47: =Singles!AJ241 -> 0 | M47: =Singles!AK241 -> 0 | AH47: 0
B48: 42 | C48: =Singles!AB242 -> 0 | D48: =Singles!AC242 -> TBC | E48: =Singles!AD242 -> TBC | F48: =Singles!AE242 -> TBC | G48: =Singles!AF242 -> TBC | H48: =Singles!AG242 -> TBC | I48: =Singles!AH242 -> TBC | K48: =Singles!AI242 -> 0 | L48: =Singles!AJ242 -> 0 | M48: =Singles!AK242 -> 0 | AH48: 0
B49: 43 | C49: =Singles!AB243 -> 0 | D49: =Singles!AC243 -> TBC | E49: =Singles!AD243 -> TBC | F49: =Singles!AE243 -> TBC | G49: =Singles!AF243 -> TBC | H49: =Singles!AG243 -> TBC | I49: =Singles!AH243 -> TBC | K49: =Singles!AI243 -> 0 | L49: =Singles!AJ243 -> 0 | M49: =Singles!AK243 -> 0 | AH49: 0
B50: 44 | C50: =Singles!AB244 -> 0 | D50: =Singles!AC244 -> TBC | E50: =Singles!AD244 -> TBC | F50: =Singles!AE244 -> TBC | G50: =Singles!AF244 -> TBC | H50: =Singles!AG244 -> TBC | I50: =Singles!AH244 -> TBC | K50: =Singles!AI244 -> 0 | L50: =Singles!AJ244 -> 0 | M50: =Singles!AK244 -> 0 | AH50: 0
B51: 45 | C51: =Singles!AB245 -> 0 | D51: =Singles!AC245 -> TBC | E51: =Singles!AD245 -> TBC | F51: =Singles!AE245 -> TBC | G51: =Singles!AF245 -> TBC | H51: =Singles!AG245 -> TBC | I51: =Singles!AH245 -> TBC | K51: =Singles!AI245 -> 0 | L51: =Singles!AJ245 -> 0 | M51: =Singles!AK245 -> 0 | AH51: 0
B52: 46 | C52: =Singles!AB246 -> 0 | D52: =Singles!AC246 -> TBC | E52: =Singles!AD246 -> TBC | F52: =Singles!AE246 -> TBC | G52: =Singles!AF246 -> TBC | H52: =Singles!AG246 -> TBC | I52: =Singles!AH246 -> TBC | K52: =Singles!AI246 -> 0 | L52: =Singles!AJ246 -> 0 | M52: =Singles!AK246 -> 0 | AH52: 0
B53: 47 | C53: =Singles!AB247 -> 0 | D53: =Singles!AC247 -> TBC | E53: =Singles!AD247 -> TBC | F53: =Singles!AE247 -> TBC | G53: =Singles!AF247 -> TBC | H53: =Singles!AG247 -> TBC | I53: =Singles!AH247 -> TBC | K53: =Singles!AI247 -> 0 | L53: =Singles!AJ247 -> 0 | M53: =Singles!AK247 -> 0 | AH53: 0
B54: 48 | C54: =Singles!AB248 -> 0 | D54: =Singles!AC248 -> TBC | E54: =Singles!AD248 -> TBC | F54: =Singles!AE248 -> TBC | G54: =Singles!AF248 -> TBC | H54: =Singles!AG248 -> TBC | I54: =Singles!AH248 -> TBC | K54: =Singles!AI248 -> 0 | L54: =Singles!AJ248 -> 0 | M54: =Singles!AK248 -> 0 | AH54: 0
B55: 49 | C55: =Singles!AB249 -> 0 | D55: =Singles!AC249 -> TBC | E55: =Singles!AD249 -> TBC | F55: =Singles!AE249 -> TBC | G55: =Singles!AF249 -> TBC | H55: =Singles!AG249 -> TBC | I55: =Singles!AH249 -> TBC | K55: =Singles!AI249 -> 0 | L55: =Singles!AJ249 -> 0 | M55: =Singles!AK249 -> 0 | AH55: 0
B56: 50 | C56: =Singles!AB250 -> 0 | D56: =Singles!AC250 -> TBC | E56: =Singles!AD250 -> TBC | F56: =Singles!AE250 -> TBC | G56: =Singles!AF250 -> TBC | H56: =Singles!AG250 -> TBC | I56: =Singles!AH250 -> TBC | K56: =Singles!AI250 -> 0 | L56: =Singles!AJ250 -> 0 | M56: =Singles!AK250 -> 0 | AH56: 0
B57: 51 | C57: =Singles!AB251 -> 0 | D57: =Singles!AC251 -> TBC | E57: =Singles!AD251 -> TBC | F57: =Singles!AE251 -> TBC | G57: =Singles!AF251 -> TBC | H57: =Singles!AG251 -> TBC | I57: =Singles!AH251 -> TBC | K57: =Singles!AI251 -> 0 | L57: =Singles!AJ251 -> 0 | M57: =Singles!AK251 -> 0 | AH57: 0
B58: 52 | C58: =Singles!AB252 -> 0 | D58: =Singles!AC252 -> TBC | E58: =Singles!AD252 -> TBC | F58: =Singles!AE252 -> TBC | G58: =Singles!AF252 -> TBC | H58: =Singles!AG252 -> TBC | I58: =Singles!AH252 -> TBC | K58: =Singles!AI252 -> 0 | L58: =Singles!AJ252 -> 0 | M58: =Singles!AK252 -> 0 | AH58: 0
B59: 53 | C59: =Singles!AB253 -> 0 | D59: =Singles!AC253 -> TBC | E59: =Singles!AD253 -> TBC | F59: =Singles!AE253 -> TBC | G59: =Singles!AF253 -> TBC | H59: =Singles!AG253 -> TBC | I59: =Singles!AH253 -> TBC | K59: =Singles!AI253 -> 0 | L59: =Singles!AJ253 -> 0 | M59: =Singles!AK253 -> 0 | AH59: 0
B60: 54 | C60: =Singles!AB254 -> 0 | D60: =Singles!AC254 -> TBC | E60: =Singles!AD254 -> TBC | F60: =Singles!AE254 -> TBC | G60: =Singles!AF254 -> TBC | H60: =Singles!AG254 -> TBC | I60: =Singles!AH254 -> TBC | K60: =Singles!AI254 -> 0 | L60: =Singles!AJ254 -> 0 | M60: =Singles!AK254 -> 0 | AH60: 0
B61: 55 | C61: =Singles!AB255 -> 0 | D61: =Singles!AC255 -> TBC | E61: =Singles!AD255 -> TBC | F61: =Singles!AE255 -> TBC | G61: =Singles!AF255 -> TBC | H61: =Singles!AG255 -> TBC | I61: =Singles!AH255 -> TBC | K61: =Singles!AI255 -> 0 | L61: =Singles!AJ255 -> 0 | M61: =Singles!AK255 -> 0 | AH61: 0
B62: 56 | C62: =Singles!AB256 -> 0 | D62: =Singles!AC256 -> TBC | E62: =Singles!AD256 -> TBC | F62: =Singles!AE256 -> TBC | G62: =Singles!AF256 -> TBC | H62: =Singles!AG256 -> TBC | I62: =Singles!AH256 -> TBC | K62: =Singles!AI256 -> 0 | L62: =Singles!AJ256 -> 0 | M62: =Singles!AK256 -> 0 | AH62: 0
B63: 57 | C63: =Singles!AB257 -> 0 | D63: =Singles!AC257 -> TBC | E63: =Singles!AD257 -> TBC | F63: =Singles!AE257 -> TBC | G63: =Singles!AF257 -> TBC | H63: =Singles!AG257 -> TBC | I63: =Singles!AH257 -> TBC | K63: =Singles!AI257 -> 0 | L63: =Singles!AJ257 -> 0 | M63: =Singles!AK257 -> 0 | AH63: 0
B64: 58 | C64: =Singles!AB258 -> 0 | D64: =Singles!AC258 -> TBC | E64: =Singles!AD258 -> TBC | F64: =Singles!AE258 -> TBC | G64: =Singles!AF258 -> TBC | H64: =Singles!AG258 -> TBC | I64: =Singles!AH258 -> TBC | K64: =Singles!AI258 -> 0 | L64: =Singles!AJ258 -> 0 | M64: =Singles!AK258 -> 0 | AH64: 0
B65: 59 | C65: =Singles!AB259 -> 0 | D65: =Singles!AC259 -> TBC | E65: =Singles!AD259 -> TBC | F65: =Singles!AE259 -> TBC | G65: =Singles!AF259 -> TBC | H65: =Singles!AG259 -> TBC | I65: =Singles!AH259 -> TBC | K65: =Singles!AI259 -> 0 | L65: =Singles!AJ259 -> 0 | M65: =Singles!AK259 -> 0 | AH65: 0
B66: 60 | C66: =Singles!AB260 -> 0 | D66: =Singles!AC260 -> TBC | E66: =Singles!AD260 -> TBC | F66: =Singles!AE260 -> TBC | G66: =Singles!AF260 -> TBC | H66: =Singles!AG260 -> TBC | I66: =Singles!AH260 -> TBC | K66: =Singles!AI260 -> 0 | L66: =Singles!AJ260 -> 0 | M66: =Singles!AK260 -> 0 | AH66: 0
B67: 61 | C67: =Singles!AB261 -> 0 | D67: =Singles!AC261 -> TBC | E67: =Singles!AD261 -> TBC | F67: =Singles!AE261 -> TBC | G67: =Singles!AF261 -> TBC | H67: =Singles!AG261 -> TBC | I67: =Singles!AH261 -> TBC | K67: =Singles!AI261 -> 0 | L67: =Singles!AJ261 -> 0 | M67: =Singles!AK261 -> 0 | AH67: 0
B68: 62 | C68: =Singles!AB262 -> 0 | D68: =Singles!AC262 -> TBC | E68: =Singles!AD262 -> TBC | F68: =Singles!AE262 -> TBC | G68: =Singles!AF262 -> TBC | H68: =Singles!AG262 -> TBC | I68: =Singles!AH262 -> TBC | K68: =Singles!AI262 -> 0 | L68: =Singles!AJ262 -> 0 | M68: =Singles!AK262 -> 0 | AH68: 0
B69: 63 | C69: =Singles!AB263 -> 0 | D69: =Singles!AC263 -> TBC | E69: =Singles!AD263 -> TBC | F69: =Singles!AE263 -> TBC | G69: =Singles!AF263 -> TBC | H69: =Singles!AG263 -> TBC | I69: =Singles!AH263 -> TBC | K69: =Singles!AI263 -> 0 | L69: =Singles!AJ263 -> 0 | M69: =Singles!AK263 -> 0 | AH69: 0
B70: 64 | C70: =Singles!AB264 -> 0 | D70: =Singles!AC264 -> TBC | E70: =Singles!AD264 -> TBC | F70: =Singles!AE264 -> TBC | G70: =Singles!AF264 -> TBC | H70: =Singles!AG264 -> TBC | I70: =Singles!AH264 -> TBC | K70: =Singles!AI264 -> 0 | L70: =Singles!AJ264 -> 0 | M70: =Singles!AK264 -> 0 | AH70: 0
B71: 65 | C71: =Singles!AB265 -> 0 | D71: =Singles!AC265 -> TBC | E71: =Singles!AD265 -> TBC | F71: =Singles!AE265 -> TBC | G71: =Singles!AF265 -> TBC | H71: =Singles!AG265 -> TBC | I71: =Singles!AH265 -> TBC | K71: =Singles!AI265 -> 0 | L71: =Singles!AJ265 -> 0 | M71: =Singles!AK265 -> 0 | AH71: 0
B72: 66 | C72: =Singles!AB266 -> 0 | D72: =Singles!AC266 -> TBC | E72: =Singles!AD266 -> TBC | F72: =Singles!AE266 -> TBC | G72: =Singles!AF266 -> TBC | H72: =Singles!AG266 -> TBC | I72: =Singles!AH266 -> TBC | K72: =Singles!AI266 -> 0 | L72: =Singles!AJ266 -> 0 | M72: =Singles!AK266 -> 0 | AH72: 0
B73: 67 | C73: =Singles!AB267 -> 0 | D73: =Singles!AC267 -> TBC | E73: =Singles!AD267 -> TBC | F73: =Singles!AE267 -> TBC | G73: =Singles!AF267 -> TBC | H73: =Singles!AG267 -> TBC | I73: =Singles!AH267 -> TBC | K73: =Singles!AI267 -> 0 | L73: =Singles!AJ267 -> 0 | M73: =Singles!AK267 -> 0 | AH73: 0
B74: 68 | C74: =Singles!AB268 -> 0 | D74: =Singles!AC268 -> TBC | E74: =Singles!AD268 -> TBC | F74: =Singles!AE268 -> TBC | G74: =Singles!AF268 -> TBC | H74: =Singles!AG268 -> TBC | I74: =Singles!AH268 -> TBC | K74: =Singles!AI268 -> 0 | L74: =Singles!AJ268 -> 0 | M74: =Singles!AK268 -> 0 | AH74: 0
B75: 69 | C75: =Singles!AB269 -> 0 | D75: =Singles!AC269 -> TBC | E75: =Singles!AD269 -> TBC | F75: =Singles!AE269 -> TBC | G75: =Singles!AF269 -> TBC | H75: =Singles!AG269 -> TBC | I75: =Singles!AH269 -> TBC | K75: =Singles!AI269 -> 0 | L75: =Singles!AJ269 -> 0 | M75: =Singles!AK269 -> 0 | AH75: 0
B76: 70 | C76: =Singles!AB270 -> 0 | D76: =Singles!AC270 -> TBC | E76: =Singles!AD270 -> TBC | F76: =Singles!AE270 -> TBC | G76: =Singles!AF270 -> TBC | H76: =Singles!AG270 -> TBC | I76: =Singles!AH270 -> TBC | K76: =Singles!AI270 -> 0 | L76: =Singles!AJ270 -> 0 | M76: =Singles!AK270 -> 0 | AH76: 0
B77: 71 | C77: =Singles!AB271 -> 0 | D77: =Singles!AC271 -> TBC | E77: =Singles!AD271 -> TBC | F77: =Singles!AE271 -> TBC | G77: =Singles!AF271 -> TBC | H77: =Singles!AG271 -> TBC | I77: =Singles!AH271 -> TBC | K77: =Singles!AI271 -> 0 | L77: =Singles!AJ271 -> 0 | M77: =Singles!AK271 -> 0 | AH77: 0
B78: 72 | C78: =Singles!AB272 -> 0 | D78: =Singles!AC272 -> TBC | E78: =Singles!AD272 -> TBC | F78: =Singles!AE272 -> TBC | G78: =Singles!AF272 -> TBC | H78: =Singles!AG272 -> TBC | I78: =Singles!AH272 -> TBC | K78: =Singles!AI272 -> 0 | L78: =Singles!AJ272 -> 0 | M78: =Singles!AK272 -> 0 | AH78: 0
B79: 73 | C79: =Singles!AB273 -> 0 | D79: =Singles!AC273 -> TBC | E79: =Singles!AD273 -> TBC | F79: =Singles!AE273 -> TBC | G79: =Singles!AF273 -> TBC | H79: =Singles!AG273 -> TBC | I79: =Singles!AH273 -> TBC | K79: =Singles!AI273 -> 0 | L79: =Singles!AJ273 -> 0 | M79: =Singles!AK273 -> 0 | AH79: 0
B80: 74 | C80: =Singles!AB274 -> 0 | D80: =Singles!AC274 -> TBC | E80: =Singles!AD274 -> TBC | F80: =Singles!AE274 -> TBC | G80: =Singles!AF274 -> TBC | H80: =Singles!AG274 -> TBC | I80: =Singles!AH274 -> TBC | K80: =Singles!AI274 -> 0 | L80: =Singles!AJ274 -> 0 | M80: =Singles!AK274 -> 0 | AH80: 0
B81: 75 | C81: =Singles!AB275 -> 0 | D81: =Singles!AC275 -> TBC | E81: =Singles!AD275 -> TBC | F81: =Singles!AE275 -> TBC | G81: =Singles!AF275 -> TBC | H81: =Singles!AG275 -> TBC | I81: =Singles!AH275 -> TBC | K81: =Singles!AI275 -> 0 | L81: =Singles!AJ275 -> 0 | M81: =Singles!AK275 -> 0 | AH81: 0
A82: =$D$7 -> UCD

Sheet RIF
A1: =$D$7 -> DCU
A2: DCU | B2: Female Intermediate Recurve | E2: Host Club | J2: =$D$7 -> DCU | K2: Scores | N2: DCU | AH2: =AH7 -> Ciara O'Sullivan
E3: =Entries!K6 -> UL IV | F3: =Entries!K7 -> DkIT IV | G3: =Entries!K8 -> GMIT IV | H3: =Entries!K9 -> DCU IV | I3: =Entries!K10 -> NUIG IV | K3: Total | L3: Lowest | M3: League
B5: DCU | K5: DCU
C6: Name | D6: College | E6: =Entries!K6 -> UL IV | F6: =Entries!K7 -> DkIT IV | G6: =Entries!K8 -> GMIT IV | H6: =Entries!K9 -> DCU IV | I6: =Entries!K10 -> NUIG IV | K6: Total | L6: Lowest | M6: League total
B7: 1 | C7: =Singles!AO203 -> Ciara O'Sullivan | D7: =Singles!AP203 -> DCU | E7: =Singles!AQ203 -> 0 | F7: =Singles!AR203 -> 443 | G7: =Singles!AS203 -> 472 | H7: =Singles!AT203 -> 411 | I7: =Singles!AU203 -> 469 | K7: =Singles!AV203 -> 1795 | L7: =Singles!AW203 -> 0 | M7: =Singles!AX203 -> 1795.047247 | AH7: =C7 -> Ciara O'Sullivan
B8: 2 | C8: =Singles!AO201 -> Maria Jacob | D8: =Singles!AP201 -> UCD | E8: =Singles!AQ201 -> 439 | F8: =Singles!AR201 -> 438 | G8: =Singles!AS201 -> 425 | H8: =Singles!AT201 -> 427 | I8: =Singles!AU201 -> 404 | K8: =Singles!AV201 -> 2133 | L8: =Singles!AW201 -> 404 | M8: =Singles!AX201 -> 1729.043944 | AH8: Maria Jacob
B9: 3 | C9: =Singles!AO202 -> Victoria Shen Fen Tan | D9: =Singles!AP202 -> DKIT | E9: =Singles!AQ202 -> 380 | F9: =Singles!AR202 -> 319 | G9: =Singles!AS202 -> 375 | H9: =Singles!AT202 -> 460 | I9: =Singles!AU202 -> 486 | K9: =Singles!AV202 -> 2020 | L9: =Singles!AW202 -> 319 | M9: =Singles!AX202 -> 1701.048646 | AH9: Victoria Shen Fen Tan
B10: 4 | C10: =Singles!AO204 -> Sinead Naughton | D10: =Singles!AP204 -> GMITC | E10: =Singles!AQ204 -> 387 | F10: =Singles!AR204 -> 0 | G10: =Singles!AS204 -> 397 | H10: =Singles!AT204 -> 372 | I10: =Singles!AU204 -> 436 | K10: =Singles!AV204 -> 1592 | L10: =Singles!AW204 -> 0 | M10: =Singles!AX204 -> 1592.04364 | AH10: Sinead Naughton
B11: 5 | C11: =Singles!AO205 -> Aishling Dignam | D11: =Singles!AP205 -> DCU | E11: =Singles!AQ205 -> 0 | F11: =Singles!AR205 -> 346 | G11: =Singles!AS205 -> 314 | H11: =Singles!AT205 -> 359 | I11: =Singles!AU205 -> 398 | K11: =Singles!AV205 -> 1417 | L11: =Singles!AW205 -> 0 | M11: =Singles!AX205 -> 1417.039836 | AH11: Aishling Dignam
B12: 6 | C12: =Singles!AO206 -> Katie Doyle | D12: =Singles!AP206 -> UCD | E12: =Singles!AQ206 -> 435 | F12: =Singles!AR206 -> 0 | G12: =Singles!AS206 -> 0 | H12: =Singles!AT206 -> 436 | I12: =Singles!AU206 -> 464 | K12: =Singles!AV206 -> 1335 | L12: =Singles!AW206 -> 0 | M12: =Singles!AX206 -> 1335.046444 | AH12: Katie Doyle
B13: 7 | C13: =Singles!AO207 -> Ciara Fergus | D13: =Singles!AP207 -> UL | E13: =Singles!AQ207 -> 335 | F13: =Singles!AR207 -> 352 | G13: =Singles!AS207 -> 277 | H13: =Singles!AT207 -> 306 | I13: =Singles!AU207 -> 0 | K13: =Singles!AV207 -> 1270 | L13: =Singles!AW207 -> 0 | M13: =Singles!AX207 -> 1270.035234 | AH13: Ciara Fergus
B14: 8 | C14: =Singles!AO208 -> Emma Goodwin | D14: =Singles!AP208 -> DCU | E14: =Singles!AQ208 -> 0 | F14: =Singles!AR208 -> 375 | G14: =Singles!AS208 -> 290 | H14: =Singles!AT208 -> 311 | I14: =Singles!AU208 -> 0 | K14: =Singles!AV208 -> 976 | L14: =Singles!AW208 -> 0 | M14: =Singles!AX208 -> 976.0375311 | AH14: Emma Goodwin
B15: 9 | C15: =Singles!AO209 -> Julia Obara | D15: =Singles!AP209 -> NUIG | E15: =Singles!AQ209 -> 354 | F15: =Singles!AR209 -> 0 | G15: =Singles!AS209 -> 357 | H15: =Singles!AT209 -> 91 | I15: =Singles!AU209 -> 0 | K15: =Singles!AV209 -> 802 | L15: =Singles!AW209 -> 0 | M15: =Singles!AX209 -> 802.0357354 | AH15: Julia Obara
B16: 10 | C16: =Singles!AO210 -> Clarke-Ng Choy-Ping | D16: =Singles!AP210 -> DUAC | E16: =Singles!AQ210 -> 0 | F16: =Singles!AR210 -> 367 | G16: =Singles!AS210 -> 0 | H16: =Singles!AT210 -> 407 | I16: =Singles!AU210 -> 0 | K16: =Singles!AV210 -> 774 | L16: =Singles!AW210 -> 0 | M16: =Singles!AX210 -> 774.0407367 | AH16: Clarke-Ng Choy-Ping
B17: 11 | C17: =Singles!AO211 -> Eve Kearney | D17: =Singles!AP211 -> DUAC | E17: =Singles!AQ211 -> 0 | F17: =Singles!AR211 -> 273 | G17: =Singles!AS211 -> 0 | H17: =Singles!AT211 -> 0 | I17: =Singles!AU211 -> 380 | K17: =Singles!AV211 -> 653 | L17: =Singles!AW211 -> 0 | M17: =Singles!AX211 -> 653.0380273 | AH17: Eve Kearney
B18: 12 | C18: =Singles!AO212 -> 0 | D18: =Singles!AP212 -> TBC | E18: =Singles!AQ212 -> TBC | F18: =Singles!AR212 -> TBC | G18: =Singles!AS212 -> TBC | H18: =Singles!AT212 -> TBC | I18: =Singles!AU212 -> TBC | K18: =Singles!AV212 -> 0 | L18: =Singles!AW212 -> 0 | M18: =Singles!AX212 -> 0 | AH18: 0
B19: 13 | C19: =Singles!AO213 -> 0 | D19: =Singles!AP213 -> TBC | E19: =Singles!AQ213 -> TBC | F19: =Singles!AR213 -> TBC | G19: =Singles!AS213 -> TBC | H19: =Singles!AT213 -> TBC | I19: =Singles!AU213 -> TBC | K19: =Singles!AV213 -> 0 | L19: =Singles!AW213 -> 0 | M19: =Singles!AX213 -> 0 | AH19: 0
B20: 14 | C20: =Singles!AO214 -> 0 | D20: =Singles!AP214 -> TBC | E20: =Singles!AQ214 -> TBC | F20: =Singles!AR214 -> TBC | G20: =Singles!AS214 -> TBC | H20: =Singles!AT214 -> TBC | I20: =Singles!AU214 -> TBC | K20: =Singles!AV214 -> 0 | L20: =Singles!AW214 -> 0 | M20: =Singles!AX214 -> 0 | AH20: 0
B21: 15 | C21: =Singles!AO215 -> 0 | D21: =Singles!AP215 -> TBC | E21: =Singles!AQ215 -> TBC | F21: =Singles!AR215 -> TBC | G21: =Singles!AS215 -> TBC | H21: =Singles!AT215 -> TBC | I21: =Singles!AU215 -> TBC | K21: =Singles!AV215 -> 0 | L21: =Singles!AW215 -> 0 | M21: =Singles!AX215 -> 0 | AH21: 0
B22: 16 | C22: =Singles!AO216 -> 0 | D22: =Singles!AP216 -> TBC | E22: =Singles!AQ216 -> TBC | F22: =Singles!AR216 -> TBC | G22: =Singles!AS216 -> TBC | H22: =Singles!AT216 -> TBC | I22: =Singles!AU216 -> TBC | K22: =Singles!AV216 -> 0 | L22: =Singles!AW216 -> 0 | M22: =Singles!AX216 -> 0 | AH22: 0
B23: 17 | C23: =Singles!AO217 -> 0 | D23: =Singles!AP217 -> TBC | E23: =Singles!AQ217 -> TBC | F23: =Singles!AR217 -> TBC | G23: =Singles!AS217 -> TBC | H23: =Singles!AT217 -> TBC | I23: =Singles!AU217 -> TBC | K23: =Singles!AV217 -> 0 | L23: =Singles!AW217 -> 0 | M23: =Singles!AX217 -> 0 | AH23: 0
B24: 18 | C24: =Singles!AO218 -> 0 | D24: =Singles!AP218 -> TBC | E24: =Singles!AQ218 -> TBC | F24: =Singles!AR218 -> TBC | G24: =Singles!AS218 -> TBC | H24: =Singles!AT218 -> TBC | I24: =Singles!AU218 -> TBC | K24: =Singles!AV218 -> 0 | L24: =Singles!AW218 -> 0 | M24: =Singles!AX218 -> 0 | AH24: 0
B25: 19 | C25: =Singles!AO219 -> 0 | D25: =Singles!AP219 -> TBC | E25: =Singles!AQ219 -> TBC | F25: =Singles!AR219 -> TBC | G25: =Singles!AS219 -> TBC | H25: =Singles!AT219 -> TBC | I25: =Singles!AU219 -> TBC | K25: =Singles!AV219 -> 0 | L25: =Singles!AW219 -> 0 | M25: =Singles!AX219 -> 0 | AH25: 0
B26: 20 | C26: =Singles!AO220 -> 0 | D26: =Singles!AP220 -> TBC | E26: =Singles!AQ220 -> TBC | F26: =Singles!AR220 -> TBC | G26: =Singles!AS220 -> TBC | H26: =Singles!AT220 -> TBC | I26: =Singles!AU220 -> TBC | K26: =Singles!AV220 -> 0 | L26: =Singles!AW220 -> 0 | M26: =Singles!AX220 -> 0 | AH26: 0
B27: 21 | C27: =Singles!AO221 -> 0 | D27: =Singles!AP221 -> TBC | E27: =Singles!AQ221 -> TBC | F27: =Singles!AR221 -> TBC | G27: =Singles!AS221 -> TBC | H27: =Singles!AT221 -> TBC | I27: =Singles!AU221 -> TBC | K27: =Singles!AV221 -> 0 | L27: =Singles!AW221 -> 0 | M27: =Singles!AX221 -> 0 | AH27: 0
B28: 22 | C28: =Singles!AO222 -> 0 | D28: =Singles!AP222 -> TBC | E28: =Singles!AQ222 -> TBC | F28: =Singles!AR222 -> TBC | G28: =Singles!AS222 -> TBC | H28: =Singles!AT222 -> TBC | I28: =Singles!AU222 -> TBC | K28: =Singles!AV222 -> 0 | L28: =Singles!AW222 -> 0 | M28: =Singles!AX222 -> 0 | AH28: 0
B29: 23 | C29: =Singles!AO223 -> 0 | D29: =Singles!AP223 -> TBC | E29: =Singles!AQ223 -> TBC | F29: =Singles!AR223 -> TBC | G29: =Singles!AS223 -> TBC | H29: =Singles!AT223 -> TBC | I29: =Singles!AU223 -> TBC | K29: =Singles!AV223 -> 0 | L29: =Singles!AW223 -> 0 | M29: =Singles!AX223 -> 0 | AH29: 0
B30: 24 | C30: =Singles!AO224 -> 0 | D30: =Singles!AP224 -> TBC | E30: =Singles!AQ224 -> TBC | F30: =Singles!AR224 -> TBC | G30: =Singles!AS224 -> TBC | H30: =Singles!AT224 -> TBC | I30: =Singles!AU224 -> TBC | K30: =Singles!AV224 -> 0 | L30: =Singles!AW224 -> 0 | M30: =Singles!AX224 -> 0 | AH30: 0
B31: 25 | C31: =Singles!AO225 -> 0 | D31: =Singles!AP225 -> TBC | E31: =Singles!AQ225 -> TBC | F31: =Singles!AR225 -> TBC | G31: =Singles!AS225 -> TBC | H31: =Singles!AT225 -> TBC | I31: =Singles!AU225 -> TBC | K31: =Singles!AV225 -> 0 | L31: =Singles!AW225 -> 0 | M31: =Singles!AX225 -> 0 | AH31: 0
B32: 26 | C32: =Singles!AO226 -> 0 | D32: =Singles!AP226 -> TBC | E32: =Singles!AQ226 -> TBC | F32: =Singles!AR226 -> TBC | G32: =Singles!AS226 -> TBC | H32: =Singles!AT226 -> TBC | I32: =Singles!AU226 -> TBC | K32: =Singles!AV226 -> 0 | L32: =Singles!AW226 -> 0 | M32: =Singles!AX226 -> 0 | AH32: 0
B33: 27 | C33: =Singles!AO227 -> 0 | D33: =Singles!AP227 -> TBC | E33: =Singles!AQ227 -> TBC | F33: =Singles!AR227 -> TBC | G33: =Singles!AS227 -> TBC | H33: =Singles!AT227 -> TBC | I33: =Singles!AU227 -> TBC | K33: =Singles!AV227 -> 0 | L33: =Singles!AW227 -> 0 | M33: =Singles!AX227 -> 0 | AH33: 0
B34: 28 | C34: =Singles!AO228 -> 0 | D34: =Singles!AP228 -> TBC | E34: =Singles!AQ228 -> TBC | F34: =Singles!AR228 -> TBC | G34: =Singles!AS228 -> TBC | H34: =Singles!AT228 -> TBC | I34: =Singles!AU228 -> TBC | K34: =Singles!AV228 -> 0 | L34: =Singles!AW228 -> 0 | M34: =Singles!AX228 -> 0 | AH34: 0
B35: 29 | C35: =Singles!AO229 -> 0 | D35: =Singles!AP229 -> TBC | E35: =Singles!AQ229 -> TBC | F35: =Singles!AR229 -> TBC | G35: =Singles!AS229 -> TBC | H35: =Singles!AT229 -> TBC | I35: =Singles!AU229 -> TBC | K35: =Singles!AV229 -> 0 | L35: =Singles!AW229 -> 0 | M35: =Singles!AX229 -> 0 | AH35: 0
B36: 30 | C36: =Singles!AO230 -> 0 | D36: =Singles!AP230 -> TBC | E36: =Singles!AQ230 -> TBC | F36: =Singles!AR230 -> TBC | G36: =Singles!AS230 -> TBC | H36: =Singles!AT230 -> TBC | I36: =Singles!AU230 -> TBC | K36: =Singles!AV230 -> 0 | L36: =Singles!AW230 -> 0 | M36: =Singles!AX230 -> 0 | AH36: 0
B37: 31 | C37: =Singles!AO231 -> 0 | D37: =Singles!AP231 -> TBC | E37: =Singles!AQ231 -> TBC | F37: =Singles!AR231 -> TBC | G37: =Singles!AS231 -> TBC | H37: =Singles!AT231 -> TBC | I37: =Singles!AU231 -> TBC | K37: =Singles!AV231 -> 0 | L37: =Singles!AW231 -> 0 | M37: =Singles!AX231 -> 0 | AH37: 0
B38: 32 | C38: =Singles!AO232 -> 0 | D38: =Singles!AP232 -> TBC | E38: =Singles!AQ232 -> TBC | F38: =Singles!AR232 -> TBC | G38: =Singles!AS232 -> TBC | H38: =Singles!AT232 -> TBC | I38: =Singles!AU232 -> TBC | K38: =Singles!AV232 -> 0 | L38: =Singles!AW232 -> 0 | M38: =Singles!AX232 -> 0 | AH38: 0
B39: 33 | C39: =Singles!AO233 -> 0 | D39: =Singles!AP233 -> TBC | E39: =Singles!AQ233 -> TBC | F39: =Singles!AR233 -> TBC | G39: =Singles!AS233 -> TBC | H39: =Singles!AT233 -> TBC | I39: =Singles!AU233 -> TBC | K39: =Singles!AV233 -> 0 | L39: =Singles!AW233 -> 0 | M39: =Singles!AX233 -> 0 | AH39: =C39 -> 0
B40: 34 | C40: =Singles!AO234 -> 0 | D40: =Singles!AP234 -> TBC | E40: =Singles!AQ234 -> TBC | F40: =Singles!AR234 -> TBC | G40: =Singles!AS234 -> TBC | H40: =Singles!AT234 -> TBC | I40: =Singles!AU234 -> TBC | K40: =Singles!AV234 -> 0 | L40: =Singles!AW234 -> 0 | M40: =Singles!AX234 -> 0 | AH40: 0
B41: 35 | C41: =Singles!AO235 -> 0 | D41: =Singles!AP235 -> TBC | E41: =Singles!AQ235 -> TBC | F41: =Singles!AR235 -> TBC | G41: =Singles!AS235 -> TBC | H41: =Singles!AT235 -> TBC | I41: =Singles!AU235 -> TBC | K41: =Singles!AV235 -> 0 | L41: =Singles!AW235 -> 0 | M41: =Singles!AX235 -> 0 | AH41: 0
B42: 36 | C42: =Singles!AO236 -> 0 | D42: =Singles!AP236 -> TBC | E42: =Singles!AQ236 -> TBC | F42: =Singles!AR236 -> TBC | G42: =Singles!AS236 -> TBC | H42: =Singles!AT236 -> TBC | I42: =Singles!AU236 -> TBC | K42: =Singles!AV236 -> 0 | L42: =Singles!AW236 -> 0 | M42: =Singles!AX236 -> 0 | AH42: 0
B43: 37 | C43: =Singles!AO237 -> 0 | D43: =Singles!AP237 -> TBC | E43: =Singles!AQ237 -> TBC | F43: =Singles!AR237 -> TBC | G43: =Singles!AS237 -> TBC | H43: =Singles!AT237 -> TBC | I43: =Singles!AU237 -> TBC | K43: =Singles!AV237 -> 0 | L43: =Singles!AW237 -> 0 | M43: =Singles!AX237 -> 0 | AH43: 0
B44: 38 | C44: =Singles!AO238 -> 0 | D44: =Singles!AP238 -> TBC | E44: =Singles!AQ238 -> TBC | F44: =Singles!AR238 -> TBC | G44: =Singles!AS238 -> TBC | H44: =Singles!AT238 -> TBC | I44: =Singles!AU238 -> TBC | K44: =Singles!AV238 -> 0 | L44: =Singles!AW238 -> 0 | M44: =Singles!AX238 -> 0 | AH44: 0
B45: 39 | C45: =Singles!AO239 -> 0 | D45: =Singles!AP239 -> TBC | E45: =Singles!AQ239 -> TBC | F45: =Singles!AR239 -> TBC | G45: =Singles!AS239 -> TBC | H45: =Singles!AT239 -> TBC | I45: =Singles!AU239 -> TBC | K45: =Singles!AV239 -> 0 | L45: =Singles!AW239 -> 0 | M45: =Singles!AX239 -> 0 | AH45: 0
B46: 40 | C46: =Singles!AO240 -> 0 | D46: =Singles!AP240 -> TBC | E46: =Singles!AQ240 -> TBC | F46: =Singles!AR240 -> TBC | G46: =Singles!AS240 -> TBC | H46: =Singles!AT240 -> TBC | I46: =Singles!AU240 -> TBC | K46: =Singles!AV240 -> 0 | L46: =Singles!AW240 -> 0 | M46: =Singles!AX240 -> 0 | AH46: 0
B47: 41 | C47: =Singles!AO241 -> 0 | D47: =Singles!AP241 -> TBC | E47: =Singles!AQ241 -> TBC | F47: =Singles!AR241 -> TBC | G47: =Singles!AS241 -> TBC | H47: =Singles!AT241 -> TBC | I47: =Singles!AU241 -> TBC | K47: =Singles!AV241 -> 0 | L47: =Singles!AW241 -> 0 | M47: =Singles!AX241 -> 0 | AH47: 0
B48: 42 | C48: =Singles!AO242 -> 0 | D48: =Singles!AP242 -> TBC | E48: =Singles!AQ242 -> TBC | F48: =Singles!AR242 -> TBC | G48: =Singles!AS242 -> TBC | H48: =Singles!AT242 -> TBC | I48: =Singles!AU242 -> TBC | K48: =Singles!AV242 -> 0 | L48: =Singles!AW242 -> 0 | M48: =Singles!AX242 -> 0 | AH48: 0
B49: 43 | C49: =Singles!AO243 -> 0 | D49: =Singles!AP243 -> TBC | E49: =Singles!AQ243 -> TBC | F49: =Singles!AR243 -> TBC | G49: =Singles!AS243 -> TBC | H49: =Singles!AT243 -> TBC | I49: =Singles!AU243 -> TBC | K49: =Singles!AV243 -> 0 | L49: =Singles!AW243 -> 0 | M49: =Singles!AX243 -> 0 | AH49: 0
B50: 44 | C50: =Singles!AO244 -> 0 | D50: =Singles!AP244 -> TBC | E50: =Singles!AQ244 -> TBC | F50: =Singles!AR244 -> TBC | G50: =Singles!AS244 -> TBC | H50: =Singles!AT244 -> TBC | I50: =Singles!AU244 -> TBC | K50: =Singles!AV244 -> 0 | L50: =Singles!AW244 -> 0 | M50: =Singles!AX244 -> 0 | AH50: 0
B51: 45 | C51: =Singles!AO245 -> 0 | D51: =Singles!AP245 -> TBC | E51: =Singles!AQ245 -> TBC | F51: =Singles!AR245 -> TBC | G51: =Singles!AS245 -> TBC | H51: =Singles!AT245 -> TBC | I51: =Singles!AU245 -> TBC | K51: =Singles!AV245 -> 0 | L51: =Singles!AW245 -> 0 | M51: =Singles!AX245 -> 0 | AH51: 0
B52: 46 | C52: =Singles!AO246 -> 0 | D52: =Singles!AP246 -> TBC | E52: =Singles!AQ246 -> TBC | F52: =Singles!AR246 -> TBC | G52: =Singles!AS246 -> TBC | H52: =Singles!AT246 -> TBC | I52: =Singles!AU246 -> TBC | K52: =Singles!AV246 -> 0 | L52: =Singles!AW246 -> 0 | M52: =Singles!AX246 -> 0 | AH52: 0
B53: 47 | C53: =Singles!AO247 -> 0 | D53: =Singles!AP247 -> TBC | E53: =Singles!AQ247 -> TBC | F53: =Singles!AR247 -> TBC | G53: =Singles!AS247 -> TBC | H53: =Singles!AT247 -> TBC | I53: =Singles!AU247 -> TBC | K53: =Singles!AV247 -> 0 | L53: =Singles!AW247 -> 0 | M53: =Singles!AX247 -> 0 | AH53: 0
B54: 48 | C54: =Singles!AO248 -> 0 | D54: =Singles!AP248 -> TBC | E54: =Singles!AQ248 -> TBC | F54: =Singles!AR248 -> TBC | G54: =Singles!AS248 -> TBC | H54: =Singles!AT248 -> TBC | I54: =Singles!AU248 -> TBC | K54: =Singles!AV248 -> 0 | L54: =Singles!AW248 -> 0 | M54: =Singles!AX248 -> 0 | AH54: 0
B55: 49 | C55: =Singles!AO249 -> 0 | D55: =Singles!AP249 -> TBC | E55: =Singles!AQ249 -> TBC | F55: =Singles!AR249 -> TBC | G55: =Singles!AS249 -> TBC | H55: =Singles!AT249 -> TBC | I55: =Singles!AU249 -> TBC | K55: =Singles!AV249 -> 0 | L55: =Singles!AW249 -> 0 | M55: =Singles!AX249 -> 0 | AH55: 0
B56: 50 | C56: =Singles!AO250 -> 0 | D56: =Singles!AP250 -> TBC | E56: =Singles!AQ250 -> TBC | F56: =Singles!AR250 -> TBC | G56: =Singles!AS250 -> TBC | H56: =Singles!AT250 -> TBC | I56: =Singles!AU250 -> TBC | K56: =Singles!AV250 -> 0 | L56: =Singles!AW250 -> 0 | M56: =Singles!AX250 -> 0 | AH56: 0
B57: 51 | C57: =Singles!AO251 -> 0 | D57: =Singles!AP251 -> TBC | E57: =Singles!AQ251 -> TBC | F57: =Singles!AR251 -> TBC | G57: =Singles!AS251 -> TBC | H57: =Singles!AT251 -> TBC | I57: =Singles!AU251 -> TBC | K57: =Singles!AV251 -> 0 | L57: =Singles!AW251 -> 0 | M57: =Singles!AX251 -> 0 | AH57: 0
B58: 52 | C58: =Singles!AO252 -> 0 | D58: =Singles!AP252 -> TBC | E58: =Singles!AQ252 -> TBC | F58: =Singles!AR252 -> TBC | G58: =Singles!AS252 -> TBC | H58: =Singles!AT252 -> TBC | I58: =Singles!AU252 -> TBC | K58: =Singles!AV252 -> 0 | L58: =Singles!AW252 -> 0 | M58: =Singles!AX252 -> 0 | AH58: 0
B59: 53 | C59: =Singles!AO253 -> 0 | D59: =Singles!AP253 -> TBC | E59: =Singles!AQ253 -> TBC | F59: =Singles!AR253 -> TBC | G59: =Singles!AS253 -> TBC | H59: =Singles!AT253 -> TBC | I59: =Singles!AU253 -> TBC | K59: =Singles!AV253 -> 0 | L59: =Singles!AW253 -> 0 | M59: =Singles!AX253 -> 0 | AH59: 0
B60: 54 | C60: =Singles!AO254 -> 0 | D60: =Singles!AP254 -> TBC | E60: =Singles!AQ254 -> TBC | F60: =Singles!AR254 -> TBC | G60: =Singles!AS254 -> TBC | H60: =Singles!AT254 -> TBC | I60: =Singles!AU254 -> TBC | K60: =Singles!AV254 -> 0 | L60: =Singles!AW254 -> 0 | M60: =Singles!AX254 -> 0 | AH60: 0
B61: 55 | C61: =Singles!AO255 -> 0 | D61: =Singles!AP255 -> TBC | E61: =Singles!AQ255 -> TBC | F61: =Singles!AR255 -> TBC | G61: =Singles!AS255 -> TBC | H61: =Singles!AT255 -> TBC | I61: =Singles!AU255 -> TBC | K61: =Singles!AV255 -> 0 | L61: =Singles!AW255 -> 0 | M61: =Singles!AX255 -> 0 | AH61: 0
B62: 56 | C62: =Singles!AO256 -> 0 | D62: =Singles!AP256 -> TBC | E62: =Singles!AQ256 -> TBC | F62: =Singles!AR256 -> TBC | G62: =Singles!AS256 -> TBC | H62: =Singles!AT256 -> TBC | I62: =Singles!AU256 -> TBC | K62: =Singles!AV256 -> 0 | L62: =Singles!AW256 -> 0 | M62: =Singles!AX256 -> 0 | AH62: 0
B63: 57 | C63: =Singles!AO257 -> 0 | D63: =Singles!AP257 -> TBC | E63: =Singles!AQ257 -> TBC | F63: =Singles!AR257 -> TBC | G63: =Singles!AS257 -> TBC | H63: =Singles!AT257 -> TBC | I63: =Singles!AU257 -> TBC | K63: =Singles!AV257 -> 0 | L63: =Singles!AW257 -> 0 | M63: =Singles!AX257 -> 0 | AH63: 0
B64: 58 | C64: =Singles!AO258 -> 0 | D64: =Singles!AP258 -> TBC | E64: =Singles!AQ258 -> TBC | F64: =Singles!AR258 -> TBC | G64: =Singles!AS258 -> TBC | H64: =Singles!AT258 -> TBC | I64: =Singles!AU258 -> TBC | K64: =Singles!AV258 -> 0 | L64: =Singles!AW258 -> 0 | M64: =Singles!AX258 -> 0 | AH64: 0
B65: 59 | C65: =Singles!AO259 -> 0 | D65: =Singles!AP259 -> TBC | E65: =Singles!AQ259 -> TBC | F65: =Singles!AR259 -> TBC | G65: =Singles!AS259 -> TBC | H65: =Singles!AT259 -> TBC | I65: =Singles!AU259 -> TBC | K65: =Singles!AV259 -> 0 | L65: =Singles!AW259 -> 0 | M65: =Singles!AX259 -> 0 | AH65: 0
B66: 60 | C66: =Singles!AO260 -> 0 | D66: =Singles!AP260 -> TBC | E66: =Singles!AQ260 -> TBC | F66: =Singles!AR260 -> TBC | G66: =Singles!AS260 -> TBC | H66: =Singles!AT260 -> TBC | I66: =Singles!AU260 -> TBC | K66: =Singles!AV260 -> 0 | L66: =Singles!AW260 -> 0 | M66: =Singles!AX260 -> 0 | AH66: 0
B67: 61 | C67: =Singles!AO261 -> 0 | D67: =Singles!AP261 -> TBC | E67: =Singles!AQ261 -> TBC | F67: =Singles!AR261 -> TBC | G67: =Singles!AS261 -> TBC | H67: =Singles!AT261 -> TBC | I67: =Singles!AU261 -> TBC | K67: =Singles!AV261 -> 0 | L67: =Singles!AW261 -> 0 | M67: =Singles!AX261 -> 0 | AH67: 0
B68: 62 | C68: =Singles!AO262 -> 0 | D68: =Singles!AP262 -> TBC | E68: =Singles!AQ262 -> TBC | F68: =Singles!AR262 -> TBC | G68: =Singles!AS262 -> TBC | H68: =Singles!AT262 -> TBC | I68: =Singles!AU262 -> TBC | K68: =Singles!AV262 -> 0 | L68: =Singles!AW262 -> 0 | M68: =Singles!AX262 -> 0 | AH68: 0
B69: 63 | C69: =Singles!AO263 -> 0 | D69: =Singles!AP263 -> TBC | E69: =Singles!AQ263 -> TBC | F69: =Singles!AR263 -> TBC | G69: =Singles!AS263 -> TBC | H69: =Singles!AT263 -> TBC | I69: =Singles!AU263 -> TBC | K69: =Singles!AV263 -> 0 | L69: =Singles!AW263 -> 0 | M69: =Singles!AX263 -> 0 | AH69: 0
B70: 64 | C70: =Singles!AO264 -> 0 | D70: =Singles!AP264 -> TBC | E70: =Singles!AQ264 -> TBC | F70: =Singles!AR264 -> TBC | G70: =Singles!AS264 -> TBC | H70: =Singles!AT264 -> TBC | I70: =Singles!AU264 -> TBC | K70: =Singles!AV264 -> 0 | L70: =Singles!AW264 -> 0 | M70: =Singles!AX264 -> 0 | AH70: 0
B71: 65 | C71: =Singles!AO265 -> 0 | D71: =Singles!AP265 -> TBC | E71: =Singles!AQ265 -> TBC | F71: =Singles!AR265 -> TBC | G71: =Singles!AS265 -> TBC | H71: =Singles!AT265 -> TBC | I71: =Singles!AU265 -> TBC | K71: =Singles!AV265 -> 0 | L71: =Singles!AW265 -> 0 | M71: =Singles!AX265 -> 0 | AH71: 0
B72: 66 | C72: =Singles!AO266 -> 0 | D72: =Singles!AP266 -> TBC | E72: =Singles!AQ266 -> TBC | F72: =Singles!AR266 -> TBC | G72: =Singles!AS266 -> TBC | H72: =Singles!AT266 -> TBC | I72: =Singles!AU266 -> TBC | K72: =Singles!AV266 -> 0 | L72: =Singles!AW266 -> 0 | M72: =Singles!AX266 -> 0 | AH72: 0
B73: 67 | C73: =Singles!AO267 -> 0 | D73: =Singles!AP267 -> TBC | E73: =Singles!AQ267 -> TBC | F73: =Singles!AR267 -> TBC | G73: =Singles!AS267 -> TBC | H73: =Singles!AT267 -> TBC | I73: =Singles!AU267 -> TBC | K73: =Singles!AV267 -> 0 | L73: =Singles!AW267 -> 0 | M73: =Singles!AX267 -> 0 | AH73: 0
B74: 68 | C74: =Singles!AO268 -> 0 | D74: =Singles!AP268 -> TBC | E74: =Singles!AQ268 -> TBC | F74: =Singles!AR268 -> TBC | G74: =Singles!AS268 -> TBC | H74: =Singles!AT268 -> TBC | I74: =Singles!AU268 -> TBC | K74: =Singles!AV268 -> 0 | L74: =Singles!AW268 -> 0 | M74: =Singles!AX268 -> 0 | AH74: 0
B75: 69 | C75: =Singles!AO269 -> 0 | D75: =Singles!AP269 -> TBC | E75: =Singles!AQ269 -> TBC | F75: =Singles!AR269 -> TBC | G75: =Singles!AS269 -> TBC | H75: =Singles!AT269 -> TBC | I75: =Singles!AU269 -> TBC | K75: =Singles!AV269 -> 0 | L75: =Singles!AW269 -> 0 | M75: =Singles!AX269 -> 0 | AH75: 0
B76: 70 | C76: =Singles!AO270 -> 0 | D76: =Singles!AP270 -> TBC | E76: =Singles!AQ270 -> TBC | F76: =Singles!AR270 -> TBC | G76: =Singles!AS270 -> TBC | H76: =Singles!AT270 -> TBC | I76: =Singles!AU270 -> TBC | K76: =Singles!AV270 -> 0 | L76: =Singles!AW270 -> 0 | M76: =Singles!AX270 -> 0 | AH76: 0
B77: 71 | C77: =Singles!AO271 -> 0 | D77: =Singles!AP271 -> TBC | E77: =Singles!AQ271 -> TBC | F77: =Singles!AR271 -> TBC | G77: =Singles!AS271 -> TBC | H77: =Singles!AT271 -> TBC | I77: =Singles!AU271 -> TBC | K77: =Singles!AV271 -> 0 | L77: =Singles!AW271 -> 0 | M77: =Singles!AX271 -> 0 | AH77: 0
B78: 72 | C78: =Singles!AO272 -> 0 | D78: =Singles!AP272 -> TBC | E78: =Singles!AQ272 -> TBC | F78: =Singles!AR272 -> TBC | G78: =Singles!AS272 -> TBC | H78: =Singles!AT272 -> TBC | I78: =Singles!AU272 -> TBC | K78: =Singles!AV272 -> 0 | L78: =Singles!AW272 -> 0 | M78: =Singles!AX272 -> 0 | AH78: 0
B79: 73 | C79: =Singles!AO273 -> 0 | D79: =Singles!AP273 -> TBC | E79: =Singles!AQ273 -> TBC | F79: =Singles!AR273 -> TBC | G79: =Singles!AS273 -> TBC | H79: =Singles!AT273 -> TBC | I79: =Singles!AU273 -> TBC | K79: =Singles!AV273 -> 0 | L79: =Singles!AW273 -> 0 | M79: =Singles!AX273 -> 0 | AH79: 0
B80: 74 | C80: =Singles!AO274 -> 0 | D80: =Singles!AP274 -> TBC | E80: =Singles!AQ274 -> TBC | F80: =Singles!AR274 -> TBC | G80: =Singles!AS274 -> TBC | H80: =Singles!AT274 -> TBC | I80: =Singles!AU274 -> TBC | K80: =Singles!AV274 -> 0 | L80: =Singles!AW274 -> 0 | M80: =Singles!AX274 -> 0 | AH80: 0
B81: 75 | C81: =Singles!AO275 -> 0 | D81: =Singles!AP275 -> TBC | E81: =Singles!AQ275 -> TBC | F81: =Singles!AR275 -> TBC | G81: =Singles!AS275 -> TBC | H81: =Singles!AT275 -> TBC | I81: =Singles!AU275 -> TBC | K81: =Singles!AV275 -> 0 | L81: =Singles!AW275 -> 0 | M81: =Singles!AX275 -> 0 | AH81: 0
A82: =$D$7 -> DCU

Sheet RAM
A1: =$D$7 -> DKIT
A2: =$D$7 -> DKIT | B2: Male Advanced Recurve | E2: Host Club | J2: =$D$7 -> DKIT | K2: Scores | N2: DKIT | AH2: =AH7 -> Yeo Eng Jet
E3: =Entries!K6 -> UL IV | F3: =Entries!K7 -> DkIT IV | G3: =Entries!K8 -> GMIT IV | H3: =Entries!K9 -> DCU IV | I3: =Entries!K10 -> NUIG IV | K3: Total | L3: Lowest | M3: League
B5: DKIT | K5: DKIT
C6: Name | D6: College | E6: =Entries!K6 -> UL IV | F6: =Entries!K7 -> DkIT IV | G6: =Entries!K8 -> GMIT IV | H6: =Entries!K9 -> DCU IV | I6: =Entries!K10 -> NUIG IV | K6: Total | L6: Lowest | M6: League total
B7: 1 | C7: =Singles!BB201 -> Yeo Eng Jet | D7: =Singles!BC201 -> DKIT | E7: =Singles!BD201 -> 514 | F7: =Singles!BE201 -> 527 | G7: =Singles!BF201 -> 507 | H7: =Singles!BG201 -> 520 | I7: =Singles!BH201 -> 540 | K7: =Singles!BI201 -> 2608 | L7: =Singles!BJ201 -> 507 | M7: =Singles!BK201 -> 2101.054053 | AH7: =C7 -> Yeo Eng Jet
B8: 2 | C8: =Singles!BB202 -> Carl McCaffery | D8: =Singles!BC202 -> UCD | E8: =Singles!BD202 -> 522 | F8: =Singles!BE202 -> 517 | G8: =Singles!BF202 -> 529 | H8: =Singles!BG202 -> 528 | I8: =Singles!BH202 -> 503 | K8: =Singles!BI202 -> 2599 | L8: =Singles!BJ202 -> 503 | M8: =Singles!BK202 -> 2096.052953 | AH8: Carl McCaffery
B9: 3 | C9: =Singles!BB203 -> Diego Coyle Diez | D9: =Singles!BC203 -> MU | E9: =Singles!BD203 -> 523 | F9: =Singles!BE203 -> 486 | G9: =Singles!BF203 -> 530 | H9: =Singles!BG203 -> 512 | I9: =Singles!BH203 -> 524 | K9: =Singles!BI203 -> 2575 | L9: =Singles!BJ203 -> 486 | M9: =Singles!BK203 -> 2089.053052 | AH9: Diego Coyle Diez
B10: 4 | C10: =Singles!BB204 -> Brendan Forde | D10: =Singles!BC204 -> DIT | E10: =Singles!BD204 -> 509 | F10: =Singles!BE204 -> 506 | G10: =Singles!BF204 -> 515 | H10: =Singles!BG204 -> 513 | I10: =Singles!BH204 -> 512 | K10: =Singles!BI204 -> 2555 | L10: =Singles!BJ204 -> 506 | M10: =Singles!BK204 -> 2049.051551 | AH10: Brendan Forde
B11: 5 | C11: =Singles!BB210 -> Dale Burke | D11: =Singles!BC210 -> GMIT | E11: =Singles!BD210 -> 524 | F11: =Singles!BE210 -> 488 | G11: =Singles!BF210 -> 517 | H11: =Singles!BG210 -> 0 | I11: =Singles!BH210 -> 501 | K11: =Singles!BI210 -> 2030 | L11: =Singles!BJ210 -> 0 | M11: =Singles!BK210 -> 2030.052452 | AH11: Dale Burke
B12: 6 | C12: =Singles!BB205 -> Hugh Farrell | D12: =Singles!BC205 -> MU | E12: =Singles!BD205 -> 495 | F12: =Singles!BE205 -> 495 | G12: =Singles!BF205 -> 509 | H12: =Singles!BG205 -> 482 | I12: =Singles!BH205 -> 502 | K12: =Singles!BI205 -> 2483 | L12: =Singles!BJ205 -> 482 | M12: =Singles!BK205 -> 2001.05095 | AH12: Hugh Farrell
B13: 7 | C13: =Singles!BB206 -> Kevin Kok Zhi Hao | D13: =Singles!BC206 -> DKIT | E13: =Singles!BD206 -> 499 | F13: =Singles!BE206 -> 510 | G13: =Singles!BF206 -> 458 | H13: =Singles!BG206 -> 495 | I13: =Singles!BH206 -> 496 | K13: =Singles!BI206 -> 2458 | L13: =Singles!BJ206 -> 458 | M13: =Singles!BK206 -> 2000.05105 | AH13: Kevin Kok Zhi Hao
B14: 8 | C14: =Singles!BB208 -> Aidan Darcy | D14: =Singles!BC208 -> IT Tallaght | E14: =Singles!BD208 -> 401 | F14: =Singles!BE208 -> 488 | G14: =Singles!BF208 -> 525 | H14: =Singles!BG208 -> 473 | I14: =Singles!BH208 -> 503 | K14: =Singles!BI208 -> 2390 | L14: =Singles!BJ208 -> 401 | M14: =Singles!BK208 -> 1989.05255 | AH14: Aidan Darcy
B15: 9 | C15: =Singles!BB207 -> James Byrne | D15: =Singles!BC207 -> DIT | E15: =Singles!BD207 -> 477 | F15: =Singles!BE207 -> 497 | G15: =Singles!BF207 -> 479 | H15: =Singles!BG207 -> 481 | I15: =Singles!BH207 -> 510 | K15: =Singles!BI207 -> 2444 | L15: =Singles!BJ207 -> 477 | M15: =Singles!BK207 -> 1967.05105 | AH15: James Byrne
B16: 10 | C16: =Singles!BB209 -> Patrick Molloy | D16: =Singles!BC209 -> NUIG | E16: =Singles!BD209 -> 410 | F16: =Singles!BE209 -> 430 | G16: =Singles!BF209 -> 507 | H16: =Singles!BG209 -> 483 | I16: =Singles!BH209 -> 516 | K16: =Singles!BI209 -> 2346 | L16: =Singles!BJ209 -> 410 | M16: =Singles!BK209 -> 1936.051651 | AH16: Patrick Molloy
B17: 11 | C17: =Singles!BB211 -> Jordan McCord | D17: =Singles!BC211 -> UU | E17: =Singles!BD211 -> 0 | F17: =Singles!BE211 -> 418 | G17: =Singles!BF211 -> 505 | H17: =Singles!BG211 -> 478 | I17: =Singles!BH211 -> 496 | K17: =Singles!BI211 -> 1897 | L17: =Singles!BJ211 -> 0 | M17: =Singles!BK211 -> 1897.05055 | AH17: Jordan McCord
B18: 12 | C18: =Singles!BB212 -> Eric Moore | D18: =Singles!BC212 -> NUIG | E18: =Singles!BD212 -> 399 | F18: =Singles!BE212 -> 380 | G18: =Singles!BF212 -> 0 | H18: =Singles!BG212 -> 322 | I18: =Singles!BH212 -> 384 | K18: =Singles!BI212 -> 1485 | L18: =Singles!BJ212 -> 0 | M18: =Singles!BK212 -> 1485.039938 | AH18: Eric Moore
B19: 13 | C19: =Singles!BB213 -> Dáire Healy | D19: =Singles!BC213 -> DUAC | E19: =Singles!BD213 -> 0 | F19: =Singles!BE213 -> 389 | G19: =Singles!BF213 -> 0 | H19: =Singles!BG213 -> 379 | I19: =Singles!BH213 -> 410 | K19: =Singles!BI213 -> 1178 | L19: =Singles!BJ213 -> 0 | M19: =Singles!BK213 -> 1178.041039 | AH19: Dáire Healy
B20: 14 | C20: =Singles!BB214 -> Gary Kelly | D20: =Singles!BC214 -> DCU | E20: =Singles!BD214 -> 484 | F20: =Singles!BE214 -> 480 | G20: =Singles!BF214 -> 0 | H20: =Singles!BG214 -> 0 | I20: =Singles!BH214 -> 0 | K20: =Singles!BI214 -> 964 | L20: =Singles!BJ214 -> 0 | M20: =Singles!BK214 -> 964.048448 | AH20: Gary Kelly
B21: 15 | C21: =Singles!BB215 -> Oskar Ronan | D21: =Singles!BC215 -> DUAC | E21: =Singles!BD215 -> 0 | F21: =Singles!BE215 -> 464 | G21: =Singles!BF215 -> 0 | H21: =Singles!BG215 -> 403 | I21: =Singles!BH215 -> 0 | K21: =Singles!BI215 -> 867 | L21: =Singles!BJ215 -> 0 | M21: =Singles!BK215 -> 867.0464403 | AH21: Oskar Ronan
B22: 16 | C22: =Singles!BB216 -> John Hally | D22: =Singles!BC216 -> UL | E22: =Singles!BD216 -> 0 | F22: =Singles!BE216 -> 436 | G22: =Singles!BF216 -> 429 | H22: =Singles!BG216 -> 0 | I22: =Singles!BH216 -> 0 | K22: =Singles!BI216 -> 865 | L22: =Singles!BJ216 -> 0 | M22: =Singles!BK216 -> 865.0436429 | AH22: John Hally
B23: 17 | C23: =Singles!BB217 -> Darren Wallace | D23: =Singles!BC217 -> NUIG | E23: =Singles!BD217 -> 0 | F23: =Singles!BE217 -> 0 | G23: =Singles!BF217 -> 569 | H23: =Singles!BG217 -> 0 | I23: =Singles!BH217 -> 0 | K23: =Singles!BI217 -> 569 | L23: =Singles!BJ217 -> 0 | M23: =Singles!BK217 -> 569.0569 | AH23: Darren Wallace
B24: 18 | C24: =Singles!BB218 -> Simon Henleywillis | D24: =Singles!BC218 -> UCC | E24: =Singles!BD218 -> 471 | F24: =Singles!BE218 -> 0 | G24: =Singles!BF218 -> 0 | H24: =Singles!BG218 -> 0 | I24: =Singles!BH218 -> 0 | K24: =Singles!BI218 -> 471 | L24: =Singles!BJ218 -> 0 | M24: =Singles!BK218 -> 471.0471 | AH24: Simon Henleywillis
B25: 19 | C25: =Singles!BB219 -> Mark Walsh | D25: =Singles!BC219 -> NUIG | E25: =Singles!BD219 -> 0 | F25: =Singles!BE219 -> 0 | G25: =Singles!BF219 -> 0 | H25: =Singles!BG219 -> 0 | I25: =Singles!BH219 -> 441 | K25: =Singles!BI219 -> 441 | L25: =Singles!BJ219 -> 0 | M25: =Singles!BK219 -> 441.0441 | AH25: Mark Walsh
B26: 20 | C26: =Singles!BB220 -> Christo Pretorious | D26: =Singles!BC220 -> DUAC | E26: =Singles!BD220 -> 0 | F26: =Singles!BE220 -> 290 | G26: =Singles!BF220 -> 0 | H26: =Singles!BG220 -> 0 | I26: =Singles!BH220 -> 0 | K26: =Singles!BI220 -> 290 | L26: =Singles!BJ220 -> 0 | M26: =Singles!BK220 -> 290.029 | AH26: Christo Pretorious
B27: 21 | C27: =Singles!BB221 -> 0 | D27: =Singles!BC221 -> TBC | E27: =Singles!BD221 -> TBC | F27: =Singles!BE221 -> TBC | G27: =Singles!BF221 -> TBC | H27: =Singles!BG221 -> TBC | I27: =Singles!BH221 -> TBC | K27: =Singles!BI221 -> 0 | L27: =Singles!BJ221 -> 0 | M27: =Singles!BK221 -> 0 | AH27: 0
B28: 22 | C28: =Singles!BB222 -> 0 | D28: =Singles!BC222 -> TBC | E28: =Singles!BD222 -> TBC | F28: =Singles!BE222 -> TBC | G28: =Singles!BF222 -> TBC | H28: =Singles!BG222 -> TBC | I28: =Singles!BH222 -> TBC | K28: =Singles!BI222 -> 0 | L28: =Singles!BJ222 -> 0 | M28: =Singles!BK222 -> 0 | AH28: 0
B29: 23 | C29: =Singles!BB223 -> 0 | D29: =Singles!BC223 -> TBC | E29: =Singles!BD223 -> TBC | F29: =Singles!BE223 -> TBC | G29: =Singles!BF223 -> TBC | H29: =Singles!BG223 -> TBC | I29: =Singles!BH223 -> TBC | K29: =Singles!BI223 -> 0 | L29: =Singles!BJ223 -> 0 | M29: =Singles!BK223 -> 0 | AH29: 0
B30: 24 | C30: =Singles!BB224 -> 0 | D30: =Singles!BC224 -> TBC | E30: =Singles!BD224 -> TBC | F30: =Singles!BE224 -> TBC | G30: =Singles!BF224 -> TBC | H30: =Singles!BG224 -> TBC | I30: =Singles!BH224 -> TBC | K30: =Singles!BI224 -> 0 | L30: =Singles!BJ224 -> 0 | M30: =Singles!BK224 -> 0 | AH30: 0
B31: 25 | C31: =Singles!BB225 -> 0 | D31: =Singles!BC225 -> TBC | E31: =Singles!BD225 -> TBC | F31: =Singles!BE225 -> TBC | G31: =Singles!BF225 -> TBC | H31: =Singles!BG225 -> TBC | I31: =Singles!BH225 -> TBC | K31: =Singles!BI225 -> 0 | L31: =Singles!BJ225 -> 0 | M31: =Singles!BK225 -> 0 | AH31: 0
B32: 26 | C32: =Singles!BB226 -> 0 | D32: =Singles!BC226 -> TBC | E32: =Singles!BD226 -> TBC | F32: =Singles!BE226 -> TBC | G32: =Singles!BF226 -> TBC | H32: =Singles!BG226 -> TBC | I32: =Singles!BH226 -> TBC | K32: =Singles!BI226 -> 0 | L32: =Singles!BJ226 -> 0 | M32: =Singles!BK226 -> 0 | AH32: 0
B33: 27 | C33: =Singles!BB227 -> 0 | D33: =Singles!BC227 -> TBC | E33: =Singles!BD227 -> TBC | F33: =Singles!BE227 -> TBC | G33: =Singles!BF227 -> TBC | H33: =Singles!BG227 -> TBC | I33: =Singles!BH227 -> TBC | K33: =Singles!BI227 -> 0 | L33: =Singles!BJ227 -> 0 | M33: =Singles!BK227 -> 0 | AH33: 0
B34: 28 | C34: =Singles!BB228 -> 0 | D34: =Singles!BC228 -> TBC | E34: =Singles!BD228 -> TBC | F34: =Singles!BE228 -> TBC | G34: =Singles!BF228 -> TBC | H34: =Singles!BG228 -> TBC | I34: =Singles!BH228 -> TBC | K34: =Singles!BI228 -> 0 | L34: =Singles!BJ228 -> 0 | M34: =Singles!BK228 -> 0 | AH34: 0
B35: 29 | C35: =Singles!BB229 -> 0 | D35: =Singles!BC229 -> TBC | E35: =Singles!BD229 -> TBC | F35: =Singles!BE229 -> TBC | G35: =Singles!BF229 -> TBC | H35: =Singles!BG229 -> TBC | I35: =Singles!BH229 -> TBC | K35: =Singles!BI229 -> 0 | L35: =Singles!BJ229 -> 0 | M35: =Singles!BK229 -> 0 | AH35: 0
B36: 30 | C36: =Singles!BB230 -> 0 | D36: =Singles!BC230 -> TBC | E36: =Singles!BD230 -> TBC | F36: =Singles!BE230 -> TBC | G36: =Singles!BF230 -> TBC | H36: =Singles!BG230 -> TBC | I36: =Singles!BH230 -> TBC | K36: =Singles!BI230 -> 0 | L36: =Singles!BJ230 -> 0 | M36: =Singles!BK230 -> 0 | AH36: 0
B37: 31 | C37: =Singles!BB231 -> 0 | D37: =Singles!BC231 -> TBC | E37: =Singles!BD231 -> TBC | F37: =Singles!BE231 -> TBC | G37: =Singles!BF231 -> TBC | H37: =Singles!BG231 -> TBC | I37: =Singles!BH231 -> TBC | K37: =Singles!BI231 -> 0 | L37: =Singles!BJ231 -> 0 | M37: =Singles!BK231 -> 0 | AH37: 0
B38: 32 | C38: =Singles!BB232 -> 0 | D38: =Singles!BC232 -> TBC | E38: =Singles!BD232 -> TBC | F38: =Singles!BE232 -> TBC | G38: =Singles!BF232 -> TBC | H38: =Singles!BG232 -> TBC | I38: =Singles!BH232 -> TBC | K38: =Singles!BI232 -> 0 | L38: =Singles!BJ232 -> 0 | M38: =Singles!BK232 -> 0 | AH38: 0
B39: 33 | C39: =Singles!BB233 -> 0 | D39: =Singles!BC233 -> TBC | E39: =Singles!BD233 -> TBC | F39: =Singles!BE233 -> TBC | G39: =Singles!BF233 -> TBC | H39: =Singles!BG233 -> TBC | I39: =Singles!BH233 -> TBC | K39: =Singles!BI233 -> 0 | L39: =Singles!BJ233 -> 0 | M39: =Singles!BK233 -> 0 | AH39: =C39 -> 0
B40: 34 | C40: =Singles!BB234 -> 0 | D40: =Singles!BC234 -> TBC | E40: =Singles!BD234 -> TBC | F40: =Singles!BE234 -> TBC | G40: =Singles!BF234 -> TBC | H40: =Singles!BG234 -> TBC | I40: =Singles!BH234 -> TBC | K40: =Singles!BI234 -> 0 | L40: =Singles!BJ234 -> 0 | M40: =Singles!BK234 -> 0 | AH40: 0
B41: 35 | C41: =Singles!BB235 -> 0 | D41: =Singles!BC235 -> TBC | E41: =Singles!BD235 -> TBC | F41: =Singles!BE235 -> TBC | G41: =Singles!BF235 -> TBC | H41: =Singles!BG235 -> TBC | I41: =Singles!BH235 -> TBC | K41: =Singles!BI235 -> 0 | L41: =Singles!BJ235 -> 0 | M41: =Singles!BK235 -> 0 | AH41: 0
B42: 36 | C42: =Singles!BB236 -> 0 | D42: =Singles!BC236 -> TBC | E42: =Singles!BD236 -> TBC | F42: =Singles!BE236 -> TBC | G42: =Singles!BF236 -> TBC | H42: =Singles!BG236 -> TBC | I42: =Singles!BH236 -> TBC | K42: =Singles!BI236 -> 0 | L42: =Singles!BJ236 -> 0 | M42: =Singles!BK236 -> 0 | AH42: 0
B43: 37 | C43: =Singles!BB237 -> 0 | D43: =Singles!BC237 -> TBC | E43: =Singles!BD237 -> TBC | F43: =Singles!BE237 -> TBC | G43: =Singles!BF237 -> TBC | H43: =Singles!BG237 -> TBC | I43: =Singles!BH237 -> TBC | K43: =Singles!BI237 -> 0 | L43: =Singles!BJ237 -> 0 | M43: =Singles!BK237 -> 0 | AH43: 0
B44: 38 | C44: =Singles!BB238 -> 0 | D44: =Singles!BC238 -> TBC | E44: =Singles!BD238 -> TBC | F44: =Singles!BE238 -> TBC | G44: =Singles!BF238 -> TBC | H44: =Singles!BG238 -> TBC | I44: =Singles!BH238 -> TBC | K44: =Singles!BI238 -> 0 | L44: =Singles!BJ238 -> 0 | M44: =Singles!BK238 -> 0 | AH44: 0
B45: 39 | C45: =Singles!BB239 -> 0 | D45: =Singles!BC239 -> TBC | E45: =Singles!BD239 -> TBC | F45: =Singles!BE239 -> TBC | G45: =Singles!BF239 -> TBC | H45: =Singles!BG239 -> TBC | I45: =Singles!BH239 -> TBC | K45: =Singles!BI239 -> 0 | L45: =Singles!BJ239 -> 0 | M45: =Singles!BK239 -> 0 | AH45: 0
B46: 40 | C46: =Singles!BB240 -> 0 | D46: =Singles!BC240 -> TBC | E46: =Singles!BD240 -> TBC | F46: =Singles!BE240 -> TBC | G46: =Singles!BF240 -> TBC | H46: =Singles!BG240 -> TBC | I46: =Singles!BH240 -> TBC | K46: =Singles!BI240 -> 0 | L46: =Singles!BJ240 -> 0 | M46: =Singles!BK240 -> 0 | AH46: 0
B47: 41 | C47: =Singles!BB241 -> 0 | D47: =Singles!BC241 -> TBC | E47: =Singles!BD241 -> TBC | F47: =Singles!BE241 -> TBC | G47: =Singles!BF241 -> TBC | H47: =Singles!BG241 -> TBC | I47: =Singles!BH241 -> TBC | K47: =Singles!BI241 -> 0 | L47: =Singles!BJ241 -> 0 | M47: =Singles!BK241 -> 0 | AH47: 0
B48: 42 | C48: =Singles!BB242 -> 0 | D48: =Singles!BC242 -> TBC | E48: =Singles!BD242 -> TBC | F48: =Singles!BE242 -> TBC | G48: =Singles!BF242 -> TBC | H48: =Singles!BG242 -> TBC | I48: =Singles!BH242 -> TBC | K48: =Singles!BI242 -> 0 | L48: =Singles!BJ242 -> 0 | M48: =Singles!BK242 -> 0 | AH48: 0
B49: 43 | C49: =Singles!BB243 -> 0 | D49: =Singles!BC243 -> TBC | E49: =Singles!BD243 -> TBC | F49: =Singles!BE243 -> TBC | G49: =Singles!BF243 -> TBC | H49: =Singles!BG243 -> TBC | I49: =Singles!BH243 -> TBC | K49: =Singles!BI243 -> 0 | L49: =Singles!BJ243 -> 0 | M49: =Singles!BK243 -> 0 | AH49: 0
B50: 44 | C50: =Singles!BB244 -> 0 | D50: =Singles!BC244 -> TBC | E50: =Singles!BD244 -> TBC | F50: =Singles!BE244 -> TBC | G50: =Singles!BF244 -> TBC | H50: =Singles!BG244 -> TBC | I50: =Singles!BH244 -> TBC | K50: =Singles!BI244 -> 0 | L50: =Singles!BJ244 -> 0 | M50: =Singles!BK244 -> 0 | AH50: 0
B51: 45 | C51: =Singles!BB245 -> 0 | D51: =Singles!BC245 -> TBC | E51: =Singles!BD245 -> TBC | F51: =Singles!BE245 -> TBC | G51: =Singles!BF245 -> TBC | H51: =Singles!BG245 -> TBC | I51: =Singles!BH245 -> TBC | K51: =Singles!BI245 -> 0 | L51: =Singles!BJ245 -> 0 | M51: =Singles!BK245 -> 0 | AH51: 0
B52: 46 | C52: =Singles!BB246 -> 0 | D52: =Singles!BC246 -> TBC | E52: =Singles!BD246 -> TBC | F52: =Singles!BE246 -> TBC | G52: =Singles!BF246 -> TBC | H52: =Singles!BG246 -> TBC | I52: =Singles!BH246 -> TBC | K52: =Singles!BI246 -> 0 | L52: =Singles!BJ246 -> 0 | M52: =Singles!BK246 -> 0 | AH52: 0
B53: 47 | C53: =Singles!BB247 -> 0 | D53: =Singles!BC247 -> TBC | E53: =Singles!BD247 -> TBC | F53: =Singles!BE247 -> TBC | G53: =Singles!BF247 -> TBC | H53: =Singles!BG247 -> TBC | I53: =Singles!BH247 -> TBC | K53: =Singles!BI247 -> 0 | L53: =Singles!BJ247 -> 0 | M53: =Singles!BK247 -> 0 | AH53: 0
B54: 48 | C54: =Singles!BB248 -> 0 | D54: =Singles!BC248 -> TBC | E54: =Singles!BD248 -> TBC | F54: =Singles!BE248 -> TBC | G54: =Singles!BF248 -> TBC | H54: =Singles!BG248 -> TBC | I54: =Singles!BH248 -> TBC | K54: =Singles!BI248 -> 0 | L54: =Singles!BJ248 -> 0 | M54: =Singles!BK248 -> 0 | AH54: 0
B55: 49 | C55: =Singles!BB249 -> 0 | D55: =Singles!BC249 -> TBC | E55: =Singles!BD249 -> TBC | F55: =Singles!BE249 -> TBC | G55: =Singles!BF249 -> TBC | H55: =Singles!BG249 -> TBC | I55: =Singles!BH249 -> TBC | K55: =Singles!BI249 -> 0 | L55: =Singles!BJ249 -> 0 | M55: =Singles!BK249 -> 0 | AH55: 0
B56: 50 | C56: =Singles!BB250 -> 0 | D56: =Singles!BC250 -> TBC | E56: =Singles!BD250 -> TBC | F56: =Singles!BE250 -> TBC | G56: =Singles!BF250 -> TBC | H56: =Singles!BG250 -> TBC | I56: =Singles!BH250 -> TBC | K56: =Singles!BI250 -> 0 | L56: =Singles!BJ250 -> 0 | M56: =Singles!BK250 -> 0 | AH56: 0
B57: 51 | C57: =Singles!BB251 -> 0 | D57: =Singles!BC251 -> TBC | E57: =Singles!BD251 -> TBC | F57: =Singles!BE251 -> TBC | G57: =Singles!BF251 -> TBC | H57: =Singles!BG251 -> TBC | I57: =Singles!BH251 -> TBC | K57: =Singles!BI251 -> 0 | L57: =Singles!BJ251 -> 0 | M57: =Singles!BK251 -> 0 | AH57: 0
B58: 52 | C58: =Singles!BB252 -> 0 | D58: =Singles!BC252 -> TBC | E58: =Singles!BD252 -> TBC | F58: =Singles!BE252 -> TBC | G58: =Singles!BF252 -> TBC | H58: =Singles!BG252 -> TBC | I58: =Singles!BH252 -> TBC | K58: =Singles!BI252 -> 0 | L58: =Singles!BJ252 -> 0 | M58: =Singles!BK252 -> 0 | AH58: 0
B59: 53 | C59: =Singles!BB253 -> 0 | D59: =Singles!BC253 -> TBC | E59: =Singles!BD253 -> TBC | F59: =Singles!BE253 -> TBC | G59: =Singles!BF253 -> TBC | H59: =Singles!BG253 -> TBC | I59: =Singles!BH253 -> TBC | K59: =Singles!BI253 -> 0 | L59: =Singles!BJ253 -> 0 | M59: =Singles!BK253 -> 0 | AH59: 0
B60: 54 | C60: =Singles!BB254 -> 0 | D60: =Singles!BC254 -> TBC | E60: =Singles!BD254 -> TBC | F60: =Singles!BE254 -> TBC | G60: =Singles!BF254 -> TBC | H60: =Singles!BG254 -> TBC | I60: =Singles!BH254 -> TBC | K60: =Singles!BI254 -> 0 | L60: =Singles!BJ254 -> 0 | M60: =Singles!BK254 -> 0 | AH60: 0
B61: 55 | C61: =Singles!BB255 -> 0 | D61: =Singles!BC255 -> TBC | E61: =Singles!BD255 -> TBC | F61: =Singles!BE255 -> TBC | G61: =Singles!BF255 -> TBC | H61: =Singles!BG255 -> TBC | I61: =Singles!BH255 -> TBC | K61: =Singles!BI255 -> 0 | L61: =Singles!BJ255 -> 0 | M61: =Singles!BK255 -> 0 | AH61: 0
B62: 56 | C62: =Singles!BB256 -> 0 | D62: =Singles!BC256 -> TBC | E62: =Singles!BD256 -> TBC | F62: =Singles!BE256 -> TBC | G62: =Singles!BF256 -> TBC | H62: =Singles!BG256 -> TBC | I62: =Singles!BH256 -> TBC | K62: =Singles!BI256 -> 0 | L62: =Singles!BJ256 -> 0 | M62: =Singles!BK256 -> 0 | AH62: 0
B63: 57 | C63: =Singles!BB257 -> 0 | D63: =Singles!BC257 -> TBC | E63: =Singles!BD257 -> TBC | F63: =Singles!BE257 -> TBC | G63: =Singles!BF257 -> TBC | H63: =Singles!BG257 -> TBC | I63: =Singles!BH257 -> TBC | K63: =Singles!BI257 -> 0 | L63: =Singles!BJ257 -> 0 | M63: =Singles!BK257 -> 0 | AH63: 0
B64: 58 | C64: =Singles!BB258 -> 0 | D64: =Singles!BC258 -> TBC | E64: =Singles!BD258 -> TBC | F64: =Singles!BE258 -> TBC | G64: =Singles!BF258 -> TBC | H64: =Singles!BG258 -> TBC | I64: =Singles!BH258 -> TBC | K64: =Singles!BI258 -> 0 | L64: =Singles!BJ258 -> 0 | M64: =Singles!BK258 -> 0 | AH64: 0
B65: 59 | C65: =Singles!BB259 -> 0 | D65: =Singles!BC259 -> TBC | E65: =Singles!BD259 -> TBC | F65: =Singles!BE259 -> TBC | G65: =Singles!BF259 -> TBC | H65: =Singles!BG259 -> TBC | I65: =Singles!BH259 -> TBC | K65: =Singles!BI259 -> 0 | L65: =Singles!BJ259 -> 0 | M65: =Singles!BK259 -> 0 | AH65: 0
B66: 60 | C66: =Singles!BB260 -> 0 | D66: =Singles!BC260 -> TBC | E66: =Singles!BD260 -> TBC | F66: =Singles!BE260 -> TBC | G66: =Singles!BF260 -> TBC | H66: =Singles!BG260 -> TBC | I66: =Singles!BH260 -> TBC | K66: =Singles!BI260 -> 0 | L66: =Singles!BJ260 -> 0 | M66: =Singles!BK260 -> 0 | AH66: 0
